Workbook

Sheet All
A1: MONDAY | B1: 1 | C1: 2 | D1: 3 | E1: 4 | F1: Lunch | G1: 5 | H1: 6 | I1: TEA | J1: 7 | K1: 8 | L1: MONDAY
B2: 09:05:00 | C2: 10:05:00 | D2: 11:05:00 | E2: 12:05:00 | F2: 13:00:00 | G2: 14:30:00 | H2: 15:30:00 | I2: 16:30:00 | J2: 17:00:00 | K2: 18:15:00 | O2: Student | P2: # Free Periods | Q2: Free Period #1 | R2: Free Period #2 | S2: Free Period #3 | T2: Free Period #4 | U2: Free Period #5 | V2: Free Period #6 | W2: Free Period #7 | X2: Free Period #8
A3: Student 1 | C3: ASEngLang3 | D3: MathsIGCM3 | E3: ASPsychology3 | J3: DramaAS5 | K3: SchoolMtg | L3: Student 1 | M3: =COUNTA(B3:K3) -> 5 | O3: =L3 -> Student 1 | P3: =COUNTIF(B3:K3,"") -> 5 | Q3: =IF(COLUMNS($Q3:Q3)>$P3,"",INDEX($B$1:$K$1&"-"&TEXT($B$2:$K$2,"hh:mm"),SMALL(IF($B3:$K3="",COLUMN($B3:$K3)-COLUMN($B3)+1),COLUMNS($Q3:Q3)))) -> 1-09:05 | R3: =IF(COLUMNS($Q3:R3)>$P3,"",INDEX($B$1:$K$1&"-"&TEXT($B$2:$K$2,"hh:mm"),SMALL(IF($B3:$K3="",COLUMN($B3:$K3)-COLUMN($B3)+1),COLUMNS($Q3:R3)))) -> Lunch-13:00 | S3: =IF(COLUMNS($Q3:S3)>$P3,"",INDEX($B$1:$K$1&"-"&TEXT($B$2:$K$2,"hh:mm"),SMALL(IF($B3:$K3="",COLUMN($B3:$K3)-COLUMN($B3)+1),COLUMNS($Q3:S3)))) -> 5-14:30 | T3: =IF(COLUMNS($Q3:T3)>$P3,"",INDEX($B$1:$K$1&"-"&TEXT($B$2:$K$2,"hh:mm"),SMALL(IF($B3:$K3="",COLUMN($B3:$K3)-COLUMN($B3)+1),COLUMNS($Q3:T3)))) -> 6-15:30 | U3: =IF(COLUMNS($Q3:U3)>$P3,"",INDEX($B$1:$K$1&"-"&TEXT($B$2:$K$2,"hh:mm"),SMALL(IF($B3:$K3="",COLUMN($B3:$K3)-COLUMN($B3)+1),COLUMNS($Q3:U3)))) -> TEA-16:30 | V3: =IF(COLUMNS($Q3:V3)>$P3,"",INDEX($B$1:$K$1&"-"&TEXT($B$2:$K$2,"hh:mm"),SMALL(IF($B3:$K3="",COLUMN($B3:$K3)-COLUMN($B3)+1),COLUMNS($Q3:V3)))) ->  | W3: =IF(COLUMNS($Q3:W3)>$P3,"",INDEX($B$1:$K$1&"-"&TEXT($B$2:$K$2,"hh:mm"),SMALL(IF($B3:$K3="",COLUMN($B3:$K3)-COLUMN($B3)+1),COLUMNS($Q3:W3)))) ->  | X3: =IF(COLUMNS($Q3:X3)>$P3,"",INDEX($B$1:$K$1&"-"&TEXT($B$2:$K$2,"hh:mm"),SMALL(IF($B3:$K3="",COLUMN($B3:$K3)-COLUMN($B3)+1),COLUMNS($Q3:X3)))) -> 
A4: Student 2 | B4: ASPMaths1c | C4: SMechanics3 | D4: StatisticsS1b | F4: 13.45A2Maths4 | J4: CinemaStuJ2 | K4: SchoolMtg | L4: Student 2 | M4: =COUNTA(B4:K4) -> 6 | O4: =L4 -> Student 2 | P4: =COUNTIF(B4:K4,"") -> 4 | Q4: =IF(COLUMNS($Q4:Q4)>$P4,"",INDEX($B$1:$K$1&"-"&TEXT($B$2:$K$2,"hh:mm"),SMALL(IF($B4:$K4="",COLUMN($B4:$K4)-COLUMN($B4)+1),COLUMNS($Q4:Q4)))) -> 4-12:05 | R4: =IF(COLUMNS($Q4:R4)>$P4,"",INDEX($B$1:$K$1&"-"&TEXT($B$2:$K$2,"hh:mm"),SMALL(IF($B4:$K4="",COLUMN($B4:$K4)-COLUMN($B4)+1),COLUMNS($Q4:R4)))) -> 5-14:30 | S4: =IF(COLUMNS($Q4:S4)>$P4,"",INDEX($B$1:$K$1&"-"&TEXT($B$2:$K$2,"hh:mm"),SMALL(IF($B4:$K4="",COLUMN($B4:$K4)-COLUMN($B4)+1),COLUMNS($Q4:S4)))) -> 6-15:30 | T4: =IF(COLUMNS($Q4:T4)>$P4,"",INDEX($B$1:$K$1&"-"&TEXT($B$2:$K$2,"hh:mm"),SMALL(IF($B4:$K4="",COLUMN($B4:$K4)-COLUMN($B4)+1),COLUMNS($Q4:T4)))) -> TEA-16:30 | U4: =IF(COLUMNS($Q4:U4)>$P4,"",INDEX($B$1:$K$1&"-"&TEXT($B$2:$K$2,"hh:mm"),SMALL(IF($B4:$K4="",COLUMN($B4:$K4)-COLUMN($B4)+1),COLUMNS($Q4:U4)))) ->  | V4: =IF(COLUMNS($Q4:V4)>$P4,"",INDEX($B$1:$K$1&"-"&TEXT($B$2:$K$2,"hh:mm"),SMALL(IF($B4:$K4="",COLUMN($B4:$K4)-COLUMN($B4)+1),COLUMNS($Q4:V4)))) ->  | W4: =IF(COLUMNS($Q4:W4)>$P4,"",INDEX($B$1:$K$1&"-"&TEXT($B$2:$K$2,"hh:mm"),SMALL(IF($B4:$K4="",COLUMN($B4:$K4)-COLUMN($B4)+1),COLUMNS($Q4:W4)))) ->  | X4: =IF(COLUMNS($Q4:X4)>$P4,"",INDEX($B$1:$K$1&"-"&TEXT($B$2:$K$2,"hh:mm"),SMALL(IF($B4:$K4="",COLUMN($B4:$K4)-COLUMN($B4)+1),COLUMNS($Q4:X4)))) -> 
A5: Student 3 | B5: EnglishPAS4 | C5: MathsG2G2 | D5: CCriminology3 | K5: SchoolMtg | L5: Student 3 | M5: =COUNTA(B5:K5) -> 4 | O5: Student 3 | P5: 6 | Q5: =IF(COLUMNS($Q5:Q5)>$P5,"",INDEX($B$1:$K$1&"-"&TEXT($B$2:$K$2,"hh:mm"),SMALL(IF($B5:$K5="",COLUMN($B5:$K5)-COLUMN($B5)+1),COLUMNS($Q5:Q5)))) -> 4-12:05 | R5: =IF(COLUMNS($Q5:R5)>$P5,"",INDEX($B$1:$K$1&"-"&TEXT($B$2:$K$2,"hh:mm"),SMALL(IF($B5:$K5="",COLUMN($B5:$K5)-COLUMN($B5)+1),COLUMNS($Q5:R5)))) -> Lunch-13:00 | S5: =IF(COLUMNS($Q5:S5)>$P5,"",INDEX($B$1:$K$1&"-"&TEXT($B$2:$K$2,"hh:mm"),SMALL(IF($B5:$K5="",COLUMN($B5:$K5)-COLUMN($B5)+1),COLUMNS($Q5:S5)))) -> 5-14:30 | T5: =IF(COLUMNS($Q5:T5)>$P5,"",INDEX($B$1:$K$1&"-"&TEXT($B$2:$K$2,"hh:mm"),SMALL(IF($B5:$K5="",COLUMN($B5:$K5)-COLUMN($B5)+1),COLUMNS($Q5:T5)))) -> 6-15:30 | U5: =IF(COLUMNS($Q5:U5)>$P5,"",INDEX($B$1:$K$1&"-"&TEXT($B$2:$K$2,"hh:mm"),SMALL(IF($B5:$K5="",COLUMN($B5:$K5)-COLUMN($B5)+1),COLUMNS($Q5:U5)))) -> TEA-16:30 | V5: =IF(COLUMNS($Q5:V5)>$P5,"",INDEX($B$1:$K$1&"-"&TEXT($B$2:$K$2,"hh:mm"),SMALL(IF($B5:$K5="",COLUMN($B5:$K5)-COLUMN($B5)+1),COLUMNS($Q5:V5)))) -> 7-17:00 | W5: =IF(COLUMNS($Q5:W5)>$P5,"",INDEX($B$1:$K$1&"-"&TEXT($B$2:$K$2,"hh:mm"),SMALL(IF($B5:$K5="",COLUMN($B5:$K5)-COLUMN($B5)+1),COLUMNS($Q5:W5)))) ->  | X5: =IF(COLUMNS($Q5:X5)>$P5,"",INDEX($B$1:$K$1&"-"&TEXT($B$2:$K$2,"hh:mm"),SMALL(IF($B5:$K5="",COLUMN($B5:$K5)-COLUMN($B5)+1),COLUMNS($Q5:X5)))) -> 
A6: Student 4 | B6: EnglishPAS4 | C6: MathsG2G2 | E6: Japanese1 | J6: EnglishGPAS3 | K6: SchoolMtg | L6: Student 4 | M6: =COUNTA(B6:K6) -> 5 | O6: Student 4 | P6: 5 | Q6: =IF(COLUMNS($Q6:Q6)>$P6,"",INDEX($B$1:$K$1&"-"&TEXT($B$2:$K$2,"hh:mm"),SMALL(IF($B6:$K6="",COLUMN($B6:$K6)-COLUMN($B6)+1),COLUMNS($Q6:Q6)))) -> 3-11:05 | R6: =IF(COLUMNS($Q6:R6)>$P6,"",INDEX($B$1:$K$1&"-"&TEXT($B$2:$K$2,"hh:mm"),SMALL(IF($B6:$K6="",COLUMN($B6:$K6)-COLUMN($B6)+1),COLUMNS($Q6:R6)))) -> Lunch-13:00 | S6: =IF(COLUMNS($Q6:S6)>$P6,"",INDEX($B$1:$K$1&"-"&TEXT($B$2:$K$2,"hh:mm"),SMALL(IF($B6:$K6="",COLUMN($B6:$K6)-COLUMN($B6)+1),COLUMNS($Q6:S6)))) -> 5-14:30 | T6: =IF(COLUMNS($Q6:T6)>$P6,"",INDEX($B$1:$K$1&"-"&TEXT($B$2:$K$2,"hh:mm"),SMALL(IF($B6:$K6="",COLUMN($B6:$K6)-COLUMN($B6)+1),COLUMNS($Q6:T6)))) -> 6-15:30 | U6: =IF(COLUMNS($Q6:U6)>$P6,"",INDEX($B$1:$K$1&"-"&TEXT($B$2:$K$2,"hh:mm"),SMALL(IF($B6:$K6="",COLUMN($B6:$K6)-COLUMN($B6)+1),COLUMNS($Q6:U6)))) -> TEA-16:30 | V6: =IF(COLUMNS($Q6:V6)>$P6,"",INDEX($B$1:$K$1&"-"&TEXT($B$2:$K$2,"hh:mm"),SMALL(IF($B6:$K6="",COLUMN($B6:$K6)-COLUMN($B6)+1),COLUMNS($Q6:V6)))) ->  | W6: =IF(COLUMNS($Q6:W6)>$P6,"",INDEX($B$1:$K$1&"-"&TEXT($B$2:$K$2,"hh:mm"),SMALL(IF($B6:$K6="",COLUMN($B6:$K6)-COLUMN($B6)+1),COLUMNS($Q6:W6)))) ->  | X6: =IF(COLUMNS($Q6:X6)>$P6,"",INDEX($B$1:$K$1&"-"&TEXT($B$2:$K$2,"hh:mm"),SMALL(IF($B6:$K6="",COLUMN($B6:$K6)-COLUMN($B6)+1),COLUMNS($Q6:X6)))) -> 
A7: Student 5 | C7: YogaC2 | D7: CareforEarthM3 | E7: CareforEarthM3 | J7: Philosophy2 | K7: SchoolMtg | L7: Student 5 | M7: 5 | O7: Student 5 | P7: 5 | Q7: =IF(COLUMNS($Q7:Q7)>$P7,"",INDEX($B$1:$K$1&"-"&TEXT($B$2:$K$2,"hh:mm"),SMALL(IF($B7:$K7="",COLUMN($B7:$K7)-COLUMN($B7)+1),COLUMNS($Q7:Q7)))) -> 1-09:05 | R7: =IF(COLUMNS($Q7:R7)>$P7,"",INDEX($B$1:$K$1&"-"&TEXT($B$2:$K$2,"hh:mm"),SMALL(IF($B7:$K7="",COLUMN($B7:$K7)-COLUMN($B7)+1),COLUMNS($Q7:R7)))) -> Lunch-13:00 | S7: =IF(COLUMNS($Q7:S7)>$P7,"",INDEX($B$1:$K$1&"-"&TEXT($B$2:$K$2,"hh:mm"),SMALL(IF($B7:$K7="",COLUMN($B7:$K7)-COLUMN($B7)+1),COLUMNS($Q7:S7)))) -> 5-14:30 | T7: =IF(COLUMNS($Q7:T7)>$P7,"",INDEX($B$1:$K$1&"-"&TEXT($B$2:$K$2,"hh:mm"),SMALL(IF($B7:$K7="",COLUMN($B7:$K7)-COLUMN($B7)+1),COLUMNS($Q7:T7)))) -> 6-15:30 | U7: =IF(COLUMNS($Q7:U7)>$P7,"",INDEX($B$1:$K$1&"-"&TEXT($B$2:$K$2,"hh:mm"),SMALL(IF($B7:$K7="",COLUMN($B7:$K7)-COLUMN($B7)+1),COLUMNS($Q7:U7)))) -> TEA-16:30 | V7: =IF(COLUMNS($Q7:V7)>$P7,"",INDEX($B$1:$K$1&"-"&TEXT($B$2:$K$2,"hh:mm"),SMALL(IF($B7:$K7="",COLUMN($B7:$K7)-COLUMN($B7)+1),COLUMNS($Q7:V7)))) ->  | W7: =IF(COLUMNS($Q7:W7)>$P7,"",INDEX($B$1:$K$1&"-"&TEXT($B$2:$K$2,"hh:mm"),SMALL(IF($B7:$K7="",COLUMN($B7:$K7)-COLUMN($B7)+1),COLUMNS($Q7:W7)))) ->  | X7: =IF(COLUMNS($Q7:X7)>$P7,"",INDEX($B$1:$K$1&"-"&TEXT($B$2:$K$2,"hh:mm"),SMALL(IF($B7:$K7="",COLUMN($B7:$K7)-COLUMN($B7)+1),COLUMNS($Q7:X7)))) -> 
A8: Student 6 | B8: ESLIGC3 | C8: SMechanics3 | D8: ASPhysics4 | F8: 13.45A2Maths4 | K8: SchoolMtg | L8: Student 6 | M8: 5 | O8: Student 6 | P8: 5 | Q8: =IF(COLUMNS($Q8:Q8)>$P8,"",INDEX($B$1:$K$1&"-"&TEXT($B$2:$K$2,"hh:mm"),SMALL(IF($B8:$K8="",COLUMN($B8:$K8)-COLUMN($B8)+1),COLUMNS($Q8:Q8)))) -> 4-12:05 | R8: =IF(COLUMNS($Q8:R8)>$P8,"",INDEX($B$1:$K$1&"-"&TEXT($B$2:$K$2,"hh:mm"),SMALL(IF($B8:$K8="",COLUMN($B8:$K8)-COLUMN($B8)+1),COLUMNS($Q8:R8)))) -> 5-14:30 | S8: =IF(COLUMNS($Q8:S8)>$P8,"",INDEX($B$1:$K$1&"-"&TEXT($B$2:$K$2,"hh:mm"),SMALL(IF($B8:$K8="",COLUMN($B8:$K8)-COLUMN($B8)+1),COLUMNS($Q8:S8)))) -> 6-15:30 | T8: =IF(COLUMNS($Q8:T8)>$P8,"",INDEX($B$1:$K$1&"-"&TEXT($B$2:$K$2,"hh:mm"),SMALL(IF($B8:$K8="",COLUMN($B8:$K8)-COLUMN($B8)+1),COLUMNS($Q8:T8)))) -> TEA-16:30 | U8: =IF(COLUMNS($Q8:U8)>$P8,"",INDEX($B$1:$K$1&"-"&TEXT($B$2:$K$2,"hh:mm"),SMALL(IF($B8:$K8="",COLUMN($B8:$K8)-COLUMN($B8)+1),COLUMNS($Q8:U8)))) -> 7-17:00 | V8: =IF(COLUMNS($Q8:V8)>$P8,"",INDEX($B$1:$K$1&"-"&TEXT($B$2:$K$2,"hh:mm"),SMALL(IF($B8:$K8="",COLUMN($B8:$K8)-COLUMN($B8)+1),COLUMNS($Q8:V8)))) ->  | W8: =IF(COLUMNS($Q8:W8)>$P8,"",INDEX($B$1:$K$1&"-"&TEXT($B$2:$K$2,"hh:mm"),SMALL(IF($B8:$K8="",COLUMN($B8:$K8)-COLUMN($B8)+1),COLUMNS($Q8:W8)))) ->  | X8: =IF(COLUMNS($Q8:X8)>$P8,"",INDEX($B$1:$K$1&"-"&TEXT($B$2:$K$2,"hh:mm"),SMALL(IF($B8:$K8="",COLUMN($B8:$K8)-COLUMN($B8)+1),COLUMNS($Q8:X8)))) -> 
A9: Student 7 | C9: MathsG1A3 | D9: CCriminology3 | E9: Japanese1 | J9: EnglishGPAS3 | K9: SchoolMtg | L9: Student 7 | M9: 5 | O9: Student 7 | P9: 5 | Q9: =IF(COLUMNS($Q9:Q9)>$P9,"",INDEX($B$1:$K$1&"-"&TEXT($B$2:$K$2,"hh:mm"),SMALL(IF($B9:$K9="",COLUMN($B9:$K9)-COLUMN($B9)+1),COLUMNS($Q9:Q9)))) -> 1-09:05 | R9: =IF(COLUMNS($Q9:R9)>$P9,"",INDEX($B$1:$K$1&"-"&TEXT($B$2:$K$2,"hh:mm"),SMALL(IF($B9:$K9="",COLUMN($B9:$K9)-COLUMN($B9)+1),COLUMNS($Q9:R9)))) -> Lunch-13:00 | S9: =IF(COLUMNS($Q9:S9)>$P9,"",INDEX($B$1:$K$1&"-"&TEXT($B$2:$K$2,"hh:mm"),SMALL(IF($B9:$K9="",COLUMN($B9:$K9)-COLUMN($B9)+1),COLUMNS($Q9:S9)))) -> 5-14:30 | T9: =IF(COLUMNS($Q9:T9)>$P9,"",INDEX($B$1:$K$1&"-"&TEXT($B$2:$K$2,"hh:mm"),SMALL(IF($B9:$K9="",COLUMN($B9:$K9)-COLUMN($B9)+1),COLUMNS($Q9:T9)))) -> 6-15:30 | U9: =IF(COLUMNS($Q9:U9)>$P9,"",INDEX($B$1:$K$1&"-"&TEXT($B$2:$K$2,"hh:mm"),SMALL(IF($B9:$K9="",COLUMN($B9:$K9)-COLUMN($B9)+1),COLUMNS($Q9:U9)))) -> TEA-16:30 | V9: =IF(COLUMNS($Q9:V9)>$P9,"",INDEX($B$1:$K$1&"-"&TEXT($B$2:$K$2,"hh:mm"),SMALL(IF($B9:$K9="",COLUMN($B9:$K9)-COLUMN($B9)+1),COLUMNS($Q9:V9)))) ->  | W9: =IF(COLUMNS($Q9:W9)>$P9,"",INDEX($B$1:$K$1&"-"&TEXT($B$2:$K$2,"hh:mm"),SMALL(IF($B9:$K9="",COLUMN($B9:$K9)-COLUMN($B9)+1),COLUMNS($Q9:W9)))) ->  | X9: =IF(COLUMNS($Q9:X9)>$P9,"",INDEX($B$1:$K$1&"-"&TEXT($B$2:$K$2,"hh:mm"),SMALL(IF($B9:$K9="",COLUMN($B9:$K9)-COLUMN($B9)+1),COLUMNS($Q9:X9)))) -> 
A10: Student 8 | B10: YogaB1 | C10: ASPhotoM | D10: FitnessFran2 | G10: A2Psychology2 | J10: Philosophy2 | K10: SchoolMtg | L10: Student 8 | M10: 6 | O10: Student 8 | P10: 4 | Q10: =IF(COLUMNS($Q10:Q10)>$P10,"",INDEX($B$1:$K$1&"-"&TEXT($B$2:$K$2,"hh:mm"),SMALL(IF($B10:$K10="",COLUMN($B10:$K10)-COLUMN($B10)+1),COLUMNS($Q10:Q10)))) -> 4-12:05 | R10: =IF(COLUMNS($Q10:R10)>$P10,"",INDEX($B$1:$K$1&"-"&TEXT($B$2:$K$2,"hh:mm"),SMALL(IF($B10:$K10="",COLUMN($B10:$K10)-COLUMN($B10)+1),COLUMNS($Q10:R10)))) -> Lunch-13:00 | S10: =IF(COLUMNS($Q10:S10)>$P10,"",INDEX($B$1:$K$1&"-"&TEXT($B$2:$K$2,"hh:mm"),SMALL(IF($B10:$K10="",COLUMN($B10:$K10)-COLUMN($B10)+1),COLUMNS($Q10:S10)))) -> 6-15:30 | T10: =IF(COLUMNS($Q10:T10)>$P10,"",INDEX($B$1:$K$1&"-"&TEXT($B$2:$K$2,"hh:mm"),SMALL(IF($B10:$K10="",COLUMN($B10:$K10)-COLUMN($B10)+1),COLUMNS($Q10:T10)))) -> TEA-16:30 | U10: =IF(COLUMNS($Q10:U10)>$P10,"",INDEX($B$1:$K$1&"-"&TEXT($B$2:$K$2,"hh:mm"),SMALL(IF($B10:$K10="",COLUMN($B10:$K10)-COLUMN($B10)+1),COLUMNS($Q10:U10)))) ->  | V10: =IF(COLUMNS($Q10:V10)>$P10,"",INDEX($B$1:$K$1&"-"&TEXT($B$2:$K$2,"hh:mm"),SMALL(IF($B10:$K10="",COLUMN($B10:$K10)-COLUMN($B10)+1),COLUMNS($Q10:V10)))) ->  | W10: =IF(COLUMNS($Q10:W10)>$P10,"",INDEX($B$1:$K$1&"-"&TEXT($B$2:$K$2,"hh:mm"),SMALL(IF($B10:$K10="",COLUMN($B10:$K10)-COLUMN($B10)+1),COLUMNS($Q10:W10)))) ->  | X10: =IF(COLUMNS($Q10:X10)>$P10,"",INDEX($B$1:$K$1&"-"&TEXT($B$2:$K$2,"hh:mm"),SMALL(IF($B10:$K10="",COLUMN($B10:$K10)-COLUMN($B10)+1),COLUMNS($Q10:X10)))) -> 
A11: Student 9 | C11: FitnessOrlando2 | E11: Japanese1 | J11: DramaAS5 | K11: SchoolMtg | L11: Student 9 | M11: 4 | O11: Student 9 | P11: 6 | Q11: =IF(COLUMNS($Q11:Q11)>$P11,"",INDEX($B$1:$K$1&"-"&TEXT($B$2:$K$2,"hh:mm"),SMALL(IF($B11:$K11="",COLUMN($B11:$K11)-COLUMN($B11)+1),COLUMNS($Q11:Q11)))) -> 1-09:05 | R11: =IF(COLUMNS($Q11:R11)>$P11,"",INDEX($B$1:$K$1&"-"&TEXT($B$2:$K$2,"hh:mm"),SMALL(IF($B11:$K11="",COLUMN($B11:$K11)-COLUMN($B11)+1),COLUMNS($Q11:R11)))) -> 3-11:05 | S11: =IF(COLUMNS($Q11:S11)>$P11,"",INDEX($B$1:$K$1&"-"&TEXT($B$2:$K$2,"hh:mm"),SMALL(IF($B11:$K11="",COLUMN($B11:$K11)-COLUMN($B11)+1),COLUMNS($Q11:S11)))) -> Lunch-13:00 | T11: =IF(COLUMNS($Q11:T11)>$P11,"",INDEX($B$1:$K$1&"-"&TEXT($B$2:$K$2,"hh:mm"),SMALL(IF($B11:$K11="",COLUMN($B11:$K11)-COLUMN($B11)+1),COLUMNS($Q11:T11)))) -> 5-14:30 | U11: =IF(COLUMNS($Q11:U11)>$P11,"",INDEX($B$1:$K$1&"-"&TEXT($B$2:$K$2,"hh:mm"),SMALL(IF($B11:$K11="",COLUMN($B11:$K11)-COLUMN($B11)+1),COLUMNS($Q11:U11)))) -> 6-15:30 | V11: =IF(COLUMNS($Q11:V11)>$P11,"",INDEX($B$1:$K$1&"-"&TEXT($B$2:$K$2,"hh:mm"),SMALL(IF($B11:$K11="",COLUMN($B11:$K11)-COLUMN($B11)+1),COLUMNS($Q11:V11)))) -> TEA-16:30 | W11: =IF(COLUMNS($Q11:W11)>$P11,"",INDEX($B$1:$K$1&"-"&TEXT($B$2:$K$2,"hh:mm"),SMALL(IF($B11:$K11="",COLUMN($B11:$K11)-COLUMN($B11)+1),COLUMNS($Q11:W11)))) ->  | X11: =IF(COLUMNS($Q11:X11)>$P11,"",INDEX($B$1:$K$1&"-"&TEXT($B$2:$K$2,"hh:mm"),SMALL(IF($B11:$K11="",COLUMN($B11:$K11)-COLUMN($B11)+1),COLUMNS($Q11:X11)))) -> 
A12: Student 10 | J12: CinemaStuJ2 | K12: SchoolMtg | L12: Student 10 | M12: 2 | O12: Student 10 | P12: 8 | Q12: =IF(COLUMNS($Q12:Q12)>$P12,"",INDEX($B$1:$K$1&"-"&TEXT($B$2:$K$2,"hh:mm"),SMALL(IF($B12:$K12="",COLUMN($B12:$K12)-COLUMN($B12)+1),COLUMNS($Q12:Q12)))) -> 1-09:05 | R12: =IF(COLUMNS($Q12:R12)>$P12,"",INDEX($B$1:$K$1&"-"&TEXT($B$2:$K$2,"hh:mm"),SMALL(IF($B12:$K12="",COLUMN($B12:$K12)-COLUMN($B12)+1),COLUMNS($Q12:R12)))) -> 2-10:05 | S12: =IF(COLUMNS($Q12:S12)>$P12,"",INDEX($B$1:$K$1&"-"&TEXT($B$2:$K$2,"hh:mm"),SMALL(IF($B12:$K12="",COLUMN($B12:$K12)-COLUMN($B12)+1),COLUMNS($Q12:S12)))) -> 3-11:05 | T12: =IF(COLUMNS($Q12:T12)>$P12,"",INDEX($B$1:$K$1&"-"&TEXT($B$2:$K$2,"hh:mm"),SMALL(IF($B12:$K12="",COLUMN($B12:$K12)-COLUMN($B12)+1),COLUMNS($Q12:T12)))) -> 4-12:05 | U12: =IF(COLUMNS($Q12:U12)>$P12,"",INDEX($B$1:$K$1&"-"&TEXT($B$2:$K$2,"hh:mm"),SMALL(IF($B12:$K12="",COLUMN($B12:$K12)-COLUMN($B12)+1),COLUMNS($Q12:U12)))) -> Lunch-13:00 | V12: =IF(COLUMNS($Q12:V12)>$P12,"",INDEX($B$1:$K$1&"-"&TEXT($B$2:$K$2,"hh:mm"),SMALL(IF($B12:$K12="",COLUMN($B12:$K12)-COLUMN($B12)+1),COLUMNS($Q12:V12)))) -> 5-14:30 | W12: =IF(COLUMNS($Q12:W12)>$P12,"",INDEX($B$1:$K$1&"-"&TEXT($B$2:$K$2,"hh:mm"),SMALL(IF($B12:$K12="",COLUMN($B12:$K12)-COLUMN($B12)+1),COLUMNS($Q12:W12)))) -> 6-15:30 | X12: =IF(COLUMNS($Q12:X12)>$P12,"",INDEX($B$1:$K$1&"-"&TEXT($B$2:$K$2,"hh:mm"),SMALL(IF($B12:$K12="",COLUMN($B12:$K12)-COLUMN($B12)+1),COLUMNS($Q12:X12)))) -> TEA-16:30
A13: Student 11 | C13: AdvESLY1 | D13: MathsIGCM3 | J13: DramaAS5 | K13: SchoolMtg | L13: Student 11 | M13: 4 | O13: Student 11 | P13: 6 | Q13: =IF(COLUMNS($Q13:Q13)>$P13,"",INDEX($B$1:$K$1&"-"&TEXT($B$2:$K$2,"hh:mm"),SMALL(IF($B13:$K13="",COLUMN($B13:$K13)-COLUMN($B13)+1),COLUMNS($Q13:Q13)))) -> 1-09:05 | R13: =IF(COLUMNS($Q13:R13)>$P13,"",INDEX($B$1:$K$1&"-"&TEXT($B$2:$K$2,"hh:mm"),SMALL(IF($B13:$K13="",COLUMN($B13:$K13)-COLUMN($B13)+1),COLUMNS($Q13:R13)))) -> 4-12:05 | S13: =IF(COLUMNS($Q13:S13)>$P13,"",INDEX($B$1:$K$1&"-"&TEXT($B$2:$K$2,"hh:mm"),SMALL(IF($B13:$K13="",COLUMN($B13:$K13)-COLUMN($B13)+1),COLUMNS($Q13:S13)))) -> Lunch-13:00 | T13: =IF(COLUMNS($Q13:T13)>$P13,"",INDEX($B$1:$K$1&"-"&TEXT($B$2:$K$2,"hh:mm"),SMALL(IF($B13:$K13="",COLUMN($B13:$K13)-COLUMN($B13)+1),COLUMNS($Q13:T13)))) -> 5-14:30 | U13: =IF(COLUMNS($Q13:U13)>$P13,"",INDEX($B$1:$K$1&"-"&TEXT($B$2:$K$2,"hh:mm"),SMALL(IF($B13:$K13="",COLUMN($B13:$K13)-COLUMN($B13)+1),COLUMNS($Q13:U13)))) -> 6-15:30 | V13: =IF(COLUMNS($Q13:V13)>$P13,"",INDEX($B$1:$K$1&"-"&TEXT($B$2:$K$2,"hh:mm"),SMALL(IF($B13:$K13="",COLUMN($B13:$K13)-COLUMN($B13)+1),COLUMNS($Q13:V13)))) -> TEA-16:30 | W13: =IF(COLUMNS($Q13:W13)>$P13,"",INDEX($B$1:$K$1&"-"&TEXT($B$2:$K$2,"hh:mm"),SMALL(IF($B13:$K13="",COLUMN($B13:$K13)-COLUMN($B13)+1),COLUMNS($Q13:W13)))) ->  | X13: =IF(COLUMNS($Q13:X13)>$P13,"",INDEX($B$1:$K$1&"-"&TEXT($B$2:$K$2,"hh:mm"),SMALL(IF($B13:$K13="",COLUMN($B13:$K13)-COLUMN($B13)+1),COLUMNS($Q13:X13)))) -> 
A14: Student 12 | B14: YogaB1 | C14: AdvESLY1 | D14: StatisticsS1b | E14: CGeography2 | K14: SchoolMtg | L14: Student 12 | M14: 5 | O14: Student 12 | P14: 5 | Q14: =IF(COLUMNS($Q14:Q14)>$P14,"",INDEX($B$1:$K$1&"-"&TEXT($B$2:$K$2,"hh:mm"),SMALL(IF($B14:$K14="",COLUMN($B14:$K14)-COLUMN($B14)+1),COLUMNS($Q14:Q14)))) -> Lunch-13:00 | R14: =IF(COLUMNS($Q14:R14)>$P14,"",INDEX($B$1:$K$1&"-"&TEXT($B$2:$K$2,"hh:mm"),SMALL(IF($B14:$K14="",COLUMN($B14:$K14)-COLUMN($B14)+1),COLUMNS($Q14:R14)))) -> 5-14:30 | S14: =IF(COLUMNS($Q14:S14)>$P14,"",INDEX($B$1:$K$1&"-"&TEXT($B$2:$K$2,"hh:mm"),SMALL(IF($B14:$K14="",COLUMN($B14:$K14)-COLUMN($B14)+1),COLUMNS($Q14:S14)))) -> 6-15:30 | T14: =IF(COLUMNS($Q14:T14)>$P14,"",INDEX($B$1:$K$1&"-"&TEXT($B$2:$K$2,"hh:mm"),SMALL(IF($B14:$K14="",COLUMN($B14:$K14)-COLUMN($B14)+1),COLUMNS($Q14:T14)))) -> TEA-16:30 | U14: =IF(COLUMNS($Q14:U14)>$P14,"",INDEX($B$1:$K$1&"-"&TEXT($B$2:$K$2,"hh:mm"),SMALL(IF($B14:$K14="",COLUMN($B14:$K14)-COLUMN($B14)+1),COLUMNS($Q14:U14)))) -> 7-17:00 | V14: =IF(COLUMNS($Q14:V14)>$P14,"",INDEX($B$1:$K$1&"-"&TEXT($B$2:$K$2,"hh:mm"),SMALL(IF($B14:$K14="",COLUMN($B14:$K14)-COLUMN($B14)+1),COLUMNS($Q14:V14)))) ->  | W14: =IF(COLUMNS($Q14:W14)>$P14,"",INDEX($B$1:$K$1&"-"&TEXT($B$2:$K$2,"hh:mm"),SMALL(IF($B14:$K14="",COLUMN($B14:$K14)-COLUMN($B14)+1),COLUMNS($Q14:W14)))) ->  | X14: =IF(COLUMNS($Q14:X14)>$P14,"",INDEX($B$1:$K$1&"-"&TEXT($B$2:$K$2,"hh:mm"),SMALL(IF($B14:$K14="",COLUMN($B14:$K14)-COLUMN($B14)+1),COLUMNS($Q14:X14)))) -> 
A15: Student 13 | B15: MathsIGCN3 | C15: AdvESLY1 | J15: CinemaStuJ2 | K15: SchoolMtg | L15: Student 13 | M15: 4 | O15: Student 13 | P15: 6 | Q15: =IF(COLUMNS($Q15:Q15)>$P15,"",INDEX($B$1:$K$1&"-"&TEXT($B$2:$K$2,"hh:mm"),SMALL(IF($B15:$K15="",COLUMN($B15:$K15)-COLUMN($B15)+1),COLUMNS($Q15:Q15)))) -> 3-11:05 | R15: =IF(COLUMNS($Q15:R15)>$P15,"",INDEX($B$1:$K$1&"-"&TEXT($B$2:$K$2,"hh:mm"),SMALL(IF($B15:$K15="",COLUMN($B15:$K15)-COLUMN($B15)+1),COLUMNS($Q15:R15)))) -> 4-12:05 | S15: =IF(COLUMNS($Q15:S15)>$P15,"",INDEX($B$1:$K$1&"-"&TEXT($B$2:$K$2,"hh:mm"),SMALL(IF($B15:$K15="",COLUMN($B15:$K15)-COLUMN($B15)+1),COLUMNS($Q15:S15)))) -> Lunch-13:00 | T15: =IF(COLUMNS($Q15:T15)>$P15,"",INDEX($B$1:$K$1&"-"&TEXT($B$2:$K$2,"hh:mm"),SMALL(IF($B15:$K15="",COLUMN($B15:$K15)-COLUMN($B15)+1),COLUMNS($Q15:T15)))) -> 5-14:30 | U15: =IF(COLUMNS($Q15:U15)>$P15,"",INDEX($B$1:$K$1&"-"&TEXT($B$2:$K$2,"hh:mm"),SMALL(IF($B15:$K15="",COLUMN($B15:$K15)-COLUMN($B15)+1),COLUMNS($Q15:U15)))) -> 6-15:30 | V15: =IF(COLUMNS($Q15:V15)>$P15,"",INDEX($B$1:$K$1&"-"&TEXT($B$2:$K$2,"hh:mm"),SMALL(IF($B15:$K15="",COLUMN($B15:$K15)-COLUMN($B15)+1),COLUMNS($Q15:V15)))) -> TEA-16:30 | W15: =IF(COLUMNS($Q15:W15)>$P15,"",INDEX($B$1:$K$1&"-"&TEXT($B$2:$K$2,"hh:mm"),SMALL(IF($B15:$K15="",COLUMN($B15:$K15)-COLUMN($B15)+1),COLUMNS($Q15:W15)))) ->  | X15: =IF(COLUMNS($Q15:X15)>$P15,"",INDEX($B$1:$K$1&"-"&TEXT($B$2:$K$2,"hh:mm"),SMALL(IF($B15:$K15="",COLUMN($B15:$K15)-COLUMN($B15)+1),COLUMNS($Q15:X15)))) -> 
A16: Student 14 | B16: EnglishPAS4 | D16: 11.30-12.15LS | E16: BiologyPractical2 | J16: DramaAS5 | K16: SchoolMtg | L16: Student 14 | M16: 5 | O16: Student 14 | P16: 5 | Q16: =IF(COLUMNS($Q16:Q16)>$P16,"",INDEX($B$1:$K$1&"-"&TEXT($B$2:$K$2,"hh:mm"),SMALL(IF($B16:$K16="",COLUMN($B16:$K16)-COLUMN($B16)+1),COLUMNS($Q16:Q16)))) -> 2-10:05 | R16: =IF(COLUMNS($Q16:R16)>$P16,"",INDEX($B$1:$K$1&"-"&TEXT($B$2:$K$2,"hh:mm"),SMALL(IF($B16:$K16="",COLUMN($B16:$K16)-COLUMN($B16)+1),COLUMNS($Q16:R16)))) -> Lunch-13:00 | S16: =IF(COLUMNS($Q16:S16)>$P16,"",INDEX($B$1:$K$1&"-"&TEXT($B$2:$K$2,"hh:mm"),SMALL(IF($B16:$K16="",COLUMN($B16:$K16)-COLUMN($B16)+1),COLUMNS($Q16:S16)))) -> 5-14:30 | T16: =IF(COLUMNS($Q16:T16)>$P16,"",INDEX($B$1:$K$1&"-"&TEXT($B$2:$K$2,"hh:mm"),SMALL(IF($B16:$K16="",COLUMN($B16:$K16)-COLUMN($B16)+1),COLUMNS($Q16:T16)))) -> 6-15:30 | U16: =IF(COLUMNS($Q16:U16)>$P16,"",INDEX($B$1:$K$1&"-"&TEXT($B$2:$K$2,"hh:mm"),SMALL(IF($B16:$K16="",COLUMN($B16:$K16)-COLUMN($B16)+1),COLUMNS($Q16:U16)))) -> TEA-16:30 | V16: =IF(COLUMNS($Q16:V16)>$P16,"",INDEX($B$1:$K$1&"-"&TEXT($B$2:$K$2,"hh:mm"),SMALL(IF($B16:$K16="",COLUMN($B16:$K16)-COLUMN($B16)+1),COLUMNS($Q16:V16)))) ->  | W16: =IF(COLUMNS($Q16:W16)>$P16,"",INDEX($B$1:$K$1&"-"&TEXT($B$2:$K$2,"hh:mm"),SMALL(IF($B16:$K16="",COLUMN($B16:$K16)-COLUMN($B16)+1),COLUMNS($Q16:W16)))) ->  | X16: =IF(COLUMNS($Q16:X16)>$P16,"",INDEX($B$1:$K$1&"-"&TEXT($B$2:$K$2,"hh:mm"),SMALL(IF($B16:$K16="",COLUMN($B16:$K16)-COLUMN($B16)+1),COLUMNS($Q16:X16)))) -> 
A17: Student 15 | B17: ASPMaths1c | C17: AdvESLY1 | D17: StatisticsS1b | E17: ASPsychology3 | K17: SchoolMtg | L17: Student 15 | M17: 5 | O17: Student 15 | P17: 5 | Q17: =IF(COLUMNS($Q17:Q17)>$P17,"",INDEX($B$1:$K$1&"-"&TEXT($B$2:$K$2,"hh:mm"),SMALL(IF($B17:$K17="",COLUMN($B17:$K17)-COLUMN($B17)+1),COLUMNS($Q17:Q17)))) -> Lunch-13:00 | R17: =IF(COLUMNS($Q17:R17)>$P17,"",INDEX($B$1:$K$1&"-"&TEXT($B$2:$K$2,"hh:mm"),SMALL(IF($B17:$K17="",COLUMN($B17:$K17)-COLUMN($B17)+1),COLUMNS($Q17:R17)))) -> 5-14:30 | S17: =IF(COLUMNS($Q17:S17)>$P17,"",INDEX($B$1:$K$1&"-"&TEXT($B$2:$K$2,"hh:mm"),SMALL(IF($B17:$K17="",COLUMN($B17:$K17)-COLUMN($B17)+1),COLUMNS($Q17:S17)))) -> 6-15:30 | T17: =IF(COLUMNS($Q17:T17)>$P17,"",INDEX($B$1:$K$1&"-"&TEXT($B$2:$K$2,"hh:mm"),SMALL(IF($B17:$K17="",COLUMN($B17:$K17)-COLUMN($B17)+1),COLUMNS($Q17:T17)))) -> TEA-16:30 | U17: =IF(COLUMNS($Q17:U17)>$P17,"",INDEX($B$1:$K$1&"-"&TEXT($B$2:$K$2,"hh:mm"),SMALL(IF($B17:$K17="",COLUMN($B17:$K17)-COLUMN($B17)+1),COLUMNS($Q17:U17)))) -> 7-17:00 | V17: =IF(COLUMNS($Q17:V17)>$P17,"",INDEX($B$1:$K$1&"-"&TEXT($B$2:$K$2,"hh:mm"),SMALL(IF($B17:$K17="",COLUMN($B17:$K17)-COLUMN($B17)+1),COLUMNS($Q17:V17)))) ->  | W17: =IF(COLUMNS($Q17:W17)>$P17,"",INDEX($B$1:$K$1&"-"&TEXT($B$2:$K$2,"hh:mm"),SMALL(IF($B17:$K17="",COLUMN($B17:$K17)-COLUMN($B17)+1),COLUMNS($Q17:W17)))) ->  | X17: =IF(COLUMNS($Q17:X17)>$P17,"",INDEX($B$1:$K$1&"-"&TEXT($B$2:$K$2,"hh:mm"),SMALL(IF($B17:$K17="",COLUMN($B17:$K17)-COLUMN($B17)+1),COLUMNS($Q17:X17)))) -> 
A18: Student 16 | B18: A2GraphicD1 | C18: A2GraphicD2 | D18: ESLIELTST2 | J18: DramaAS5 | K18: SchoolMtg | L18: Student 16 | M18: 5 | O18: Student 16 | P18: 5 | Q18: =IF(COLUMNS($Q18:Q18)>$P18,"",INDEX($B$1:$K$1&"-"&TEXT($B$2:$K$2,"hh:mm"),SMALL(IF($B18:$K18="",COLUMN($B18:$K18)-COLUMN($B18)+1),COLUMNS($Q18:Q18)))) -> 4-12:05 | R18: =IF(COLUMNS($Q18:R18)>$P18,"",INDEX($B$1:$K$1&"-"&TEXT($B$2:$K$2,"hh:mm"),SMALL(IF($B18:$K18="",COLUMN($B18:$K18)-COLUMN($B18)+1),COLUMNS($Q18:R18)))) -> Lunch-13:00 | S18: =IF(COLUMNS($Q18:S18)>$P18,"",INDEX($B$1:$K$1&"-"&TEXT($B$2:$K$2,"hh:mm"),SMALL(IF($B18:$K18="",COLUMN($B18:$K18)-COLUMN($B18)+1),COLUMNS($Q18:S18)))) -> 5-14:30 | T18: =IF(COLUMNS($Q18:T18)>$P18,"",INDEX($B$1:$K$1&"-"&TEXT($B$2:$K$2,"hh:mm"),SMALL(IF($B18:$K18="",COLUMN($B18:$K18)-COLUMN($B18)+1),COLUMNS($Q18:T18)))) -> 6-15:30 | U18: =IF(COLUMNS($Q18:U18)>$P18,"",INDEX($B$1:$K$1&"-"&TEXT($B$2:$K$2,"hh:mm"),SMALL(IF($B18:$K18="",COLUMN($B18:$K18)-COLUMN($B18)+1),COLUMNS($Q18:U18)))) -> TEA-16:30 | V18: =IF(COLUMNS($Q18:V18)>$P18,"",INDEX($B$1:$K$1&"-"&TEXT($B$2:$K$2,"hh:mm"),SMALL(IF($B18:$K18="",COLUMN($B18:$K18)-COLUMN($B18)+1),COLUMNS($Q18:V18)))) ->  | W18: =IF(COLUMNS($Q18:W18)>$P18,"",INDEX($B$1:$K$1&"-"&TEXT($B$2:$K$2,"hh:mm"),SMALL(IF($B18:$K18="",COLUMN($B18:$K18)-COLUMN($B18)+1),COLUMNS($Q18:W18)))) ->  | X18: =IF(COLUMNS($Q18:X18)>$P18,"",INDEX($B$1:$K$1&"-"&TEXT($B$2:$K$2,"hh:mm"),SMALL(IF($B18:$K18="",COLUMN($B18:$K18)-COLUMN($B18)+1),COLUMNS($Q18:X18)))) -> 
A19: Student 17 | B19: MathsIGCN3 | C19: AdvESLY1 | D19: CareforEarthM3 | E19: CareforEarthM3 | K19: SchoolMtg | L19: Student 17 | M19: 5 | O19: Student 17 | P19: 5 | Q19: =IF(COLUMNS($Q19:Q19)>$P19,"",INDEX($B$1:$K$1&"-"&TEXT($B$2:$K$2,"hh:mm"),SMALL(IF($B19:$K19="",COLUMN($B19:$K19)-COLUMN($B19)+1),COLUMNS($Q19:Q19)))) -> Lunch-13:00 | R19: =IF(COLUMNS($Q19:R19)>$P19,"",INDEX($B$1:$K$1&"-"&TEXT($B$2:$K$2,"hh:mm"),SMALL(IF($B19:$K19="",COLUMN($B19:$K19)-COLUMN($B19)+1),COLUMNS($Q19:R19)))) -> 5-14:30 | S19: =IF(COLUMNS($Q19:S19)>$P19,"",INDEX($B$1:$K$1&"-"&TEXT($B$2:$K$2,"hh:mm"),SMALL(IF($B19:$K19="",COLUMN($B19:$K19)-COLUMN($B19)+1),COLUMNS($Q19:S19)))) -> 6-15:30 | T19: =IF(COLUMNS($Q19:T19)>$P19,"",INDEX($B$1:$K$1&"-"&TEXT($B$2:$K$2,"hh:mm"),SMALL(IF($B19:$K19="",COLUMN($B19:$K19)-COLUMN($B19)+1),COLUMNS($Q19:T19)))) -> TEA-16:30 | U19: =IF(COLUMNS($Q19:U19)>$P19,"",INDEX($B$1:$K$1&"-"&TEXT($B$2:$K$2,"hh:mm"),SMALL(IF($B19:$K19="",COLUMN($B19:$K19)-COLUMN($B19)+1),COLUMNS($Q19:U19)))) -> 7-17:00 | V19: =IF(COLUMNS($Q19:V19)>$P19,"",INDEX($B$1:$K$1&"-"&TEXT($B$2:$K$2,"hh:mm"),SMALL(IF($B19:$K19="",COLUMN($B19:$K19)-COLUMN($B19)+1),COLUMNS($Q19:V19)))) ->  | W19: =IF(COLUMNS($Q19:W19)>$P19,"",INDEX($B$1:$K$1&"-"&TEXT($B$2:$K$2,"hh:mm"),SMALL(IF($B19:$K19="",COLUMN($B19:$K19)-COLUMN($B19)+1),COLUMNS($Q19:W19)))) ->  | X19: =IF(COLUMNS($Q19:X19)>$P19,"",INDEX($B$1:$K$1&"-"&TEXT($B$2:$K$2,"hh:mm"),SMALL(IF($B19:$K19="",COLUMN($B19:$K19)-COLUMN($B19)+1),COLUMNS($Q19:X19)))) -> 
A20: Student 18 | B20: IGC2Her2 | C20: ASEngLang3 | G20: A2Psychology2 | K20: SchoolMtg | L20: Student 18 | M20: 4 | O20: Student 18 | P20: 6 | Q20: =IF(COLUMNS($Q20:Q20)>$P20,"",INDEX($B$1:$K$1&"-"&TEXT($B$2:$K$2,"hh:mm"),SMALL(IF($B20:$K20="",COLUMN($B20:$K20)-COLUMN($B20)+1),COLUMNS($Q20:Q20)))) -> 3-11:05 | R20: =IF(COLUMNS($Q20:R20)>$P20,"",INDEX($B$1:$K$1&"-"&TEXT($B$2:$K$2,"hh:mm"),SMALL(IF($B20:$K20="",COLUMN($B20:$K20)-COLUMN($B20)+1),COLUMNS($Q20:R20)))) -> 4-12:05 | S20: =IF(COLUMNS($Q20:S20)>$P20,"",INDEX($B$1:$K$1&"-"&TEXT($B$2:$K$2,"hh:mm"),SMALL(IF($B20:$K20="",COLUMN($B20:$K20)-COLUMN($B20)+1),COLUMNS($Q20:S20)))) -> Lunch-13:00 | T20: =IF(COLUMNS($Q20:T20)>$P20,"",INDEX($B$1:$K$1&"-"&TEXT($B$2:$K$2,"hh:mm"),SMALL(IF($B20:$K20="",COLUMN($B20:$K20)-COLUMN($B20)+1),COLUMNS($Q20:T20)))) -> 6-15:30 | U20: =IF(COLUMNS($Q20:U20)>$P20,"",INDEX($B$1:$K$1&"-"&TEXT($B$2:$K$2,"hh:mm"),SMALL(IF($B20:$K20="",COLUMN($B20:$K20)-COLUMN($B20)+1),COLUMNS($Q20:U20)))) -> TEA-16:30 | V20: =IF(COLUMNS($Q20:V20)>$P20,"",INDEX($B$1:$K$1&"-"&TEXT($B$2:$K$2,"hh:mm"),SMALL(IF($B20:$K20="",COLUMN($B20:$K20)-COLUMN($B20)+1),COLUMNS($Q20:V20)))) -> 7-17:00 | W20: =IF(COLUMNS($Q20:W20)>$P20,"",INDEX($B$1:$K$1&"-"&TEXT($B$2:$K$2,"hh:mm"),SMALL(IF($B20:$K20="",COLUMN($B20:$K20)-COLUMN($B20)+1),COLUMNS($Q20:W20)))) ->  | X20: =IF(COLUMNS($Q20:X20)>$P20,"",INDEX($B$1:$K$1&"-"&TEXT($B$2:$K$2,"hh:mm"),SMALL(IF($B20:$K20="",COLUMN($B20:$K20)-COLUMN($B20)+1),COLUMNS($Q20:X20)))) -> 
A21: Student 19 | C21: ASPhotoM | J21: Philosophy2 | K21: SchoolMtg | L21: Student 19 | M21: 3 | O21: Student 19 | P21: 7 | Q21: =IF(COLUMNS($Q21:Q21)>$P21,"",INDEX($B$1:$K$1&"-"&TEXT($B$2:$K$2,"hh:mm"),SMALL(IF($B21:$K21="",COLUMN($B21:$K21)-COLUMN($B21)+1),COLUMNS($Q21:Q21)))) -> 1-09:05 | R21: =IF(COLUMNS($Q21:R21)>$P21,"",INDEX($B$1:$K$1&"-"&TEXT($B$2:$K$2,"hh:mm"),SMALL(IF($B21:$K21="",COLUMN($B21:$K21)-COLUMN($B21)+1),COLUMNS($Q21:R21)))) -> 3-11:05 | S21: =IF(COLUMNS($Q21:S21)>$P21,"",INDEX($B$1:$K$1&"-"&TEXT($B$2:$K$2,"hh:mm"),SMALL(IF($B21:$K21="",COLUMN($B21:$K21)-COLUMN($B21)+1),COLUMNS($Q21:S21)))) -> 4-12:05 | T21: =IF(COLUMNS($Q21:T21)>$P21,"",INDEX($B$1:$K$1&"-"&TEXT($B$2:$K$2,"hh:mm"),SMALL(IF($B21:$K21="",COLUMN($B21:$K21)-COLUMN($B21)+1),COLUMNS($Q21:T21)))) -> Lunch-13:00 | U21: =IF(COLUMNS($Q21:U21)>$P21,"",INDEX($B$1:$K$1&"-"&TEXT($B$2:$K$2,"hh:mm"),SMALL(IF($B21:$K21="",COLUMN($B21:$K21)-COLUMN($B21)+1),COLUMNS($Q21:U21)))) -> 5-14:30 | V21: =IF(COLUMNS($Q21:V21)>$P21,"",INDEX($B$1:$K$1&"-"&TEXT($B$2:$K$2,"hh:mm"),SMALL(IF($B21:$K21="",COLUMN($B21:$K21)-COLUMN($B21)+1),COLUMNS($Q21:V21)))) -> 6-15:30 | W21: =IF(COLUMNS($Q21:W21)>$P21,"",INDEX($B$1:$K$1&"-"&TEXT($B$2:$K$2,"hh:mm"),SMALL(IF($B21:$K21="",COLUMN($B21:$K21)-COLUMN($B21)+1),COLUMNS($Q21:W21)))) -> TEA-16:30 | X21: =IF(COLUMNS($Q21:X21)>$P21,"",INDEX($B$1:$K$1&"-"&TEXT($B$2:$K$2,"hh:mm"),SMALL(IF($B21:$K21="",COLUMN($B21:$K21)-COLUMN($B21)+1),COLUMNS($Q21:X21)))) -> 
A22: Student 20 | C22: MathsG1A3 | D22: CCriminology3 | G22: 14.15-14.45LS | J22: EnglishGPAS3 | K22: SchoolMtg | L22: Student 20 | M22: 5 | O22: Student 20 | P22: 5 | Q22: =IF(COLUMNS($Q22:Q22)>$P22,"",INDEX($B$1:$K$1&"-"&TEXT($B$2:$K$2,"hh:mm"),SMALL(IF($B22:$K22="",COLUMN($B22:$K22)-COLUMN($B22)+1),COLUMNS($Q22:Q22)))) -> 1-09:05 | R22: =IF(COLUMNS($Q22:R22)>$P22,"",INDEX($B$1:$K$1&"-"&TEXT($B$2:$K$2,"hh:mm"),SMALL(IF($B22:$K22="",COLUMN($B22:$K22)-COLUMN($B22)+1),COLUMNS($Q22:R22)))) -> 4-12:05 | S22: =IF(COLUMNS($Q22:S22)>$P22,"",INDEX($B$1:$K$1&"-"&TEXT($B$2:$K$2,"hh:mm"),SMALL(IF($B22:$K22="",COLUMN($B22:$K22)-COLUMN($B22)+1),COLUMNS($Q22:S22)))) -> Lunch-13:00 | T22: =IF(COLUMNS($Q22:T22)>$P22,"",INDEX($B$1:$K$1&"-"&TEXT($B$2:$K$2,"hh:mm"),SMALL(IF($B22:$K22="",COLUMN($B22:$K22)-COLUMN($B22)+1),COLUMNS($Q22:T22)))) -> 6-15:30 | U22: =IF(COLUMNS($Q22:U22)>$P22,"",INDEX($B$1:$K$1&"-"&TEXT($B$2:$K$2,"hh:mm"),SMALL(IF($B22:$K22="",COLUMN($B22:$K22)-COLUMN($B22)+1),COLUMNS($Q22:U22)))) -> TEA-16:30 | V22: =IF(COLUMNS($Q22:V22)>$P22,"",INDEX($B$1:$K$1&"-"&TEXT($B$2:$K$2,"hh:mm"),SMALL(IF($B22:$K22="",COLUMN($B22:$K22)-COLUMN($B22)+1),COLUMNS($Q22:V22)))) ->  | W22: =IF(COLUMNS($Q22:W22)>$P22,"",INDEX($B$1:$K$1&"-"&TEXT($B$2:$K$2,"hh:mm"),SMALL(IF($B22:$K22="",COLUMN($B22:$K22)-COLUMN($B22)+1),COLUMNS($Q22:W22)))) ->  | X22: =IF(COLUMNS($Q22:X22)>$P22,"",INDEX($B$1:$K$1&"-"&TEXT($B$2:$K$2,"hh:mm"),SMALL(IF($B22:$K22="",COLUMN($B22:$K22)-COLUMN($B22)+1),COLUMNS($Q22:X22)))) -> 
A23: Student 21 | B23: YogaB1 | C23: 10.30-11.25LS | D23: CCriminology3 | E23: ASHistory1 | K23: SchoolMtg | L23: Student 21 | M23: 5 | O23: Student 21 | P23: 5 | Q23: =IF(COLUMNS($Q23:Q23)>$P23,"",INDEX($B$1:$K$1&"-"&TEXT($B$2:$K$2,"hh:mm"),SMALL(IF($B23:$K23="",COLUMN($B23:$K23)-COLUMN($B23)+1),COLUMNS($Q23:Q23)))) -> Lunch-13:00 | R23: =IF(COLUMNS($Q23:R23)>$P23,"",INDEX($B$1:$K$1&"-"&TEXT($B$2:$K$2,"hh:mm"),SMALL(IF($B23:$K23="",COLUMN($B23:$K23)-COLUMN($B23)+1),COLUMNS($Q23:R23)))) -> 5-14:30 | S23: =IF(COLUMNS($Q23:S23)>$P23,"",INDEX($B$1:$K$1&"-"&TEXT($B$2:$K$2,"hh:mm"),SMALL(IF($B23:$K23="",COLUMN($B23:$K23)-COLUMN($B23)+1),COLUMNS($Q23:S23)))) -> 6-15:30 | T23: =IF(COLUMNS($Q23:T23)>$P23,"",INDEX($B$1:$K$1&"-"&TEXT($B$2:$K$2,"hh:mm"),SMALL(IF($B23:$K23="",COLUMN($B23:$K23)-COLUMN($B23)+1),COLUMNS($Q23:T23)))) -> TEA-16:30 | U23: =IF(COLUMNS($Q23:U23)>$P23,"",INDEX($B$1:$K$1&"-"&TEXT($B$2:$K$2,"hh:mm"),SMALL(IF($B23:$K23="",COLUMN($B23:$K23)-COLUMN($B23)+1),COLUMNS($Q23:U23)))) -> 7-17:00 | V23: =IF(COLUMNS($Q23:V23)>$P23,"",INDEX($B$1:$K$1&"-"&TEXT($B$2:$K$2,"hh:mm"),SMALL(IF($B23:$K23="",COLUMN($B23:$K23)-COLUMN($B23)+1),COLUMNS($Q23:V23)))) ->  | W23: =IF(COLUMNS($Q23:W23)>$P23,"",INDEX($B$1:$K$1&"-"&TEXT($B$2:$K$2,"hh:mm"),SMALL(IF($B23:$K23="",COLUMN($B23:$K23)-COLUMN($B23)+1),COLUMNS($Q23:W23)))) ->  | X23: =IF(COLUMNS($Q23:X23)>$P23,"",INDEX($B$1:$K$1&"-"&TEXT($B$2:$K$2,"hh:mm"),SMALL(IF($B23:$K23="",COLUMN($B23:$K23)-COLUMN($B23)+1),COLUMNS($Q23:X23)))) -> 
A24: Student 22 | B24: A2Physics1 | C24: SMechanics3 | F24: 13.45A2Maths4 | K24: SchoolMtg | L24: Student 22 | M24: 4 | O24: Student 22 | P24: 6 | Q24: =IF(COLUMNS($Q24:Q24)>$P24,"",INDEX($B$1:$K$1&"-"&TEXT($B$2:$K$2,"hh:mm"),SMALL(IF($B24:$K24="",COLUMN($B24:$K24)-COLUMN($B24)+1),COLUMNS($Q24:Q24)))) -> 3-11:05 | R24: =IF(COLUMNS($Q24:R24)>$P24,"",INDEX($B$1:$K$1&"-"&TEXT($B$2:$K$2,"hh:mm"),SMALL(IF($B24:$K24="",COLUMN($B24:$K24)-COLUMN($B24)+1),COLUMNS($Q24:R24)))) -> 4-12:05 | S24: =IF(COLUMNS($Q24:S24)>$P24,"",INDEX($B$1:$K$1&"-"&TEXT($B$2:$K$2,"hh:mm"),SMALL(IF($B24:$K24="",COLUMN($B24:$K24)-COLUMN($B24)+1),COLUMNS($Q24:S24)))) -> 5-14:30 | T24: =IF(COLUMNS($Q24:T24)>$P24,"",INDEX($B$1:$K$1&"-"&TEXT($B$2:$K$2,"hh:mm"),SMALL(IF($B24:$K24="",COLUMN($B24:$K24)-COLUMN($B24)+1),COLUMNS($Q24:T24)))) -> 6-15:30 | U24: =IF(COLUMNS($Q24:U24)>$P24,"",INDEX($B$1:$K$1&"-"&TEXT($B$2:$K$2,"hh:mm"),SMALL(IF($B24:$K24="",COLUMN($B24:$K24)-COLUMN($B24)+1),COLUMNS($Q24:U24)))) -> TEA-16:30 | V24: =IF(COLUMNS($Q24:V24)>$P24,"",INDEX($B$1:$K$1&"-"&TEXT($B$2:$K$2,"hh:mm"),SMALL(IF($B24:$K24="",COLUMN($B24:$K24)-COLUMN($B24)+1),COLUMNS($Q24:V24)))) -> 7-17:00 | W24: =IF(COLUMNS($Q24:W24)>$P24,"",INDEX($B$1:$K$1&"-"&TEXT($B$2:$K$2,"hh:mm"),SMALL(IF($B24:$K24="",COLUMN($B24:$K24)-COLUMN($B24)+1),COLUMNS($Q24:W24)))) ->  | X24: =IF(COLUMNS($Q24:X24)>$P24,"",INDEX($B$1:$K$1&"-"&TEXT($B$2:$K$2,"hh:mm"),SMALL(IF($B24:$K24="",COLUMN($B24:$K24)-COLUMN($B24)+1),COLUMNS($Q24:X24)))) -> 
A25: Student 23 | B25: EnglishPAS4 | C25: MathsG1A3 | D25: CCriminology3 | K25: SchoolMtg | L25: Student 23 | M25: 4 | O25: Student 23 | P25: 6 | Q25: =IF(COLUMNS($Q25:Q25)>$P25,"",INDEX($B$1:$K$1&"-"&TEXT($B$2:$K$2,"hh:mm"),SMALL(IF($B25:$K25="",COLUMN($B25:$K25)-COLUMN($B25)+1),COLUMNS($Q25:Q25)))) -> 4-12:05 | R25: =IF(COLUMNS($Q25:R25)>$P25,"",INDEX($B$1:$K$1&"-"&TEXT($B$2:$K$2,"hh:mm"),SMALL(IF($B25:$K25="",COLUMN($B25:$K25)-COLUMN($B25)+1),COLUMNS($Q25:R25)))) -> Lunch-13:00 | S25: =IF(COLUMNS($Q25:S25)>$P25,"",INDEX($B$1:$K$1&"-"&TEXT($B$2:$K$2,"hh:mm"),SMALL(IF($B25:$K25="",COLUMN($B25:$K25)-COLUMN($B25)+1),COLUMNS($Q25:S25)))) -> 5-14:30 | T25: =IF(COLUMNS($Q25:T25)>$P25,"",INDEX($B$1:$K$1&"-"&TEXT($B$2:$K$2,"hh:mm"),SMALL(IF($B25:$K25="",COLUMN($B25:$K25)-COLUMN($B25)+1),COLUMNS($Q25:T25)))) -> 6-15:30 | U25: =IF(COLUMNS($Q25:U25)>$P25,"",INDEX($B$1:$K$1&"-"&TEXT($B$2:$K$2,"hh:mm"),SMALL(IF($B25:$K25="",COLUMN($B25:$K25)-COLUMN($B25)+1),COLUMNS($Q25:U25)))) -> TEA-16:30 | V25: =IF(COLUMNS($Q25:V25)>$P25,"",INDEX($B$1:$K$1&"-"&TEXT($B$2:$K$2,"hh:mm"),SMALL(IF($B25:$K25="",COLUMN($B25:$K25)-COLUMN($B25)+1),COLUMNS($Q25:V25)))) -> 7-17:00 | W25: =IF(COLUMNS($Q25:W25)>$P25,"",INDEX($B$1:$K$1&"-"&TEXT($B$2:$K$2,"hh:mm"),SMALL(IF($B25:$K25="",COLUMN($B25:$K25)-COLUMN($B25)+1),COLUMNS($Q25:W25)))) ->  | X25: =IF(COLUMNS($Q25:X25)>$P25,"",INDEX($B$1:$K$1&"-"&TEXT($B$2:$K$2,"hh:mm"),SMALL(IF($B25:$K25="",COLUMN($B25:$K25)-COLUMN($B25)+1),COLUMNS($Q25:X25)))) -> 
A26: Student 24 | B26: YogaB1 | C26: AdvESLY1 | D26: CareforEarthM3 | E26: CareforEarthM3 | J26: ASGraphicD3 | K26: SchoolMtg | L26: Student 24 | M26: 6 | O26: Student 24 | P26: 4 | Q26: =IF(COLUMNS($Q26:Q26)>$P26,"",INDEX($B$1:$K$1&"-"&TEXT($B$2:$K$2,"hh:mm"),SMALL(IF($B26:$K26="",COLUMN($B26:$K26)-COLUMN($B26)+1),COLUMNS($Q26:Q26)))) -> Lunch-13:00 | R26: =IF(COLUMNS($Q26:R26)>$P26,"",INDEX($B$1:$K$1&"-"&TEXT($B$2:$K$2,"hh:mm"),SMALL(IF($B26:$K26="",COLUMN($B26:$K26)-COLUMN($B26)+1),COLUMNS($Q26:R26)))) -> 5-14:30 | S26: =IF(COLUMNS($Q26:S26)>$P26,"",INDEX($B$1:$K$1&"-"&TEXT($B$2:$K$2,"hh:mm"),SMALL(IF($B26:$K26="",COLUMN($B26:$K26)-COLUMN($B26)+1),COLUMNS($Q26:S26)))) -> 6-15:30 | T26: =IF(COLUMNS($Q26:T26)>$P26,"",INDEX($B$1:$K$1&"-"&TEXT($B$2:$K$2,"hh:mm"),SMALL(IF($B26:$K26="",COLUMN($B26:$K26)-COLUMN($B26)+1),COLUMNS($Q26:T26)))) -> TEA-16:30 | U26: =IF(COLUMNS($Q26:U26)>$P26,"",INDEX($B$1:$K$1&"-"&TEXT($B$2:$K$2,"hh:mm"),SMALL(IF($B26:$K26="",COLUMN($B26:$K26)-COLUMN($B26)+1),COLUMNS($Q26:U26)))) ->  | V26: =IF(COLUMNS($Q26:V26)>$P26,"",INDEX($B$1:$K$1&"-"&TEXT($B$2:$K$2,"hh:mm"),SMALL(IF($B26:$K26="",COLUMN($B26:$K26)-COLUMN($B26)+1),COLUMNS($Q26:V26)))) ->  | W26: =IF(COLUMNS($Q26:W26)>$P26,"",INDEX($B$1:$K$1&"-"&TEXT($B$2:$K$2,"hh:mm"),SMALL(IF($B26:$K26="",COLUMN($B26:$K26)-COLUMN($B26)+1),COLUMNS($Q26:W26)))) ->  | X26: =IF(COLUMNS($Q26:X26)>$P26,"",INDEX($B$1:$K$1&"-"&TEXT($B$2:$K$2,"hh:mm"),SMALL(IF($B26:$K26="",COLUMN($B26:$K26)-COLUMN($B26)+1),COLUMNS($Q26:X26)))) -> 
A27: Student 25 | B27: YogaB1 | C27: PhysicsPAS3 | D27: StatisticsS1b | E27: BiologyPractical2 | J27: ASGraphicD3 | K27: SchoolMtg | L27: Student 25 | M27: 6 | O27: Student 25 | P27: 4 | Q27: =IF(COLUMNS($Q27:Q27)>$P27,"",INDEX($B$1:$K$1&"-"&TEXT($B$2:$K$2,"hh:mm"),SMALL(IF($B27:$K27="",COLUMN($B27:$K27)-COLUMN($B27)+1),COLUMNS($Q27:Q27)))) -> Lunch-13:00 | R27: =IF(COLUMNS($Q27:R27)>$P27,"",INDEX($B$1:$K$1&"-"&TEXT($B$2:$K$2,"hh:mm"),SMALL(IF($B27:$K27="",COLUMN($B27:$K27)-COLUMN($B27)+1),COLUMNS($Q27:R27)))) -> 5-14:30 | S27: =IF(COLUMNS($Q27:S27)>$P27,"",INDEX($B$1:$K$1&"-"&TEXT($B$2:$K$2,"hh:mm"),SMALL(IF($B27:$K27="",COLUMN($B27:$K27)-COLUMN($B27)+1),COLUMNS($Q27:S27)))) -> 6-15:30 | T27: =IF(COLUMNS($Q27:T27)>$P27,"",INDEX($B$1:$K$1&"-"&TEXT($B$2:$K$2,"hh:mm"),SMALL(IF($B27:$K27="",COLUMN($B27:$K27)-COLUMN($B27)+1),COLUMNS($Q27:T27)))) -> TEA-16:30 | U27: =IF(COLUMNS($Q27:U27)>$P27,"",INDEX($B$1:$K$1&"-"&TEXT($B$2:$K$2,"hh:mm"),SMALL(IF($B27:$K27="",COLUMN($B27:$K27)-COLUMN($B27)+1),COLUMNS($Q27:U27)))) ->  | V27: =IF(COLUMNS($Q27:V27)>$P27,"",INDEX($B$1:$K$1&"-"&TEXT($B$2:$K$2,"hh:mm"),SMALL(IF($B27:$K27="",COLUMN($B27:$K27)-COLUMN($B27)+1),COLUMNS($Q27:V27)))) ->  | W27: =IF(COLUMNS($Q27:W27)>$P27,"",INDEX($B$1:$K$1&"-"&TEXT($B$2:$K$2,"hh:mm"),SMALL(IF($B27:$K27="",COLUMN($B27:$K27)-COLUMN($B27)+1),COLUMNS($Q27:W27)))) ->  | X27: =IF(COLUMNS($Q27:X27)>$P27,"",INDEX($B$1:$K$1&"-"&TEXT($B$2:$K$2,"hh:mm"),SMALL(IF($B27:$K27="",COLUMN($B27:$K27)-COLUMN($B27)+1),COLUMNS($Q27:X27)))) -> 
A28: Student 26 | B28: IGC2Her2 | C28: ASEngLang3 | D28: FitnessFran2 | E28: BiologyPractical2 | G28: A2Psychology2 | K28: SchoolMtg | L28: Student 26 | M28: 6 | O28: Student 26 | P28: 4 | Q28: =IF(COLUMNS($Q28:Q28)>$P28,"",INDEX($B$1:$K$1&"-"&TEXT($B$2:$K$2,"hh:mm"),SMALL(IF($B28:$K28="",COLUMN($B28:$K28)-COLUMN($B28)+1),COLUMNS($Q28:Q28)))) -> Lunch-13:00 | R28: =IF(COLUMNS($Q28:R28)>$P28,"",INDEX($B$1:$K$1&"-"&TEXT($B$2:$K$2,"hh:mm"),SMALL(IF($B28:$K28="",COLUMN($B28:$K28)-COLUMN($B28)+1),COLUMNS($Q28:R28)))) -> 6-15:30 | S28: =IF(COLUMNS($Q28:S28)>$P28,"",INDEX($B$1:$K$1&"-"&TEXT($B$2:$K$2,"hh:mm"),SMALL(IF($B28:$K28="",COLUMN($B28:$K28)-COLUMN($B28)+1),COLUMNS($Q28:S28)))) -> TEA-16:30 | T28: =IF(COLUMNS($Q28:T28)>$P28,"",INDEX($B$1:$K$1&"-"&TEXT($B$2:$K$2,"hh:mm"),SMALL(IF($B28:$K28="",COLUMN($B28:$K28)-COLUMN($B28)+1),COLUMNS($Q28:T28)))) -> 7-17:00 | U28: =IF(COLUMNS($Q28:U28)>$P28,"",INDEX($B$1:$K$1&"-"&TEXT($B$2:$K$2,"hh:mm"),SMALL(IF($B28:$K28="",COLUMN($B28:$K28)-COLUMN($B28)+1),COLUMNS($Q28:U28)))) ->  | V28: =IF(COLUMNS($Q28:V28)>$P28,"",INDEX($B$1:$K$1&"-"&TEXT($B$2:$K$2,"hh:mm"),SMALL(IF($B28:$K28="",COLUMN($B28:$K28)-COLUMN($B28)+1),COLUMNS($Q28:V28)))) ->  | W28: =IF(COLUMNS($Q28:W28)>$P28,"",INDEX($B$1:$K$1&"-"&TEXT($B$2:$K$2,"hh:mm"),SMALL(IF($B28:$K28="",COLUMN($B28:$K28)-COLUMN($B28)+1),COLUMNS($Q28:W28)))) ->  | X28: =IF(COLUMNS($Q28:X28)>$P28,"",INDEX($B$1:$K$1&"-"&TEXT($B$2:$K$2,"hh:mm"),SMALL(IF($B28:$K28="",COLUMN($B28:$K28)-COLUMN($B28)+1),COLUMNS($Q28:X28)))) -> 
A29: Student 27 | B29: A2Physics1 | C29: StatisticsS23 | F29: 13.45A2Maths4 | K29: SchoolMtg | L29: Student 27 | M29: 4 | O29: Student 27 | P29: 6 | Q29: =IF(COLUMNS($Q29:Q29)>$P29,"",INDEX($B$1:$K$1&"-"&TEXT($B$2:$K$2,"hh:mm"),SMALL(IF($B29:$K29="",COLUMN($B29:$K29)-COLUMN($B29)+1),COLUMNS($Q29:Q29)))) -> 3-11:05 | R29: =IF(COLUMNS($Q29:R29)>$P29,"",INDEX($B$1:$K$1&"-"&TEXT($B$2:$K$2,"hh:mm"),SMALL(IF($B29:$K29="",COLUMN($B29:$K29)-COLUMN($B29)+1),COLUMNS($Q29:R29)))) -> 4-12:05 | S29: =IF(COLUMNS($Q29:S29)>$P29,"",INDEX($B$1:$K$1&"-"&TEXT($B$2:$K$2,"hh:mm"),SMALL(IF($B29:$K29="",COLUMN($B29:$K29)-COLUMN($B29)+1),COLUMNS($Q29:S29)))) -> 5-14:30 | T29: =IF(COLUMNS($Q29:T29)>$P29,"",INDEX($B$1:$K$1&"-"&TEXT($B$2:$K$2,"hh:mm"),SMALL(IF($B29:$K29="",COLUMN($B29:$K29)-COLUMN($B29)+1),COLUMNS($Q29:T29)))) -> 6-15:30 | U29: =IF(COLUMNS($Q29:U29)>$P29,"",INDEX($B$1:$K$1&"-"&TEXT($B$2:$K$2,"hh:mm"),SMALL(IF($B29:$K29="",COLUMN($B29:$K29)-COLUMN($B29)+1),COLUMNS($Q29:U29)))) -> TEA-16:30 | V29: =IF(COLUMNS($Q29:V29)>$P29,"",INDEX($B$1:$K$1&"-"&TEXT($B$2:$K$2,"hh:mm"),SMALL(IF($B29:$K29="",COLUMN($B29:$K29)-COLUMN($B29)+1),COLUMNS($Q29:V29)))) -> 7-17:00 | W29: =IF(COLUMNS($Q29:W29)>$P29,"",INDEX($B$1:$K$1&"-"&TEXT($B$2:$K$2,"hh:mm"),SMALL(IF($B29:$K29="",COLUMN($B29:$K29)-COLUMN($B29)+1),COLUMNS($Q29:W29)))) ->  | X29: =IF(COLUMNS($Q29:X29)>$P29,"",INDEX($B$1:$K$1&"-"&TEXT($B$2:$K$2,"hh:mm"),SMALL(IF($B29:$K29="",COLUMN($B29:$K29)-COLUMN($B29)+1),COLUMNS($Q29:X29)))) -> 
A30: Student 28 | B30: FitnessOrlando1 | C30: MusicAdv | D30: IELTSM1 | F30: 13.25-14.10LS | K30: SchoolMtg | L30: Student 28 | M30: 5 | O30: Student 28 | P30: 5 | Q30: =IF(COLUMNS($Q30:Q30)>$P30,"",INDEX($B$1:$K$1&"-"&TEXT($B$2:$K$2,"hh:mm"),SMALL(IF($B30:$K30="",COLUMN($B30:$K30)-COLUMN($B30)+1),COLUMNS($Q30:Q30)))) -> 4-12:05 | R30: =IF(COLUMNS($Q30:R30)>$P30,"",INDEX($B$1:$K$1&"-"&TEXT($B$2:$K$2,"hh:mm"),SMALL(IF($B30:$K30="",COLUMN($B30:$K30)-COLUMN($B30)+1),COLUMNS($Q30:R30)))) -> 5-14:30 | S30: =IF(COLUMNS($Q30:S30)>$P30,"",INDEX($B$1:$K$1&"-"&TEXT($B$2:$K$2,"hh:mm"),SMALL(IF($B30:$K30="",COLUMN($B30:$K30)-COLUMN($B30)+1),COLUMNS($Q30:S30)))) -> 6-15:30 | T30: =IF(COLUMNS($Q30:T30)>$P30,"",INDEX($B$1:$K$1&"-"&TEXT($B$2:$K$2,"hh:mm"),SMALL(IF($B30:$K30="",COLUMN($B30:$K30)-COLUMN($B30)+1),COLUMNS($Q30:T30)))) -> TEA-16:30 | U30: =IF(COLUMNS($Q30:U30)>$P30,"",INDEX($B$1:$K$1&"-"&TEXT($B$2:$K$2,"hh:mm"),SMALL(IF($B30:$K30="",COLUMN($B30:$K30)-COLUMN($B30)+1),COLUMNS($Q30:U30)))) -> 7-17:00 | V30: =IF(COLUMNS($Q30:V30)>$P30,"",INDEX($B$1:$K$1&"-"&TEXT($B$2:$K$2,"hh:mm"),SMALL(IF($B30:$K30="",COLUMN($B30:$K30)-COLUMN($B30)+1),COLUMNS($Q30:V30)))) ->  | W30: =IF(COLUMNS($Q30:W30)>$P30,"",INDEX($B$1:$K$1&"-"&TEXT($B$2:$K$2,"hh:mm"),SMALL(IF($B30:$K30="",COLUMN($B30:$K30)-COLUMN($B30)+1),COLUMNS($Q30:W30)))) ->  | X30: =IF(COLUMNS($Q30:X30)>$P30,"",INDEX($B$1:$K$1&"-"&TEXT($B$2:$K$2,"hh:mm"),SMALL(IF($B30:$K30="",COLUMN($B30:$K30)-COLUMN($B30)+1),COLUMNS($Q30:X30)))) -> 
A31: Student 29 | B31: A2Physics1 | C31: StatisticsS23 | F31: 13.45A2Maths4 | J31: Philosophy2 | K31: SchoolMtg | L31: Student 29 | M31: 5 | O31: Student 29 | P31: 5 | Q31: =IF(COLUMNS($Q31:Q31)>$P31,"",INDEX($B$1:$K$1&"-"&TEXT($B$2:$K$2,"hh:mm"),SMALL(IF($B31:$K31="",COLUMN($B31:$K31)-COLUMN($B31)+1),COLUMNS($Q31:Q31)))) -> 3-11:05 | R31: =IF(COLUMNS($Q31:R31)>$P31,"",INDEX($B$1:$K$1&"-"&TEXT($B$2:$K$2,"hh:mm"),SMALL(IF($B31:$K31="",COLUMN($B31:$K31)-COLUMN($B31)+1),COLUMNS($Q31:R31)))) -> 4-12:05 | S31: =IF(COLUMNS($Q31:S31)>$P31,"",INDEX($B$1:$K$1&"-"&TEXT($B$2:$K$2,"hh:mm"),SMALL(IF($B31:$K31="",COLUMN($B31:$K31)-COLUMN($B31)+1),COLUMNS($Q31:S31)))) -> 5-14:30 | T31: =IF(COLUMNS($Q31:T31)>$P31,"",INDEX($B$1:$K$1&"-"&TEXT($B$2:$K$2,"hh:mm"),SMALL(IF($B31:$K31="",COLUMN($B31:$K31)-COLUMN($B31)+1),COLUMNS($Q31:T31)))) -> 6-15:30 | U31: =IF(COLUMNS($Q31:U31)>$P31,"",INDEX($B$1:$K$1&"-"&TEXT($B$2:$K$2,"hh:mm"),SMALL(IF($B31:$K31="",COLUMN($B31:$K31)-COLUMN($B31)+1),COLUMNS($Q31:U31)))) -> TEA-16:30 | V31: =IF(COLUMNS($Q31:V31)>$P31,"",INDEX($B$1:$K$1&"-"&TEXT($B$2:$K$2,"hh:mm"),SMALL(IF($B31:$K31="",COLUMN($B31:$K31)-COLUMN($B31)+1),COLUMNS($Q31:V31)))) ->  | W31: =IF(COLUMNS($Q31:W31)>$P31,"",INDEX($B$1:$K$1&"-"&TEXT($B$2:$K$2,"hh:mm"),SMALL(IF($B31:$K31="",COLUMN($B31:$K31)-COLUMN($B31)+1),COLUMNS($Q31:W31)))) ->  | X31: =IF(COLUMNS($Q31:X31)>$P31,"",INDEX($B$1:$K$1&"-"&TEXT($B$2:$K$2,"hh:mm"),SMALL(IF($B31:$K31="",COLUMN($B31:$K31)-COLUMN($B31)+1),COLUMNS($Q31:X31)))) -> 
A32: Student 30 | C32: ASEngLang3 | D32: MathsIGCM3 | E32: ASPsychology3 | J32: DramaAS5 | K32: SchoolMtg | L32: Student 30 | M32: 5 | O32: Student 30 | P32: 5 | Q32: =IF(COLUMNS($Q32:Q32)>$P32,"",INDEX($B$1:$K$1&"-"&TEXT($B$2:$K$2,"hh:mm"),SMALL(IF($B32:$K32="",COLUMN($B32:$K32)-COLUMN($B32)+1),COLUMNS($Q32:Q32)))) -> 1-09:05 | R32: =IF(COLUMNS($Q32:R32)>$P32,"",INDEX($B$1:$K$1&"-"&TEXT($B$2:$K$2,"hh:mm"),SMALL(IF($B32:$K32="",COLUMN($B32:$K32)-COLUMN($B32)+1),COLUMNS($Q32:R32)))) -> Lunch-13:00 | S32: =IF(COLUMNS($Q32:S32)>$P32,"",INDEX($B$1:$K$1&"-"&TEXT($B$2:$K$2,"hh:mm"),SMALL(IF($B32:$K32="",COLUMN($B32:$K32)-COLUMN($B32)+1),COLUMNS($Q32:S32)))) -> 5-14:30 | T32: =IF(COLUMNS($Q32:T32)>$P32,"",INDEX($B$1:$K$1&"-"&TEXT($B$2:$K$2,"hh:mm"),SMALL(IF($B32:$K32="",COLUMN($B32:$K32)-COLUMN($B32)+1),COLUMNS($Q32:T32)))) -> 6-15:30 | U32: =IF(COLUMNS($Q32:U32)>$P32,"",INDEX($B$1:$K$1&"-"&TEXT($B$2:$K$2,"hh:mm"),SMALL(IF($B32:$K32="",COLUMN($B32:$K32)-COLUMN($B32)+1),COLUMNS($Q32:U32)))) -> TEA-16:30 | V32: =IF(COLUMNS($Q32:V32)>$P32,"",INDEX($B$1:$K$1&"-"&TEXT($B$2:$K$2,"hh:mm"),SMALL(IF($B32:$K32="",COLUMN($B32:$K32)-COLUMN($B32)+1),COLUMNS($Q32:V32)))) ->  | W32: =IF(COLUMNS($Q32:W32)>$P32,"",INDEX($B$1:$K$1&"-"&TEXT($B$2:$K$2,"hh:mm"),SMALL(IF($B32:$K32="",COLUMN($B32:$K32)-COLUMN($B32)+1),COLUMNS($Q32:W32)))) ->  | X32: =IF(COLUMNS($Q32:X32)>$P32,"",INDEX($B$1:$K$1&"-"&TEXT($B$2:$K$2,"hh:mm"),SMALL(IF($B32:$K32="",COLUMN($B32:$K32)-COLUMN($B32)+1),COLUMNS($Q32:X32)))) -> 
A33: Student 31 | B33: A2Biology1 | C33: A2Biology2 | D33: ASChemistry3 | J33: Philosophy2 | K33: SchoolMtg | L33: Student 31 | M33: 5 | O33: Student 31 | P33: 5 | Q33: =IF(COLUMNS($Q33:Q33)>$P33,"",INDEX($B$1:$K$1&"-"&TEXT($B$2:$K$2,"hh:mm"),SMALL(IF($B33:$K33="",COLUMN($B33:$K33)-COLUMN($B33)+1),COLUMNS($Q33:Q33)))) -> 4-12:05 | R33: =IF(COLUMNS($Q33:R33)>$P33,"",INDEX($B$1:$K$1&"-"&TEXT($B$2:$K$2,"hh:mm"),SMALL(IF($B33:$K33="",COLUMN($B33:$K33)-COLUMN($B33)+1),COLUMNS($Q33:R33)))) -> Lunch-13:00 | S33: =IF(COLUMNS($Q33:S33)>$P33,"",INDEX($B$1:$K$1&"-"&TEXT($B$2:$K$2,"hh:mm"),SMALL(IF($B33:$K33="",COLUMN($B33:$K33)-COLUMN($B33)+1),COLUMNS($Q33:S33)))) -> 5-14:30 | T33: =IF(COLUMNS($Q33:T33)>$P33,"",INDEX($B$1:$K$1&"-"&TEXT($B$2:$K$2,"hh:mm"),SMALL(IF($B33:$K33="",COLUMN($B33:$K33)-COLUMN($B33)+1),COLUMNS($Q33:T33)))) -> 6-15:30 | U33: =IF(COLUMNS($Q33:U33)>$P33,"",INDEX($B$1:$K$1&"-"&TEXT($B$2:$K$2,"hh:mm"),SMALL(IF($B33:$K33="",COLUMN($B33:$K33)-COLUMN($B33)+1),COLUMNS($Q33:U33)))) -> TEA-16:30 | V33: =IF(COLUMNS($Q33:V33)>$P33,"",INDEX($B$1:$K$1&"-"&TEXT($B$2:$K$2,"hh:mm"),SMALL(IF($B33:$K33="",COLUMN($B33:$K33)-COLUMN($B33)+1),COLUMNS($Q33:V33)))) ->  | W33: =IF(COLUMNS($Q33:W33)>$P33,"",INDEX($B$1:$K$1&"-"&TEXT($B$2:$K$2,"hh:mm"),SMALL(IF($B33:$K33="",COLUMN($B33:$K33)-COLUMN($B33)+1),COLUMNS($Q33:W33)))) ->  | X33: =IF(COLUMNS($Q33:X33)>$P33,"",INDEX($B$1:$K$1&"-"&TEXT($B$2:$K$2,"hh:mm"),SMALL(IF($B33:$K33="",COLUMN($B33:$K33)-COLUMN($B33)+1),COLUMNS($Q33:X33)))) -> 
A34: Student 32 | B34: ASPMaths1c | D34: StatisticsS1b | K34: SchoolMtg | L34: Student 32 | M34: 3 | O34: Student 32 | P34: 7 | Q34: =IF(COLUMNS($Q34:Q34)>$P34,"",INDEX($B$1:$K$1&"-"&TEXT($B$2:$K$2,"hh:mm"),SMALL(IF($B34:$K34="",COLUMN($B34:$K34)-COLUMN($B34)+1),COLUMNS($Q34:Q34)))) -> 2-10:05 | R34: =IF(COLUMNS($Q34:R34)>$P34,"",INDEX($B$1:$K$1&"-"&TEXT($B$2:$K$2,"hh:mm"),SMALL(IF($B34:$K34="",COLUMN($B34:$K34)-COLUMN($B34)+1),COLUMNS($Q34:R34)))) -> 4-12:05 | S34: =IF(COLUMNS($Q34:S34)>$P34,"",INDEX($B$1:$K$1&"-"&TEXT($B$2:$K$2,"hh:mm"),SMALL(IF($B34:$K34="",COLUMN($B34:$K34)-COLUMN($B34)+1),COLUMNS($Q34:S34)))) -> Lunch-13:00 | T34: =IF(COLUMNS($Q34:T34)>$P34,"",INDEX($B$1:$K$1&"-"&TEXT($B$2:$K$2,"hh:mm"),SMALL(IF($B34:$K34="",COLUMN($B34:$K34)-COLUMN($B34)+1),COLUMNS($Q34:T34)))) -> 5-14:30 | U34: =IF(COLUMNS($Q34:U34)>$P34,"",INDEX($B$1:$K$1&"-"&TEXT($B$2:$K$2,"hh:mm"),SMALL(IF($B34:$K34="",COLUMN($B34:$K34)-COLUMN($B34)+1),COLUMNS($Q34:U34)))) -> 6-15:30 | V34: =IF(COLUMNS($Q34:V34)>$P34,"",INDEX($B$1:$K$1&"-"&TEXT($B$2:$K$2,"hh:mm"),SMALL(IF($B34:$K34="",COLUMN($B34:$K34)-COLUMN($B34)+1),COLUMNS($Q34:V34)))) -> TEA-16:30 | W34: =IF(COLUMNS($Q34:W34)>$P34,"",INDEX($B$1:$K$1&"-"&TEXT($B$2:$K$2,"hh:mm"),SMALL(IF($B34:$K34="",COLUMN($B34:$K34)-COLUMN($B34)+1),COLUMNS($Q34:W34)))) -> 7-17:00 | X34: =IF(COLUMNS($Q34:X34)>$P34,"",INDEX($B$1:$K$1&"-"&TEXT($B$2:$K$2,"hh:mm"),SMALL(IF($B34:$K34="",COLUMN($B34:$K34)-COLUMN($B34)+1),COLUMNS($Q34:X34)))) -> 
A35: Student 33 | B35: IGC2Her2 | E35: 12.15-12.45LS | K35: SchoolMtg | L35: Student 33 | M35: 3 | O35: Student 33 | P35: 7 | Q35: =IF(COLUMNS($Q35:Q35)>$P35,"",INDEX($B$1:$K$1&"-"&TEXT($B$2:$K$2,"hh:mm"),SMALL(IF($B35:$K35="",COLUMN($B35:$K35)-COLUMN($B35)+1),COLUMNS($Q35:Q35)))) -> 2-10:05 | R35: =IF(COLUMNS($Q35:R35)>$P35,"",INDEX($B$1:$K$1&"-"&TEXT($B$2:$K$2,"hh:mm"),SMALL(IF($B35:$K35="",COLUMN($B35:$K35)-COLUMN($B35)+1),COLUMNS($Q35:R35)))) -> 3-11:05 | S35: =IF(COLUMNS($Q35:S35)>$P35,"",INDEX($B$1:$K$1&"-"&TEXT($B$2:$K$2,"hh:mm"),SMALL(IF($B35:$K35="",COLUMN($B35:$K35)-COLUMN($B35)+1),COLUMNS($Q35:S35)))) -> Lunch-13:00 | T35: =IF(COLUMNS($Q35:T35)>$P35,"",INDEX($B$1:$K$1&"-"&TEXT($B$2:$K$2,"hh:mm"),SMALL(IF($B35:$K35="",COLUMN($B35:$K35)-COLUMN($B35)+1),COLUMNS($Q35:T35)))) -> 5-14:30 | U35: =IF(COLUMNS($Q35:U35)>$P35,"",INDEX($B$1:$K$1&"-"&TEXT($B$2:$K$2,"hh:mm"),SMALL(IF($B35:$K35="",COLUMN($B35:$K35)-COLUMN($B35)+1),COLUMNS($Q35:U35)))) -> 6-15:30 | V35: =IF(COLUMNS($Q35:V35)>$P35,"",INDEX($B$1:$K$1&"-"&TEXT($B$2:$K$2,"hh:mm"),SMALL(IF($B35:$K35="",COLUMN($B35:$K35)-COLUMN($B35)+1),COLUMNS($Q35:V35)))) -> TEA-16:30 | W35: =IF(COLUMNS($Q35:W35)>$P35,"",INDEX($B$1:$K$1&"-"&TEXT($B$2:$K$2,"hh:mm"),SMALL(IF($B35:$K35="",COLUMN($B35:$K35)-COLUMN($B35)+1),COLUMNS($Q35:W35)))) -> 7-17:00 | X35: =IF(COLUMNS($Q35:X35)>$P35,"",INDEX($B$1:$K$1&"-"&TEXT($B$2:$K$2,"hh:mm"),SMALL(IF($B35:$K35="",COLUMN($B35:$K35)-COLUMN($B35)+1),COLUMNS($Q35:X35)))) -> 
A36: Student 34 | B36: IGC2Her2 | D36: ESLIELTST2 | G36: Maintenance | H36: Maintenance | K36: SchoolMtg | L36: Student 34 | M36: 5 | O36: Student 34 | P36: 5 | Q36: =IF(COLUMNS($Q36:Q36)>$P36,"",INDEX($B$1:$K$1&"-"&TEXT($B$2:$K$2,"hh:mm"),SMALL(IF($B36:$K36="",COLUMN($B36:$K36)-COLUMN($B36)+1),COLUMNS($Q36:Q36)))) -> 2-10:05 | R36: =IF(COLUMNS($Q36:R36)>$P36,"",INDEX($B$1:$K$1&"-"&TEXT($B$2:$K$2,"hh:mm"),SMALL(IF($B36:$K36="",COLUMN($B36:$K36)-COLUMN($B36)+1),COLUMNS($Q36:R36)))) -> 4-12:05 | S36: =IF(COLUMNS($Q36:S36)>$P36,"",INDEX($B$1:$K$1&"-"&TEXT($B$2:$K$2,"hh:mm"),SMALL(IF($B36:$K36="",COLUMN($B36:$K36)-COLUMN($B36)+1),COLUMNS($Q36:S36)))) -> Lunch-13:00 | T36: =IF(COLUMNS($Q36:T36)>$P36,"",INDEX($B$1:$K$1&"-"&TEXT($B$2:$K$2,"hh:mm"),SMALL(IF($B36:$K36="",COLUMN($B36:$K36)-COLUMN($B36)+1),COLUMNS($Q36:T36)))) -> TEA-16:30 | U36: =IF(COLUMNS($Q36:U36)>$P36,"",INDEX($B$1:$K$1&"-"&TEXT($B$2:$K$2,"hh:mm"),SMALL(IF($B36:$K36="",COLUMN($B36:$K36)-COLUMN($B36)+1),COLUMNS($Q36:U36)))) -> 7-17:00 | V36: =IF(COLUMNS($Q36:V36)>$P36,"",INDEX($B$1:$K$1&"-"&TEXT($B$2:$K$2,"hh:mm"),SMALL(IF($B36:$K36="",COLUMN($B36:$K36)-COLUMN($B36)+1),COLUMNS($Q36:V36)))) ->  | W36: =IF(COLUMNS($Q36:W36)>$P36,"",INDEX($B$1:$K$1&"-"&TEXT($B$2:$K$2,"hh:mm"),SMALL(IF($B36:$K36="",COLUMN($B36:$K36)-COLUMN($B36)+1),COLUMNS($Q36:W36)))) ->  | X36: =IF(COLUMNS($Q36:X36)>$P36,"",INDEX($B$1:$K$1&"-"&TEXT($B$2:$K$2,"hh:mm"),SMALL(IF($B36:$K36="",COLUMN($B36:$K36)-COLUMN($B36)+1),COLUMNS($Q36:X36)))) -> 
A37: Student 35 | C37: ASEngLang3 | D37: MathsIGCS-Study | E37: ASHistory1 | K37: SchoolMtg | L37: Student 35 | M37: 4 | O37: Student 35 | P37: 6 | Q37: =IF(COLUMNS($Q37:Q37)>$P37,"",INDEX($B$1:$K$1&"-"&TEXT($B$2:$K$2,"hh:mm"),SMALL(IF($B37:$K37="",COLUMN($B37:$K37)-COLUMN($B37)+1),COLUMNS($Q37:Q37)))) -> 1-09:05 | R37: =IF(COLUMNS($Q37:R37)>$P37,"",INDEX($B$1:$K$1&"-"&TEXT($B$2:$K$2,"hh:mm"),SMALL(IF($B37:$K37="",COLUMN($B37:$K37)-COLUMN($B37)+1),COLUMNS($Q37:R37)))) -> Lunch-13:00 | S37: =IF(COLUMNS($Q37:S37)>$P37,"",INDEX($B$1:$K$1&"-"&TEXT($B$2:$K$2,"hh:mm"),SMALL(IF($B37:$K37="",COLUMN($B37:$K37)-COLUMN($B37)+1),COLUMNS($Q37:S37)))) -> 5-14:30 | T37: =IF(COLUMNS($Q37:T37)>$P37,"",INDEX($B$1:$K$1&"-"&TEXT($B$2:$K$2,"hh:mm"),SMALL(IF($B37:$K37="",COLUMN($B37:$K37)-COLUMN($B37)+1),COLUMNS($Q37:T37)))) -> 6-15:30 | U37: =IF(COLUMNS($Q37:U37)>$P37,"",INDEX($B$1:$K$1&"-"&TEXT($B$2:$K$2,"hh:mm"),SMALL(IF($B37:$K37="",COLUMN($B37:$K37)-COLUMN($B37)+1),COLUMNS($Q37:U37)))) -> TEA-16:30 | V37: =IF(COLUMNS($Q37:V37)>$P37,"",INDEX($B$1:$K$1&"-"&TEXT($B$2:$K$2,"hh:mm"),SMALL(IF($B37:$K37="",COLUMN($B37:$K37)-COLUMN($B37)+1),COLUMNS($Q37:V37)))) -> 7-17:00 | W37: =IF(COLUMNS($Q37:W37)>$P37,"",INDEX($B$1:$K$1&"-"&TEXT($B$2:$K$2,"hh:mm"),SMALL(IF($B37:$K37="",COLUMN($B37:$K37)-COLUMN($B37)+1),COLUMNS($Q37:W37)))) ->  | X37: =IF(COLUMNS($Q37:X37)>$P37,"",INDEX($B$1:$K$1&"-"&TEXT($B$2:$K$2,"hh:mm"),SMALL(IF($B37:$K37="",COLUMN($B37:$K37)-COLUMN($B37)+1),COLUMNS($Q37:X37)))) -> 
A38: Student 36 | B38: ASPMaths1c | D38: StatisticsS1b | E38: ASHistory1 | G38: A2Psychology2 | K38: SchoolMtg | L38: Student 36 | M38: 5 | O38: Student 36 | P38: 5 | Q38: =IF(COLUMNS($Q38:Q38)>$P38,"",INDEX($B$1:$K$1&"-"&TEXT($B$2:$K$2,"hh:mm"),SMALL(IF($B38:$K38="",COLUMN($B38:$K38)-COLUMN($B38)+1),COLUMNS($Q38:Q38)))) -> 2-10:05 | R38: =IF(COLUMNS($Q38:R38)>$P38,"",INDEX($B$1:$K$1&"-"&TEXT($B$2:$K$2,"hh:mm"),SMALL(IF($B38:$K38="",COLUMN($B38:$K38)-COLUMN($B38)+1),COLUMNS($Q38:R38)))) -> Lunch-13:00 | S38: =IF(COLUMNS($Q38:S38)>$P38,"",INDEX($B$1:$K$1&"-"&TEXT($B$2:$K$2,"hh:mm"),SMALL(IF($B38:$K38="",COLUMN($B38:$K38)-COLUMN($B38)+1),COLUMNS($Q38:S38)))) -> 6-15:30 | T38: =IF(COLUMNS($Q38:T38)>$P38,"",INDEX($B$1:$K$1&"-"&TEXT($B$2:$K$2,"hh:mm"),SMALL(IF($B38:$K38="",COLUMN($B38:$K38)-COLUMN($B38)+1),COLUMNS($Q38:T38)))) -> TEA-16:30 | U38: =IF(COLUMNS($Q38:U38)>$P38,"",INDEX($B$1:$K$1&"-"&TEXT($B$2:$K$2,"hh:mm"),SMALL(IF($B38:$K38="",COLUMN($B38:$K38)-COLUMN($B38)+1),COLUMNS($Q38:U38)))) -> 7-17:00 | V38: =IF(COLUMNS($Q38:V38)>$P38,"",INDEX($B$1:$K$1&"-"&TEXT($B$2:$K$2,"hh:mm"),SMALL(IF($B38:$K38="",COLUMN($B38:$K38)-COLUMN($B38)+1),COLUMNS($Q38:V38)))) ->  | W38: =IF(COLUMNS($Q38:W38)>$P38,"",INDEX($B$1:$K$1&"-"&TEXT($B$2:$K$2,"hh:mm"),SMALL(IF($B38:$K38="",COLUMN($B38:$K38)-COLUMN($B38)+1),COLUMNS($Q38:W38)))) ->  | X38: =IF(COLUMNS($Q38:X38)>$P38,"",INDEX($B$1:$K$1&"-"&TEXT($B$2:$K$2,"hh:mm"),SMALL(IF($B38:$K38="",COLUMN($B38:$K38)-COLUMN($B38)+1),COLUMNS($Q38:X38)))) -> 
A39: Student 37 | C39: MathsG2G2 | D39: CareforEarthM3 | E39: CareforEarthM3 | J39: Philosophy2 | K39: SchoolMtg | L39: Student 37 | M39: 5 | O39: Student 37 | P39: 5 | Q39: =IF(COLUMNS($Q39:Q39)>$P39,"",INDEX($B$1:$K$1&"-"&TEXT($B$2:$K$2,"hh:mm"),SMALL(IF($B39:$K39="",COLUMN($B39:$K39)-COLUMN($B39)+1),COLUMNS($Q39:Q39)))) -> 1-09:05 | R39: =IF(COLUMNS($Q39:R39)>$P39,"",INDEX($B$1:$K$1&"-"&TEXT($B$2:$K$2,"hh:mm"),SMALL(IF($B39:$K39="",COLUMN($B39:$K39)-COLUMN($B39)+1),COLUMNS($Q39:R39)))) -> Lunch-13:00 | S39: =IF(COLUMNS($Q39:S39)>$P39,"",INDEX($B$1:$K$1&"-"&TEXT($B$2:$K$2,"hh:mm"),SMALL(IF($B39:$K39="",COLUMN($B39:$K39)-COLUMN($B39)+1),COLUMNS($Q39:S39)))) -> 5-14:30 | T39: =IF(COLUMNS($Q39:T39)>$P39,"",INDEX($B$1:$K$1&"-"&TEXT($B$2:$K$2,"hh:mm"),SMALL(IF($B39:$K39="",COLUMN($B39:$K39)-COLUMN($B39)+1),COLUMNS($Q39:T39)))) -> 6-15:30 | U39: =IF(COLUMNS($Q39:U39)>$P39,"",INDEX($B$1:$K$1&"-"&TEXT($B$2:$K$2,"hh:mm"),SMALL(IF($B39:$K39="",COLUMN($B39:$K39)-COLUMN($B39)+1),COLUMNS($Q39:U39)))) -> TEA-16:30 | V39: =IF(COLUMNS($Q39:V39)>$P39,"",INDEX($B$1:$K$1&"-"&TEXT($B$2:$K$2,"hh:mm"),SMALL(IF($B39:$K39="",COLUMN($B39:$K39)-COLUMN($B39)+1),COLUMNS($Q39:V39)))) ->  | W39: =IF(COLUMNS($Q39:W39)>$P39,"",INDEX($B$1:$K$1&"-"&TEXT($B$2:$K$2,"hh:mm"),SMALL(IF($B39:$K39="",COLUMN($B39:$K39)-COLUMN($B39)+1),COLUMNS($Q39:W39)))) ->  | X39: =IF(COLUMNS($Q39:X39)>$P39,"",INDEX($B$1:$K$1&"-"&TEXT($B$2:$K$2,"hh:mm"),SMALL(IF($B39:$K39="",COLUMN($B39:$K39)-COLUMN($B39)+1),COLUMNS($Q39:X39)))) -> 
A40: Student 38 | B40: IGC2Her2 | D40: BiologyAS2A3 | K40: SchoolMtg | L40: Student 38 | M40: 3 | O40: Student 38 | P40: 7 | Q40: =IF(COLUMNS($Q40:Q40)>$P40,"",INDEX($B$1:$K$1&"-"&TEXT($B$2:$K$2,"hh:mm"),SMALL(IF($B40:$K40="",COLUMN($B40:$K40)-COLUMN($B40)+1),COLUMNS($Q40:Q40)))) -> 2-10:05 | R40: =IF(COLUMNS($Q40:R40)>$P40,"",INDEX($B$1:$K$1&"-"&TEXT($B$2:$K$2,"hh:mm"),SMALL(IF($B40:$K40="",COLUMN($B40:$K40)-COLUMN($B40)+1),COLUMNS($Q40:R40)))) -> 4-12:05 | S40: =IF(COLUMNS($Q40:S40)>$P40,"",INDEX($B$1:$K$1&"-"&TEXT($B$2:$K$2,"hh:mm"),SMALL(IF($B40:$K40="",COLUMN($B40:$K40)-COLUMN($B40)+1),COLUMNS($Q40:S40)))) -> Lunch-13:00 | T40: =IF(COLUMNS($Q40:T40)>$P40,"",INDEX($B$1:$K$1&"-"&TEXT($B$2:$K$2,"hh:mm"),SMALL(IF($B40:$K40="",COLUMN($B40:$K40)-COLUMN($B40)+1),COLUMNS($Q40:T40)))) -> 5-14:30 | U40: =IF(COLUMNS($Q40:U40)>$P40,"",INDEX($B$1:$K$1&"-"&TEXT($B$2:$K$2,"hh:mm"),SMALL(IF($B40:$K40="",COLUMN($B40:$K40)-COLUMN($B40)+1),COLUMNS($Q40:U40)))) -> 6-15:30 | V40: =IF(COLUMNS($Q40:V40)>$P40,"",INDEX($B$1:$K$1&"-"&TEXT($B$2:$K$2,"hh:mm"),SMALL(IF($B40:$K40="",COLUMN($B40:$K40)-COLUMN($B40)+1),COLUMNS($Q40:V40)))) -> TEA-16:30 | W40: =IF(COLUMNS($Q40:W40)>$P40,"",INDEX($B$1:$K$1&"-"&TEXT($B$2:$K$2,"hh:mm"),SMALL(IF($B40:$K40="",COLUMN($B40:$K40)-COLUMN($B40)+1),COLUMNS($Q40:W40)))) -> 7-17:00 | X40: =IF(COLUMNS($Q40:X40)>$P40,"",INDEX($B$1:$K$1&"-"&TEXT($B$2:$K$2,"hh:mm"),SMALL(IF($B40:$K40="",COLUMN($B40:$K40)-COLUMN($B40)+1),COLUMNS($Q40:X40)))) -> 
A41: Student 39 | B41: ASPMaths1c | C41: PhysicsPAS3 | E41: CGeography2 | J41: Philosophy2 | K41: SchoolMtg | L41: Student 39 | M41: 5 | O41: Student 39 | P41: 5 | Q41: =IF(COLUMNS($Q41:Q41)>$P41,"",INDEX($B$1:$K$1&"-"&TEXT($B$2:$K$2,"hh:mm"),SMALL(IF($B41:$K41="",COLUMN($B41:$K41)-COLUMN($B41)+1),COLUMNS($Q41:Q41)))) -> 3-11:05 | R41: =IF(COLUMNS($Q41:R41)>$P41,"",INDEX($B$1:$K$1&"-"&TEXT($B$2:$K$2,"hh:mm"),SMALL(IF($B41:$K41="",COLUMN($B41:$K41)-COLUMN($B41)+1),COLUMNS($Q41:R41)))) -> Lunch-13:00 | S41: =IF(COLUMNS($Q41:S41)>$P41,"",INDEX($B$1:$K$1&"-"&TEXT($B$2:$K$2,"hh:mm"),SMALL(IF($B41:$K41="",COLUMN($B41:$K41)-COLUMN($B41)+1),COLUMNS($Q41:S41)))) -> 5-14:30 | T41: =IF(COLUMNS($Q41:T41)>$P41,"",INDEX($B$1:$K$1&"-"&TEXT($B$2:$K$2,"hh:mm"),SMALL(IF($B41:$K41="",COLUMN($B41:$K41)-COLUMN($B41)+1),COLUMNS($Q41:T41)))) -> 6-15:30 | U41: =IF(COLUMNS($Q41:U41)>$P41,"",INDEX($B$1:$K$1&"-"&TEXT($B$2:$K$2,"hh:mm"),SMALL(IF($B41:$K41="",COLUMN($B41:$K41)-COLUMN($B41)+1),COLUMNS($Q41:U41)))) -> TEA-16:30 | V41: =IF(COLUMNS($Q41:V41)>$P41,"",INDEX($B$1:$K$1&"-"&TEXT($B$2:$K$2,"hh:mm"),SMALL(IF($B41:$K41="",COLUMN($B41:$K41)-COLUMN($B41)+1),COLUMNS($Q41:V41)))) ->  | W41: =IF(COLUMNS($Q41:W41)>$P41,"",INDEX($B$1:$K$1&"-"&TEXT($B$2:$K$2,"hh:mm"),SMALL(IF($B41:$K41="",COLUMN($B41:$K41)-COLUMN($B41)+1),COLUMNS($Q41:W41)))) ->  | X41: =IF(COLUMNS($Q41:X41)>$P41,"",INDEX($B$1:$K$1&"-"&TEXT($B$2:$K$2,"hh:mm"),SMALL(IF($B41:$K41="",COLUMN($B41:$K41)-COLUMN($B41)+1),COLUMNS($Q41:X41)))) -> 
A42: Student 40 | C42: ASPhotoM | D42: BiologyAS2A3 | E42: CGeography2 | K42: SchoolMtg | L42: Student 40 | M42: 4 | O42: Student 40 | P42: 6 | Q42: =IF(COLUMNS($Q42:Q42)>$P42,"",INDEX($B$1:$K$1&"-"&TEXT($B$2:$K$2,"hh:mm"),SMALL(IF($B42:$K42="",COLUMN($B42:$K42)-COLUMN($B42)+1),COLUMNS($Q42:Q42)))) -> 1-09:05 | R42: =IF(COLUMNS($Q42:R42)>$P42,"",INDEX($B$1:$K$1&"-"&TEXT($B$2:$K$2,"hh:mm"),SMALL(IF($B42:$K42="",COLUMN($B42:$K42)-COLUMN($B42)+1),COLUMNS($Q42:R42)))) -> Lunch-13:00 | S42: =IF(COLUMNS($Q42:S42)>$P42,"",INDEX($B$1:$K$1&"-"&TEXT($B$2:$K$2,"hh:mm"),SMALL(IF($B42:$K42="",COLUMN($B42:$K42)-COLUMN($B42)+1),COLUMNS($Q42:S42)))) -> 5-14:30 | T42: =IF(COLUMNS($Q42:T42)>$P42,"",INDEX($B$1:$K$1&"-"&TEXT($B$2:$K$2,"hh:mm"),SMALL(IF($B42:$K42="",COLUMN($B42:$K42)-COLUMN($B42)+1),COLUMNS($Q42:T42)))) -> 6-15:30 | U42: =IF(COLUMNS($Q42:U42)>$P42,"",INDEX($B$1:$K$1&"-"&TEXT($B$2:$K$2,"hh:mm"),SMALL(IF($B42:$K42="",COLUMN($B42:$K42)-COLUMN($B42)+1),COLUMNS($Q42:U42)))) -> TEA-16:30 | V42: =IF(COLUMNS($Q42:V42)>$P42,"",INDEX($B$1:$K$1&"-"&TEXT($B$2:$K$2,"hh:mm"),SMALL(IF($B42:$K42="",COLUMN($B42:$K42)-COLUMN($B42)+1),COLUMNS($Q42:V42)))) -> 7-17:00 | W42: =IF(COLUMNS($Q42:W42)>$P42,"",INDEX($B$1:$K$1&"-"&TEXT($B$2:$K$2,"hh:mm"),SMALL(IF($B42:$K42="",COLUMN($B42:$K42)-COLUMN($B42)+1),COLUMNS($Q42:W42)))) ->  | X42: =IF(COLUMNS($Q42:X42)>$P42,"",INDEX($B$1:$K$1&"-"&TEXT($B$2:$K$2,"hh:mm"),SMALL(IF($B42:$K42="",COLUMN($B42:$K42)-COLUMN($B42)+1),COLUMNS($Q42:X42)))) -> 
A43: Student 41 | B43: MathsIGCN3 | C43: AdvESLY1 | D43: BiologyAS2A3+ | E43: ASHistory1 | K43: SchoolMtg | L43: Student 41 | M43: 5 | O43: =L43 -> Student 41 | P43: 5 | Q43: =IF(COLUMNS($Q43:Q43)>$P43,"",INDEX($B$1:$K$1&"-"&TEXT($B$2:$K$2,"hh:mm"),SMALL(IF($B43:$K43="",COLUMN($B43:$K43)-COLUMN($B43)+1),COLUMNS($Q43:Q43)))) -> Lunch-13:00 | R43: =IF(COLUMNS($Q43:R43)>$P43,"",INDEX($B$1:$K$1&"-"&TEXT($B$2:$K$2,"hh:mm"),SMALL(IF($B43:$K43="",COLUMN($B43:$K43)-COLUMN($B43)+1),COLUMNS($Q43:R43)))) -> 5-14:30 | S43: =IF(COLUMNS($Q43:S43)>$P43,"",INDEX($B$1:$K$1&"-"&TEXT($B$2:$K$2,"hh:mm"),SMALL(IF($B43:$K43="",COLUMN($B43:$K43)-COLUMN($B43)+1),COLUMNS($Q43:S43)))) -> 6-15:30 | T43: =IF(COLUMNS($Q43:T43)>$P43,"",INDEX($B$1:$K$1&"-"&TEXT($B$2:$K$2,"hh:mm"),SMALL(IF($B43:$K43="",COLUMN($B43:$K43)-COLUMN($B43)+1),COLUMNS($Q43:T43)))) -> TEA-16:30 | U43: =IF(COLUMNS($Q43:U43)>$P43,"",INDEX($B$1:$K$1&"-"&TEXT($B$2:$K$2,"hh:mm"),SMALL(IF($B43:$K43="",COLUMN($B43:$K43)-COLUMN($B43)+1),COLUMNS($Q43:U43)))) -> 7-17:00 | V43: =IF(COLUMNS($Q43:V43)>$P43,"",INDEX($B$1:$K$1&"-"&TEXT($B$2:$K$2,"hh:mm"),SMALL(IF($B43:$K43="",COLUMN($B43:$K43)-COLUMN($B43)+1),COLUMNS($Q43:V43)))) ->  | W43: =IF(COLUMNS($Q43:W43)>$P43,"",INDEX($B$1:$K$1&"-"&TEXT($B$2:$K$2,"hh:mm"),SMALL(IF($B43:$K43="",COLUMN($B43:$K43)-COLUMN($B43)+1),COLUMNS($Q43:W43)))) ->  | X43: =IF(COLUMNS($Q43:X43)>$P43,"",INDEX($B$1:$K$1&"-"&TEXT($B$2:$K$2,"hh:mm"),SMALL(IF($B43:$K43="",COLUMN($B43:$K43)-COLUMN($B43)+1),COLUMNS($Q43:X43)))) -> 
A44: Student 42 | B44: ASPMaths1c | C44: SMechanics3 | D44: ASPhysics4 | E44: CGeography2 | K44: SchoolMtg | L44: Student 42 | M44: 5 | O44: =L44 -> Student 42 | P44: 5 | Q44: =IF(COLUMNS($Q44:Q44)>$P44,"",INDEX($B$1:$K$1&"-"&TEXT($B$2:$K$2,"hh:mm"),SMALL(IF($B44:$K44="",COLUMN($B44:$K44)-COLUMN($B44)+1),COLUMNS($Q44:Q44)))) -> Lunch-13:00 | R44: =IF(COLUMNS($Q44:R44)>$P44,"",INDEX($B$1:$K$1&"-"&TEXT($B$2:$K$2,"hh:mm"),SMALL(IF($B44:$K44="",COLUMN($B44:$K44)-COLUMN($B44)+1),COLUMNS($Q44:R44)))) -> 5-14:30 | S44: =IF(COLUMNS($Q44:S44)>$P44,"",INDEX($B$1:$K$1&"-"&TEXT($B$2:$K$2,"hh:mm"),SMALL(IF($B44:$K44="",COLUMN($B44:$K44)-COLUMN($B44)+1),COLUMNS($Q44:S44)))) -> 6-15:30 | T44: =IF(COLUMNS($Q44:T44)>$P44,"",INDEX($B$1:$K$1&"-"&TEXT($B$2:$K$2,"hh:mm"),SMALL(IF($B44:$K44="",COLUMN($B44:$K44)-COLUMN($B44)+1),COLUMNS($Q44:T44)))) -> TEA-16:30 | U44: =IF(COLUMNS($Q44:U44)>$P44,"",INDEX($B$1:$K$1&"-"&TEXT($B$2:$K$2,"hh:mm"),SMALL(IF($B44:$K44="",COLUMN($B44:$K44)-COLUMN($B44)+1),COLUMNS($Q44:U44)))) -> 7-17:00 | V44: =IF(COLUMNS($Q44:V44)>$P44,"",INDEX($B$1:$K$1&"-"&TEXT($B$2:$K$2,"hh:mm"),SMALL(IF($B44:$K44="",COLUMN($B44:$K44)-COLUMN($B44)+1),COLUMNS($Q44:V44)))) ->  | W44: =IF(COLUMNS($Q44:W44)>$P44,"",INDEX($B$1:$K$1&"-"&TEXT($B$2:$K$2,"hh:mm"),SMALL(IF($B44:$K44="",COLUMN($B44:$K44)-COLUMN($B44)+1),COLUMNS($Q44:W44)))) ->  | X44: =IF(COLUMNS($Q44:X44)>$P44,"",INDEX($B$1:$K$1&"-"&TEXT($B$2:$K$2,"hh:mm"),SMALL(IF($B44:$K44="",COLUMN($B44:$K44)-COLUMN($B44)+1),COLUMNS($Q44:X44)))) -> 
A45: Student 43 | B45: 09.30-10.25LS | D45: BiologyAS2A3 | G45: A2Psychology2 | J45: Philosophy2 | K45: SchoolMtg | L45: Student 43 | M45: 5 | O45: Student 43 | P45: 5 | Q45: =IF(COLUMNS($Q45:Q45)>$P45,"",INDEX($B$1:$K$1&"-"&TEXT($B$2:$K$2,"hh:mm"),SMALL(IF($B45:$K45="",COLUMN($B45:$K45)-COLUMN($B45)+1),COLUMNS($Q45:Q45)))) -> 2-10:05 | R45: =IF(COLUMNS($Q45:R45)>$P45,"",INDEX($B$1:$K$1&"-"&TEXT($B$2:$K$2,"hh:mm"),SMALL(IF($B45:$K45="",COLUMN($B45:$K45)-COLUMN($B45)+1),COLUMNS($Q45:R45)))) -> 4-12:05 | S45: =IF(COLUMNS($Q45:S45)>$P45,"",INDEX($B$1:$K$1&"-"&TEXT($B$2:$K$2,"hh:mm"),SMALL(IF($B45:$K45="",COLUMN($B45:$K45)-COLUMN($B45)+1),COLUMNS($Q45:S45)))) -> Lunch-13:00 | T45: =IF(COLUMNS($Q45:T45)>$P45,"",INDEX($B$1:$K$1&"-"&TEXT($B$2:$K$2,"hh:mm"),SMALL(IF($B45:$K45="",COLUMN($B45:$K45)-COLUMN($B45)+1),COLUMNS($Q45:T45)))) -> 6-15:30 | U45: =IF(COLUMNS($Q45:U45)>$P45,"",INDEX($B$1:$K$1&"-"&TEXT($B$2:$K$2,"hh:mm"),SMALL(IF($B45:$K45="",COLUMN($B45:$K45)-COLUMN($B45)+1),COLUMNS($Q45:U45)))) -> TEA-16:30 | V45: =IF(COLUMNS($Q45:V45)>$P45,"",INDEX($B$1:$K$1&"-"&TEXT($B$2:$K$2,"hh:mm"),SMALL(IF($B45:$K45="",COLUMN($B45:$K45)-COLUMN($B45)+1),COLUMNS($Q45:V45)))) ->  | W45: =IF(COLUMNS($Q45:W45)>$P45,"",INDEX($B$1:$K$1&"-"&TEXT($B$2:$K$2,"hh:mm"),SMALL(IF($B45:$K45="",COLUMN($B45:$K45)-COLUMN($B45)+1),COLUMNS($Q45:W45)))) ->  | X45: =IF(COLUMNS($Q45:X45)>$P45,"",INDEX($B$1:$K$1&"-"&TEXT($B$2:$K$2,"hh:mm"),SMALL(IF($B45:$K45="",COLUMN($B45:$K45)-COLUMN($B45)+1),COLUMNS($Q45:X45)))) -> 
A46: Student 44 | B46: ASPMaths1c | D46: StatisticsS1b | K46: SchoolMtg | L46: Student 44 | M46: 3 | O46: Student 44 | P46: 7 | Q46: =IF(COLUMNS($Q46:Q46)>$P46,"",INDEX($B$1:$K$1&"-"&TEXT($B$2:$K$2,"hh:mm"),SMALL(IF($B46:$K46="",COLUMN($B46:$K46)-COLUMN($B46)+1),COLUMNS($Q46:Q46)))) -> 2-10:05 | R46: =IF(COLUMNS($Q46:R46)>$P46,"",INDEX($B$1:$K$1&"-"&TEXT($B$2:$K$2,"hh:mm"),SMALL(IF($B46:$K46="",COLUMN($B46:$K46)-COLUMN($B46)+1),COLUMNS($Q46:R46)))) -> 4-12:05 | S46: =IF(COLUMNS($Q46:S46)>$P46,"",INDEX($B$1:$K$1&"-"&TEXT($B$2:$K$2,"hh:mm"),SMALL(IF($B46:$K46="",COLUMN($B46:$K46)-COLUMN($B46)+1),COLUMNS($Q46:S46)))) -> Lunch-13:00 | T46: =IF(COLUMNS($Q46:T46)>$P46,"",INDEX($B$1:$K$1&"-"&TEXT($B$2:$K$2,"hh:mm"),SMALL(IF($B46:$K46="",COLUMN($B46:$K46)-COLUMN($B46)+1),COLUMNS($Q46:T46)))) -> 5-14:30 | U46: =IF(COLUMNS($Q46:U46)>$P46,"",INDEX($B$1:$K$1&"-"&TEXT($B$2:$K$2,"hh:mm"),SMALL(IF($B46:$K46="",COLUMN($B46:$K46)-COLUMN($B46)+1),COLUMNS($Q46:U46)))) -> 6-15:30 | V46: =IF(COLUMNS($Q46:V46)>$P46,"",INDEX($B$1:$K$1&"-"&TEXT($B$2:$K$2,"hh:mm"),SMALL(IF($B46:$K46="",COLUMN($B46:$K46)-COLUMN($B46)+1),COLUMNS($Q46:V46)))) -> TEA-16:30 | W46: =IF(COLUMNS($Q46:W46)>$P46,"",INDEX($B$1:$K$1&"-"&TEXT($B$2:$K$2,"hh:mm"),SMALL(IF($B46:$K46="",COLUMN($B46:$K46)-COLUMN($B46)+1),COLUMNS($Q46:W46)))) -> 7-17:00 | X46: =IF(COLUMNS($Q46:X46)>$P46,"",INDEX($B$1:$K$1&"-"&TEXT($B$2:$K$2,"hh:mm"),SMALL(IF($B46:$K46="",COLUMN($B46:$K46)-COLUMN($B46)+1),COLUMNS($Q46:X46)))) -> 
A47: Student 45 | B47: MathsIGCN3 | C47: PhysicsPAS3 | D47: CCriminology3 | E47: Japanese1 | J47: ASGraphicD3 | K47: SchoolMtg | L47: Student 45 | M47: 6 | O47: Student 45 | P47: 4 | Q47: =IF(COLUMNS($Q47:Q47)>$P47,"",INDEX($B$1:$K$1&"-"&TEXT($B$2:$K$2,"hh:mm"),SMALL(IF($B47:$K47="",COLUMN($B47:$K47)-COLUMN($B47)+1),COLUMNS($Q47:Q47)))) -> Lunch-13:00 | R47: =IF(COLUMNS($Q47:R47)>$P47,"",INDEX($B$1:$K$1&"-"&TEXT($B$2:$K$2,"hh:mm"),SMALL(IF($B47:$K47="",COLUMN($B47:$K47)-COLUMN($B47)+1),COLUMNS($Q47:R47)))) -> 5-14:30 | S47: =IF(COLUMNS($Q47:S47)>$P47,"",INDEX($B$1:$K$1&"-"&TEXT($B$2:$K$2,"hh:mm"),SMALL(IF($B47:$K47="",COLUMN($B47:$K47)-COLUMN($B47)+1),COLUMNS($Q47:S47)))) -> 6-15:30 | T47: =IF(COLUMNS($Q47:T47)>$P47,"",INDEX($B$1:$K$1&"-"&TEXT($B$2:$K$2,"hh:mm"),SMALL(IF($B47:$K47="",COLUMN($B47:$K47)-COLUMN($B47)+1),COLUMNS($Q47:T47)))) -> TEA-16:30 | U47: =IF(COLUMNS($Q47:U47)>$P47,"",INDEX($B$1:$K$1&"-"&TEXT($B$2:$K$2,"hh:mm"),SMALL(IF($B47:$K47="",COLUMN($B47:$K47)-COLUMN($B47)+1),COLUMNS($Q47:U47)))) ->  | V47: =IF(COLUMNS($Q47:V47)>$P47,"",INDEX($B$1:$K$1&"-"&TEXT($B$2:$K$2,"hh:mm"),SMALL(IF($B47:$K47="",COLUMN($B47:$K47)-COLUMN($B47)+1),COLUMNS($Q47:V47)))) ->  | W47: =IF(COLUMNS($Q47:W47)>$P47,"",INDEX($B$1:$K$1&"-"&TEXT($B$2:$K$2,"hh:mm"),SMALL(IF($B47:$K47="",COLUMN($B47:$K47)-COLUMN($B47)+1),COLUMNS($Q47:W47)))) ->  | X47: =IF(COLUMNS($Q47:X47)>$P47,"",INDEX($B$1:$K$1&"-"&TEXT($B$2:$K$2,"hh:mm"),SMALL(IF($B47:$K47="",COLUMN($B47:$K47)-COLUMN($B47)+1),COLUMNS($Q47:X47)))) -> 
A48: Student 46 | B48: MathsIGCN3 | D48: BiologyAS2A3 | E48: ASHistory1 | K48: SchoolMtg | L48: Student 46 | M48: 4 | O48: Student 46 | P48: 6 | Q48: =IF(COLUMNS($Q48:Q48)>$P48,"",INDEX($B$1:$K$1&"-"&TEXT($B$2:$K$2,"hh:mm"),SMALL(IF($B48:$K48="",COLUMN($B48:$K48)-COLUMN($B48)+1),COLUMNS($Q48:Q48)))) -> 2-10:05 | R48: =IF(COLUMNS($Q48:R48)>$P48,"",INDEX($B$1:$K$1&"-"&TEXT($B$2:$K$2,"hh:mm"),SMALL(IF($B48:$K48="",COLUMN($B48:$K48)-COLUMN($B48)+1),COLUMNS($Q48:R48)))) -> Lunch-13:00 | S48: =IF(COLUMNS($Q48:S48)>$P48,"",INDEX($B$1:$K$1&"-"&TEXT($B$2:$K$2,"hh:mm"),SMALL(IF($B48:$K48="",COLUMN($B48:$K48)-COLUMN($B48)+1),COLUMNS($Q48:S48)))) -> 5-14:30 | T48: =IF(COLUMNS($Q48:T48)>$P48,"",INDEX($B$1:$K$1&"-"&TEXT($B$2:$K$2,"hh:mm"),SMALL(IF($B48:$K48="",COLUMN($B48:$K48)-COLUMN($B48)+1),COLUMNS($Q48:T48)))) -> 6-15:30 | U48: =IF(COLUMNS($Q48:U48)>$P48,"",INDEX($B$1:$K$1&"-"&TEXT($B$2:$K$2,"hh:mm"),SMALL(IF($B48:$K48="",COLUMN($B48:$K48)-COLUMN($B48)+1),COLUMNS($Q48:U48)))) -> TEA-16:30 | V48: =IF(COLUMNS($Q48:V48)>$P48,"",INDEX($B$1:$K$1&"-"&TEXT($B$2:$K$2,"hh:mm"),SMALL(IF($B48:$K48="",COLUMN($B48:$K48)-COLUMN($B48)+1),COLUMNS($Q48:V48)))) -> 7-17:00 | W48: =IF(COLUMNS($Q48:W48)>$P48,"",INDEX($B$1:$K$1&"-"&TEXT($B$2:$K$2,"hh:mm"),SMALL(IF($B48:$K48="",COLUMN($B48:$K48)-COLUMN($B48)+1),COLUMNS($Q48:W48)))) ->  | X48: =IF(COLUMNS($Q48:X48)>$P48,"",INDEX($B$1:$K$1&"-"&TEXT($B$2:$K$2,"hh:mm"),SMALL(IF($B48:$K48="",COLUMN($B48:$K48)-COLUMN($B48)+1),COLUMNS($Q48:X48)))) -> 
A49: Student 47 | B49: A2GraphicD1 | C49: A2GraphicD2 | K49: SchoolMtg | L49: Student 47 | M49: 3 | O49: Student 47 | P49: 7 | Q49: =IF(COLUMNS($Q49:Q49)>$P49,"",INDEX($B$1:$K$1&"-"&TEXT($B$2:$K$2,"hh:mm"),SMALL(IF($B49:$K49="",COLUMN($B49:$K49)-COLUMN($B49)+1),COLUMNS($Q49:Q49)))) -> 3-11:05 | R49: =IF(COLUMNS($Q49:R49)>$P49,"",INDEX($B$1:$K$1&"-"&TEXT($B$2:$K$2,"hh:mm"),SMALL(IF($B49:$K49="",COLUMN($B49:$K49)-COLUMN($B49)+1),COLUMNS($Q49:R49)))) -> 4-12:05 | S49: =IF(COLUMNS($Q49:S49)>$P49,"",INDEX($B$1:$K$1&"-"&TEXT($B$2:$K$2,"hh:mm"),SMALL(IF($B49:$K49="",COLUMN($B49:$K49)-COLUMN($B49)+1),COLUMNS($Q49:S49)))) -> Lunch-13:00 | T49: =IF(COLUMNS($Q49:T49)>$P49,"",INDEX($B$1:$K$1&"-"&TEXT($B$2:$K$2,"hh:mm"),SMALL(IF($B49:$K49="",COLUMN($B49:$K49)-COLUMN($B49)+1),COLUMNS($Q49:T49)))) -> 5-14:30 | U49: =IF(COLUMNS($Q49:U49)>$P49,"",INDEX($B$1:$K$1&"-"&TEXT($B$2:$K$2,"hh:mm"),SMALL(IF($B49:$K49="",COLUMN($B49:$K49)-COLUMN($B49)+1),COLUMNS($Q49:U49)))) -> 6-15:30 | V49: =IF(COLUMNS($Q49:V49)>$P49,"",INDEX($B$1:$K$1&"-"&TEXT($B$2:$K$2,"hh:mm"),SMALL(IF($B49:$K49="",COLUMN($B49:$K49)-COLUMN($B49)+1),COLUMNS($Q49:V49)))) -> TEA-16:30 | W49: =IF(COLUMNS($Q49:W49)>$P49,"",INDEX($B$1:$K$1&"-"&TEXT($B$2:$K$2,"hh:mm"),SMALL(IF($B49:$K49="",COLUMN($B49:$K49)-COLUMN($B49)+1),COLUMNS($Q49:W49)))) -> 7-17:00 | X49: =IF(COLUMNS($Q49:X49)>$P49,"",INDEX($B$1:$K$1&"-"&TEXT($B$2:$K$2,"hh:mm"),SMALL(IF($B49:$K49="",COLUMN($B49:$K49)-COLUMN($B49)+1),COLUMNS($Q49:X49)))) -> 
A50: Student 48 | B50: MathsIGCN3 | D50: CareforEarthM3 | E50: CareforEarthM3 | F50: 14.45-15.00LS | J50: CinemaStuJ2 | K50: SchoolMtg | L50: Student 48 | M50: 6 | O50: Student 48 | P50: 4 | Q50: =IF(COLUMNS($Q50:Q50)>$P50,"",INDEX($B$1:$K$1&"-"&TEXT($B$2:$K$2,"hh:mm"),SMALL(IF($B50:$K50="",COLUMN($B50:$K50)-COLUMN($B50)+1),COLUMNS($Q50:Q50)))) -> 2-10:05 | R50: =IF(COLUMNS($Q50:R50)>$P50,"",INDEX($B$1:$K$1&"-"&TEXT($B$2:$K$2,"hh:mm"),SMALL(IF($B50:$K50="",COLUMN($B50:$K50)-COLUMN($B50)+1),COLUMNS($Q50:R50)))) -> 5-14:30 | S50: =IF(COLUMNS($Q50:S50)>$P50,"",INDEX($B$1:$K$1&"-"&TEXT($B$2:$K$2,"hh:mm"),SMALL(IF($B50:$K50="",COLUMN($B50:$K50)-COLUMN($B50)+1),COLUMNS($Q50:S50)))) -> 6-15:30 | T50: =IF(COLUMNS($Q50:T50)>$P50,"",INDEX($B$1:$K$1&"-"&TEXT($B$2:$K$2,"hh:mm"),SMALL(IF($B50:$K50="",COLUMN($B50:$K50)-COLUMN($B50)+1),COLUMNS($Q50:T50)))) -> TEA-16:30 | U50: =IF(COLUMNS($Q50:U50)>$P50,"",INDEX($B$1:$K$1&"-"&TEXT($B$2:$K$2,"hh:mm"),SMALL(IF($B50:$K50="",COLUMN($B50:$K50)-COLUMN($B50)+1),COLUMNS($Q50:U50)))) ->  | V50: =IF(COLUMNS($Q50:V50)>$P50,"",INDEX($B$1:$K$1&"-"&TEXT($B$2:$K$2,"hh:mm"),SMALL(IF($B50:$K50="",COLUMN($B50:$K50)-COLUMN($B50)+1),COLUMNS($Q50:V50)))) ->  | W50: =IF(COLUMNS($Q50:W50)>$P50,"",INDEX($B$1:$K$1&"-"&TEXT($B$2:$K$2,"hh:mm"),SMALL(IF($B50:$K50="",COLUMN($B50:$K50)-COLUMN($B50)+1),COLUMNS($Q50:W50)))) ->  | X50: =IF(COLUMNS($Q50:X50)>$P50,"",INDEX($B$1:$K$1&"-"&TEXT($B$2:$K$2,"hh:mm"),SMALL(IF($B50:$K50="",COLUMN($B50:$K50)-COLUMN($B50)+1),COLUMNS($Q50:X50)))) -> 
A51: Student 49 | E51: ASHistory1 | J51: CinemaStuJ2 | K51: SchoolMtg | L51: Student 49 | M51: 3 | O51: Student 49 | P51: 7 | Q51: =IF(COLUMNS($Q51:Q51)>$P51,"",INDEX($B$1:$K$1&"-"&TEXT($B$2:$K$2,"hh:mm"),SMALL(IF($B51:$K51="",COLUMN($B51:$K51)-COLUMN($B51)+1),COLUMNS($Q51:Q51)))) -> 1-09:05 | R51: =IF(COLUMNS($Q51:R51)>$P51,"",INDEX($B$1:$K$1&"-"&TEXT($B$2:$K$2,"hh:mm"),SMALL(IF($B51:$K51="",COLUMN($B51:$K51)-COLUMN($B51)+1),COLUMNS($Q51:R51)))) -> 2-10:05 | S51: =IF(COLUMNS($Q51:S51)>$P51,"",INDEX($B$1:$K$1&"-"&TEXT($B$2:$K$2,"hh:mm"),SMALL(IF($B51:$K51="",COLUMN($B51:$K51)-COLUMN($B51)+1),COLUMNS($Q51:S51)))) -> 3-11:05 | T51: =IF(COLUMNS($Q51:T51)>$P51,"",INDEX($B$1:$K$1&"-"&TEXT($B$2:$K$2,"hh:mm"),SMALL(IF($B51:$K51="",COLUMN($B51:$K51)-COLUMN($B51)+1),COLUMNS($Q51:T51)))) -> Lunch-13:00 | U51: =IF(COLUMNS($Q51:U51)>$P51,"",INDEX($B$1:$K$1&"-"&TEXT($B$2:$K$2,"hh:mm"),SMALL(IF($B51:$K51="",COLUMN($B51:$K51)-COLUMN($B51)+1),COLUMNS($Q51:U51)))) -> 5-14:30 | V51: =IF(COLUMNS($Q51:V51)>$P51,"",INDEX($B$1:$K$1&"-"&TEXT($B$2:$K$2,"hh:mm"),SMALL(IF($B51:$K51="",COLUMN($B51:$K51)-COLUMN($B51)+1),COLUMNS($Q51:V51)))) -> 6-15:30 | W51: =IF(COLUMNS($Q51:W51)>$P51,"",INDEX($B$1:$K$1&"-"&TEXT($B$2:$K$2,"hh:mm"),SMALL(IF($B51:$K51="",COLUMN($B51:$K51)-COLUMN($B51)+1),COLUMNS($Q51:W51)))) -> TEA-16:30 | X51: =IF(COLUMNS($Q51:X51)>$P51,"",INDEX($B$1:$K$1&"-"&TEXT($B$2:$K$2,"hh:mm"),SMALL(IF($B51:$K51="",COLUMN($B51:$K51)-COLUMN($B51)+1),COLUMNS($Q51:X51)))) -> 
A52: Student 50 | B52: MathsIGC2P3 | C52: ASEngLang3 | D52: BiologyAS2A3 | E52: ASPsychology3 | H52: 15.05-15.50LS | J52: CinemaStuJ2 | K52: SchoolMtg | L52: Student 50 | M52: 7 | O52: Student 50 | P52: 3 | Q52: =IF(COLUMNS($Q52:Q52)>$P52,"",INDEX($B$1:$K$1&"-"&TEXT($B$2:$K$2,"hh:mm"),SMALL(IF($B52:$K52="",COLUMN($B52:$K52)-COLUMN($B52)+1),COLUMNS($Q52:Q52)))) -> Lunch-13:00 | R52: =IF(COLUMNS($Q52:R52)>$P52,"",INDEX($B$1:$K$1&"-"&TEXT($B$2:$K$2,"hh:mm"),SMALL(IF($B52:$K52="",COLUMN($B52:$K52)-COLUMN($B52)+1),COLUMNS($Q52:R52)))) -> 5-14:30 | S52: =IF(COLUMNS($Q52:S52)>$P52,"",INDEX($B$1:$K$1&"-"&TEXT($B$2:$K$2,"hh:mm"),SMALL(IF($B52:$K52="",COLUMN($B52:$K52)-COLUMN($B52)+1),COLUMNS($Q52:S52)))) -> TEA-16:30 | T52: =IF(COLUMNS($Q52:T52)>$P52,"",INDEX($B$1:$K$1&"-"&TEXT($B$2:$K$2,"hh:mm"),SMALL(IF($B52:$K52="",COLUMN($B52:$K52)-COLUMN($B52)+1),COLUMNS($Q52:T52)))) ->  | U52: =IF(COLUMNS($Q52:U52)>$P52,"",INDEX($B$1:$K$1&"-"&TEXT($B$2:$K$2,"hh:mm"),SMALL(IF($B52:$K52="",COLUMN($B52:$K52)-COLUMN($B52)+1),COLUMNS($Q52:U52)))) ->  | V52: =IF(COLUMNS($Q52:V52)>$P52,"",INDEX($B$1:$K$1&"-"&TEXT($B$2:$K$2,"hh:mm"),SMALL(IF($B52:$K52="",COLUMN($B52:$K52)-COLUMN($B52)+1),COLUMNS($Q52:V52)))) ->  | W52: =IF(COLUMNS($Q52:W52)>$P52,"",INDEX($B$1:$K$1&"-"&TEXT($B$2:$K$2,"hh:mm"),SMALL(IF($B52:$K52="",COLUMN($B52:$K52)-COLUMN($B52)+1),COLUMNS($Q52:W52)))) ->  | X52: =IF(COLUMNS($Q52:X52)>$P52,"",INDEX($B$1:$K$1&"-"&TEXT($B$2:$K$2,"hh:mm"),SMALL(IF($B52:$K52="",COLUMN($B52:$K52)-COLUMN($B52)+1),COLUMNS($Q52:X52)))) -> 
A53: Student 51 | B53: EnglishPAS4 | C53: MathsG2G2 | D53: CareforEarthM3 | E53: CareforEarthM3 | J53: DramaAS5 | K53: SchoolMtg | L53: Student 51 | M53: 6 | O53: Student 51 | P53: 4 | Q53: =IF(COLUMNS($Q53:Q53)>$P53,"",INDEX($B$1:$K$1&"-"&TEXT($B$2:$K$2,"hh:mm"),SMALL(IF($B53:$K53="",COLUMN($B53:$K53)-COLUMN($B53)+1),COLUMNS($Q53:Q53)))) -> Lunch-13:00 | R53: =IF(COLUMNS($Q53:R53)>$P53,"",INDEX($B$1:$K$1&"-"&TEXT($B$2:$K$2,"hh:mm"),SMALL(IF($B53:$K53="",COLUMN($B53:$K53)-COLUMN($B53)+1),COLUMNS($Q53:R53)))) -> 5-14:30 | S53: =IF(COLUMNS($Q53:S53)>$P53,"",INDEX($B$1:$K$1&"-"&TEXT($B$2:$K$2,"hh:mm"),SMALL(IF($B53:$K53="",COLUMN($B53:$K53)-COLUMN($B53)+1),COLUMNS($Q53:S53)))) -> 6-15:30 | T53: =IF(COLUMNS($Q53:T53)>$P53,"",INDEX($B$1:$K$1&"-"&TEXT($B$2:$K$2,"hh:mm"),SMALL(IF($B53:$K53="",COLUMN($B53:$K53)-COLUMN($B53)+1),COLUMNS($Q53:T53)))) -> TEA-16:30 | U53: =IF(COLUMNS($Q53:U53)>$P53,"",INDEX($B$1:$K$1&"-"&TEXT($B$2:$K$2,"hh:mm"),SMALL(IF($B53:$K53="",COLUMN($B53:$K53)-COLUMN($B53)+1),COLUMNS($Q53:U53)))) ->  | V53: =IF(COLUMNS($Q53:V53)>$P53,"",INDEX($B$1:$K$1&"-"&TEXT($B$2:$K$2,"hh:mm"),SMALL(IF($B53:$K53="",COLUMN($B53:$K53)-COLUMN($B53)+1),COLUMNS($Q53:V53)))) ->  | W53: =IF(COLUMNS($Q53:W53)>$P53,"",INDEX($B$1:$K$1&"-"&TEXT($B$2:$K$2,"hh:mm"),SMALL(IF($B53:$K53="",COLUMN($B53:$K53)-COLUMN($B53)+1),COLUMNS($Q53:W53)))) ->  | X53: =IF(COLUMNS($Q53:X53)>$P53,"",INDEX($B$1:$K$1&"-"&TEXT($B$2:$K$2,"hh:mm"),SMALL(IF($B53:$K53="",COLUMN($B53:$K53)-COLUMN($B53)+1),COLUMNS($Q53:X53)))) -> 
A54: Student 52 | B54: YogaB1 | D54: MathsIGCM3 | E54: ASPsychology3 | K54: SchoolMtg | L54: Student 52 | M54: 4 | O54: Student 52 | P54: 6 | Q54: =IF(COLUMNS($Q54:Q54)>$P54,"",INDEX($B$1:$K$1&"-"&TEXT($B$2:$K$2,"hh:mm"),SMALL(IF($B54:$K54="",COLUMN($B54:$K54)-COLUMN($B54)+1),COLUMNS($Q54:Q54)))) -> 2-10:05 | R54: =IF(COLUMNS($Q54:R54)>$P54,"",INDEX($B$1:$K$1&"-"&TEXT($B$2:$K$2,"hh:mm"),SMALL(IF($B54:$K54="",COLUMN($B54:$K54)-COLUMN($B54)+1),COLUMNS($Q54:R54)))) -> Lunch-13:00 | S54: =IF(COLUMNS($Q54:S54)>$P54,"",INDEX($B$1:$K$1&"-"&TEXT($B$2:$K$2,"hh:mm"),SMALL(IF($B54:$K54="",COLUMN($B54:$K54)-COLUMN($B54)+1),COLUMNS($Q54:S54)))) -> 5-14:30 | T54: =IF(COLUMNS($Q54:T54)>$P54,"",INDEX($B$1:$K$1&"-"&TEXT($B$2:$K$2,"hh:mm"),SMALL(IF($B54:$K54="",COLUMN($B54:$K54)-COLUMN($B54)+1),COLUMNS($Q54:T54)))) -> 6-15:30 | U54: =IF(COLUMNS($Q54:U54)>$P54,"",INDEX($B$1:$K$1&"-"&TEXT($B$2:$K$2,"hh:mm"),SMALL(IF($B54:$K54="",COLUMN($B54:$K54)-COLUMN($B54)+1),COLUMNS($Q54:U54)))) -> TEA-16:30 | V54: =IF(COLUMNS($Q54:V54)>$P54,"",INDEX($B$1:$K$1&"-"&TEXT($B$2:$K$2,"hh:mm"),SMALL(IF($B54:$K54="",COLUMN($B54:$K54)-COLUMN($B54)+1),COLUMNS($Q54:V54)))) -> 7-17:00 | W54: =IF(COLUMNS($Q54:W54)>$P54,"",INDEX($B$1:$K$1&"-"&TEXT($B$2:$K$2,"hh:mm"),SMALL(IF($B54:$K54="",COLUMN($B54:$K54)-COLUMN($B54)+1),COLUMNS($Q54:W54)))) ->  | X54: =IF(COLUMNS($Q54:X54)>$P54,"",INDEX($B$1:$K$1&"-"&TEXT($B$2:$K$2,"hh:mm"),SMALL(IF($B54:$K54="",COLUMN($B54:$K54)-COLUMN($B54)+1),COLUMNS($Q54:X54)))) -> 
A55: Student 53 | B55: MathsIGC2P3 | C55: YogaC2 | D55: MusicAdvV | E55: ASPsychology3 | H55: 15.50-16.30LS | J55: DramaAS5 | K55: SchoolMtg | L55: Student 53 | M55: 7 | O55: Student 53 | P55: 3 | Q55: =IF(COLUMNS($Q55:Q55)>$P55,"",INDEX($B$1:$K$1&"-"&TEXT($B$2:$K$2,"hh:mm"),SMALL(IF($B55:$K55="",COLUMN($B55:$K55)-COLUMN($B55)+1),COLUMNS($Q55:Q55)))) -> Lunch-13:00 | R55: =IF(COLUMNS($Q55:R55)>$P55,"",INDEX($B$1:$K$1&"-"&TEXT($B$2:$K$2,"hh:mm"),SMALL(IF($B55:$K55="",COLUMN($B55:$K55)-COLUMN($B55)+1),COLUMNS($Q55:R55)))) -> 5-14:30 | S55: =IF(COLUMNS($Q55:S55)>$P55,"",INDEX($B$1:$K$1&"-"&TEXT($B$2:$K$2,"hh:mm"),SMALL(IF($B55:$K55="",COLUMN($B55:$K55)-COLUMN($B55)+1),COLUMNS($Q55:S55)))) -> TEA-16:30 | T55: =IF(COLUMNS($Q55:T55)>$P55,"",INDEX($B$1:$K$1&"-"&TEXT($B$2:$K$2,"hh:mm"),SMALL(IF($B55:$K55="",COLUMN($B55:$K55)-COLUMN($B55)+1),COLUMNS($Q55:T55)))) ->  | U55: =IF(COLUMNS($Q55:U55)>$P55,"",INDEX($B$1:$K$1&"-"&TEXT($B$2:$K$2,"hh:mm"),SMALL(IF($B55:$K55="",COLUMN($B55:$K55)-COLUMN($B55)+1),COLUMNS($Q55:U55)))) ->  | V55: =IF(COLUMNS($Q55:V55)>$P55,"",INDEX($B$1:$K$1&"-"&TEXT($B$2:$K$2,"hh:mm"),SMALL(IF($B55:$K55="",COLUMN($B55:$K55)-COLUMN($B55)+1),COLUMNS($Q55:V55)))) ->  | W55: =IF(COLUMNS($Q55:W55)>$P55,"",INDEX($B$1:$K$1&"-"&TEXT($B$2:$K$2,"hh:mm"),SMALL(IF($B55:$K55="",COLUMN($B55:$K55)-COLUMN($B55)+1),COLUMNS($Q55:W55)))) ->  | X55: =IF(COLUMNS($Q55:X55)>$P55,"",INDEX($B$1:$K$1&"-"&TEXT($B$2:$K$2,"hh:mm"),SMALL(IF($B55:$K55="",COLUMN($B55:$K55)-COLUMN($B55)+1),COLUMNS($Q55:X55)))) -> 
A56: Student 54 | B56: A2ReligStud3 | E56: GuitarAdv3 | J56: CinemaStuJ2 | K56: SchoolMtg | L56: Student 54 | M56: 4 | O56: Student 54 | P56: 6 | Q56: =IF(COLUMNS($Q56:Q56)>$P56,"",INDEX($B$1:$K$1&"-"&TEXT($B$2:$K$2,"hh:mm"),SMALL(IF($B56:$K56="",COLUMN($B56:$K56)-COLUMN($B56)+1),COLUMNS($Q56:Q56)))) -> 2-10:05 | R56: =IF(COLUMNS($Q56:R56)>$P56,"",INDEX($B$1:$K$1&"-"&TEXT($B$2:$K$2,"hh:mm"),SMALL(IF($B56:$K56="",COLUMN($B56:$K56)-COLUMN($B56)+1),COLUMNS($Q56:R56)))) -> 3-11:05 | S56: =IF(COLUMNS($Q56:S56)>$P56,"",INDEX($B$1:$K$1&"-"&TEXT($B$2:$K$2,"hh:mm"),SMALL(IF($B56:$K56="",COLUMN($B56:$K56)-COLUMN($B56)+1),COLUMNS($Q56:S56)))) -> Lunch-13:00 | T56: =IF(COLUMNS($Q56:T56)>$P56,"",INDEX($B$1:$K$1&"-"&TEXT($B$2:$K$2,"hh:mm"),SMALL(IF($B56:$K56="",COLUMN($B56:$K56)-COLUMN($B56)+1),COLUMNS($Q56:T56)))) -> 5-14:30 | U56: =IF(COLUMNS($Q56:U56)>$P56,"",INDEX($B$1:$K$1&"-"&TEXT($B$2:$K$2,"hh:mm"),SMALL(IF($B56:$K56="",COLUMN($B56:$K56)-COLUMN($B56)+1),COLUMNS($Q56:U56)))) -> 6-15:30 | V56: =IF(COLUMNS($Q56:V56)>$P56,"",INDEX($B$1:$K$1&"-"&TEXT($B$2:$K$2,"hh:mm"),SMALL(IF($B56:$K56="",COLUMN($B56:$K56)-COLUMN($B56)+1),COLUMNS($Q56:V56)))) -> TEA-16:30 | W56: =IF(COLUMNS($Q56:W56)>$P56,"",INDEX($B$1:$K$1&"-"&TEXT($B$2:$K$2,"hh:mm"),SMALL(IF($B56:$K56="",COLUMN($B56:$K56)-COLUMN($B56)+1),COLUMNS($Q56:W56)))) ->  | X56: =IF(COLUMNS($Q56:X56)>$P56,"",INDEX($B$1:$K$1&"-"&TEXT($B$2:$K$2,"hh:mm"),SMALL(IF($B56:$K56="",COLUMN($B56:$K56)-COLUMN($B56)+1),COLUMNS($Q56:X56)))) -> 
A57: Student 55 | B57: A2Physics1 | C57: StatisticsS23 | D57: FitnessOrlando | K57: SchoolMtg | L57: Student 55 | M57: 4 | O57: Student 55 | P57: 6 | Q57: =IF(COLUMNS($Q57:Q57)>$P57,"",INDEX($B$1:$K$1&"-"&TEXT($B$2:$K$2,"hh:mm"),SMALL(IF($B57:$K57="",COLUMN($B57:$K57)-COLUMN($B57)+1),COLUMNS($Q57:Q57)))) -> 4-12:05 | R57: =IF(COLUMNS($Q57:R57)>$P57,"",INDEX($B$1:$K$1&"-"&TEXT($B$2:$K$2,"hh:mm"),SMALL(IF($B57:$K57="",COLUMN($B57:$K57)-COLUMN($B57)+1),COLUMNS($Q57:R57)))) -> Lunch-13:00 | S57: =IF(COLUMNS($Q57:S57)>$P57,"",INDEX($B$1:$K$1&"-"&TEXT($B$2:$K$2,"hh:mm"),SMALL(IF($B57:$K57="",COLUMN($B57:$K57)-COLUMN($B57)+1),COLUMNS($Q57:S57)))) -> 5-14:30 | T57: =IF(COLUMNS($Q57:T57)>$P57,"",INDEX($B$1:$K$1&"-"&TEXT($B$2:$K$2,"hh:mm"),SMALL(IF($B57:$K57="",COLUMN($B57:$K57)-COLUMN($B57)+1),COLUMNS($Q57:T57)))) -> 6-15:30 | U57: =IF(COLUMNS($Q57:U57)>$P57,"",INDEX($B$1:$K$1&"-"&TEXT($B$2:$K$2,"hh:mm"),SMALL(IF($B57:$K57="",COLUMN($B57:$K57)-COLUMN($B57)+1),COLUMNS($Q57:U57)))) -> TEA-16:30 | V57: =IF(COLUMNS($Q57:V57)>$P57,"",INDEX($B$1:$K$1&"-"&TEXT($B$2:$K$2,"hh:mm"),SMALL(IF($B57:$K57="",COLUMN($B57:$K57)-COLUMN($B57)+1),COLUMNS($Q57:V57)))) -> 7-17:00 | W57: =IF(COLUMNS($Q57:W57)>$P57,"",INDEX($B$1:$K$1&"-"&TEXT($B$2:$K$2,"hh:mm"),SMALL(IF($B57:$K57="",COLUMN($B57:$K57)-COLUMN($B57)+1),COLUMNS($Q57:W57)))) ->  | X57: =IF(COLUMNS($Q57:X57)>$P57,"",INDEX($B$1:$K$1&"-"&TEXT($B$2:$K$2,"hh:mm"),SMALL(IF($B57:$K57="",COLUMN($B57:$K57)-COLUMN($B57)+1),COLUMNS($Q57:X57)))) -> 
A58: Student 56 | B58: EnglishPAS4 | C58: MathsG2G2 | D58: CCriminology3 | J58: DramaAS5 | K58: SchoolMtg | L58: Student 56 | M58: 5 | O58: Student 56 | P58: 5 | Q58: =IF(COLUMNS($Q58:Q58)>$P58,"",INDEX($B$1:$K$1&"-"&TEXT($B$2:$K$2,"hh:mm"),SMALL(IF($B58:$K58="",COLUMN($B58:$K58)-COLUMN($B58)+1),COLUMNS($Q58:Q58)))) -> 4-12:05 | R58: =IF(COLUMNS($Q58:R58)>$P58,"",INDEX($B$1:$K$1&"-"&TEXT($B$2:$K$2,"hh:mm"),SMALL(IF($B58:$K58="",COLUMN($B58:$K58)-COLUMN($B58)+1),COLUMNS($Q58:R58)))) -> Lunch-13:00 | S58: =IF(COLUMNS($Q58:S58)>$P58,"",INDEX($B$1:$K$1&"-"&TEXT($B$2:$K$2,"hh:mm"),SMALL(IF($B58:$K58="",COLUMN($B58:$K58)-COLUMN($B58)+1),COLUMNS($Q58:S58)))) -> 5-14:30 | T58: =IF(COLUMNS($Q58:T58)>$P58,"",INDEX($B$1:$K$1&"-"&TEXT($B$2:$K$2,"hh:mm"),SMALL(IF($B58:$K58="",COLUMN($B58:$K58)-COLUMN($B58)+1),COLUMNS($Q58:T58)))) -> 6-15:30 | U58: =IF(COLUMNS($Q58:U58)>$P58,"",INDEX($B$1:$K$1&"-"&TEXT($B$2:$K$2,"hh:mm"),SMALL(IF($B58:$K58="",COLUMN($B58:$K58)-COLUMN($B58)+1),COLUMNS($Q58:U58)))) -> TEA-16:30 | V58: =IF(COLUMNS($Q58:V58)>$P58,"",INDEX($B$1:$K$1&"-"&TEXT($B$2:$K$2,"hh:mm"),SMALL(IF($B58:$K58="",COLUMN($B58:$K58)-COLUMN($B58)+1),COLUMNS($Q58:V58)))) ->  | W58: =IF(COLUMNS($Q58:W58)>$P58,"",INDEX($B$1:$K$1&"-"&TEXT($B$2:$K$2,"hh:mm"),SMALL(IF($B58:$K58="",COLUMN($B58:$K58)-COLUMN($B58)+1),COLUMNS($Q58:W58)))) ->  | X58: =IF(COLUMNS($Q58:X58)>$P58,"",INDEX($B$1:$K$1&"-"&TEXT($B$2:$K$2,"hh:mm"),SMALL(IF($B58:$K58="",COLUMN($B58:$K58)-COLUMN($B58)+1),COLUMNS($Q58:X58)))) -> 
A59: Student 57 | B59: MathsIGCN3 | C59: AdvESLY1 | E59: ASPsychology3 | J59: Philosophy2 | K59: SchoolMtg | L59: Student 57 | M59: 5 | O59: Student 57 | P59: 5 | Q59: =IF(COLUMNS($Q59:Q59)>$P59,"",INDEX($B$1:$K$1&"-"&TEXT($B$2:$K$2,"hh:mm"),SMALL(IF($B59:$K59="",COLUMN($B59:$K59)-COLUMN($B59)+1),COLUMNS($Q59:Q59)))) -> 3-11:05 | R59: =IF(COLUMNS($Q59:R59)>$P59,"",INDEX($B$1:$K$1&"-"&TEXT($B$2:$K$2,"hh:mm"),SMALL(IF($B59:$K59="",COLUMN($B59:$K59)-COLUMN($B59)+1),COLUMNS($Q59:R59)))) -> Lunch-13:00 | S59: =IF(COLUMNS($Q59:S59)>$P59,"",INDEX($B$1:$K$1&"-"&TEXT($B$2:$K$2,"hh:mm"),SMALL(IF($B59:$K59="",COLUMN($B59:$K59)-COLUMN($B59)+1),COLUMNS($Q59:S59)))) -> 5-14:30 | T59: =IF(COLUMNS($Q59:T59)>$P59,"",INDEX($B$1:$K$1&"-"&TEXT($B$2:$K$2,"hh:mm"),SMALL(IF($B59:$K59="",COLUMN($B59:$K59)-COLUMN($B59)+1),COLUMNS($Q59:T59)))) -> 6-15:30 | U59: =IF(COLUMNS($Q59:U59)>$P59,"",INDEX($B$1:$K$1&"-"&TEXT($B$2:$K$2,"hh:mm"),SMALL(IF($B59:$K59="",COLUMN($B59:$K59)-COLUMN($B59)+1),COLUMNS($Q59:U59)))) -> TEA-16:30 | V59: =IF(COLUMNS($Q59:V59)>$P59,"",INDEX($B$1:$K$1&"-"&TEXT($B$2:$K$2,"hh:mm"),SMALL(IF($B59:$K59="",COLUMN($B59:$K59)-COLUMN($B59)+1),COLUMNS($Q59:V59)))) ->  | W59: =IF(COLUMNS($Q59:W59)>$P59,"",INDEX($B$1:$K$1&"-"&TEXT($B$2:$K$2,"hh:mm"),SMALL(IF($B59:$K59="",COLUMN($B59:$K59)-COLUMN($B59)+1),COLUMNS($Q59:W59)))) ->  | X59: =IF(COLUMNS($Q59:X59)>$P59,"",INDEX($B$1:$K$1&"-"&TEXT($B$2:$K$2,"hh:mm"),SMALL(IF($B59:$K59="",COLUMN($B59:$K59)-COLUMN($B59)+1),COLUMNS($Q59:X59)))) -> 
A60: Student 58 | B60: A2GraphicD1 | C60: A2GraphicD2 | D60: IELTSM1 | G60: A2Psychology2 | J60: Cycling | K60: SchoolMtg | L60: Student 58 | M60: 6 | O60: Student 58 | P60: 4 | Q60: =IF(COLUMNS($Q60:Q60)>$P60,"",INDEX($B$1:$K$1&"-"&TEXT($B$2:$K$2,"hh:mm"),SMALL(IF($B60:$K60="",COLUMN($B60:$K60)-COLUMN($B60)+1),COLUMNS($Q60:Q60)))) -> 4-12:05 | R60: =IF(COLUMNS($Q60:R60)>$P60,"",INDEX($B$1:$K$1&"-"&TEXT($B$2:$K$2,"hh:mm"),SMALL(IF($B60:$K60="",COLUMN($B60:$K60)-COLUMN($B60)+1),COLUMNS($Q60:R60)))) -> Lunch-13:00 | S60: =IF(COLUMNS($Q60:S60)>$P60,"",INDEX($B$1:$K$1&"-"&TEXT($B$2:$K$2,"hh:mm"),SMALL(IF($B60:$K60="",COLUMN($B60:$K60)-COLUMN($B60)+1),COLUMNS($Q60:S60)))) -> 6-15:30 | T60: =IF(COLUMNS($Q60:T60)>$P60,"",INDEX($B$1:$K$1&"-"&TEXT($B$2:$K$2,"hh:mm"),SMALL(IF($B60:$K60="",COLUMN($B60:$K60)-COLUMN($B60)+1),COLUMNS($Q60:T60)))) -> TEA-16:30 | U60: =IF(COLUMNS($Q60:U60)>$P60,"",INDEX($B$1:$K$1&"-"&TEXT($B$2:$K$2,"hh:mm"),SMALL(IF($B60:$K60="",COLUMN($B60:$K60)-COLUMN($B60)+1),COLUMNS($Q60:U60)))) ->  | V60: =IF(COLUMNS($Q60:V60)>$P60,"",INDEX($B$1:$K$1&"-"&TEXT($B$2:$K$2,"hh:mm"),SMALL(IF($B60:$K60="",COLUMN($B60:$K60)-COLUMN($B60)+1),COLUMNS($Q60:V60)))) ->  | W60: =IF(COLUMNS($Q60:W60)>$P60,"",INDEX($B$1:$K$1&"-"&TEXT($B$2:$K$2,"hh:mm"),SMALL(IF($B60:$K60="",COLUMN($B60:$K60)-COLUMN($B60)+1),COLUMNS($Q60:W60)))) ->  | X60: =IF(COLUMNS($Q60:X60)>$P60,"",INDEX($B$1:$K$1&"-"&TEXT($B$2:$K$2,"hh:mm"),SMALL(IF($B60:$K60="",COLUMN($B60:$K60)-COLUMN($B60)+1),COLUMNS($Q60:X60)))) -> 
A61: Student 59 | D61: MathsIGCM3 | J61: ASGraphicD3 | K61: SchoolMtg | L61: Student 59 | M61: 3 | O61: Student 59 | P61: 7 | Q61: =IF(COLUMNS($Q61:Q61)>$P61,"",INDEX($B$1:$K$1&"-"&TEXT($B$2:$K$2,"hh:mm"),SMALL(IF($B61:$K61="",COLUMN($B61:$K61)-COLUMN($B61)+1),COLUMNS($Q61:Q61)))) -> 1-09:05 | R61: =IF(COLUMNS($Q61:R61)>$P61,"",INDEX($B$1:$K$1&"-"&TEXT($B$2:$K$2,"hh:mm"),SMALL(IF($B61:$K61="",COLUMN($B61:$K61)-COLUMN($B61)+1),COLUMNS($Q61:R61)))) -> 2-10:05 | S61: =IF(COLUMNS($Q61:S61)>$P61,"",INDEX($B$1:$K$1&"-"&TEXT($B$2:$K$2,"hh:mm"),SMALL(IF($B61:$K61="",COLUMN($B61:$K61)-COLUMN($B61)+1),COLUMNS($Q61:S61)))) -> 4-12:05 | T61: =IF(COLUMNS($Q61:T61)>$P61,"",INDEX($B$1:$K$1&"-"&TEXT($B$2:$K$2,"hh:mm"),SMALL(IF($B61:$K61="",COLUMN($B61:$K61)-COLUMN($B61)+1),COLUMNS($Q61:T61)))) -> Lunch-13:00 | U61: =IF(COLUMNS($Q61:U61)>$P61,"",INDEX($B$1:$K$1&"-"&TEXT($B$2:$K$2,"hh:mm"),SMALL(IF($B61:$K61="",COLUMN($B61:$K61)-COLUMN($B61)+1),COLUMNS($Q61:U61)))) -> 5-14:30 | V61: =IF(COLUMNS($Q61:V61)>$P61,"",INDEX($B$1:$K$1&"-"&TEXT($B$2:$K$2,"hh:mm"),SMALL(IF($B61:$K61="",COLUMN($B61:$K61)-COLUMN($B61)+1),COLUMNS($Q61:V61)))) -> 6-15:30 | W61: =IF(COLUMNS($Q61:W61)>$P61,"",INDEX($B$1:$K$1&"-"&TEXT($B$2:$K$2,"hh:mm"),SMALL(IF($B61:$K61="",COLUMN($B61:$K61)-COLUMN($B61)+1),COLUMNS($Q61:W61)))) -> TEA-16:30 | X61: =IF(COLUMNS($Q61:X61)>$P61,"",INDEX($B$1:$K$1&"-"&TEXT($B$2:$K$2,"hh:mm"),SMALL(IF($B61:$K61="",COLUMN($B61:$K61)-COLUMN($B61)+1),COLUMNS($Q61:X61)))) -> 
A62: Student 60 | B62: ASPMaths1c | C62: FitnessOrlando2 | D62: StatisticsS1b | J62: DramaAS5 | K62: SchoolMtg | L62: Student 60 | M62: 5 | O62: Student 60 | P62: 5 | Q62: =IF(COLUMNS($Q62:Q62)>$P62,"",INDEX($B$1:$K$1&"-"&TEXT($B$2:$K$2,"hh:mm"),SMALL(IF($B62:$K62="",COLUMN($B62:$K62)-COLUMN($B62)+1),COLUMNS($Q62:Q62)))) -> 4-12:05 | R62: =IF(COLUMNS($Q62:R62)>$P62,"",INDEX($B$1:$K$1&"-"&TEXT($B$2:$K$2,"hh:mm"),SMALL(IF($B62:$K62="",COLUMN($B62:$K62)-COLUMN($B62)+1),COLUMNS($Q62:R62)))) -> Lunch-13:00 | S62: =IF(COLUMNS($Q62:S62)>$P62,"",INDEX($B$1:$K$1&"-"&TEXT($B$2:$K$2,"hh:mm"),SMALL(IF($B62:$K62="",COLUMN($B62:$K62)-COLUMN($B62)+1),COLUMNS($Q62:S62)))) -> 5-14:30 | T62: =IF(COLUMNS($Q62:T62)>$P62,"",INDEX($B$1:$K$1&"-"&TEXT($B$2:$K$2,"hh:mm"),SMALL(IF($B62:$K62="",COLUMN($B62:$K62)-COLUMN($B62)+1),COLUMNS($Q62:T62)))) -> 6-15:30 | U62: =IF(COLUMNS($Q62:U62)>$P62,"",INDEX($B$1:$K$1&"-"&TEXT($B$2:$K$2,"hh:mm"),SMALL(IF($B62:$K62="",COLUMN($B62:$K62)-COLUMN($B62)+1),COLUMNS($Q62:U62)))) -> TEA-16:30 | V62: =IF(COLUMNS($Q62:V62)>$P62,"",INDEX($B$1:$K$1&"-"&TEXT($B$2:$K$2,"hh:mm"),SMALL(IF($B62:$K62="",COLUMN($B62:$K62)-COLUMN($B62)+1),COLUMNS($Q62:V62)))) ->  | W62: =IF(COLUMNS($Q62:W62)>$P62,"",INDEX($B$1:$K$1&"-"&TEXT($B$2:$K$2,"hh:mm"),SMALL(IF($B62:$K62="",COLUMN($B62:$K62)-COLUMN($B62)+1),COLUMNS($Q62:W62)))) ->  | X62: =IF(COLUMNS($Q62:X62)>$P62,"",INDEX($B$1:$K$1&"-"&TEXT($B$2:$K$2,"hh:mm"),SMALL(IF($B62:$K62="",COLUMN($B62:$K62)-COLUMN($B62)+1),COLUMNS($Q62:X62)))) -> 
A63: Student 61 | C63: YogaC2 | D63: IELTSM1 | J63: CinemaStuJ2 | K63: SchoolMtg | L63: Student 61 | M63: 4 | O63: Student 61 | P63: 6 | Q63: =IF(COLUMNS($Q63:Q63)>$P63,"",INDEX($B$1:$K$1&"-"&TEXT($B$2:$K$2,"hh:mm"),SMALL(IF($B63:$K63="",COLUMN($B63:$K63)-COLUMN($B63)+1),COLUMNS($Q63:Q63)))) -> 1-09:05 | R63: =IF(COLUMNS($Q63:R63)>$P63,"",INDEX($B$1:$K$1&"-"&TEXT($B$2:$K$2,"hh:mm"),SMALL(IF($B63:$K63="",COLUMN($B63:$K63)-COLUMN($B63)+1),COLUMNS($Q63:R63)))) -> 4-12:05 | S63: =IF(COLUMNS($Q63:S63)>$P63,"",INDEX($B$1:$K$1&"-"&TEXT($B$2:$K$2,"hh:mm"),SMALL(IF($B63:$K63="",COLUMN($B63:$K63)-COLUMN($B63)+1),COLUMNS($Q63:S63)))) -> Lunch-13:00 | T63: =IF(COLUMNS($Q63:T63)>$P63,"",INDEX($B$1:$K$1&"-"&TEXT($B$2:$K$2,"hh:mm"),SMALL(IF($B63:$K63="",COLUMN($B63:$K63)-COLUMN($B63)+1),COLUMNS($Q63:T63)))) -> 5-14:30 | U63: =IF(COLUMNS($Q63:U63)>$P63,"",INDEX($B$1:$K$1&"-"&TEXT($B$2:$K$2,"hh:mm"),SMALL(IF($B63:$K63="",COLUMN($B63:$K63)-COLUMN($B63)+1),COLUMNS($Q63:U63)))) -> 6-15:30 | V63: =IF(COLUMNS($Q63:V63)>$P63,"",INDEX($B$1:$K$1&"-"&TEXT($B$2:$K$2,"hh:mm"),SMALL(IF($B63:$K63="",COLUMN($B63:$K63)-COLUMN($B63)+1),COLUMNS($Q63:V63)))) -> TEA-16:30 | W63: =IF(COLUMNS($Q63:W63)>$P63,"",INDEX($B$1:$K$1&"-"&TEXT($B$2:$K$2,"hh:mm"),SMALL(IF($B63:$K63="",COLUMN($B63:$K63)-COLUMN($B63)+1),COLUMNS($Q63:W63)))) ->  | X63: =IF(COLUMNS($Q63:X63)>$P63,"",INDEX($B$1:$K$1&"-"&TEXT($B$2:$K$2,"hh:mm"),SMALL(IF($B63:$K63="",COLUMN($B63:$K63)-COLUMN($B63)+1),COLUMNS($Q63:X63)))) -> 
A64: Student 62 | B64: EnglishPAS4 | C64: PhysicsPAS3 | D64: StatisticsS1b | J64: ASGraphicD3 | K64: SchoolMtg | L64: Student 62 | M64: 5 | O64: Student 62 | P64: 5 | Q64: =IF(COLUMNS($Q64:Q64)>$P64,"",INDEX($B$1:$K$1&"-"&TEXT($B$2:$K$2,"hh:mm"),SMALL(IF($B64:$K64="",COLUMN($B64:$K64)-COLUMN($B64)+1),COLUMNS($Q64:Q64)))) -> 4-12:05 | R64: =IF(COLUMNS($Q64:R64)>$P64,"",INDEX($B$1:$K$1&"-"&TEXT($B$2:$K$2,"hh:mm"),SMALL(IF($B64:$K64="",COLUMN($B64:$K64)-COLUMN($B64)+1),COLUMNS($Q64:R64)))) -> Lunch-13:00 | S64: =IF(COLUMNS($Q64:S64)>$P64,"",INDEX($B$1:$K$1&"-"&TEXT($B$2:$K$2,"hh:mm"),SMALL(IF($B64:$K64="",COLUMN($B64:$K64)-COLUMN($B64)+1),COLUMNS($Q64:S64)))) -> 5-14:30 | T64: =IF(COLUMNS($Q64:T64)>$P64,"",INDEX($B$1:$K$1&"-"&TEXT($B$2:$K$2,"hh:mm"),SMALL(IF($B64:$K64="",COLUMN($B64:$K64)-COLUMN($B64)+1),COLUMNS($Q64:T64)))) -> 6-15:30 | U64: =IF(COLUMNS($Q64:U64)>$P64,"",INDEX($B$1:$K$1&"-"&TEXT($B$2:$K$2,"hh:mm"),SMALL(IF($B64:$K64="",COLUMN($B64:$K64)-COLUMN($B64)+1),COLUMNS($Q64:U64)))) -> TEA-16:30 | V64: =IF(COLUMNS($Q64:V64)>$P64,"",INDEX($B$1:$K$1&"-"&TEXT($B$2:$K$2,"hh:mm"),SMALL(IF($B64:$K64="",COLUMN($B64:$K64)-COLUMN($B64)+1),COLUMNS($Q64:V64)))) ->  | W64: =IF(COLUMNS($Q64:W64)>$P64,"",INDEX($B$1:$K$1&"-"&TEXT($B$2:$K$2,"hh:mm"),SMALL(IF($B64:$K64="",COLUMN($B64:$K64)-COLUMN($B64)+1),COLUMNS($Q64:W64)))) ->  | X64: =IF(COLUMNS($Q64:X64)>$P64,"",INDEX($B$1:$K$1&"-"&TEXT($B$2:$K$2,"hh:mm"),SMALL(IF($B64:$K64="",COLUMN($B64:$K64)-COLUMN($B64)+1),COLUMNS($Q64:X64)))) -> 
A65: Student 63 | B65: YogaB1 | C65: StatisticsS23 | D65: ASPhysics4 | F65: 13.45A2Maths4 | K65: SchoolMtg | L65: Student 63 | M65: 5 | O65: Student 63 | P65: 5 | Q65: =IF(COLUMNS($Q65:Q65)>$P65,"",INDEX($B$1:$K$1&"-"&TEXT($B$2:$K$2,"hh:mm"),SMALL(IF($B65:$K65="",COLUMN($B65:$K65)-COLUMN($B65)+1),COLUMNS($Q65:Q65)))) -> 4-12:05 | R65: =IF(COLUMNS($Q65:R65)>$P65,"",INDEX($B$1:$K$1&"-"&TEXT($B$2:$K$2,"hh:mm"),SMALL(IF($B65:$K65="",COLUMN($B65:$K65)-COLUMN($B65)+1),COLUMNS($Q65:R65)))) -> 5-14:30 | S65: =IF(COLUMNS($Q65:S65)>$P65,"",INDEX($B$1:$K$1&"-"&TEXT($B$2:$K$2,"hh:mm"),SMALL(IF($B65:$K65="",COLUMN($B65:$K65)-COLUMN($B65)+1),COLUMNS($Q65:S65)))) -> 6-15:30 | T65: =IF(COLUMNS($Q65:T65)>$P65,"",INDEX($B$1:$K$1&"-"&TEXT($B$2:$K$2,"hh:mm"),SMALL(IF($B65:$K65="",COLUMN($B65:$K65)-COLUMN($B65)+1),COLUMNS($Q65:T65)))) -> TEA-16:30 | U65: =IF(COLUMNS($Q65:U65)>$P65,"",INDEX($B$1:$K$1&"-"&TEXT($B$2:$K$2,"hh:mm"),SMALL(IF($B65:$K65="",COLUMN($B65:$K65)-COLUMN($B65)+1),COLUMNS($Q65:U65)))) -> 7-17:00 | V65: =IF(COLUMNS($Q65:V65)>$P65,"",INDEX($B$1:$K$1&"-"&TEXT($B$2:$K$2,"hh:mm"),SMALL(IF($B65:$K65="",COLUMN($B65:$K65)-COLUMN($B65)+1),COLUMNS($Q65:V65)))) ->  | W65: =IF(COLUMNS($Q65:W65)>$P65,"",INDEX($B$1:$K$1&"-"&TEXT($B$2:$K$2,"hh:mm"),SMALL(IF($B65:$K65="",COLUMN($B65:$K65)-COLUMN($B65)+1),COLUMNS($Q65:W65)))) ->  | X65: =IF(COLUMNS($Q65:X65)>$P65,"",INDEX($B$1:$K$1&"-"&TEXT($B$2:$K$2,"hh:mm"),SMALL(IF($B65:$K65="",COLUMN($B65:$K65)-COLUMN($B65)+1),COLUMNS($Q65:X65)))) -> 
A66: Student 64 | C66: AdvESLY1 | D66: CareforEarthM3 | E66: CareforEarthM3 | J66: Philosophy2 | K66: SchoolMtg | L66: Student 64 | M66: 5 | O66: Student 64 | P66: 5 | Q66: =IF(COLUMNS($Q66:Q66)>$P66,"",INDEX($B$1:$K$1&"-"&TEXT($B$2:$K$2,"hh:mm"),SMALL(IF($B66:$K66="",COLUMN($B66:$K66)-COLUMN($B66)+1),COLUMNS($Q66:Q66)))) -> 1-09:05 | R66: =IF(COLUMNS($Q66:R66)>$P66,"",INDEX($B$1:$K$1&"-"&TEXT($B$2:$K$2,"hh:mm"),SMALL(IF($B66:$K66="",COLUMN($B66:$K66)-COLUMN($B66)+1),COLUMNS($Q66:R66)))) -> Lunch-13:00 | S66: =IF(COLUMNS($Q66:S66)>$P66,"",INDEX($B$1:$K$1&"-"&TEXT($B$2:$K$2,"hh:mm"),SMALL(IF($B66:$K66="",COLUMN($B66:$K66)-COLUMN($B66)+1),COLUMNS($Q66:S66)))) -> 5-14:30 | T66: =IF(COLUMNS($Q66:T66)>$P66,"",INDEX($B$1:$K$1&"-"&TEXT($B$2:$K$2,"hh:mm"),SMALL(IF($B66:$K66="",COLUMN($B66:$K66)-COLUMN($B66)+1),COLUMNS($Q66:T66)))) -> 6-15:30 | U66: =IF(COLUMNS($Q66:U66)>$P66,"",INDEX($B$1:$K$1&"-"&TEXT($B$2:$K$2,"hh:mm"),SMALL(IF($B66:$K66="",COLUMN($B66:$K66)-COLUMN($B66)+1),COLUMNS($Q66:U66)))) -> TEA-16:30 | V66: =IF(COLUMNS($Q66:V66)>$P66,"",INDEX($B$1:$K$1&"-"&TEXT($B$2:$K$2,"hh:mm"),SMALL(IF($B66:$K66="",COLUMN($B66:$K66)-COLUMN($B66)+1),COLUMNS($Q66:V66)))) ->  | W66: =IF(COLUMNS($Q66:W66)>$P66,"",INDEX($B$1:$K$1&"-"&TEXT($B$2:$K$2,"hh:mm"),SMALL(IF($B66:$K66="",COLUMN($B66:$K66)-COLUMN($B66)+1),COLUMNS($Q66:W66)))) ->  | X66: =IF(COLUMNS($Q66:X66)>$P66,"",INDEX($B$1:$K$1&"-"&TEXT($B$2:$K$2,"hh:mm"),SMALL(IF($B66:$K66="",COLUMN($B66:$K66)-COLUMN($B66)+1),COLUMNS($Q66:X66)))) -> 
A67: Student 65 | B67: ASPMaths1c | C67: ASPhotoM | D67: StatisticsS1b | K67: SchoolMtg | L67: Student 65 | M67: 4 | O67: Student 65 | P67: 6 | Q67: =IF(COLUMNS($Q67:Q67)>$P67,"",INDEX($B$1:$K$1&"-"&TEXT($B$2:$K$2,"hh:mm"),SMALL(IF($B67:$K67="",COLUMN($B67:$K67)-COLUMN($B67)+1),COLUMNS($Q67:Q67)))) -> 4-12:05 | R67: =IF(COLUMNS($Q67:R67)>$P67,"",INDEX($B$1:$K$1&"-"&TEXT($B$2:$K$2,"hh:mm"),SMALL(IF($B67:$K67="",COLUMN($B67:$K67)-COLUMN($B67)+1),COLUMNS($Q67:R67)))) -> Lunch-13:00 | S67: =IF(COLUMNS($Q67:S67)>$P67,"",INDEX($B$1:$K$1&"-"&TEXT($B$2:$K$2,"hh:mm"),SMALL(IF($B67:$K67="",COLUMN($B67:$K67)-COLUMN($B67)+1),COLUMNS($Q67:S67)))) -> 5-14:30 | T67: =IF(COLUMNS($Q67:T67)>$P67,"",INDEX($B$1:$K$1&"-"&TEXT($B$2:$K$2,"hh:mm"),SMALL(IF($B67:$K67="",COLUMN($B67:$K67)-COLUMN($B67)+1),COLUMNS($Q67:T67)))) -> 6-15:30 | U67: =IF(COLUMNS($Q67:U67)>$P67,"",INDEX($B$1:$K$1&"-"&TEXT($B$2:$K$2,"hh:mm"),SMALL(IF($B67:$K67="",COLUMN($B67:$K67)-COLUMN($B67)+1),COLUMNS($Q67:U67)))) -> TEA-16:30 | V67: =IF(COLUMNS($Q67:V67)>$P67,"",INDEX($B$1:$K$1&"-"&TEXT($B$2:$K$2,"hh:mm"),SMALL(IF($B67:$K67="",COLUMN($B67:$K67)-COLUMN($B67)+1),COLUMNS($Q67:V67)))) -> 7-17:00 | W67: =IF(COLUMNS($Q67:W67)>$P67,"",INDEX($B$1:$K$1&"-"&TEXT($B$2:$K$2,"hh:mm"),SMALL(IF($B67:$K67="",COLUMN($B67:$K67)-COLUMN($B67)+1),COLUMNS($Q67:W67)))) ->  | X67: =IF(COLUMNS($Q67:X67)>$P67,"",INDEX($B$1:$K$1&"-"&TEXT($B$2:$K$2,"hh:mm"),SMALL(IF($B67:$K67="",COLUMN($B67:$K67)-COLUMN($B67)+1),COLUMNS($Q67:X67)))) -> 
A68: Student 66 | B68: YogaB1 | C68: SMechanics3 | D68: ASPhysics4 | K68: SchoolMtg | L68: Student 66 | M68: 4 | O68: Student 66 | P68: =COUNTIF(B68:K68,"") -> 6 | Q68: =IF(COLUMNS($Q68:Q68)>$P68,"",INDEX($B$1:$K$1&"-"&TEXT($B$2:$K$2,"hh:mm"),SMALL(IF($B68:$K68="",COLUMN($B68:$K68)-COLUMN($B68)+1),COLUMNS($Q68:Q68)))) -> 4-12:05 | R68: =IF(COLUMNS($Q68:R68)>$P68,"",INDEX($B$1:$K$1&"-"&TEXT($B$2:$K$2,"hh:mm"),SMALL(IF($B68:$K68="",COLUMN($B68:$K68)-COLUMN($B68)+1),COLUMNS($Q68:R68)))) -> Lunch-13:00 | S68: =IF(COLUMNS($Q68:S68)>$P68,"",INDEX($B$1:$K$1&"-"&TEXT($B$2:$K$2,"hh:mm"),SMALL(IF($B68:$K68="",COLUMN($B68:$K68)-COLUMN($B68)+1),COLUMNS($Q68:S68)))) -> 5-14:30 | T68: =IF(COLUMNS($Q68:T68)>$P68,"",INDEX($B$1:$K$1&"-"&TEXT($B$2:$K$2,"hh:mm"),SMALL(IF($B68:$K68="",COLUMN($B68:$K68)-COLUMN($B68)+1),COLUMNS($Q68:T68)))) -> 6-15:30 | U68: =IF(COLUMNS($Q68:U68)>$P68,"",INDEX($B$1:$K$1&"-"&TEXT($B$2:$K$2,"hh:mm"),SMALL(IF($B68:$K68="",COLUMN($B68:$K68)-COLUMN($B68)+1),COLUMNS($Q68:U68)))) -> TEA-16:30 | V68: =IF(COLUMNS($Q68:V68)>$P68,"",INDEX($B$1:$K$1&"-"&TEXT($B$2:$K$2,"hh:mm"),SMALL(IF($B68:$K68="",COLUMN($B68:$K68)-COLUMN($B68)+1),COLUMNS($Q68:V68)))) -> 7-17:00 | W68: =IF(COLUMNS($Q68:W68)>$P68,"",INDEX($B$1:$K$1&"-"&TEXT($B$2:$K$2,"hh:mm"),SMALL(IF($B68:$K68="",COLUMN($B68:$K68)-COLUMN($B68)+1),COLUMNS($Q68:W68)))) ->  | X68: =IF(COLUMNS($Q68:X68)>$P68,"",INDEX($B$1:$K$1&"-"&TEXT($B$2:$K$2,"hh:mm"),SMALL(IF($B68:$K68="",COLUMN($B68:$K68)-COLUMN($B68)+1),COLUMNS($Q68:X68)))) -> 
A69: Student 67 | B69: ESLIGC3 | C69: StatisticsS23 | F69: 13.45A2Maths4 | G69: A2Psychology2 | K69: SchoolMtg | L69: Student 67 | M69: 5 | O69: Student 67 | P69: 5 | Q69: =IF(COLUMNS($Q69:Q69)>$P69,"",INDEX($B$1:$K$1&"-"&TEXT($B$2:$K$2,"hh:mm"),SMALL(IF($B69:$K69="",COLUMN($B69:$K69)-COLUMN($B69)+1),COLUMNS($Q69:Q69)))) -> 3-11:05 | R69: =IF(COLUMNS($Q69:R69)>$P69,"",INDEX($B$1:$K$1&"-"&TEXT($B$2:$K$2,"hh:mm"),SMALL(IF($B69:$K69="",COLUMN($B69:$K69)-COLUMN($B69)+1),COLUMNS($Q69:R69)))) -> 4-12:05 | S69: =IF(COLUMNS($Q69:S69)>$P69,"",INDEX($B$1:$K$1&"-"&TEXT($B$2:$K$2,"hh:mm"),SMALL(IF($B69:$K69="",COLUMN($B69:$K69)-COLUMN($B69)+1),COLUMNS($Q69:S69)))) -> 6-15:30 | T69: =IF(COLUMNS($Q69:T69)>$P69,"",INDEX($B$1:$K$1&"-"&TEXT($B$2:$K$2,"hh:mm"),SMALL(IF($B69:$K69="",COLUMN($B69:$K69)-COLUMN($B69)+1),COLUMNS($Q69:T69)))) -> TEA-16:30 | U69: =IF(COLUMNS($Q69:U69)>$P69,"",INDEX($B$1:$K$1&"-"&TEXT($B$2:$K$2,"hh:mm"),SMALL(IF($B69:$K69="",COLUMN($B69:$K69)-COLUMN($B69)+1),COLUMNS($Q69:U69)))) -> 7-17:00 | V69: =IF(COLUMNS($Q69:V69)>$P69,"",INDEX($B$1:$K$1&"-"&TEXT($B$2:$K$2,"hh:mm"),SMALL(IF($B69:$K69="",COLUMN($B69:$K69)-COLUMN($B69)+1),COLUMNS($Q69:V69)))) ->  | W69: =IF(COLUMNS($Q69:W69)>$P69,"",INDEX($B$1:$K$1&"-"&TEXT($B$2:$K$2,"hh:mm"),SMALL(IF($B69:$K69="",COLUMN($B69:$K69)-COLUMN($B69)+1),COLUMNS($Q69:W69)))) ->  | X69: =IF(COLUMNS($Q69:X69)>$P69,"",INDEX($B$1:$K$1&"-"&TEXT($B$2:$K$2,"hh:mm"),SMALL(IF($B69:$K69="",COLUMN($B69:$K69)-COLUMN($B69)+1),COLUMNS($Q69:X69)))) -> 
A70: Student 68 | B70: A2GraphicD1 | C70: A2GraphicD2 | D70: CCriminology3 | K70: SchoolMtg | L70: Student 68 | M70: =COUNTA(B70:K70) -> 4 | O70: Student 68 | P70: 6 | Q70: =IF(COLUMNS($Q70:Q70)>$P70,"",INDEX($B$1:$K$1&"-"&TEXT($B$2:$K$2,"hh:mm"),SMALL(IF($B70:$K70="",COLUMN($B70:$K70)-COLUMN($B70)+1),COLUMNS($Q70:Q70)))) -> 4-12:05 | R70: =IF(COLUMNS($Q70:R70)>$P70,"",INDEX($B$1:$K$1&"-"&TEXT($B$2:$K$2,"hh:mm"),SMALL(IF($B70:$K70="",COLUMN($B70:$K70)-COLUMN($B70)+1),COLUMNS($Q70:R70)))) -> Lunch-13:00 | S70: =IF(COLUMNS($Q70:S70)>$P70,"",INDEX($B$1:$K$1&"-"&TEXT($B$2:$K$2,"hh:mm"),SMALL(IF($B70:$K70="",COLUMN($B70:$K70)-COLUMN($B70)+1),COLUMNS($Q70:S70)))) -> 5-14:30 | T70: =IF(COLUMNS($Q70:T70)>$P70,"",INDEX($B$1:$K$1&"-"&TEXT($B$2:$K$2,"hh:mm"),SMALL(IF($B70:$K70="",COLUMN($B70:$K70)-COLUMN($B70)+1),COLUMNS($Q70:T70)))) -> 6-15:30 | U70: =IF(COLUMNS($Q70:U70)>$P70,"",INDEX($B$1:$K$1&"-"&TEXT($B$2:$K$2,"hh:mm"),SMALL(IF($B70:$K70="",COLUMN($B70:$K70)-COLUMN($B70)+1),COLUMNS($Q70:U70)))) -> TEA-16:30 | V70: =IF(COLUMNS($Q70:V70)>$P70,"",INDEX($B$1:$K$1&"-"&TEXT($B$2:$K$2,"hh:mm"),SMALL(IF($B70:$K70="",COLUMN($B70:$K70)-COLUMN($B70)+1),COLUMNS($Q70:V70)))) -> 7-17:00 | W70: =IF(COLUMNS($Q70:W70)>$P70,"",INDEX($B$1:$K$1&"-"&TEXT($B$2:$K$2,"hh:mm"),SMALL(IF($B70:$K70="",COLUMN($B70:$K70)-COLUMN($B70)+1),COLUMNS($Q70:W70)))) ->  | X70: =IF(COLUMNS($Q70:X70)>$P70,"",INDEX($B$1:$K$1&"-"&TEXT($B$2:$K$2,"hh:mm"),SMALL(IF($B70:$K70="",COLUMN($B70:$K70)-COLUMN($B70)+1),COLUMNS($Q70:X70)))) -> 
B73: 1 | C73: 2 | D73: 3 | E73: 4 | F73: Lunch | G73: 5 | H73: 6 | I73: TEA | J73: 7 | K73: 8
B74: 09:05:00 | C74: 10:05:00 | D74: 11:05:00 | E74: 12:05:00 | F74: 13:00:00 | G74: 14:30:00 | H74: 15:30:00 | I74: 16:30:00 | J74: 17:00:00 | K74: 18:15:00
A75: # Free Periods | B75: =COUNTIF(B3:B70,"") -> 16 | C75: =COUNTIF(C3:C70,"") -> 15 | D75: 16 | E75: 35 | F75: 59 | G75: 59 | H75: 65 | I75: 68 | J75: 31 | K75: 0
A76: ="#"&ROWS(A$76:A76) -> #1 | B76: =IF(ROWS(B$76:B76)>B$75,"",INDEX($A$3:$A$70,SMALL(IF(B$3:B$70="",ROW(B$3:B$70)-ROW(B$3)+1),ROWS(B$76:B76)))) -> Student 1 | C76: =IF(ROWS(C$76:C76)>C$75,"",INDEX($A$3:$A$70,SMALL(IF(C$3:C$70="",ROW(C$3:C$70)-ROW(C$3)+1),ROWS(C$76:C76)))) -> Student 10 | D76: =IF(ROWS(D$76:D76)>D$75,"",INDEX($A$3:$A$70,SMALL(IF(D$3:D$70="",ROW(D$3:D$70)-ROW(D$3)+1),ROWS(D$76:D76)))) -> Student 4 | E76: =IF(ROWS(E$76:E76)>E$75,"",INDEX($A$3:$A$70,SMALL(IF(E$3:E$70="",ROW(E$3:E$70)-ROW(E$3)+1),ROWS(E$76:E76)))) -> Student 2 | F76: =IF(ROWS(F$76:F76)>F$75,"",INDEX($A$3:$A$70,SMALL(IF(F$3:F$70="",ROW(F$3:F$70)-ROW(F$3)+1),ROWS(F$76:F76)))) -> Student 1 | G76: =IF(ROWS(G$76:G76)>G$75,"",INDEX($A$3:$A$70,SMALL(IF(G$3:G$70="",ROW(G$3:G$70)-ROW(G$3)+1),ROWS(G$76:G76)))) -> Student 1 | H76: =IF(ROWS(H$76:H76)>H$75,"",INDEX($A$3:$A$70,SMALL(IF(H$3:H$70="",ROW(H$3:H$70)-ROW(H$3)+1),ROWS(H$76:H76)))) -> Student 1 | I76: =IF(ROWS(I$76:I76)>I$75,"",INDEX($A$3:$A$70,SMALL(IF(I$3:I$70="",ROW(I$3:I$70)-ROW(I$3)+1),ROWS(I$76:I76)))) -> Student 1 | J76: =IF(ROWS(J$76:J76)>J$75,"",INDEX($A$3:$A$70,SMALL(IF(J$3:J$70="",ROW(J$3:J$70)-ROW(J$3)+1),ROWS(J$76:J76)))) -> Student 3 | K76: =IF(ROWS(K$76:K76)>K$75,"",INDEX($A$3:$A$70,SMALL(IF(K$3:K$70="",ROW(K$3:K$70)-ROW(K$3)+1),ROWS(K$76:K76)))) -> 
A77: ="#"&ROWS(A$76:A77) -> #2 | B77: =IF(ROWS(B$76:B77)>B$75,"",INDEX($A$3:$A$70,SMALL(IF(B$3:B$70="",ROW(B$3:B$70)-ROW(B$3)+1),ROWS(B$76:B77)))) -> Student 5 | C77: =IF(ROWS(C$76:C77)>C$75,"",INDEX($A$3:$A$70,SMALL(IF(C$3:C$70="",ROW(C$3:C$70)-ROW(C$3)+1),ROWS(C$76:C77)))) -> Student 14 | D77: =IF(ROWS(D$76:D77)>D$75,"",INDEX($A$3:$A$70,SMALL(IF(D$3:D$70="",ROW(D$3:D$70)-ROW(D$3)+1),ROWS(D$76:D77)))) -> Student 9 | E77: =IF(ROWS(E$76:E77)>E$75,"",INDEX($A$3:$A$70,SMALL(IF(E$3:E$70="",ROW(E$3:E$70)-ROW(E$3)+1),ROWS(E$76:E77)))) -> Student 3 | F77: =IF(ROWS(F$76:F77)>F$75,"",INDEX($A$3:$A$70,SMALL(IF(F$3:F$70="",ROW(F$3:F$70)-ROW(F$3)+1),ROWS(F$76:F77)))) -> Student 3 | G77: =IF(ROWS(G$76:G77)>G$75,"",INDEX($A$3:$A$70,SMALL(IF(G$3:G$70="",ROW(G$3:G$70)-ROW(G$3)+1),ROWS(G$76:G77)))) -> Student 2 | H77: =IF(ROWS(H$76:H77)>H$75,"",INDEX($A$3:$A$70,SMALL(IF(H$3:H$70="",ROW(H$3:H$70)-ROW(H$3)+1),ROWS(H$76:H77)))) -> Student 2 | I77: =IF(ROWS(I$76:I77)>I$75,"",INDEX($A$3:$A$70,SMALL(IF(I$3:I$70="",ROW(I$3:I$70)-ROW(I$3)+1),ROWS(I$76:I77)))) -> Student 2 | J77: =IF(ROWS(J$76:J77)>J$75,"",INDEX($A$3:$A$70,SMALL(IF(J$3:J$70="",ROW(J$3:J$70)-ROW(J$3)+1),ROWS(J$76:J77)))) -> Student 6 | K77: =IF(ROWS(K$76:K77)>K$75,"",INDEX($A$3:$A$70,SMALL(IF(K$3:K$70="",ROW(K$3:K$70)-ROW(K$3)+1),ROWS(K$76:K77)))) -> 
A78: ="#"&ROWS(A$76:A78) -> #3 | B78: =IF(ROWS(B$76:B78)>B$75,"",INDEX($A$3:$A$70,SMALL(IF(B$3:B$70="",ROW(B$3:B$70)-ROW(B$3)+1),ROWS(B$76:B78)))) -> Student 7 | C78: =IF(ROWS(C$76:C78)>C$75,"",INDEX($A$3:$A$70,SMALL(IF(C$3:C$70="",ROW(C$3:C$70)-ROW(C$3)+1),ROWS(C$76:C78)))) -> Student 32 | D78: =IF(ROWS(D$76:D78)>D$75,"",INDEX($A$3:$A$70,SMALL(IF(D$3:D$70="",ROW(D$3:D$70)-ROW(D$3)+1),ROWS(D$76:D78)))) -> Student 10 | E78: =IF(ROWS(E$76:E78)>E$75,"",INDEX($A$3:$A$70,SMALL(IF(E$3:E$70="",ROW(E$3:E$70)-ROW(E$3)+1),ROWS(E$76:E78)))) -> Student 6 | F78: =IF(ROWS(F$76:F78)>F$75,"",INDEX($A$3:$A$70,SMALL(IF(F$3:F$70="",ROW(F$3:F$70)-ROW(F$3)+1),ROWS(F$76:F78)))) -> Student 4 | G78: =IF(ROWS(G$76:G78)>G$75,"",INDEX($A$3:$A$70,SMALL(IF(G$3:G$70="",ROW(G$3:G$70)-ROW(G$3)+1),ROWS(G$76:G78)))) -> Student 3 | H78: =IF(ROWS(H$76:H78)>H$75,"",INDEX($A$3:$A$70,SMALL(IF(H$3:H$70="",ROW(H$3:H$70)-ROW(H$3)+1),ROWS(H$76:H78)))) -> Student 3 | I78: =IF(ROWS(I$76:I78)>I$75,"",INDEX($A$3:$A$70,SMALL(IF(I$3:I$70="",ROW(I$3:I$70)-ROW(I$3)+1),ROWS(I$76:I78)))) -> Student 3 | J78: =IF(ROWS(J$76:J78)>J$75,"",INDEX($A$3:$A$70,SMALL(IF(J$3:J$70="",ROW(J$3:J$70)-ROW(J$3)+1),ROWS(J$76:J78)))) -> Student 12 | K78: =IF(ROWS(K$76:K78)>K$75,"",INDEX($A$3:$A$70,SMALL(IF(K$3:K$70="",ROW(K$3:K$70)-ROW(K$3)+1),ROWS(K$76:K78)))) -> 
A79: ="#"&ROWS(A$76:A79) -> #4 | B79: =IF(ROWS(B$76:B79)>B$75,"",INDEX($A$3:$A$70,SMALL(IF(B$3:B$70="",ROW(B$3:B$70)-ROW(B$3)+1),ROWS(B$76:B79)))) -> Student 9 | C79: =IF(ROWS(C$76:C79)>C$75,"",INDEX($A$3:$A$70,SMALL(IF(C$3:C$70="",ROW(C$3:C$70)-ROW(C$3)+1),ROWS(C$76:C79)))) -> Student 33 | D79: =IF(ROWS(D$76:D79)>D$75,"",INDEX($A$3:$A$70,SMALL(IF(D$3:D$70="",ROW(D$3:D$70)-ROW(D$3)+1),ROWS(D$76:D79)))) -> Student 13 | E79: =IF(ROWS(E$76:E79)>E$75,"",INDEX($A$3:$A$70,SMALL(IF(E$3:E$70="",ROW(E$3:E$70)-ROW(E$3)+1),ROWS(E$76:E79)))) -> Student 8 | F79: =IF(ROWS(F$76:F79)>F$75,"",INDEX($A$3:$A$70,SMALL(IF(F$3:F$70="",ROW(F$3:F$70)-ROW(F$3)+1),ROWS(F$76:F79)))) -> Student 5 | G79: =IF(ROWS(G$76:G79)>G$75,"",INDEX($A$3:$A$70,SMALL(IF(G$3:G$70="",ROW(G$3:G$70)-ROW(G$3)+1),ROWS(G$76:G79)))) -> Student 4 | H79: =IF(ROWS(H$76:H79)>H$75,"",INDEX($A$3:$A$70,SMALL(IF(H$3:H$70="",ROW(H$3:H$70)-ROW(H$3)+1),ROWS(H$76:H79)))) -> Student 4 | I79: =IF(ROWS(I$76:I79)>I$75,"",INDEX($A$3:$A$70,SMALL(IF(I$3:I$70="",ROW(I$3:I$70)-ROW(I$3)+1),ROWS(I$76:I79)))) -> Student 4 | J79: =IF(ROWS(J$76:J79)>J$75,"",INDEX($A$3:$A$70,SMALL(IF(J$3:J$70="",ROW(J$3:J$70)-ROW(J$3)+1),ROWS(J$76:J79)))) -> Student 15 | K79: =IF(ROWS(K$76:K79)>K$75,"",INDEX($A$3:$A$70,SMALL(IF(K$3:K$70="",ROW(K$3:K$70)-ROW(K$3)+1),ROWS(K$76:K79)))) -> 
A80: ="#"&ROWS(A$76:A80) -> #5 | B80: =IF(ROWS(B$76:B80)>B$75,"",INDEX($A$3:$A$70,SMALL(IF(B$3:B$70="",ROW(B$3:B$70)-ROW(B$3)+1),ROWS(B$76:B80)))) -> Student 10 | C80: =IF(ROWS(C$76:C80)>C$75,"",INDEX($A$3:$A$70,SMALL(IF(C$3:C$70="",ROW(C$3:C$70)-ROW(C$3)+1),ROWS(C$76:C80)))) -> Student 34 | D80: =IF(ROWS(D$76:D80)>D$75,"",INDEX($A$3:$A$70,SMALL(IF(D$3:D$70="",ROW(D$3:D$70)-ROW(D$3)+1),ROWS(D$76:D80)))) -> Student 18 | E80: =IF(ROWS(E$76:E80)>E$75,"",INDEX($A$3:$A$70,SMALL(IF(E$3:E$70="",ROW(E$3:E$70)-ROW(E$3)+1),ROWS(E$76:E80)))) -> Student 10 | F80: =IF(ROWS(F$76:F80)>F$75,"",INDEX($A$3:$A$70,SMALL(IF(F$3:F$70="",ROW(F$3:F$70)-ROW(F$3)+1),ROWS(F$76:F80)))) -> Student 7 | G80: =IF(ROWS(G$76:G80)>G$75,"",INDEX($A$3:$A$70,SMALL(IF(G$3:G$70="",ROW(G$3:G$70)-ROW(G$3)+1),ROWS(G$76:G80)))) -> Student 5 | H80: =IF(ROWS(H$76:H80)>H$75,"",INDEX($A$3:$A$70,SMALL(IF(H$3:H$70="",ROW(H$3:H$70)-ROW(H$3)+1),ROWS(H$76:H80)))) -> Student 5 | I80: =IF(ROWS(I$76:I80)>I$75,"",INDEX($A$3:$A$70,SMALL(IF(I$3:I$70="",ROW(I$3:I$70)-ROW(I$3)+1),ROWS(I$76:I80)))) -> Student 5 | J80: =IF(ROWS(J$76:J80)>J$75,"",INDEX($A$3:$A$70,SMALL(IF(J$3:J$70="",ROW(J$3:J$70)-ROW(J$3)+1),ROWS(J$76:J80)))) -> Student 17 | K80: =IF(ROWS(K$76:K80)>K$75,"",INDEX($A$3:$A$70,SMALL(IF(K$3:K$70="",ROW(K$3:K$70)-ROW(K$3)+1),ROWS(K$76:K80)))) -> 
A81: ="#"&ROWS(A$76:A81) -> #6 | B81: =IF(ROWS(B$76:B81)>B$75,"",INDEX($A$3:$A$70,SMALL(IF(B$3:B$70="",ROW(B$3:B$70)-ROW(B$3)+1),ROWS(B$76:B81)))) -> Student 11 | C81: =IF(ROWS(C$76:C81)>C$75,"",INDEX($A$3:$A$70,SMALL(IF(C$3:C$70="",ROW(C$3:C$70)-ROW(C$3)+1),ROWS(C$76:C81)))) -> Student 36 | D81: =IF(ROWS(D$76:D81)>D$75,"",INDEX($A$3:$A$70,SMALL(IF(D$3:D$70="",ROW(D$3:D$70)-ROW(D$3)+1),ROWS(D$76:D81)))) -> Student 19 | E81: =IF(ROWS(E$76:E81)>E$75,"",INDEX($A$3:$A$70,SMALL(IF(E$3:E$70="",ROW(E$3:E$70)-ROW(E$3)+1),ROWS(E$76:E81)))) -> Student 11 | F81: =IF(ROWS(F$76:F81)>F$75,"",INDEX($A$3:$A$70,SMALL(IF(F$3:F$70="",ROW(F$3:F$70)-ROW(F$3)+1),ROWS(F$76:F81)))) -> Student 8 | G81: =IF(ROWS(G$76:G81)>G$75,"",INDEX($A$3:$A$70,SMALL(IF(G$3:G$70="",ROW(G$3:G$70)-ROW(G$3)+1),ROWS(G$76:G81)))) -> Student 6 | H81: =IF(ROWS(H$76:H81)>H$75,"",INDEX($A$3:$A$70,SMALL(IF(H$3:H$70="",ROW(H$3:H$70)-ROW(H$3)+1),ROWS(H$76:H81)))) -> Student 6 | I81: =IF(ROWS(I$76:I81)>I$75,"",INDEX($A$3:$A$70,SMALL(IF(I$3:I$70="",ROW(I$3:I$70)-ROW(I$3)+1),ROWS(I$76:I81)))) -> Student 6 | J81: =IF(ROWS(J$76:J81)>J$75,"",INDEX($A$3:$A$70,SMALL(IF(J$3:J$70="",ROW(J$3:J$70)-ROW(J$3)+1),ROWS(J$76:J81)))) -> Student 18 | K81: =IF(ROWS(K$76:K81)>K$75,"",INDEX($A$3:$A$70,SMALL(IF(K$3:K$70="",ROW(K$3:K$70)-ROW(K$3)+1),ROWS(K$76:K81)))) -> 
A82: ="#"&ROWS(A$76:A82) -> #7 | B82: =IF(ROWS(B$76:B82)>B$75,"",INDEX($A$3:$A$70,SMALL(IF(B$3:B$70="",ROW(B$3:B$70)-ROW(B$3)+1),ROWS(B$76:B82)))) -> Student 19 | C82: =IF(ROWS(C$76:C82)>C$75,"",INDEX($A$3:$A$70,SMALL(IF(C$3:C$70="",ROW(C$3:C$70)-ROW(C$3)+1),ROWS(C$76:C82)))) -> Student 38 | D82: =IF(ROWS(D$76:D82)>D$75,"",INDEX($A$3:$A$70,SMALL(IF(D$3:D$70="",ROW(D$3:D$70)-ROW(D$3)+1),ROWS(D$76:D82)))) -> Student 22 | E82: =IF(ROWS(E$76:E82)>E$75,"",INDEX($A$3:$A$70,SMALL(IF(E$3:E$70="",ROW(E$3:E$70)-ROW(E$3)+1),ROWS(E$76:E82)))) -> Student 13 | F82: =IF(ROWS(F$76:F82)>F$75,"",INDEX($A$3:$A$70,SMALL(IF(F$3:F$70="",ROW(F$3:F$70)-ROW(F$3)+1),ROWS(F$76:F82)))) -> Student 9 | G82: =IF(ROWS(G$76:G82)>G$75,"",INDEX($A$3:$A$70,SMALL(IF(G$3:G$70="",ROW(G$3:G$70)-ROW(G$3)+1),ROWS(G$76:G82)))) -> Student 7 | H82: =IF(ROWS(H$76:H82)>H$75,"",INDEX($A$3:$A$70,SMALL(IF(H$3:H$70="",ROW(H$3:H$70)-ROW(H$3)+1),ROWS(H$76:H82)))) -> Student 7 | I82: =IF(ROWS(I$76:I82)>I$75,"",INDEX($A$3:$A$70,SMALL(IF(I$3:I$70="",ROW(I$3:I$70)-ROW(I$3)+1),ROWS(I$76:I82)))) -> Student 7 | J82: =IF(ROWS(J$76:J82)>J$75,"",INDEX($A$3:$A$70,SMALL(IF(J$3:J$70="",ROW(J$3:J$70)-ROW(J$3)+1),ROWS(J$76:J82)))) -> Student 21 | K82: =IF(ROWS(K$76:K82)>K$75,"",INDEX($A$3:$A$70,SMALL(IF(K$3:K$70="",ROW(K$3:K$70)-ROW(K$3)+1),ROWS(K$76:K82)))) -> 
A83: ="#"&ROWS(A$76:A83) -> #8 | B83: =IF(ROWS(B$76:B83)>B$75,"",INDEX($A$3:$A$70,SMALL(IF(B$3:B$70="",ROW(B$3:B$70)-ROW(B$3)+1),ROWS(B$76:B83)))) -> Student 20 | C83: =IF(ROWS(C$76:C83)>C$75,"",INDEX($A$3:$A$70,SMALL(IF(C$3:C$70="",ROW(C$3:C$70)-ROW(C$3)+1),ROWS(C$76:C83)))) -> Student 43 | D83: =IF(ROWS(D$76:D83)>D$75,"",INDEX($A$3:$A$70,SMALL(IF(D$3:D$70="",ROW(D$3:D$70)-ROW(D$3)+1),ROWS(D$76:D83)))) -> Student 27 | E83: =IF(ROWS(E$76:E83)>E$75,"",INDEX($A$3:$A$70,SMALL(IF(E$3:E$70="",ROW(E$3:E$70)-ROW(E$3)+1),ROWS(E$76:E83)))) -> Student 16 | F83: =IF(ROWS(F$76:F83)>F$75,"",INDEX($A$3:$A$70,SMALL(IF(F$3:F$70="",ROW(F$3:F$70)-ROW(F$3)+1),ROWS(F$76:F83)))) -> Student 10 | G83: =IF(ROWS(G$76:G83)>G$75,"",INDEX($A$3:$A$70,SMALL(IF(G$3:G$70="",ROW(G$3:G$70)-ROW(G$3)+1),ROWS(G$76:G83)))) -> Student 9 | H83: =IF(ROWS(H$76:H83)>H$75,"",INDEX($A$3:$A$70,SMALL(IF(H$3:H$70="",ROW(H$3:H$70)-ROW(H$3)+1),ROWS(H$76:H83)))) -> Student 8 | I83: =IF(ROWS(I$76:I83)>I$75,"",INDEX($A$3:$A$70,SMALL(IF(I$3:I$70="",ROW(I$3:I$70)-ROW(I$3)+1),ROWS(I$76:I83)))) -> Student 8 | J83: =IF(ROWS(J$76:J83)>J$75,"",INDEX($A$3:$A$70,SMALL(IF(J$3:J$70="",ROW(J$3:J$70)-ROW(J$3)+1),ROWS(J$76:J83)))) -> Student 22 | K83: =IF(ROWS(K$76:K83)>K$75,"",INDEX($A$3:$A$70,SMALL(IF(K$3:K$70="",ROW(K$3:K$70)-ROW(K$3)+1),ROWS(K$76:K83)))) -> 
A84: ="#"&ROWS(A$76:A84) -> #9 | B84: =IF(ROWS(B$76:B84)>B$75,"",INDEX($A$3:$A$70,SMALL(IF(B$3:B$70="",ROW(B$3:B$70)-ROW(B$3)+1),ROWS(B$76:B84)))) -> Student 30 | C84: =IF(ROWS(C$76:C84)>C$75,"",INDEX($A$3:$A$70,SMALL(IF(C$3:C$70="",ROW(C$3:C$70)-ROW(C$3)+1),ROWS(C$76:C84)))) -> Student 44 | D84: =IF(ROWS(D$76:D84)>D$75,"",INDEX($A$3:$A$70,SMALL(IF(D$3:D$70="",ROW(D$3:D$70)-ROW(D$3)+1),ROWS(D$76:D84)))) -> Student 29 | E84: =IF(ROWS(E$76:E84)>E$75,"",INDEX($A$3:$A$70,SMALL(IF(E$3:E$70="",ROW(E$3:E$70)-ROW(E$3)+1),ROWS(E$76:E84)))) -> Student 18 | F84: =IF(ROWS(F$76:F84)>F$75,"",INDEX($A$3:$A$70,SMALL(IF(F$3:F$70="",ROW(F$3:F$70)-ROW(F$3)+1),ROWS(F$76:F84)))) -> Student 11 | G84: =IF(ROWS(G$76:G84)>G$75,"",INDEX($A$3:$A$70,SMALL(IF(G$3:G$70="",ROW(G$3:G$70)-ROW(G$3)+1),ROWS(G$76:G84)))) -> Student 10 | H84: =IF(ROWS(H$76:H84)>H$75,"",INDEX($A$3:$A$70,SMALL(IF(H$3:H$70="",ROW(H$3:H$70)-ROW(H$3)+1),ROWS(H$76:H84)))) -> Student 9 | I84: =IF(ROWS(I$76:I84)>I$75,"",INDEX($A$3:$A$70,SMALL(IF(I$3:I$70="",ROW(I$3:I$70)-ROW(I$3)+1),ROWS(I$76:I84)))) -> Student 9 | J84: =IF(ROWS(J$76:J84)>J$75,"",INDEX($A$3:$A$70,SMALL(IF(J$3:J$70="",ROW(J$3:J$70)-ROW(J$3)+1),ROWS(J$76:J84)))) -> Student 23 | K84: =IF(ROWS(K$76:K84)>K$75,"",INDEX($A$3:$A$70,SMALL(IF(K$3:K$70="",ROW(K$3:K$70)-ROW(K$3)+1),ROWS(K$76:K84)))) -> 
A85: ="#"&ROWS(A$76:A85) -> #10 | B85: =IF(ROWS(B$76:B85)>B$75,"",INDEX($A$3:$A$70,SMALL(IF(B$3:B$70="",ROW(B$3:B$70)-ROW(B$3)+1),ROWS(B$76:B85)))) -> Student 35 | C85: =IF(ROWS(C$76:C85)>C$75,"",INDEX($A$3:$A$70,SMALL(IF(C$3:C$70="",ROW(C$3:C$70)-ROW(C$3)+1),ROWS(C$76:C85)))) -> Student 46 | D85: =IF(ROWS(D$76:D85)>D$75,"",INDEX($A$3:$A$70,SMALL(IF(D$3:D$70="",ROW(D$3:D$70)-ROW(D$3)+1),ROWS(D$76:D85)))) -> Student 33 | E85: =IF(ROWS(E$76:E85)>E$75,"",INDEX($A$3:$A$70,SMALL(IF(E$3:E$70="",ROW(E$3:E$70)-ROW(E$3)+1),ROWS(E$76:E85)))) -> Student 19 | F85: =IF(ROWS(F$76:F85)>F$75,"",INDEX($A$3:$A$70,SMALL(IF(F$3:F$70="",ROW(F$3:F$70)-ROW(F$3)+1),ROWS(F$76:F85)))) -> Student 12 | G85: =IF(ROWS(G$76:G85)>G$75,"",INDEX($A$3:$A$70,SMALL(IF(G$3:G$70="",ROW(G$3:G$70)-ROW(G$3)+1),ROWS(G$76:G85)))) -> Student 11 | H85: =IF(ROWS(H$76:H85)>H$75,"",INDEX($A$3:$A$70,SMALL(IF(H$3:H$70="",ROW(H$3:H$70)-ROW(H$3)+1),ROWS(H$76:H85)))) -> Student 10 | I85: =IF(ROWS(I$76:I85)>I$75,"",INDEX($A$3:$A$70,SMALL(IF(I$3:I$70="",ROW(I$3:I$70)-ROW(I$3)+1),ROWS(I$76:I85)))) -> Student 10 | J85: =IF(ROWS(J$76:J85)>J$75,"",INDEX($A$3:$A$70,SMALL(IF(J$3:J$70="",ROW(J$3:J$70)-ROW(J$3)+1),ROWS(J$76:J85)))) -> Student 26 | K85: =IF(ROWS(K$76:K85)>K$75,"",INDEX($A$3:$A$70,SMALL(IF(K$3:K$70="",ROW(K$3:K$70)-ROW(K$3)+1),ROWS(K$76:K85)))) -> 
A86: ="#"&ROWS(A$76:A86) -> #11 | B86: =IF(ROWS(B$76:B86)>B$75,"",INDEX($A$3:$A$70,SMALL(IF(B$3:B$70="",ROW(B$3:B$70)-ROW(B$3)+1),ROWS(B$76:B86)))) -> Student 37 | C86: =IF(ROWS(C$76:C86)>C$75,"",INDEX($A$3:$A$70,SMALL(IF(C$3:C$70="",ROW(C$3:C$70)-ROW(C$3)+1),ROWS(C$76:C86)))) -> Student 48 | D86: =IF(ROWS(D$76:D86)>D$75,"",INDEX($A$3:$A$70,SMALL(IF(D$3:D$70="",ROW(D$3:D$70)-ROW(D$3)+1),ROWS(D$76:D86)))) -> Student 39 | E86: =IF(ROWS(E$76:E86)>E$75,"",INDEX($A$3:$A$70,SMALL(IF(E$3:E$70="",ROW(E$3:E$70)-ROW(E$3)+1),ROWS(E$76:E86)))) -> Student 20 | F86: =IF(ROWS(F$76:F86)>F$75,"",INDEX($A$3:$A$70,SMALL(IF(F$3:F$70="",ROW(F$3:F$70)-ROW(F$3)+1),ROWS(F$76:F86)))) -> Student 13 | G86: =IF(ROWS(G$76:G86)>G$75,"",INDEX($A$3:$A$70,SMALL(IF(G$3:G$70="",ROW(G$3:G$70)-ROW(G$3)+1),ROWS(G$76:G86)))) -> Student 12 | H86: =IF(ROWS(H$76:H86)>H$75,"",INDEX($A$3:$A$70,SMALL(IF(H$3:H$70="",ROW(H$3:H$70)-ROW(H$3)+1),ROWS(H$76:H86)))) -> Student 11 | I86: =IF(ROWS(I$76:I86)>I$75,"",INDEX($A$3:$A$70,SMALL(IF(I$3:I$70="",ROW(I$3:I$70)-ROW(I$3)+1),ROWS(I$76:I86)))) -> Student 11 | J86: =IF(ROWS(J$76:J86)>J$75,"",INDEX($A$3:$A$70,SMALL(IF(J$3:J$70="",ROW(J$3:J$70)-ROW(J$3)+1),ROWS(J$76:J86)))) -> Student 27 | K86: =IF(ROWS(K$76:K86)>K$75,"",INDEX($A$3:$A$70,SMALL(IF(K$3:K$70="",ROW(K$3:K$70)-ROW(K$3)+1),ROWS(K$76:K86)))) -> 
A87: ="#"&ROWS(A$76:A87) -> #12 | B87: =IF(ROWS(B$76:B87)>B$75,"",INDEX($A$3:$A$70,SMALL(IF(B$3:B$70="",ROW(B$3:B$70)-ROW(B$3)+1),ROWS(B$76:B87)))) -> Student 40 | C87: =IF(ROWS(C$76:C87)>C$75,"",INDEX($A$3:$A$70,SMALL(IF(C$3:C$70="",ROW(C$3:C$70)-ROW(C$3)+1),ROWS(C$76:C87)))) -> Student 49 | D87: =IF(ROWS(D$76:D87)>D$75,"",INDEX($A$3:$A$70,SMALL(IF(D$3:D$70="",ROW(D$3:D$70)-ROW(D$3)+1),ROWS(D$76:D87)))) -> Student 47 | E87: =IF(ROWS(E$76:E87)>E$75,"",INDEX($A$3:$A$70,SMALL(IF(E$3:E$70="",ROW(E$3:E$70)-ROW(E$3)+1),ROWS(E$76:E87)))) -> Student 22 | F87: =IF(ROWS(F$76:F87)>F$75,"",INDEX($A$3:$A$70,SMALL(IF(F$3:F$70="",ROW(F$3:F$70)-ROW(F$3)+1),ROWS(F$76:F87)))) -> Student 14 | G87: =IF(ROWS(G$76:G87)>G$75,"",INDEX($A$3:$A$70,SMALL(IF(G$3:G$70="",ROW(G$3:G$70)-ROW(G$3)+1),ROWS(G$76:G87)))) -> Student 13 | H87: =IF(ROWS(H$76:H87)>H$75,"",INDEX($A$3:$A$70,SMALL(IF(H$3:H$70="",ROW(H$3:H$70)-ROW(H$3)+1),ROWS(H$76:H87)))) -> Student 12 | I87: =IF(ROWS(I$76:I87)>I$75,"",INDEX($A$3:$A$70,SMALL(IF(I$3:I$70="",ROW(I$3:I$70)-ROW(I$3)+1),ROWS(I$76:I87)))) -> Student 12 | J87: =IF(ROWS(J$76:J87)>J$75,"",INDEX($A$3:$A$70,SMALL(IF(J$3:J$70="",ROW(J$3:J$70)-ROW(J$3)+1),ROWS(J$76:J87)))) -> Student 28 | K87: =IF(ROWS(K$76:K87)>K$75,"",INDEX($A$3:$A$70,SMALL(IF(K$3:K$70="",ROW(K$3:K$70)-ROW(K$3)+1),ROWS(K$76:K87)))) -> 
A88: ="#"&ROWS(A$76:A88) -> #13 | B88: =IF(ROWS(B$76:B88)>B$75,"",INDEX($A$3:$A$70,SMALL(IF(B$3:B$70="",ROW(B$3:B$70)-ROW(B$3)+1),ROWS(B$76:B88)))) -> Student 49 | C88: =IF(ROWS(C$76:C88)>C$75,"",INDEX($A$3:$A$70,SMALL(IF(C$3:C$70="",ROW(C$3:C$70)-ROW(C$3)+1),ROWS(C$76:C88)))) -> Student 52 | D88: =IF(ROWS(D$76:D88)>D$75,"",INDEX($A$3:$A$70,SMALL(IF(D$3:D$70="",ROW(D$3:D$70)-ROW(D$3)+1),ROWS(D$76:D88)))) -> Student 49 | E88: =IF(ROWS(E$76:E88)>E$75,"",INDEX($A$3:$A$70,SMALL(IF(E$3:E$70="",ROW(E$3:E$70)-ROW(E$3)+1),ROWS(E$76:E88)))) -> Student 23 | F88: =IF(ROWS(F$76:F88)>F$75,"",INDEX($A$3:$A$70,SMALL(IF(F$3:F$70="",ROW(F$3:F$70)-ROW(F$3)+1),ROWS(F$76:F88)))) -> Student 15 | G88: =IF(ROWS(G$76:G88)>G$75,"",INDEX($A$3:$A$70,SMALL(IF(G$3:G$70="",ROW(G$3:G$70)-ROW(G$3)+1),ROWS(G$76:G88)))) -> Student 14 | H88: =IF(ROWS(H$76:H88)>H$75,"",INDEX($A$3:$A$70,SMALL(IF(H$3:H$70="",ROW(H$3:H$70)-ROW(H$3)+1),ROWS(H$76:H88)))) -> Student 13 | I88: =IF(ROWS(I$76:I88)>I$75,"",INDEX($A$3:$A$70,SMALL(IF(I$3:I$70="",ROW(I$3:I$70)-ROW(I$3)+1),ROWS(I$76:I88)))) -> Student 13 | J88: =IF(ROWS(J$76:J88)>J$75,"",INDEX($A$3:$A$70,SMALL(IF(J$3:J$70="",ROW(J$3:J$70)-ROW(J$3)+1),ROWS(J$76:J88)))) -> Student 32 | K88: =IF(ROWS(K$76:K88)>K$75,"",INDEX($A$3:$A$70,SMALL(IF(K$3:K$70="",ROW(K$3:K$70)-ROW(K$3)+1),ROWS(K$76:K88)))) -> 
A89: ="#"&ROWS(A$76:A89) -> #14 | B89: =IF(ROWS(B$76:B89)>B$75,"",INDEX($A$3:$A$70,SMALL(IF(B$3:B$70="",ROW(B$3:B$70)-ROW(B$3)+1),ROWS(B$76:B89)))) -> Student 59 | C89: =IF(ROWS(C$76:C89)>C$75,"",INDEX($A$3:$A$70,SMALL(IF(C$3:C$70="",ROW(C$3:C$70)-ROW(C$3)+1),ROWS(C$76:C89)))) -> Student 54 | D89: =IF(ROWS(D$76:D89)>D$75,"",INDEX($A$3:$A$70,SMALL(IF(D$3:D$70="",ROW(D$3:D$70)-ROW(D$3)+1),ROWS(D$76:D89)))) -> Student 54 | E89: =IF(ROWS(E$76:E89)>E$75,"",INDEX($A$3:$A$70,SMALL(IF(E$3:E$70="",ROW(E$3:E$70)-ROW(E$3)+1),ROWS(E$76:E89)))) -> Student 27 | F89: =IF(ROWS(F$76:F89)>F$75,"",INDEX($A$3:$A$70,SMALL(IF(F$3:F$70="",ROW(F$3:F$70)-ROW(F$3)+1),ROWS(F$76:F89)))) -> Student 16 | G89: =IF(ROWS(G$76:G89)>G$75,"",INDEX($A$3:$A$70,SMALL(IF(G$3:G$70="",ROW(G$3:G$70)-ROW(G$3)+1),ROWS(G$76:G89)))) -> Student 15 | H89: =IF(ROWS(H$76:H89)>H$75,"",INDEX($A$3:$A$70,SMALL(IF(H$3:H$70="",ROW(H$3:H$70)-ROW(H$3)+1),ROWS(H$76:H89)))) -> Student 14 | I89: =IF(ROWS(I$76:I89)>I$75,"",INDEX($A$3:$A$70,SMALL(IF(I$3:I$70="",ROW(I$3:I$70)-ROW(I$3)+1),ROWS(I$76:I89)))) -> Student 14 | J89: =IF(ROWS(J$76:J89)>J$75,"",INDEX($A$3:$A$70,SMALL(IF(J$3:J$70="",ROW(J$3:J$70)-ROW(J$3)+1),ROWS(J$76:J89)))) -> Student 33 | K89: =IF(ROWS(K$76:K89)>K$75,"",INDEX($A$3:$A$70,SMALL(IF(K$3:K$70="",ROW(K$3:K$70)-ROW(K$3)+1),ROWS(K$76:K89)))) -> 
A90: ="#"&ROWS(A$76:A90) -> #15 | B90: =IF(ROWS(B$76:B90)>B$75,"",INDEX($A$3:$A$70,SMALL(IF(B$3:B$70="",ROW(B$3:B$70)-ROW(B$3)+1),ROWS(B$76:B90)))) -> Student 61 | C90: =IF(ROWS(C$76:C90)>C$75,"",INDEX($A$3:$A$70,SMALL(IF(C$3:C$70="",ROW(C$3:C$70)-ROW(C$3)+1),ROWS(C$76:C90)))) -> Student 59 | D90: =IF(ROWS(D$76:D90)>D$75,"",INDEX($A$3:$A$70,SMALL(IF(D$3:D$70="",ROW(D$3:D$70)-ROW(D$3)+1),ROWS(D$76:D90)))) -> Student 57 | E90: =IF(ROWS(E$76:E90)>E$75,"",INDEX($A$3:$A$70,SMALL(IF(E$3:E$70="",ROW(E$3:E$70)-ROW(E$3)+1),ROWS(E$76:E90)))) -> Student 28 | F90: =IF(ROWS(F$76:F90)>F$75,"",INDEX($A$3:$A$70,SMALL(IF(F$3:F$70="",ROW(F$3:F$70)-ROW(F$3)+1),ROWS(F$76:F90)))) -> Student 17 | G90: =IF(ROWS(G$76:G90)>G$75,"",INDEX($A$3:$A$70,SMALL(IF(G$3:G$70="",ROW(G$3:G$70)-ROW(G$3)+1),ROWS(G$76:G90)))) -> Student 16 | H90: =IF(ROWS(H$76:H90)>H$75,"",INDEX($A$3:$A$70,SMALL(IF(H$3:H$70="",ROW(H$3:H$70)-ROW(H$3)+1),ROWS(H$76:H90)))) -> Student 15 | I90: =IF(ROWS(I$76:I90)>I$75,"",INDEX($A$3:$A$70,SMALL(IF(I$3:I$70="",ROW(I$3:I$70)-ROW(I$3)+1),ROWS(I$76:I90)))) -> Student 15 | J90: =IF(ROWS(J$76:J90)>J$75,"",INDEX($A$3:$A$70,SMALL(IF(J$3:J$70="",ROW(J$3:J$70)-ROW(J$3)+1),ROWS(J$76:J90)))) -> Student 34 | K90: =IF(ROWS(K$76:K90)>K$75,"",INDEX($A$3:$A$70,SMALL(IF(K$3:K$70="",ROW(K$3:K$70)-ROW(K$3)+1),ROWS(K$76:K90)))) -> 
A91: ="#"&ROWS(A$76:A91) -> #16 | B91: =IF(ROWS(B$76:B91)>B$75,"",INDEX($A$3:$A$70,SMALL(IF(B$3:B$70="",ROW(B$3:B$70)-ROW(B$3)+1),ROWS(B$76:B91)))) -> Student 64 | C91: =IF(ROWS(C$76:C91)>C$75,"",INDEX($A$3:$A$70,SMALL(IF(C$3:C$70="",ROW(C$3:C$70)-ROW(C$3)+1),ROWS(C$76:C91)))) ->  | D91: =IF(ROWS(D$76:D91)>D$75,"",INDEX($A$3:$A$70,SMALL(IF(D$3:D$70="",ROW(D$3:D$70)-ROW(D$3)+1),ROWS(D$76:D91)))) -> Student 67 | E91: =IF(ROWS(E$76:E91)>E$75,"",INDEX($A$3:$A$70,SMALL(IF(E$3:E$70="",ROW(E$3:E$70)-ROW(E$3)+1),ROWS(E$76:E91)))) -> Student 29 | F91: =IF(ROWS(F$76:F91)>F$75,"",INDEX($A$3:$A$70,SMALL(IF(F$3:F$70="",ROW(F$3:F$70)-ROW(F$3)+1),ROWS(F$76:F91)))) -> Student 18 | G91: =IF(ROWS(G$76:G91)>G$75,"",INDEX($A$3:$A$70,SMALL(IF(G$3:G$70="",ROW(G$3:G$70)-ROW(G$3)+1),ROWS(G$76:G91)))) -> Student 17 | H91: =IF(ROWS(H$76:H91)>H$75,"",INDEX($A$3:$A$70,SMALL(IF(H$3:H$70="",ROW(H$3:H$70)-ROW(H$3)+1),ROWS(H$76:H91)))) -> Student 16 | I91: =IF(ROWS(I$76:I91)>I$75,"",INDEX($A$3:$A$70,SMALL(IF(I$3:I$70="",ROW(I$3:I$70)-ROW(I$3)+1),ROWS(I$76:I91)))) -> Student 16 | J91: =IF(ROWS(J$76:J91)>J$75,"",INDEX($A$3:$A$70,SMALL(IF(J$3:J$70="",ROW(J$3:J$70)-ROW(J$3)+1),ROWS(J$76:J91)))) -> Student 35 | K91: =IF(ROWS(K$76:K91)>K$75,"",INDEX($A$3:$A$70,SMALL(IF(K$3:K$70="",ROW(K$3:K$70)-ROW(K$3)+1),ROWS(K$76:K91)))) -> 
A92: ="#"&ROWS(A$76:A92) -> #17 | B92: =IF(ROWS(B$76:B92)>B$75,"",INDEX($A$3:$A$70,SMALL(IF(B$3:B$70="",ROW(B$3:B$70)-ROW(B$3)+1),ROWS(B$76:B92)))) ->  | C92: =IF(ROWS(C$76:C92)>C$75,"",INDEX($A$3:$A$70,SMALL(IF(C$3:C$70="",ROW(C$3:C$70)-ROW(C$3)+1),ROWS(C$76:C92)))) ->  | D92: =IF(ROWS(D$76:D92)>D$75,"",INDEX($A$3:$A$70,SMALL(IF(D$3:D$70="",ROW(D$3:D$70)-ROW(D$3)+1),ROWS(D$76:D92)))) ->  | E92: =IF(ROWS(E$76:E92)>E$75,"",INDEX($A$3:$A$70,SMALL(IF(E$3:E$70="",ROW(E$3:E$70)-ROW(E$3)+1),ROWS(E$76:E92)))) -> Student 31 | F92: =IF(ROWS(F$76:F92)>F$75,"",INDEX($A$3:$A$70,SMALL(IF(F$3:F$70="",ROW(F$3:F$70)-ROW(F$3)+1),ROWS(F$76:F92)))) -> Student 19 | G92: =IF(ROWS(G$76:G92)>G$75,"",INDEX($A$3:$A$70,SMALL(IF(G$3:G$70="",ROW(G$3:G$70)-ROW(G$3)+1),ROWS(G$76:G92)))) -> Student 19 | H92: =IF(ROWS(H$76:H92)>H$75,"",INDEX($A$3:$A$70,SMALL(IF(H$3:H$70="",ROW(H$3:H$70)-ROW(H$3)+1),ROWS(H$76:H92)))) -> Student 17 | I92: =IF(ROWS(I$76:I92)>I$75,"",INDEX($A$3:$A$70,SMALL(IF(I$3:I$70="",ROW(I$3:I$70)-ROW(I$3)+1),ROWS(I$76:I92)))) -> Student 17 | J92: =IF(ROWS(J$76:J92)>J$75,"",INDEX($A$3:$A$70,SMALL(IF(J$3:J$70="",ROW(J$3:J$70)-ROW(J$3)+1),ROWS(J$76:J92)))) -> Student 36 | K92: =IF(ROWS(K$76:K92)>K$75,"",INDEX($A$3:$A$70,SMALL(IF(K$3:K$70="",ROW(K$3:K$70)-ROW(K$3)+1),ROWS(K$76:K92)))) -> 
A93: ="#"&ROWS(A$76:A93) -> #18 | B93: =IF(ROWS(B$76:B93)>B$75,"",INDEX($A$3:$A$70,SMALL(IF(B$3:B$70="",ROW(B$3:B$70)-ROW(B$3)+1),ROWS(B$76:B93)))) ->  | C93: =IF(ROWS(C$76:C93)>C$75,"",INDEX($A$3:$A$70,SMALL(IF(C$3:C$70="",ROW(C$3:C$70)-ROW(C$3)+1),ROWS(C$76:C93)))) ->  | D93: =IF(ROWS(D$76:D93)>D$75,"",INDEX($A$3:$A$70,SMALL(IF(D$3:D$70="",ROW(D$3:D$70)-ROW(D$3)+1),ROWS(D$76:D93)))) ->  | E93: =IF(ROWS(E$76:E93)>E$75,"",INDEX($A$3:$A$70,SMALL(IF(E$3:E$70="",ROW(E$3:E$70)-ROW(E$3)+1),ROWS(E$76:E93)))) -> Student 32 | F93: =IF(ROWS(F$76:F93)>F$75,"",INDEX($A$3:$A$70,SMALL(IF(F$3:F$70="",ROW(F$3:F$70)-ROW(F$3)+1),ROWS(F$76:F93)))) -> Student 20 | G93: =IF(ROWS(G$76:G93)>G$75,"",INDEX($A$3:$A$70,SMALL(IF(G$3:G$70="",ROW(G$3:G$70)-ROW(G$3)+1),ROWS(G$76:G93)))) -> Student 21 | H93: =IF(ROWS(H$76:H93)>H$75,"",INDEX($A$3:$A$70,SMALL(IF(H$3:H$70="",ROW(H$3:H$70)-ROW(H$3)+1),ROWS(H$76:H93)))) -> Student 18 | I93: =IF(ROWS(I$76:I93)>I$75,"",INDEX($A$3:$A$70,SMALL(IF(I$3:I$70="",ROW(I$3:I$70)-ROW(I$3)+1),ROWS(I$76:I93)))) -> Student 18 | J93: =IF(ROWS(J$76:J93)>J$75,"",INDEX($A$3:$A$70,SMALL(IF(J$3:J$70="",ROW(J$3:J$70)-ROW(J$3)+1),ROWS(J$76:J93)))) -> Student 38 | K93: =IF(ROWS(K$76:K93)>K$75,"",INDEX($A$3:$A$70,SMALL(IF(K$3:K$70="",ROW(K$3:K$70)-ROW(K$3)+1),ROWS(K$76:K93)))) -> 
A94: ="#"&ROWS(A$76:A94) -> #19 | B94: =IF(ROWS(B$76:B94)>B$75,"",INDEX($A$3:$A$70,SMALL(IF(B$3:B$70="",ROW(B$3:B$70)-ROW(B$3)+1),ROWS(B$76:B94)))) ->  | C94: =IF(ROWS(C$76:C94)>C$75,"",INDEX($A$3:$A$70,SMALL(IF(C$3:C$70="",ROW(C$3:C$70)-ROW(C$3)+1),ROWS(C$76:C94)))) ->  | D94: =IF(ROWS(D$76:D94)>D$75,"",INDEX($A$3:$A$70,SMALL(IF(D$3:D$70="",ROW(D$3:D$70)-ROW(D$3)+1),ROWS(D$76:D94)))) ->  | E94: =IF(ROWS(E$76:E94)>E$75,"",INDEX($A$3:$A$70,SMALL(IF(E$3:E$70="",ROW(E$3:E$70)-ROW(E$3)+1),ROWS(E$76:E94)))) -> Student 34 | F94: =IF(ROWS(F$76:F94)>F$75,"",INDEX($A$3:$A$70,SMALL(IF(F$3:F$70="",ROW(F$3:F$70)-ROW(F$3)+1),ROWS(F$76:F94)))) -> Student 21 | G94: =IF(ROWS(G$76:G94)>G$75,"",INDEX($A$3:$A$70,SMALL(IF(G$3:G$70="",ROW(G$3:G$70)-ROW(G$3)+1),ROWS(G$76:G94)))) -> Student 22 | H94: =IF(ROWS(H$76:H94)>H$75,"",INDEX($A$3:$A$70,SMALL(IF(H$3:H$70="",ROW(H$3:H$70)-ROW(H$3)+1),ROWS(H$76:H94)))) -> Student 19 | I94: =IF(ROWS(I$76:I94)>I$75,"",INDEX($A$3:$A$70,SMALL(IF(I$3:I$70="",ROW(I$3:I$70)-ROW(I$3)+1),ROWS(I$76:I94)))) -> Student 19 | J94: =IF(ROWS(J$76:J94)>J$75,"",INDEX($A$3:$A$70,SMALL(IF(J$3:J$70="",ROW(J$3:J$70)-ROW(J$3)+1),ROWS(J$76:J94)))) -> Student 40 | K94: =IF(ROWS(K$76:K94)>K$75,"",INDEX($A$3:$A$70,SMALL(IF(K$3:K$70="",ROW(K$3:K$70)-ROW(K$3)+1),ROWS(K$76:K94)))) -> 
A95: ="#"&ROWS(A$76:A95) -> #20 | B95: =IF(ROWS(B$76:B95)>B$75,"",INDEX($A$3:$A$70,SMALL(IF(B$3:B$70="",ROW(B$3:B$70)-ROW(B$3)+1),ROWS(B$76:B95)))) ->  | C95: =IF(ROWS(C$76:C95)>C$75,"",INDEX($A$3:$A$70,SMALL(IF(C$3:C$70="",ROW(C$3:C$70)-ROW(C$3)+1),ROWS(C$76:C95)))) ->  | D95: =IF(ROWS(D$76:D95)>D$75,"",INDEX($A$3:$A$70,SMALL(IF(D$3:D$70="",ROW(D$3:D$70)-ROW(D$3)+1),ROWS(D$76:D95)))) ->  | E95: =IF(ROWS(E$76:E95)>E$75,"",INDEX($A$3:$A$70,SMALL(IF(E$3:E$70="",ROW(E$3:E$70)-ROW(E$3)+1),ROWS(E$76:E95)))) -> Student 38 | F95: =IF(ROWS(F$76:F95)>F$75,"",INDEX($A$3:$A$70,SMALL(IF(F$3:F$70="",ROW(F$3:F$70)-ROW(F$3)+1),ROWS(F$76:F95)))) -> Student 23 | G95: =IF(ROWS(G$76:G95)>G$75,"",INDEX($A$3:$A$70,SMALL(IF(G$3:G$70="",ROW(G$3:G$70)-ROW(G$3)+1),ROWS(G$76:G95)))) -> Student 23 | H95: =IF(ROWS(H$76:H95)>H$75,"",INDEX($A$3:$A$70,SMALL(IF(H$3:H$70="",ROW(H$3:H$70)-ROW(H$3)+1),ROWS(H$76:H95)))) -> Student 20 | I95: =IF(ROWS(I$76:I95)>I$75,"",INDEX($A$3:$A$70,SMALL(IF(I$3:I$70="",ROW(I$3:I$70)-ROW(I$3)+1),ROWS(I$76:I95)))) -> Student 20 | J95: =IF(ROWS(J$76:J95)>J$75,"",INDEX($A$3:$A$70,SMALL(IF(J$3:J$70="",ROW(J$3:J$70)-ROW(J$3)+1),ROWS(J$76:J95)))) -> Student 41 | K95: =IF(ROWS(K$76:K95)>K$75,"",INDEX($A$3:$A$70,SMALL(IF(K$3:K$70="",ROW(K$3:K$70)-ROW(K$3)+1),ROWS(K$76:K95)))) -> 
A96: ="#"&ROWS(A$76:A96) -> #21 | B96: =IF(ROWS(B$76:B96)>B$75,"",INDEX($A$3:$A$70,SMALL(IF(B$3:B$70="",ROW(B$3:B$70)-ROW(B$3)+1),ROWS(B$76:B96)))) ->  | C96: =IF(ROWS(C$76:C96)>C$75,"",INDEX($A$3:$A$70,SMALL(IF(C$3:C$70="",ROW(C$3:C$70)-ROW(C$3)+1),ROWS(C$76:C96)))) ->  | D96: =IF(ROWS(D$76:D96)>D$75,"",INDEX($A$3:$A$70,SMALL(IF(D$3:D$70="",ROW(D$3:D$70)-ROW(D$3)+1),ROWS(D$76:D96)))) ->  | E96: =IF(ROWS(E$76:E96)>E$75,"",INDEX($A$3:$A$70,SMALL(IF(E$3:E$70="",ROW(E$3:E$70)-ROW(E$3)+1),ROWS(E$76:E96)))) -> Student 43 | F96: =IF(ROWS(F$76:F96)>F$75,"",INDEX($A$3:$A$70,SMALL(IF(F$3:F$70="",ROW(F$3:F$70)-ROW(F$3)+1),ROWS(F$76:F96)))) -> Student 24 | G96: =IF(ROWS(G$76:G96)>G$75,"",INDEX($A$3:$A$70,SMALL(IF(G$3:G$70="",ROW(G$3:G$70)-ROW(G$3)+1),ROWS(G$76:G96)))) -> Student 24 | H96: =IF(ROWS(H$76:H96)>H$75,"",INDEX($A$3:$A$70,SMALL(IF(H$3:H$70="",ROW(H$3:H$70)-ROW(H$3)+1),ROWS(H$76:H96)))) -> Student 21 | I96: =IF(ROWS(I$76:I96)>I$75,"",INDEX($A$3:$A$70,SMALL(IF(I$3:I$70="",ROW(I$3:I$70)-ROW(I$3)+1),ROWS(I$76:I96)))) -> Student 21 | J96: =IF(ROWS(J$76:J96)>J$75,"",INDEX($A$3:$A$70,SMALL(IF(J$3:J$70="",ROW(J$3:J$70)-ROW(J$3)+1),ROWS(J$76:J96)))) -> Student 42 | K96: =IF(ROWS(K$76:K96)>K$75,"",INDEX($A$3:$A$70,SMALL(IF(K$3:K$70="",ROW(K$3:K$70)-ROW(K$3)+1),ROWS(K$76:K96)))) -> 
A97: ="#"&ROWS(A$76:A97) -> #22 | B97: =IF(ROWS(B$76:B97)>B$75,"",INDEX($A$3:$A$70,SMALL(IF(B$3:B$70="",ROW(B$3:B$70)-ROW(B$3)+1),ROWS(B$76:B97)))) ->  | C97: =IF(ROWS(C$76:C97)>C$75,"",INDEX($A$3:$A$70,SMALL(IF(C$3:C$70="",ROW(C$3:C$70)-ROW(C$3)+1),ROWS(C$76:C97)))) ->  | D97: =IF(ROWS(D$76:D97)>D$75,"",INDEX($A$3:$A$70,SMALL(IF(D$3:D$70="",ROW(D$3:D$70)-ROW(D$3)+1),ROWS(D$76:D97)))) ->  | E97: =IF(ROWS(E$76:E97)>E$75,"",INDEX($A$3:$A$70,SMALL(IF(E$3:E$70="",ROW(E$3:E$70)-ROW(E$3)+1),ROWS(E$76:E97)))) -> Student 44 | F97: =IF(ROWS(F$76:F97)>F$75,"",INDEX($A$3:$A$70,SMALL(IF(F$3:F$70="",ROW(F$3:F$70)-ROW(F$3)+1),ROWS(F$76:F97)))) -> Student 25 | G97: =IF(ROWS(G$76:G97)>G$75,"",INDEX($A$3:$A$70,SMALL(IF(G$3:G$70="",ROW(G$3:G$70)-ROW(G$3)+1),ROWS(G$76:G97)))) -> Student 25 | H97: =IF(ROWS(H$76:H97)>H$75,"",INDEX($A$3:$A$70,SMALL(IF(H$3:H$70="",ROW(H$3:H$70)-ROW(H$3)+1),ROWS(H$76:H97)))) -> Student 22 | I97: =IF(ROWS(I$76:I97)>I$75,"",INDEX($A$3:$A$70,SMALL(IF(I$3:I$70="",ROW(I$3:I$70)-ROW(I$3)+1),ROWS(I$76:I97)))) -> Student 22 | J97: =IF(ROWS(J$76:J97)>J$75,"",INDEX($A$3:$A$70,SMALL(IF(J$3:J$70="",ROW(J$3:J$70)-ROW(J$3)+1),ROWS(J$76:J97)))) -> Student 44 | K97: =IF(ROWS(K$76:K97)>K$75,"",INDEX($A$3:$A$70,SMALL(IF(K$3:K$70="",ROW(K$3:K$70)-ROW(K$3)+1),ROWS(K$76:K97)))) -> 
A98: ="#"&ROWS(A$76:A98) -> #23 | B98: =IF(ROWS(B$76:B98)>B$75,"",INDEX($A$3:$A$70,SMALL(IF(B$3:B$70="",ROW(B$3:B$70)-ROW(B$3)+1),ROWS(B$76:B98)))) ->  | C98: =IF(ROWS(C$76:C98)>C$75,"",INDEX($A$3:$A$70,SMALL(IF(C$3:C$70="",ROW(C$3:C$70)-ROW(C$3)+1),ROWS(C$76:C98)))) ->  | D98: =IF(ROWS(D$76:D98)>D$75,"",INDEX($A$3:$A$70,SMALL(IF(D$3:D$70="",ROW(D$3:D$70)-ROW(D$3)+1),ROWS(D$76:D98)))) ->  | E98: =IF(ROWS(E$76:E98)>E$75,"",INDEX($A$3:$A$70,SMALL(IF(E$3:E$70="",ROW(E$3:E$70)-ROW(E$3)+1),ROWS(E$76:E98)))) -> Student 47 | F98: =IF(ROWS(F$76:F98)>F$75,"",INDEX($A$3:$A$70,SMALL(IF(F$3:F$70="",ROW(F$3:F$70)-ROW(F$3)+1),ROWS(F$76:F98)))) -> Student 26 | G98: =IF(ROWS(G$76:G98)>G$75,"",INDEX($A$3:$A$70,SMALL(IF(G$3:G$70="",ROW(G$3:G$70)-ROW(G$3)+1),ROWS(G$76:G98)))) -> Student 27 | H98: =IF(ROWS(H$76:H98)>H$75,"",INDEX($A$3:$A$70,SMALL(IF(H$3:H$70="",ROW(H$3:H$70)-ROW(H$3)+1),ROWS(H$76:H98)))) -> Student 23 | I98: =IF(ROWS(I$76:I98)>I$75,"",INDEX($A$3:$A$70,SMALL(IF(I$3:I$70="",ROW(I$3:I$70)-ROW(I$3)+1),ROWS(I$76:I98)))) -> Student 23 | J98: =IF(ROWS(J$76:J98)>J$75,"",INDEX($A$3:$A$70,SMALL(IF(J$3:J$70="",ROW(J$3:J$70)-ROW(J$3)+1),ROWS(J$76:J98)))) -> Student 46 | K98: =IF(ROWS(K$76:K98)>K$75,"",INDEX($A$3:$A$70,SMALL(IF(K$3:K$70="",ROW(K$3:K$70)-ROW(K$3)+1),ROWS(K$76:K98)))) -> 
A99: ="#"&ROWS(A$76:A99) -> #24 | B99: =IF(ROWS(B$76:B99)>B$75,"",INDEX($A$3:$A$70,SMALL(IF(B$3:B$70="",ROW(B$3:B$70)-ROW(B$3)+1),ROWS(B$76:B99)))) ->  | C99: =IF(ROWS(C$76:C99)>C$75,"",INDEX($A$3:$A$70,SMALL(IF(C$3:C$70="",ROW(C$3:C$70)-ROW(C$3)+1),ROWS(C$76:C99)))) ->  | D99: =IF(ROWS(D$76:D99)>D$75,"",INDEX($A$3:$A$70,SMALL(IF(D$3:D$70="",ROW(D$3:D$70)-ROW(D$3)+1),ROWS(D$76:D99)))) ->  | E99: =IF(ROWS(E$76:E99)>E$75,"",INDEX($A$3:$A$70,SMALL(IF(E$3:E$70="",ROW(E$3:E$70)-ROW(E$3)+1),ROWS(E$76:E99)))) -> Student 55 | F99: =IF(ROWS(F$76:F99)>F$75,"",INDEX($A$3:$A$70,SMALL(IF(F$3:F$70="",ROW(F$3:F$70)-ROW(F$3)+1),ROWS(F$76:F99)))) -> Student 30 | G99: =IF(ROWS(G$76:G99)>G$75,"",INDEX($A$3:$A$70,SMALL(IF(G$3:G$70="",ROW(G$3:G$70)-ROW(G$3)+1),ROWS(G$76:G99)))) -> Student 28 | H99: =IF(ROWS(H$76:H99)>H$75,"",INDEX($A$3:$A$70,SMALL(IF(H$3:H$70="",ROW(H$3:H$70)-ROW(H$3)+1),ROWS(H$76:H99)))) -> Student 24 | I99: =IF(ROWS(I$76:I99)>I$75,"",INDEX($A$3:$A$70,SMALL(IF(I$3:I$70="",ROW(I$3:I$70)-ROW(I$3)+1),ROWS(I$76:I99)))) -> Student 24 | J99: =IF(ROWS(J$76:J99)>J$75,"",INDEX($A$3:$A$70,SMALL(IF(J$3:J$70="",ROW(J$3:J$70)-ROW(J$3)+1),ROWS(J$76:J99)))) -> Student 47 | K99: =IF(ROWS(K$76:K99)>K$75,"",INDEX($A$3:$A$70,SMALL(IF(K$3:K$70="",ROW(K$3:K$70)-ROW(K$3)+1),ROWS(K$76:K99)))) -> 
A100: ="#"&ROWS(A$76:A100) -> #25 | B100: =IF(ROWS(B$76:B100)>B$75,"",INDEX($A$3:$A$70,SMALL(IF(B$3:B$70="",ROW(B$3:B$70)-ROW(B$3)+1),ROWS(B$76:B100)))) ->  | C100: =IF(ROWS(C$76:C100)>C$75,"",INDEX($A$3:$A$70,SMALL(IF(C$3:C$70="",ROW(C$3:C$70)-ROW(C$3)+1),ROWS(C$76:C100)))) ->  | D100: =IF(ROWS(D$76:D100)>D$75,"",INDEX($A$3:$A$70,SMALL(IF(D$3:D$70="",ROW(D$3:D$70)-ROW(D$3)+1),ROWS(D$76:D100)))) ->  | E100: =IF(ROWS(E$76:E100)>E$75,"",INDEX($A$3:$A$70,SMALL(IF(E$3:E$70="",ROW(E$3:E$70)-ROW(E$3)+1),ROWS(E$76:E100)))) -> Student 56 | F100: =IF(ROWS(F$76:F100)>F$75,"",INDEX($A$3:$A$70,SMALL(IF(F$3:F$70="",ROW(F$3:F$70)-ROW(F$3)+1),ROWS(F$76:F100)))) -> Student 31 | G100: =IF(ROWS(G$76:G100)>G$75,"",INDEX($A$3:$A$70,SMALL(IF(G$3:G$70="",ROW(G$3:G$70)-ROW(G$3)+1),ROWS(G$76:G100)))) -> Student 29 | H100: =IF(ROWS(H$76:H100)>H$75,"",INDEX($A$3:$A$70,SMALL(IF(H$3:H$70="",ROW(H$3:H$70)-ROW(H$3)+1),ROWS(H$76:H100)))) -> Student 25 | I100: =IF(ROWS(I$76:I100)>I$75,"",INDEX($A$3:$A$70,SMALL(IF(I$3:I$70="",ROW(I$3:I$70)-ROW(I$3)+1),ROWS(I$76:I100)))) -> Student 25 | J100: =IF(ROWS(J$76:J100)>J$75,"",INDEX($A$3:$A$70,SMALL(IF(J$3:J$70="",ROW(J$3:J$70)-ROW(J$3)+1),ROWS(J$76:J100)))) -> Student 52 | K100: =IF(ROWS(K$76:K100)>K$75,"",INDEX($A$3:$A$70,SMALL(IF(K$3:K$70="",ROW(K$3:K$70)-ROW(K$3)+1),ROWS(K$76:K100)))) -> 
A101: ="#"&ROWS(A$76:A101) -> #26 | B101: =IF(ROWS(B$76:B101)>B$75,"",INDEX($A$3:$A$70,SMALL(IF(B$3:B$70="",ROW(B$3:B$70)-ROW(B$3)+1),ROWS(B$76:B101)))) ->  | C101: =IF(ROWS(C$76:C101)>C$75,"",INDEX($A$3:$A$70,SMALL(IF(C$3:C$70="",ROW(C$3:C$70)-ROW(C$3)+1),ROWS(C$76:C101)))) ->  | D101: =IF(ROWS(D$76:D101)>D$75,"",INDEX($A$3:$A$70,SMALL(IF(D$3:D$70="",ROW(D$3:D$70)-ROW(D$3)+1),ROWS(D$76:D101)))) ->  | E101: =IF(ROWS(E$76:E101)>E$75,"",INDEX($A$3:$A$70,SMALL(IF(E$3:E$70="",ROW(E$3:E$70)-ROW(E$3)+1),ROWS(E$76:E101)))) -> Student 58 | F101: =IF(ROWS(F$76:F101)>F$75,"",INDEX($A$3:$A$70,SMALL(IF(F$3:F$70="",ROW(F$3:F$70)-ROW(F$3)+1),ROWS(F$76:F101)))) -> Student 32 | G101: =IF(ROWS(G$76:G101)>G$75,"",INDEX($A$3:$A$70,SMALL(IF(G$3:G$70="",ROW(G$3:G$70)-ROW(G$3)+1),ROWS(G$76:G101)))) -> Student 30 | H101: =IF(ROWS(H$76:H101)>H$75,"",INDEX($A$3:$A$70,SMALL(IF(H$3:H$70="",ROW(H$3:H$70)-ROW(H$3)+1),ROWS(H$76:H101)))) -> Student 26 | I101: =IF(ROWS(I$76:I101)>I$75,"",INDEX($A$3:$A$70,SMALL(IF(I$3:I$70="",ROW(I$3:I$70)-ROW(I$3)+1),ROWS(I$76:I101)))) -> Student 26 | J101: =IF(ROWS(J$76:J101)>J$75,"",INDEX($A$3:$A$70,SMALL(IF(J$3:J$70="",ROW(J$3:J$70)-ROW(J$3)+1),ROWS(J$76:J101)))) -> Student 55 | K101: =IF(ROWS(K$76:K101)>K$75,"",INDEX($A$3:$A$70,SMALL(IF(K$3:K$70="",ROW(K$3:K$70)-ROW(K$3)+1),ROWS(K$76:K101)))) -> 
A102: ="#"&ROWS(A$76:A102) -> #27 | B102: =IF(ROWS(B$76:B102)>B$75,"",INDEX($A$3:$A$70,SMALL(IF(B$3:B$70="",ROW(B$3:B$70)-ROW(B$3)+1),ROWS(B$76:B102)))) ->  | C102: =IF(ROWS(C$76:C102)>C$75,"",INDEX($A$3:$A$70,SMALL(IF(C$3:C$70="",ROW(C$3:C$70)-ROW(C$3)+1),ROWS(C$76:C102)))) ->  | D102: =IF(ROWS(D$76:D102)>D$75,"",INDEX($A$3:$A$70,SMALL(IF(D$3:D$70="",ROW(D$3:D$70)-ROW(D$3)+1),ROWS(D$76:D102)))) ->  | E102: =IF(ROWS(E$76:E102)>E$75,"",INDEX($A$3:$A$70,SMALL(IF(E$3:E$70="",ROW(E$3:E$70)-ROW(E$3)+1),ROWS(E$76:E102)))) -> Student 59 | F102: =IF(ROWS(F$76:F102)>F$75,"",INDEX($A$3:$A$70,SMALL(IF(F$3:F$70="",ROW(F$3:F$70)-ROW(F$3)+1),ROWS(F$76:F102)))) -> Student 33 | G102: =IF(ROWS(G$76:G102)>G$75,"",INDEX($A$3:$A$70,SMALL(IF(G$3:G$70="",ROW(G$3:G$70)-ROW(G$3)+1),ROWS(G$76:G102)))) -> Student 31 | H102: =IF(ROWS(H$76:H102)>H$75,"",INDEX($A$3:$A$70,SMALL(IF(H$3:H$70="",ROW(H$3:H$70)-ROW(H$3)+1),ROWS(H$76:H102)))) -> Student 27 | I102: =IF(ROWS(I$76:I102)>I$75,"",INDEX($A$3:$A$70,SMALL(IF(I$3:I$70="",ROW(I$3:I$70)-ROW(I$3)+1),ROWS(I$76:I102)))) -> Student 27 | J102: =IF(ROWS(J$76:J102)>J$75,"",INDEX($A$3:$A$70,SMALL(IF(J$3:J$70="",ROW(J$3:J$70)-ROW(J$3)+1),ROWS(J$76:J102)))) -> Student 63 | K102: =IF(ROWS(K$76:K102)>K$75,"",INDEX($A$3:$A$70,SMALL(IF(K$3:K$70="",ROW(K$3:K$70)-ROW(K$3)+1),ROWS(K$76:K102)))) -> 
A103: ="#"&ROWS(A$76:A103) -> #28 | B103: =IF(ROWS(B$76:B103)>B$75,"",INDEX($A$3:$A$70,SMALL(IF(B$3:B$70="",ROW(B$3:B$70)-ROW(B$3)+1),ROWS(B$76:B103)))) ->  | C103: =IF(ROWS(C$76:C103)>C$75,"",INDEX($A$3:$A$70,SMALL(IF(C$3:C$70="",ROW(C$3:C$70)-ROW(C$3)+1),ROWS(C$76:C103)))) ->  | D103: =IF(ROWS(D$76:D103)>D$75,"",INDEX($A$3:$A$70,SMALL(IF(D$3:D$70="",ROW(D$3:D$70)-ROW(D$3)+1),ROWS(D$76:D103)))) ->  | E103: =IF(ROWS(E$76:E103)>E$75,"",INDEX($A$3:$A$70,SMALL(IF(E$3:E$70="",ROW(E$3:E$70)-ROW(E$3)+1),ROWS(E$76:E103)))) -> Student 60 | F103: =IF(ROWS(F$76:F103)>F$75,"",INDEX($A$3:$A$70,SMALL(IF(F$3:F$70="",ROW(F$3:F$70)-ROW(F$3)+1),ROWS(F$76:F103)))) -> Student 34 | G103: =IF(ROWS(G$76:G103)>G$75,"",INDEX($A$3:$A$70,SMALL(IF(G$3:G$70="",ROW(G$3:G$70)-ROW(G$3)+1),ROWS(G$76:G103)))) -> Student 32 | H103: =IF(ROWS(H$76:H103)>H$75,"",INDEX($A$3:$A$70,SMALL(IF(H$3:H$70="",ROW(H$3:H$70)-ROW(H$3)+1),ROWS(H$76:H103)))) -> Student 28 | I103: =IF(ROWS(I$76:I103)>I$75,"",INDEX($A$3:$A$70,SMALL(IF(I$3:I$70="",ROW(I$3:I$70)-ROW(I$3)+1),ROWS(I$76:I103)))) -> Student 28 | J103: =IF(ROWS(J$76:J103)>J$75,"",INDEX($A$3:$A$70,SMALL(IF(J$3:J$70="",ROW(J$3:J$70)-ROW(J$3)+1),ROWS(J$76:J103)))) -> Student 65 | K103: =IF(ROWS(K$76:K103)>K$75,"",INDEX($A$3:$A$70,SMALL(IF(K$3:K$70="",ROW(K$3:K$70)-ROW(K$3)+1),ROWS(K$76:K103)))) -> 
A104: ="#"&ROWS(A$76:A104) -> #29 | B104: =IF(ROWS(B$76:B104)>B$75,"",INDEX($A$3:$A$70,SMALL(IF(B$3:B$70="",ROW(B$3:B$70)-ROW(B$3)+1),ROWS(B$76:B104)))) ->  | C104: =IF(ROWS(C$76:C104)>C$75,"",INDEX($A$3:$A$70,SMALL(IF(C$3:C$70="",ROW(C$3:C$70)-ROW(C$3)+1),ROWS(C$76:C104)))) ->  | D104: =IF(ROWS(D$76:D104)>D$75,"",INDEX($A$3:$A$70,SMALL(IF(D$3:D$70="",ROW(D$3:D$70)-ROW(D$3)+1),ROWS(D$76:D104)))) ->  | E104: =IF(ROWS(E$76:E104)>E$75,"",INDEX($A$3:$A$70,SMALL(IF(E$3:E$70="",ROW(E$3:E$70)-ROW(E$3)+1),ROWS(E$76:E104)))) -> Student 61 | F104: =IF(ROWS(F$76:F104)>F$75,"",INDEX($A$3:$A$70,SMALL(IF(F$3:F$70="",ROW(F$3:F$70)-ROW(F$3)+1),ROWS(F$76:F104)))) -> Student 35 | G104: =IF(ROWS(G$76:G104)>G$75,"",INDEX($A$3:$A$70,SMALL(IF(G$3:G$70="",ROW(G$3:G$70)-ROW(G$3)+1),ROWS(G$76:G104)))) -> Student 33 | H104: =IF(ROWS(H$76:H104)>H$75,"",INDEX($A$3:$A$70,SMALL(IF(H$3:H$70="",ROW(H$3:H$70)-ROW(H$3)+1),ROWS(H$76:H104)))) -> Student 29 | I104: =IF(ROWS(I$76:I104)>I$75,"",INDEX($A$3:$A$70,SMALL(IF(I$3:I$70="",ROW(I$3:I$70)-ROW(I$3)+1),ROWS(I$76:I104)))) -> Student 29 | J104: =IF(ROWS(J$76:J104)>J$75,"",INDEX($A$3:$A$70,SMALL(IF(J$3:J$70="",ROW(J$3:J$70)-ROW(J$3)+1),ROWS(J$76:J104)))) -> Student 66 | K104: =IF(ROWS(K$76:K104)>K$75,"",INDEX($A$3:$A$70,SMALL(IF(K$3:K$70="",ROW(K$3:K$70)-ROW(K$3)+1),ROWS(K$76:K104)))) -> 
A105: ="#"&ROWS(A$76:A105) -> #30 | B105: =IF(ROWS(B$76:B105)>B$75,"",INDEX($A$3:$A$70,SMALL(IF(B$3:B$70="",ROW(B$3:B$70)-ROW(B$3)+1),ROWS(B$76:B105)))) ->  | C105: =IF(ROWS(C$76:C105)>C$75,"",INDEX($A$3:$A$70,SMALL(IF(C$3:C$70="",ROW(C$3:C$70)-ROW(C$3)+1),ROWS(C$76:C105)))) ->  | D105: =IF(ROWS(D$76:D105)>D$75,"",INDEX($A$3:$A$70,SMALL(IF(D$3:D$70="",ROW(D$3:D$70)-ROW(D$3)+1),ROWS(D$76:D105)))) ->  | E105: =IF(ROWS(E$76:E105)>E$75,"",INDEX($A$3:$A$70,SMALL(IF(E$3:E$70="",ROW(E$3:E$70)-ROW(E$3)+1),ROWS(E$76:E105)))) -> Student 62 | F105: =IF(ROWS(F$76:F105)>F$75,"",INDEX($A$3:$A$70,SMALL(IF(F$3:F$70="",ROW(F$3:F$70)-ROW(F$3)+1),ROWS(F$76:F105)))) -> Student 36 | G105: =IF(ROWS(G$76:G105)>G$75,"",INDEX($A$3:$A$70,SMALL(IF(G$3:G$70="",ROW(G$3:G$70)-ROW(G$3)+1),ROWS(G$76:G105)))) -> Student 35 | H105: =IF(ROWS(H$76:H105)>H$75,"",INDEX($A$3:$A$70,SMALL(IF(H$3:H$70="",ROW(H$3:H$70)-ROW(H$3)+1),ROWS(H$76:H105)))) -> Student 30 | I105: =IF(ROWS(I$76:I105)>I$75,"",INDEX($A$3:$A$70,SMALL(IF(I$3:I$70="",ROW(I$3:I$70)-ROW(I$3)+1),ROWS(I$76:I105)))) -> Student 30 | J105: =IF(ROWS(J$76:J105)>J$75,"",INDEX($A$3:$A$70,SMALL(IF(J$3:J$70="",ROW(J$3:J$70)-ROW(J$3)+1),ROWS(J$76:J105)))) -> Student 67 | K105: =IF(ROWS(K$76:K105)>K$75,"",INDEX($A$3:$A$70,SMALL(IF(K$3:K$70="",ROW(K$3:K$70)-ROW(K$3)+1),ROWS(K$76:K105)))) -> 
A106: ="#"&ROWS(A$76:A106) -> #31 | B106: =IF(ROWS(B$76:B106)>B$75,"",INDEX($A$3:$A$70,SMALL(IF(B$3:B$70="",ROW(B$3:B$70)-ROW(B$3)+1),ROWS(B$76:B106)))) ->  | C106: =IF(ROWS(C$76:C106)>C$75,"",INDEX($A$3:$A$70,SMALL(IF(C$3:C$70="",ROW(C$3:C$70)-ROW(C$3)+1),ROWS(C$76:C106)))) ->  | D106: =IF(ROWS(D$76:D106)>D$75,"",INDEX($A$3:$A$70,SMALL(IF(D$3:D$70="",ROW(D$3:D$70)-ROW(D$3)+1),ROWS(D$76:D106)))) ->  | E106: =IF(ROWS(E$76:E106)>E$75,"",INDEX($A$3:$A$70,SMALL(IF(E$3:E$70="",ROW(E$3:E$70)-ROW(E$3)+1),ROWS(E$76:E106)))) -> Student 63 | F106: =IF(ROWS(F$76:F106)>F$75,"",INDEX($A$3:$A$70,SMALL(IF(F$3:F$70="",ROW(F$3:F$70)-ROW(F$3)+1),ROWS(F$76:F106)))) -> Student 37 | G106: =IF(ROWS(G$76:G106)>G$75,"",INDEX($A$3:$A$70,SMALL(IF(G$3:G$70="",ROW(G$3:G$70)-ROW(G$3)+1),ROWS(G$76:G106)))) -> Student 37 | H106: =IF(ROWS(H$76:H106)>H$75,"",INDEX($A$3:$A$70,SMALL(IF(H$3:H$70="",ROW(H$3:H$70)-ROW(H$3)+1),ROWS(H$76:H106)))) -> Student 31 | I106: =IF(ROWS(I$76:I106)>I$75,"",INDEX($A$3:$A$70,SMALL(IF(I$3:I$70="",ROW(I$3:I$70)-ROW(I$3)+1),ROWS(I$76:I106)))) -> Student 31 | J106: =IF(ROWS(J$76:J106)>J$75,"",INDEX($A$3:$A$70,SMALL(IF(J$3:J$70="",ROW(J$3:J$70)-ROW(J$3)+1),ROWS(J$76:J106)))) -> Student 68 | K106: =IF(ROWS(K$76:K106)>K$75,"",INDEX($A$3:$A$70,SMALL(IF(K$3:K$70="",ROW(K$3:K$70)-ROW(K$3)+1),ROWS(K$76:K106)))) -> 
A107: ="#"&ROWS(A$76:A107) -> #32 | B107: =IF(ROWS(B$76:B107)>B$75,"",INDEX($A$3:$A$70,SMALL(IF(B$3:B$70="",ROW(B$3:B$70)-ROW(B$3)+1),ROWS(B$76:B107)))) ->  | C107: =IF(ROWS(C$76:C107)>C$75,"",INDEX($A$3:$A$70,SMALL(IF(C$3:C$70="",ROW(C$3:C$70)-ROW(C$3)+1),ROWS(C$76:C107)))) ->  | D107: =IF(ROWS(D$76:D107)>D$75,"",INDEX($A$3:$A$70,SMALL(IF(D$3:D$70="",ROW(D$3:D$70)-ROW(D$3)+1),ROWS(D$76:D107)))) ->  | E107: =IF(ROWS(E$76:E107)>E$75,"",INDEX($A$3:$A$70,SMALL(IF(E$3:E$70="",ROW(E$3:E$70)-ROW(E$3)+1),ROWS(E$76:E107)))) -> Student 65 | F107: =IF(ROWS(F$76:F107)>F$75,"",INDEX($A$3:$A$70,SMALL(IF(F$3:F$70="",ROW(F$3:F$70)-ROW(F$3)+1),ROWS(F$76:F107)))) -> Student 38 | G107: =IF(ROWS(G$76:G107)>G$75,"",INDEX($A$3:$A$70,SMALL(IF(G$3:G$70="",ROW(G$3:G$70)-ROW(G$3)+1),ROWS(G$76:G107)))) -> Student 38 | H107: =IF(ROWS(H$76:H107)>H$75,"",INDEX($A$3:$A$70,SMALL(IF(H$3:H$70="",ROW(H$3:H$70)-ROW(H$3)+1),ROWS(H$76:H107)))) -> Student 32 | I107: =IF(ROWS(I$76:I107)>I$75,"",INDEX($A$3:$A$70,SMALL(IF(I$3:I$70="",ROW(I$3:I$70)-ROW(I$3)+1),ROWS(I$76:I107)))) -> Student 32 | J107: =IF(ROWS(J$76:J107)>J$75,"",INDEX($A$3:$A$70,SMALL(IF(J$3:J$70="",ROW(J$3:J$70)-ROW(J$3)+1),ROWS(J$76:J107)))) ->  | K107: =IF(ROWS(K$76:K107)>K$75,"",INDEX($A$3:$A$70,SMALL(IF(K$3:K$70="",ROW(K$3:K$70)-ROW(K$3)+1),ROWS(K$76:K107)))) -> 
A108: ="#"&ROWS(A$76:A108) -> #33 | B108: =IF(ROWS(B$76:B108)>B$75,"",INDEX($A$3:$A$70,SMALL(IF(B$3:B$70="",ROW(B$3:B$70)-ROW(B$3)+1),ROWS(B$76:B108)))) ->  | C108: =IF(ROWS(C$76:C108)>C$75,"",INDEX($A$3:$A$70,SMALL(IF(C$3:C$70="",ROW(C$3:C$70)-ROW(C$3)+1),ROWS(C$76:C108)))) ->  | D108: =IF(ROWS(D$76:D108)>D$75,"",INDEX($A$3:$A$70,SMALL(IF(D$3:D$70="",ROW(D$3:D$70)-ROW(D$3)+1),ROWS(D$76:D108)))) ->  | E108: =IF(ROWS(E$76:E108)>E$75,"",INDEX($A$3:$A$70,SMALL(IF(E$3:E$70="",ROW(E$3:E$70)-ROW(E$3)+1),ROWS(E$76:E108)))) -> Student 66 | F108: =IF(ROWS(F$76:F108)>F$75,"",INDEX($A$3:$A$70,SMALL(IF(F$3:F$70="",ROW(F$3:F$70)-ROW(F$3)+1),ROWS(F$76:F108)))) -> Student 39 | G108: =IF(ROWS(G$76:G108)>G$75,"",INDEX($A$3:$A$70,SMALL(IF(G$3:G$70="",ROW(G$3:G$70)-ROW(G$3)+1),ROWS(G$76:G108)))) -> Student 39 | H108: =IF(ROWS(H$76:H108)>H$75,"",INDEX($A$3:$A$70,SMALL(IF(H$3:H$70="",ROW(H$3:H$70)-ROW(H$3)+1),ROWS(H$76:H108)))) -> Student 33 | I108: =IF(ROWS(I$76:I108)>I$75,"",INDEX($A$3:$A$70,SMALL(IF(I$3:I$70="",ROW(I$3:I$70)-ROW(I$3)+1),ROWS(I$76:I108)))) -> Student 33 | J108: =IF(ROWS(J$76:J108)>J$75,"",INDEX($A$3:$A$70,SMALL(IF(J$3:J$70="",ROW(J$3:J$70)-ROW(J$3)+1),ROWS(J$76:J108)))) ->  | K108: =IF(ROWS(K$76:K108)>K$75,"",INDEX($A$3:$A$70,SMALL(IF(K$3:K$70="",ROW(K$3:K$70)-ROW(K$3)+1),ROWS(K$76:K108)))) -> 
A109: ="#"&ROWS(A$76:A109) -> #34 | B109: =IF(ROWS(B$76:B109)>B$75,"",INDEX($A$3:$A$70,SMALL(IF(B$3:B$70="",ROW(B$3:B$70)-ROW(B$3)+1),ROWS(B$76:B109)))) ->  | C109: =IF(ROWS(C$76:C109)>C$75,"",INDEX($A$3:$A$70,SMALL(IF(C$3:C$70="",ROW(C$3:C$70)-ROW(C$3)+1),ROWS(C$76:C109)))) ->  | D109: =IF(ROWS(D$76:D109)>D$75,"",INDEX($A$3:$A$70,SMALL(IF(D$3:D$70="",ROW(D$3:D$70)-ROW(D$3)+1),ROWS(D$76:D109)))) ->  | E109: =IF(ROWS(E$76:E109)>E$75,"",INDEX($A$3:$A$70,SMALL(IF(E$3:E$70="",ROW(E$3:E$70)-ROW(E$3)+1),ROWS(E$76:E109)))) -> Student 67 | F109: =IF(ROWS(F$76:F109)>F$75,"",INDEX($A$3:$A$70,SMALL(IF(F$3:F$70="",ROW(F$3:F$70)-ROW(F$3)+1),ROWS(F$76:F109)))) -> Student 40 | G109: =IF(ROWS(G$76:G109)>G$75,"",INDEX($A$3:$A$70,SMALL(IF(G$3:G$70="",ROW(G$3:G$70)-ROW(G$3)+1),ROWS(G$76:G109)))) -> Student 40 | H109: =IF(ROWS(H$76:H109)>H$75,"",INDEX($A$3:$A$70,SMALL(IF(H$3:H$70="",ROW(H$3:H$70)-ROW(H$3)+1),ROWS(H$76:H109)))) -> Student 35 | I109: =IF(ROWS(I$76:I109)>I$75,"",INDEX($A$3:$A$70,SMALL(IF(I$3:I$70="",ROW(I$3:I$70)-ROW(I$3)+1),ROWS(I$76:I109)))) -> Student 34 | J109: =IF(ROWS(J$76:J109)>J$75,"",INDEX($A$3:$A$70,SMALL(IF(J$3:J$70="",ROW(J$3:J$70)-ROW(J$3)+1),ROWS(J$76:J109)))) ->  | K109: =IF(ROWS(K$76:K109)>K$75,"",INDEX($A$3:$A$70,SMALL(IF(K$3:K$70="",ROW(K$3:K$70)-ROW(K$3)+1),ROWS(K$76:K109)))) -> 
A110: ="#"&ROWS(A$76:A110) -> #35 | B110: =IF(ROWS(B$76:B110)>B$75,"",INDEX($A$3:$A$70,SMALL(IF(B$3:B$70="",ROW(B$3:B$70)-ROW(B$3)+1),ROWS(B$76:B110)))) ->  | C110: =IF(ROWS(C$76:C110)>C$75,"",INDEX($A$3:$A$70,SMALL(IF(C$3:C$70="",ROW(C$3:C$70)-ROW(C$3)+1),ROWS(C$76:C110)))) ->  | D110: =IF(ROWS(D$76:D110)>D$75,"",INDEX($A$3:$A$70,SMALL(IF(D$3:D$70="",ROW(D$3:D$70)-ROW(D$3)+1),ROWS(D$76:D110)))) ->  | E110: =IF(ROWS(E$76:E110)>E$75,"",INDEX($A$3:$A$70,SMALL(IF(E$3:E$70="",ROW(E$3:E$70)-ROW(E$3)+1),ROWS(E$76:E110)))) -> Student 68 | F110: =IF(ROWS(F$76:F110)>F$75,"",INDEX($A$3:$A$70,SMALL(IF(F$3:F$70="",ROW(F$3:F$70)-ROW(F$3)+1),ROWS(F$76:F110)))) -> Student 41 | G110: =IF(ROWS(G$76:G110)>G$75,"",INDEX($A$3:$A$70,SMALL(IF(G$3:G$70="",ROW(G$3:G$70)-ROW(G$3)+1),ROWS(G$76:G110)))) -> Student 41 | H110: =IF(ROWS(H$76:H110)>H$75,"",INDEX($A$3:$A$70,SMALL(IF(H$3:H$70="",ROW(H$3:H$70)-ROW(H$3)+1),ROWS(H$76:H110)))) -> Student 36 | I110: =IF(ROWS(I$76:I110)>I$75,"",INDEX($A$3:$A$70,SMALL(IF(I$3:I$70="",ROW(I$3:I$70)-ROW(I$3)+1),ROWS(I$76:I110)))) -> Student 35 | J110: =IF(ROWS(J$76:J110)>J$75,"",INDEX($A$3:$A$70,SMALL(IF(J$3:J$70="",ROW(J$3:J$70)-ROW(J$3)+1),ROWS(J$76:J110)))) ->  | K110: =IF(ROWS(K$76:K110)>K$75,"",INDEX($A$3:$A$70,SMALL(IF(K$3:K$70="",ROW(K$3:K$70)-ROW(K$3)+1),ROWS(K$76:K110)))) -> 
A111: ="#"&ROWS(A$76:A111) -> #36 | B111: =IF(ROWS(B$76:B111)>B$75,"",INDEX($A$3:$A$70,SMALL(IF(B$3:B$70="",ROW(B$3:B$70)-ROW(B$3)+1),ROWS(B$76:B111)))) ->  | C111: =IF(ROWS(C$76:C111)>C$75,"",INDEX($A$3:$A$70,SMALL(IF(C$3:C$70="",ROW(C$3:C$70)-ROW(C$3)+1),ROWS(C$76:C111)))) ->  | D111: =IF(ROWS(D$76:D111)>D$75,"",INDEX($A$3:$A$70,SMALL(IF(D$3:D$70="",ROW(D$3:D$70)-ROW(D$3)+1),ROWS(D$76:D111)))) ->  | E111: =IF(ROWS(E$76:E111)>E$75,"",INDEX($A$3:$A$70,SMALL(IF(E$3:E$70="",ROW(E$3:E$70)-ROW(E$3)+1),ROWS(E$76:E111)))) ->  | F111: =IF(ROWS(F$76:F111)>F$75,"",INDEX($A$3:$A$70,SMALL(IF(F$3:F$70="",ROW(F$3:F$70)-ROW(F$3)+1),ROWS(F$76:F111)))) -> Student 42 | G111: =IF(ROWS(G$76:G111)>G$75,"",INDEX($A$3:$A$70,SMALL(IF(G$3:G$70="",ROW(G$3:G$70)-ROW(G$3)+1),ROWS(G$76:G111)))) -> Student 42 | H111: =IF(ROWS(H$76:H111)>H$75,"",INDEX($A$3:$A$70,SMALL(IF(H$3:H$70="",ROW(H$3:H$70)-ROW(H$3)+1),ROWS(H$76:H111)))) -> Student 37 | I111: =IF(ROWS(I$76:I111)>I$75,"",INDEX($A$3:$A$70,SMALL(IF(I$3:I$70="",ROW(I$3:I$70)-ROW(I$3)+1),ROWS(I$76:I111)))) -> Student 36 | J111: =IF(ROWS(J$76:J111)>J$75,"",INDEX($A$3:$A$70,SMALL(IF(J$3:J$70="",ROW(J$3:J$70)-ROW(J$3)+1),ROWS(J$76:J111)))) ->  | K111: =IF(ROWS(K$76:K111)>K$75,"",INDEX($A$3:$A$70,SMALL(IF(K$3:K$70="",ROW(K$3:K$70)-ROW(K$3)+1),ROWS(K$76:K111)))) -> 
A112: ="#"&ROWS(A$76:A112) -> #37 | B112: =IF(ROWS(B$76:B112)>B$75,"",INDEX($A$3:$A$70,SMALL(IF(B$3:B$70="",ROW(B$3:B$70)-ROW(B$3)+1),ROWS(B$76:B112)))) ->  | C112: =IF(ROWS(C$76:C112)>C$75,"",INDEX($A$3:$A$70,SMALL(IF(C$3:C$70="",ROW(C$3:C$70)-ROW(C$3)+1),ROWS(C$76:C112)))) ->  | D112: =IF(ROWS(D$76:D112)>D$75,"",INDEX($A$3:$A$70,SMALL(IF(D$3:D$70="",ROW(D$3:D$70)-ROW(D$3)+1),ROWS(D$76:D112)))) ->  | E112: =IF(ROWS(E$76:E112)>E$75,"",INDEX($A$3:$A$70,SMALL(IF(E$3:E$70="",ROW(E$3:E$70)-ROW(E$3)+1),ROWS(E$76:E112)))) ->  | F112: =IF(ROWS(F$76:F112)>F$75,"",INDEX($A$3:$A$70,SMALL(IF(F$3:F$70="",ROW(F$3:F$70)-ROW(F$3)+1),ROWS(F$76:F112)))) -> Student 43 | G112: =IF(ROWS(G$76:G112)>G$75,"",INDEX($A$3:$A$70,SMALL(IF(G$3:G$70="",ROW(G$3:G$70)-ROW(G$3)+1),ROWS(G$76:G112)))) -> Student 44 | H112: =IF(ROWS(H$76:H112)>H$75,"",INDEX($A$3:$A$70,SMALL(IF(H$3:H$70="",ROW(H$3:H$70)-ROW(H$3)+1),ROWS(H$76:H112)))) -> Student 38 | I112: =IF(ROWS(I$76:I112)>I$75,"",INDEX($A$3:$A$70,SMALL(IF(I$3:I$70="",ROW(I$3:I$70)-ROW(I$3)+1),ROWS(I$76:I112)))) -> Student 37 | J112: =IF(ROWS(J$76:J112)>J$75,"",INDEX($A$3:$A$70,SMALL(IF(J$3:J$70="",ROW(J$3:J$70)-ROW(J$3)+1),ROWS(J$76:J112)))) ->  | K112: =IF(ROWS(K$76:K112)>K$75,"",INDEX($A$3:$A$70,SMALL(IF(K$3:K$70="",ROW(K$3:K$70)-ROW(K$3)+1),ROWS(K$76:K112)))) -> 
A113: ="#"&ROWS(A$76:A113) -> #38 | B113: =IF(ROWS(B$76:B113)>B$75,"",INDEX($A$3:$A$70,SMALL(IF(B$3:B$70="",ROW(B$3:B$70)-ROW(B$3)+1),ROWS(B$76:B113)))) ->  | C113: =IF(ROWS(C$76:C113)>C$75,"",INDEX($A$3:$A$70,SMALL(IF(C$3:C$70="",ROW(C$3:C$70)-ROW(C$3)+1),ROWS(C$76:C113)))) ->  | D113: =IF(ROWS(D$76:D113)>D$75,"",INDEX($A$3:$A$70,SMALL(IF(D$3:D$70="",ROW(D$3:D$70)-ROW(D$3)+1),ROWS(D$76:D113)))) ->  | E113: =IF(ROWS(E$76:E113)>E$75,"",INDEX($A$3:$A$70,SMALL(IF(E$3:E$70="",ROW(E$3:E$70)-ROW(E$3)+1),ROWS(E$76:E113)))) ->  | F113: =IF(ROWS(F$76:F113)>F$75,"",INDEX($A$3:$A$70,SMALL(IF(F$3:F$70="",ROW(F$3:F$70)-ROW(F$3)+1),ROWS(F$76:F113)))) -> Student 44 | G113: =IF(ROWS(G$76:G113)>G$75,"",INDEX($A$3:$A$70,SMALL(IF(G$3:G$70="",ROW(G$3:G$70)-ROW(G$3)+1),ROWS(G$76:G113)))) -> Student 45 | H113: =IF(ROWS(H$76:H113)>H$75,"",INDEX($A$3:$A$70,SMALL(IF(H$3:H$70="",ROW(H$3:H$70)-ROW(H$3)+1),ROWS(H$76:H113)))) -> Student 39 | I113: =IF(ROWS(I$76:I113)>I$75,"",INDEX($A$3:$A$70,SMALL(IF(I$3:I$70="",ROW(I$3:I$70)-ROW(I$3)+1),ROWS(I$76:I113)))) -> Student 38 | J113: =IF(ROWS(J$76:J113)>J$75,"",INDEX($A$3:$A$70,SMALL(IF(J$3:J$70="",ROW(J$3:J$70)-ROW(J$3)+1),ROWS(J$76:J113)))) ->  | K113: =IF(ROWS(K$76:K113)>K$75,"",INDEX($A$3:$A$70,SMALL(IF(K$3:K$70="",ROW(K$3:K$70)-ROW(K$3)+1),ROWS(K$76:K113)))) -> 
A114: ="#"&ROWS(A$76:A114) -> #39 | B114: =IF(ROWS(B$76:B114)>B$75,"",INDEX($A$3:$A$70,SMALL(IF(B$3:B$70="",ROW(B$3:B$70)-ROW(B$3)+1),ROWS(B$76:B114)))) ->  | C114: =IF(ROWS(C$76:C114)>C$75,"",INDEX($A$3:$A$70,SMALL(IF(C$3:C$70="",ROW(C$3:C$70)-ROW(C$3)+1),ROWS(C$76:C114)))) ->  | D114: =IF(ROWS(D$76:D114)>D$75,"",INDEX($A$3:$A$70,SMALL(IF(D$3:D$70="",ROW(D$3:D$70)-ROW(D$3)+1),ROWS(D$76:D114)))) ->  | E114: =IF(ROWS(E$76:E114)>E$75,"",INDEX($A$3:$A$70,SMALL(IF(E$3:E$70="",ROW(E$3:E$70)-ROW(E$3)+1),ROWS(E$76:E114)))) ->  | F114: =IF(ROWS(F$76:F114)>F$75,"",INDEX($A$3:$A$70,SMALL(IF(F$3:F$70="",ROW(F$3:F$70)-ROW(F$3)+1),ROWS(F$76:F114)))) -> Student 45 | G114: =IF(ROWS(G$76:G114)>G$75,"",INDEX($A$3:$A$70,SMALL(IF(G$3:G$70="",ROW(G$3:G$70)-ROW(G$3)+1),ROWS(G$76:G114)))) -> Student 46 | H114: =IF(ROWS(H$76:H114)>H$75,"",INDEX($A$3:$A$70,SMALL(IF(H$3:H$70="",ROW(H$3:H$70)-ROW(H$3)+1),ROWS(H$76:H114)))) -> Student 40 | I114: =IF(ROWS(I$76:I114)>I$75,"",INDEX($A$3:$A$70,SMALL(IF(I$3:I$70="",ROW(I$3:I$70)-ROW(I$3)+1),ROWS(I$76:I114)))) -> Student 39 | J114: =IF(ROWS(J$76:J114)>J$75,"",INDEX($A$3:$A$70,SMALL(IF(J$3:J$70="",ROW(J$3:J$70)-ROW(J$3)+1),ROWS(J$76:J114)))) ->  | K114: =IF(ROWS(K$76:K114)>K$75,"",INDEX($A$3:$A$70,SMALL(IF(K$3:K$70="",ROW(K$3:K$70)-ROW(K$3)+1),ROWS(K$76:K114)))) -> 
A115: ="#"&ROWS(A$76:A115) -> #40 | B115: =IF(ROWS(B$76:B115)>B$75,"",INDEX($A$3:$A$70,SMALL(IF(B$3:B$70="",ROW(B$3:B$70)-ROW(B$3)+1),ROWS(B$76:B115)))) ->  | C115: =IF(ROWS(C$76:C115)>C$75,"",INDEX($A$3:$A$70,SMALL(IF(C$3:C$70="",ROW(C$3:C$70)-ROW(C$3)+1),ROWS(C$76:C115)))) ->  | D115: =IF(ROWS(D$76:D115)>D$75,"",INDEX($A$3:$A$70,SMALL(IF(D$3:D$70="",ROW(D$3:D$70)-ROW(D$3)+1),ROWS(D$76:D115)))) ->  | E115: =IF(ROWS(E$76:E115)>E$75,"",INDEX($A$3:$A$70,SMALL(IF(E$3:E$70="",ROW(E$3:E$70)-ROW(E$3)+1),ROWS(E$76:E115)))) ->  | F115: =IF(ROWS(F$76:F115)>F$75,"",INDEX($A$3:$A$70,SMALL(IF(F$3:F$70="",ROW(F$3:F$70)-ROW(F$3)+1),ROWS(F$76:F115)))) -> Student 46 | G115: =IF(ROWS(G$76:G115)>G$75,"",INDEX($A$3:$A$70,SMALL(IF(G$3:G$70="",ROW(G$3:G$70)-ROW(G$3)+1),ROWS(G$76:G115)))) -> Student 47 | H115: =IF(ROWS(H$76:H115)>H$75,"",INDEX($A$3:$A$70,SMALL(IF(H$3:H$70="",ROW(H$3:H$70)-ROW(H$3)+1),ROWS(H$76:H115)))) -> Student 41 | I115: =IF(ROWS(I$76:I115)>I$75,"",INDEX($A$3:$A$70,SMALL(IF(I$3:I$70="",ROW(I$3:I$70)-ROW(I$3)+1),ROWS(I$76:I115)))) -> Student 40 | J115: =IF(ROWS(J$76:J115)>J$75,"",INDEX($A$3:$A$70,SMALL(IF(J$3:J$70="",ROW(J$3:J$70)-ROW(J$3)+1),ROWS(J$76:J115)))) ->  | K115: =IF(ROWS(K$76:K115)>K$75,"",INDEX($A$3:$A$70,SMALL(IF(K$3:K$70="",ROW(K$3:K$70)-ROW(K$3)+1),ROWS(K$76:K115)))) -> 
A116: ="#"&ROWS(A$76:A116) -> #41 | B116: =IF(ROWS(B$76:B116)>B$75,"",INDEX($A$3:$A$70,SMALL(IF(B$3:B$70="",ROW(B$3:B$70)-ROW(B$3)+1),ROWS(B$76:B116)))) ->  | C116: =IF(ROWS(C$76:C116)>C$75,"",INDEX($A$3:$A$70,SMALL(IF(C$3:C$70="",ROW(C$3:C$70)-ROW(C$3)+1),ROWS(C$76:C116)))) ->  | D116: =IF(ROWS(D$76:D116)>D$75,"",INDEX($A$3:$A$70,SMALL(IF(D$3:D$70="",ROW(D$3:D$70)-ROW(D$3)+1),ROWS(D$76:D116)))) ->  | E116: =IF(ROWS(E$76:E116)>E$75,"",INDEX($A$3:$A$70,SMALL(IF(E$3:E$70="",ROW(E$3:E$70)-ROW(E$3)+1),ROWS(E$76:E116)))) ->  | F116: =IF(ROWS(F$76:F116)>F$75,"",INDEX($A$3:$A$70,SMALL(IF(F$3:F$70="",ROW(F$3:F$70)-ROW(F$3)+1),ROWS(F$76:F116)))) -> Student 47 | G116: =IF(ROWS(G$76:G116)>G$75,"",INDEX($A$3:$A$70,SMALL(IF(G$3:G$70="",ROW(G$3:G$70)-ROW(G$3)+1),ROWS(G$76:G116)))) -> Student 48 | H116: =IF(ROWS(H$76:H116)>H$75,"",INDEX($A$3:$A$70,SMALL(IF(H$3:H$70="",ROW(H$3:H$70)-ROW(H$3)+1),ROWS(H$76:H116)))) -> Student 42 | I116: =IF(ROWS(I$76:I116)>I$75,"",INDEX($A$3:$A$70,SMALL(IF(I$3:I$70="",ROW(I$3:I$70)-ROW(I$3)+1),ROWS(I$76:I116)))) -> Student 41 | J116: =IF(ROWS(J$76:J116)>J$75,"",INDEX($A$3:$A$70,SMALL(IF(J$3:J$70="",ROW(J$3:J$70)-ROW(J$3)+1),ROWS(J$76:J116)))) ->  | K116: =IF(ROWS(K$76:K116)>K$75,"",INDEX($A$3:$A$70,SMALL(IF(K$3:K$70="",ROW(K$3:K$70)-ROW(K$3)+1),ROWS(K$76:K116)))) -> 
A117: ="#"&ROWS(A$76:A117) -> #42 | B117: =IF(ROWS(B$76:B117)>B$75,"",INDEX($A$3:$A$70,SMALL(IF(B$3:B$70="",ROW(B$3:B$70)-ROW(B$3)+1),ROWS(B$76:B117)))) ->  | C117: =IF(ROWS(C$76:C117)>C$75,"",INDEX($A$3:$A$70,SMALL(IF(C$3:C$70="",ROW(C$3:C$70)-ROW(C$3)+1),ROWS(C$76:C117)))) ->  | D117: =IF(ROWS(D$76:D117)>D$75,"",INDEX($A$3:$A$70,SMALL(IF(D$3:D$70="",ROW(D$3:D$70)-ROW(D$3)+1),ROWS(D$76:D117)))) ->  | E117: =IF(ROWS(E$76:E117)>E$75,"",INDEX($A$3:$A$70,SMALL(IF(E$3:E$70="",ROW(E$3:E$70)-ROW(E$3)+1),ROWS(E$76:E117)))) ->  | F117: =IF(ROWS(F$76:F117)>F$75,"",INDEX($A$3:$A$70,SMALL(IF(F$3:F$70="",ROW(F$3:F$70)-ROW(F$3)+1),ROWS(F$76:F117)))) -> Student 49 | G117: =IF(ROWS(G$76:G117)>G$75,"",INDEX($A$3:$A$70,SMALL(IF(G$3:G$70="",ROW(G$3:G$70)-ROW(G$3)+1),ROWS(G$76:G117)))) -> Student 49 | H117: =IF(ROWS(H$76:H117)>H$75,"",INDEX($A$3:$A$70,SMALL(IF(H$3:H$70="",ROW(H$3:H$70)-ROW(H$3)+1),ROWS(H$76:H117)))) -> Student 43 | I117: =IF(ROWS(I$76:I117)>I$75,"",INDEX($A$3:$A$70,SMALL(IF(I$3:I$70="",ROW(I$3:I$70)-ROW(I$3)+1),ROWS(I$76:I117)))) -> Student 42 | J117: =IF(ROWS(J$76:J117)>J$75,"",INDEX($A$3:$A$70,SMALL(IF(J$3:J$70="",ROW(J$3:J$70)-ROW(J$3)+1),ROWS(J$76:J117)))) ->  | K117: =IF(ROWS(K$76:K117)>K$75,"",INDEX($A$3:$A$70,SMALL(IF(K$3:K$70="",ROW(K$3:K$70)-ROW(K$3)+1),ROWS(K$76:K117)))) -> 
A118: ="#"&ROWS(A$76:A118) -> #43 | B118: =IF(ROWS(B$76:B118)>B$75,"",INDEX($A$3:$A$70,SMALL(IF(B$3:B$70="",ROW(B$3:B$70)-ROW(B$3)+1),ROWS(B$76:B118)))) ->  | C118: =IF(ROWS(C$76:C118)>C$75,"",INDEX($A$3:$A$70,SMALL(IF(C$3:C$70="",ROW(C$3:C$70)-ROW(C$3)+1),ROWS(C$76:C118)))) ->  | D118: =IF(ROWS(D$76:D118)>D$75,"",INDEX($A$3:$A$70,SMALL(IF(D$3:D$70="",ROW(D$3:D$70)-ROW(D$3)+1),ROWS(D$76:D118)))) ->  | E118: =IF(ROWS(E$76:E118)>E$75,"",INDEX($A$3:$A$70,SMALL(IF(E$3:E$70="",ROW(E$3:E$70)-ROW(E$3)+1),ROWS(E$76:E118)))) ->  | F118: =IF(ROWS(F$76:F118)>F$75,"",INDEX($A$3:$A$70,SMALL(IF(F$3:F$70="",ROW(F$3:F$70)-ROW(F$3)+1),ROWS(F$76:F118)))) -> Student 50 | G118: =IF(ROWS(G$76:G118)>G$75,"",INDEX($A$3:$A$70,SMALL(IF(G$3:G$70="",ROW(G$3:G$70)-ROW(G$3)+1),ROWS(G$76:G118)))) -> Student 50 | H118: =IF(ROWS(H$76:H118)>H$75,"",INDEX($A$3:$A$70,SMALL(IF(H$3:H$70="",ROW(H$3:H$70)-ROW(H$3)+1),ROWS(H$76:H118)))) -> Student 44 | I118: =IF(ROWS(I$76:I118)>I$75,"",INDEX($A$3:$A$70,SMALL(IF(I$3:I$70="",ROW(I$3:I$70)-ROW(I$3)+1),ROWS(I$76:I118)))) -> Student 43 | J118: =IF(ROWS(J$76:J118)>J$75,"",INDEX($A$3:$A$70,SMALL(IF(J$3:J$70="",ROW(J$3:J$70)-ROW(J$3)+1),ROWS(J$76:J118)))) ->  | K118: =IF(ROWS(K$76:K118)>K$75,"",INDEX($A$3:$A$70,SMALL(IF(K$3:K$70="",ROW(K$3:K$70)-ROW(K$3)+1),ROWS(K$76:K118)))) -> 
A119: ="#"&ROWS(A$76:A119) -> #44 | B119: =IF(ROWS(B$76:B119)>B$75,"",INDEX($A$3:$A$70,SMALL(IF(B$3:B$70="",ROW(B$3:B$70)-ROW(B$3)+1),ROWS(B$76:B119)))) ->  | C119: =IF(ROWS(C$76:C119)>C$75,"",INDEX($A$3:$A$70,SMALL(IF(C$3:C$70="",ROW(C$3:C$70)-ROW(C$3)+1),ROWS(C$76:C119)))) ->  | D119: =IF(ROWS(D$76:D119)>D$75,"",INDEX($A$3:$A$70,SMALL(IF(D$3:D$70="",ROW(D$3:D$70)-ROW(D$3)+1),ROWS(D$76:D119)))) ->  | E119: =IF(ROWS(E$76:E119)>E$75,"",INDEX($A$3:$A$70,SMALL(IF(E$3:E$70="",ROW(E$3:E$70)-ROW(E$3)+1),ROWS(E$76:E119)))) ->  | F119: =IF(ROWS(F$76:F119)>F$75,"",INDEX($A$3:$A$70,SMALL(IF(F$3:F$70="",ROW(F$3:F$70)-ROW(F$3)+1),ROWS(F$76:F119)))) -> Student 51 | G119: =IF(ROWS(G$76:G119)>G$75,"",INDEX($A$3:$A$70,SMALL(IF(G$3:G$70="",ROW(G$3:G$70)-ROW(G$3)+1),ROWS(G$76:G119)))) -> Student 51 | H119: =IF(ROWS(H$76:H119)>H$75,"",INDEX($A$3:$A$70,SMALL(IF(H$3:H$70="",ROW(H$3:H$70)-ROW(H$3)+1),ROWS(H$76:H119)))) -> Student 45 | I119: =IF(ROWS(I$76:I119)>I$75,"",INDEX($A$3:$A$70,SMALL(IF(I$3:I$70="",ROW(I$3:I$70)-ROW(I$3)+1),ROWS(I$76:I119)))) -> Student 44 | J119: =IF(ROWS(J$76:J119)>J$75,"",INDEX($A$3:$A$70,SMALL(IF(J$3:J$70="",ROW(J$3:J$70)-ROW(J$3)+1),ROWS(J$76:J119)))) ->  | K119: =IF(ROWS(K$76:K119)>K$75,"",INDEX($A$3:$A$70,SMALL(IF(K$3:K$70="",ROW(K$3:K$70)-ROW(K$3)+1),ROWS(K$76:K119)))) -> 
A120: ="#"&ROWS(A$76:A120) -> #45 | B120: =IF(ROWS(B$76:B120)>B$75,"",INDEX($A$3:$A$70,SMALL(IF(B$3:B$70="",ROW(B$3:B$70)-ROW(B$3)+1),ROWS(B$76:B120)))) ->  | C120: =IF(ROWS(C$76:C120)>C$75,"",INDEX($A$3:$A$70,SMALL(IF(C$3:C$70="",ROW(C$3:C$70)-ROW(C$3)+1),ROWS(C$76:C120)))) ->  | D120: =IF(ROWS(D$76:D120)>D$75,"",INDEX($A$3:$A$70,SMALL(IF(D$3:D$70="",ROW(D$3:D$70)-ROW(D$3)+1),ROWS(D$76:D120)))) ->  | E120: =IF(ROWS(E$76:E120)>E$75,"",INDEX($A$3:$A$70,SMALL(IF(E$3:E$70="",ROW(E$3:E$70)-ROW(E$3)+1),ROWS(E$76:E120)))) ->  | F120: =IF(ROWS(F$76:F120)>F$75,"",INDEX($A$3:$A$70,SMALL(IF(F$3:F$70="",ROW(F$3:F$70)-ROW(F$3)+1),ROWS(F$76:F120)))) -> Student 52 | G120: =IF(ROWS(G$76:G120)>G$75,"",INDEX($A$3:$A$70,SMALL(IF(G$3:G$70="",ROW(G$3:G$70)-ROW(G$3)+1),ROWS(G$76:G120)))) -> Student 52 | H120: =IF(ROWS(H$76:H120)>H$75,"",INDEX($A$3:$A$70,SMALL(IF(H$3:H$70="",ROW(H$3:H$70)-ROW(H$3)+1),ROWS(H$76:H120)))) -> Student 46 | I120: =IF(ROWS(I$76:I120)>I$75,"",INDEX($A$3:$A$70,SMALL(IF(I$3:I$70="",ROW(I$3:I$70)-ROW(I$3)+1),ROWS(I$76:I120)))) -> Student 45 | J120: =IF(ROWS(J$76:J120)>J$75,"",INDEX($A$3:$A$70,SMALL(IF(J$3:J$70="",ROW(J$3:J$70)-ROW(J$3)+1),ROWS(J$76:J120)))) ->  | K120: =IF(ROWS(K$76:K120)>K$75,"",INDEX($A$3:$A$70,SMALL(IF(K$3:K$70="",ROW(K$3:K$70)-ROW(K$3)+1),ROWS(K$76:K120)))) -> 
A121: ="#"&ROWS(A$76:A121) -> #46 | B121: =IF(ROWS(B$76:B121)>B$75,"",INDEX($A$3:$A$70,SMALL(IF(B$3:B$70="",ROW(B$3:B$70)-ROW(B$3)+1),ROWS(B$76:B121)))) ->  | C121: =IF(ROWS(C$76:C121)>C$75,"",INDEX($A$3:$A$70,SMALL(IF(C$3:C$70="",ROW(C$3:C$70)-ROW(C$3)+1),ROWS(C$76:C121)))) ->  | D121: =IF(ROWS(D$76:D121)>D$75,"",INDEX($A$3:$A$70,SMALL(IF(D$3:D$70="",ROW(D$3:D$70)-ROW(D$3)+1),ROWS(D$76:D121)))) ->  | E121: =IF(ROWS(E$76:E121)>E$75,"",INDEX($A$3:$A$70,SMALL(IF(E$3:E$70="",ROW(E$3:E$70)-ROW(E$3)+1),ROWS(E$76:E121)))) ->  | F121: =IF(ROWS(F$76:F121)>F$75,"",INDEX($A$3:$A$70,SMALL(IF(F$3:F$70="",ROW(F$3:F$70)-ROW(F$3)+1),ROWS(F$76:F121)))) -> Student 53 | G121: =IF(ROWS(G$76:G121)>G$75,"",INDEX($A$3:$A$70,SMALL(IF(G$3:G$70="",ROW(G$3:G$70)-ROW(G$3)+1),ROWS(G$76:G121)))) -> Student 53 | H121: =IF(ROWS(H$76:H121)>H$75,"",INDEX($A$3:$A$70,SMALL(IF(H$3:H$70="",ROW(H$3:H$70)-ROW(H$3)+1),ROWS(H$76:H121)))) -> Student 47 | I121: =IF(ROWS(I$76:I121)>I$75,"",INDEX($A$3:$A$70,SMALL(IF(I$3:I$70="",ROW(I$3:I$70)-ROW(I$3)+1),ROWS(I$76:I121)))) -> Student 46 | J121: =IF(ROWS(J$76:J121)>J$75,"",INDEX($A$3:$A$70,SMALL(IF(J$3:J$70="",ROW(J$3:J$70)-ROW(J$3)+1),ROWS(J$76:J121)))) ->  | K121: =IF(ROWS(K$76:K121)>K$75,"",INDEX($A$3:$A$70,SMALL(IF(K$3:K$70="",ROW(K$3:K$70)-ROW(K$3)+1),ROWS(K$76:K121)))) -> 
A122: ="#"&ROWS(A$76:A122) -> #47 | B122: =IF(ROWS(B$76:B122)>B$75,"",INDEX($A$3:$A$70,SMALL(IF(B$3:B$70="",ROW(B$3:B$70)-ROW(B$3)+1),ROWS(B$76:B122)))) ->  | C122: =IF(ROWS(C$76:C122)>C$75,"",INDEX($A$3:$A$70,SMALL(IF(C$3:C$70="",ROW(C$3:C$70)-ROW(C$3)+1),ROWS(C$76:C122)))) ->  | D122: =IF(ROWS(D$76:D122)>D$75,"",INDEX($A$3:$A$70,SMALL(IF(D$3:D$70="",ROW(D$3:D$70)-ROW(D$3)+1),ROWS(D$76:D122)))) ->  | E122: =IF(ROWS(E$76:E122)>E$75,"",INDEX($A$3:$A$70,SMALL(IF(E$3:E$70="",ROW(E$3:E$70)-ROW(E$3)+1),ROWS(E$76:E122)))) ->  | F122: =IF(ROWS(F$76:F122)>F$75,"",INDEX($A$3:$A$70,SMALL(IF(F$3:F$70="",ROW(F$3:F$70)-ROW(F$3)+1),ROWS(F$76:F122)))) -> Student 54 | G122: =IF(ROWS(G$76:G122)>G$75,"",INDEX($A$3:$A$70,SMALL(IF(G$3:G$70="",ROW(G$3:G$70)-ROW(G$3)+1),ROWS(G$76:G122)))) -> Student 54 | H122: =IF(ROWS(H$76:H122)>H$75,"",INDEX($A$3:$A$70,SMALL(IF(H$3:H$70="",ROW(H$3:H$70)-ROW(H$3)+1),ROWS(H$76:H122)))) -> Student 48 | I122: =IF(ROWS(I$76:I122)>I$75,"",INDEX($A$3:$A$70,SMALL(IF(I$3:I$70="",ROW(I$3:I$70)-ROW(I$3)+1),ROWS(I$76:I122)))) -> Student 47 | J122: =IF(ROWS(J$76:J122)>J$75,"",INDEX($A$3:$A$70,SMALL(IF(J$3:J$70="",ROW(J$3:J$70)-ROW(J$3)+1),ROWS(J$76:J122)))) ->  | K122: =IF(ROWS(K$76:K122)>K$75,"",INDEX($A$3:$A$70,SMALL(IF(K$3:K$70="",ROW(K$3:K$70)-ROW(K$3)+1),ROWS(K$76:K122)))) -> 
A123: ="#"&ROWS(A$76:A123) -> #48 | B123: =IF(ROWS(B$76:B123)>B$75,"",INDEX($A$3:$A$70,SMALL(IF(B$3:B$70="",ROW(B$3:B$70)-ROW(B$3)+1),ROWS(B$76:B123)))) ->  | C123: =IF(ROWS(C$76:C123)>C$75,"",INDEX($A$3:$A$70,SMALL(IF(C$3:C$70="",ROW(C$3:C$70)-ROW(C$3)+1),ROWS(C$76:C123)))) ->  | D123: =IF(ROWS(D$76:D123)>D$75,"",INDEX($A$3:$A$70,SMALL(IF(D$3:D$70="",ROW(D$3:D$70)-ROW(D$3)+1),ROWS(D$76:D123)))) ->  | E123: =IF(ROWS(E$76:E123)>E$75,"",INDEX($A$3:$A$70,SMALL(IF(E$3:E$70="",ROW(E$3:E$70)-ROW(E$3)+1),ROWS(E$76:E123)))) ->  | F123: =IF(ROWS(F$76:F123)>F$75,"",INDEX($A$3:$A$70,SMALL(IF(F$3:F$70="",ROW(F$3:F$70)-ROW(F$3)+1),ROWS(F$76:F123)))) -> Student 55 | G123: =IF(ROWS(G$76:G123)>G$75,"",INDEX($A$3:$A$70,SMALL(IF(G$3:G$70="",ROW(G$3:G$70)-ROW(G$3)+1),ROWS(G$76:G123)))) -> Student 55 | H123: =IF(ROWS(H$76:H123)>H$75,"",INDEX($A$3:$A$70,SMALL(IF(H$3:H$70="",ROW(H$3:H$70)-ROW(H$3)+1),ROWS(H$76:H123)))) -> Student 49 | I123: =IF(ROWS(I$76:I123)>I$75,"",INDEX($A$3:$A$70,SMALL(IF(I$3:I$70="",ROW(I$3:I$70)-ROW(I$3)+1),ROWS(I$76:I123)))) -> Student 48 | J123: =IF(ROWS(J$76:J123)>J$75,"",INDEX($A$3:$A$70,SMALL(IF(J$3:J$70="",ROW(J$3:J$70)-ROW(J$3)+1),ROWS(J$76:J123)))) ->  | K123: =IF(ROWS(K$76:K123)>K$75,"",INDEX($A$3:$A$70,SMALL(IF(K$3:K$70="",ROW(K$3:K$70)-ROW(K$3)+1),ROWS(K$76:K123)))) -> 
A124: ="#"&ROWS(A$76:A124) -> #49 | B124: =IF(ROWS(B$76:B124)>B$75,"",INDEX($A$3:$A$70,SMALL(IF(B$3:B$70="",ROW(B$3:B$70)-ROW(B$3)+1),ROWS(B$76:B124)))) ->  | C124: =IF(ROWS(C$76:C124)>C$75,"",INDEX($A$3:$A$70,SMALL(IF(C$3:C$70="",ROW(C$3:C$70)-ROW(C$3)+1),ROWS(C$76:C124)))) ->  | D124: =IF(ROWS(D$76:D124)>D$75,"",INDEX($A$3:$A$70,SMALL(IF(D$3:D$70="",ROW(D$3:D$70)-ROW(D$3)+1),ROWS(D$76:D124)))) ->  | E124: =IF(ROWS(E$76:E124)>E$75,"",INDEX($A$3:$A$70,SMALL(IF(E$3:E$70="",ROW(E$3:E$70)-ROW(E$3)+1),ROWS(E$76:E124)))) ->  | F124: =IF(ROWS(F$76:F124)>F$75,"",INDEX($A$3:$A$70,SMALL(IF(F$3:F$70="",ROW(F$3:F$70)-ROW(F$3)+1),ROWS(F$76:F124)))) -> Student 56 | G124: =IF(ROWS(G$76:G124)>G$75,"",INDEX($A$3:$A$70,SMALL(IF(G$3:G$70="",ROW(G$3:G$70)-ROW(G$3)+1),ROWS(G$76:G124)))) -> Student 56 | H124: =IF(ROWS(H$76:H124)>H$75,"",INDEX($A$3:$A$70,SMALL(IF(H$3:H$70="",ROW(H$3:H$70)-ROW(H$3)+1),ROWS(H$76:H124)))) -> Student 51 | I124: =IF(ROWS(I$76:I124)>I$75,"",INDEX($A$3:$A$70,SMALL(IF(I$3:I$70="",ROW(I$3:I$70)-ROW(I$3)+1),ROWS(I$76:I124)))) -> Student 49 | J124: =IF(ROWS(J$76:J124)>J$75,"",INDEX($A$3:$A$70,SMALL(IF(J$3:J$70="",ROW(J$3:J$70)-ROW(J$3)+1),ROWS(J$76:J124)))) ->  | K124: =IF(ROWS(K$76:K124)>K$75,"",INDEX($A$3:$A$70,SMALL(IF(K$3:K$70="",ROW(K$3:K$70)-ROW(K$3)+1),ROWS(K$76:K124)))) -> 
A125: ="#"&ROWS(A$76:A125) -> #50 | B125: =IF(ROWS(B$76:B125)>B$75,"",INDEX($A$3:$A$70,SMALL(IF(B$3:B$70="",ROW(B$3:B$70)-ROW(B$3)+1),ROWS(B$76:B125)))) ->  | C125: =IF(ROWS(C$76:C125)>C$75,"",INDEX($A$3:$A$70,SMALL(IF(C$3:C$70="",ROW(C$3:C$70)-ROW(C$3)+1),ROWS(C$76:C125)))) ->  | D125: =IF(ROWS(D$76:D125)>D$75,"",INDEX($A$3:$A$70,SMALL(IF(D$3:D$70="",ROW(D$3:D$70)-ROW(D$3)+1),ROWS(D$76:D125)))) ->  | E125: =IF(ROWS(E$76:E125)>E$75,"",INDEX($A$3:$A$70,SMALL(IF(E$3:E$70="",ROW(E$3:E$70)-ROW(E$3)+1),ROWS(E$76:E125)))) ->  | F125: =IF(ROWS(F$76:F125)>F$75,"",INDEX($A$3:$A$70,SMALL(IF(F$3:F$70="",ROW(F$3:F$70)-ROW(F$3)+1),ROWS(F$76:F125)))) -> Student 57 | G125: =IF(ROWS(G$76:G125)>G$75,"",INDEX($A$3:$A$70,SMALL(IF(G$3:G$70="",ROW(G$3:G$70)-ROW(G$3)+1),ROWS(G$76:G125)))) -> Student 57 | H125: =IF(ROWS(H$76:H125)>H$75,"",INDEX($A$3:$A$70,SMALL(IF(H$3:H$70="",ROW(H$3:H$70)-ROW(H$3)+1),ROWS(H$76:H125)))) -> Student 52 | I125: =IF(ROWS(I$76:I125)>I$75,"",INDEX($A$3:$A$70,SMALL(IF(I$3:I$70="",ROW(I$3:I$70)-ROW(I$3)+1),ROWS(I$76:I125)))) -> Student 50 | J125: =IF(ROWS(J$76:J125)>J$75,"",INDEX($A$3:$A$70,SMALL(IF(J$3:J$70="",ROW(J$3:J$70)-ROW(J$3)+1),ROWS(J$76:J125)))) ->  | K125: =IF(ROWS(K$76:K125)>K$75,"",INDEX($A$3:$A$70,SMALL(IF(K$3:K$70="",ROW(K$3:K$70)-ROW(K$3)+1),ROWS(K$76:K125)))) -> 
A126: ="#"&ROWS(A$76:A126) -> #51 | B126: =IF(ROWS(B$76:B126)>B$75,"",INDEX($A$3:$A$70,SMALL(IF(B$3:B$70="",ROW(B$3:B$70)-ROW(B$3)+1),ROWS(B$76:B126)))) ->  | C126: =IF(ROWS(C$76:C126)>C$75,"",INDEX($A$3:$A$70,SMALL(IF(C$3:C$70="",ROW(C$3:C$70)-ROW(C$3)+1),ROWS(C$76:C126)))) ->  | D126: =IF(ROWS(D$76:D126)>D$75,"",INDEX($A$3:$A$70,SMALL(IF(D$3:D$70="",ROW(D$3:D$70)-ROW(D$3)+1),ROWS(D$76:D126)))) ->  | E126: =IF(ROWS(E$76:E126)>E$75,"",INDEX($A$3:$A$70,SMALL(IF(E$3:E$70="",ROW(E$3:E$70)-ROW(E$3)+1),ROWS(E$76:E126)))) ->  | F126: =IF(ROWS(F$76:F126)>F$75,"",INDEX($A$3:$A$70,SMALL(IF(F$3:F$70="",ROW(F$3:F$70)-ROW(F$3)+1),ROWS(F$76:F126)))) -> Student 58 | G126: =IF(ROWS(G$76:G126)>G$75,"",INDEX($A$3:$A$70,SMALL(IF(G$3:G$70="",ROW(G$3:G$70)-ROW(G$3)+1),ROWS(G$76:G126)))) -> Student 59 | H126: =IF(ROWS(H$76:H126)>H$75,"",INDEX($A$3:$A$70,SMALL(IF(H$3:H$70="",ROW(H$3:H$70)-ROW(H$3)+1),ROWS(H$76:H126)))) -> Student 54 | I126: =IF(ROWS(I$76:I126)>I$75,"",INDEX($A$3:$A$70,SMALL(IF(I$3:I$70="",ROW(I$3:I$70)-ROW(I$3)+1),ROWS(I$76:I126)))) -> Student 51 | J126: =IF(ROWS(J$76:J126)>J$75,"",INDEX($A$3:$A$70,SMALL(IF(J$3:J$70="",ROW(J$3:J$70)-ROW(J$3)+1),ROWS(J$76:J126)))) ->  | K126: =IF(ROWS(K$76:K126)>K$75,"",INDEX($A$3:$A$70,SMALL(IF(K$3:K$70="",ROW(K$3:K$70)-ROW(K$3)+1),ROWS(K$76:K126)))) -> 
A127: ="#"&ROWS(A$76:A127) -> #52 | B127: =IF(ROWS(B$76:B127)>B$75,"",INDEX($A$3:$A$70,SMALL(IF(B$3:B$70="",ROW(B$3:B$70)-ROW(B$3)+1),ROWS(B$76:B127)))) ->  | C127: =IF(ROWS(C$76:C127)>C$75,"",INDEX($A$3:$A$70,SMALL(IF(C$3:C$70="",ROW(C$3:C$70)-ROW(C$3)+1),ROWS(C$76:C127)))) ->  | D127: =IF(ROWS(D$76:D127)>D$75,"",INDEX($A$3:$A$70,SMALL(IF(D$3:D$70="",ROW(D$3:D$70)-ROW(D$3)+1),ROWS(D$76:D127)))) ->  | E127: =IF(ROWS(E$76:E127)>E$75,"",INDEX($A$3:$A$70,SMALL(IF(E$3:E$70="",ROW(E$3:E$70)-ROW(E$3)+1),ROWS(E$76:E127)))) ->  | F127: =IF(ROWS(F$76:F127)>F$75,"",INDEX($A$3:$A$70,SMALL(IF(F$3:F$70="",ROW(F$3:F$70)-ROW(F$3)+1),ROWS(F$76:F127)))) -> Student 59 | G127: =IF(ROWS(G$76:G127)>G$75,"",INDEX($A$3:$A$70,SMALL(IF(G$3:G$70="",ROW(G$3:G$70)-ROW(G$3)+1),ROWS(G$76:G127)))) -> Student 60 | H127: =IF(ROWS(H$76:H127)>H$75,"",INDEX($A$3:$A$70,SMALL(IF(H$3:H$70="",ROW(H$3:H$70)-ROW(H$3)+1),ROWS(H$76:H127)))) -> Student 55 | I127: =IF(ROWS(I$76:I127)>I$75,"",INDEX($A$3:$A$70,SMALL(IF(I$3:I$70="",ROW(I$3:I$70)-ROW(I$3)+1),ROWS(I$76:I127)))) -> Student 52 | J127: =IF(ROWS(J$76:J127)>J$75,"",INDEX($A$3:$A$70,SMALL(IF(J$3:J$70="",ROW(J$3:J$70)-ROW(J$3)+1),ROWS(J$76:J127)))) ->  | K127: =IF(ROWS(K$76:K127)>K$75,"",INDEX($A$3:$A$70,SMALL(IF(K$3:K$70="",ROW(K$3:K$70)-ROW(K$3)+1),ROWS(K$76:K127)))) -> 
A128: ="#"&ROWS(A$76:A128) -> #53 | B128: =IF(ROWS(B$76:B128)>B$75,"",INDEX($A$3:$A$70,SMALL(IF(B$3:B$70="",ROW(B$3:B$70)-ROW(B$3)+1),ROWS(B$76:B128)))) ->  | C128: =IF(ROWS(C$76:C128)>C$75,"",INDEX($A$3:$A$70,SMALL(IF(C$3:C$70="",ROW(C$3:C$70)-ROW(C$3)+1),ROWS(C$76:C128)))) ->  | D128: =IF(ROWS(D$76:D128)>D$75,"",INDEX($A$3:$A$70,SMALL(IF(D$3:D$70="",ROW(D$3:D$70)-ROW(D$3)+1),ROWS(D$76:D128)))) ->  | E128: =IF(ROWS(E$76:E128)>E$75,"",INDEX($A$3:$A$70,SMALL(IF(E$3:E$70="",ROW(E$3:E$70)-ROW(E$3)+1),ROWS(E$76:E128)))) ->  | F128: =IF(ROWS(F$76:F128)>F$75,"",INDEX($A$3:$A$70,SMALL(IF(F$3:F$70="",ROW(F$3:F$70)-ROW(F$3)+1),ROWS(F$76:F128)))) -> Student 60 | G128: =IF(ROWS(G$76:G128)>G$75,"",INDEX($A$3:$A$70,SMALL(IF(G$3:G$70="",ROW(G$3:G$70)-ROW(G$3)+1),ROWS(G$76:G128)))) -> Student 61 | H128: =IF(ROWS(H$76:H128)>H$75,"",INDEX($A$3:$A$70,SMALL(IF(H$3:H$70="",ROW(H$3:H$70)-ROW(H$3)+1),ROWS(H$76:H128)))) -> Student 56 | I128: =IF(ROWS(I$76:I128)>I$75,"",INDEX($A$3:$A$70,SMALL(IF(I$3:I$70="",ROW(I$3:I$70)-ROW(I$3)+1),ROWS(I$76:I128)))) -> Student 53 | J128: =IF(ROWS(J$76:J128)>J$75,"",INDEX($A$3:$A$70,SMALL(IF(J$3:J$70="",ROW(J$3:J$70)-ROW(J$3)+1),ROWS(J$76:J128)))) ->  | K128: =IF(ROWS(K$76:K128)>K$75,"",INDEX($A$3:$A$70,SMALL(IF(K$3:K$70="",ROW(K$3:K$70)-ROW(K$3)+1),ROWS(K$76:K128)))) -> 
A129: ="#"&ROWS(A$76:A129) -> #54 | B129: =IF(ROWS(B$76:B129)>B$75,"",INDEX($A$3:$A$70,SMALL(IF(B$3:B$70="",ROW(B$3:B$70)-ROW(B$3)+1),ROWS(B$76:B129)))) ->  | C129: =IF(ROWS(C$76:C129)>C$75,"",INDEX($A$3:$A$70,SMALL(IF(C$3:C$70="",ROW(C$3:C$70)-ROW(C$3)+1),ROWS(C$76:C129)))) ->  | D129: =IF(ROWS(D$76:D129)>D$75,"",INDEX($A$3:$A$70,SMALL(IF(D$3:D$70="",ROW(D$3:D$70)-ROW(D$3)+1),ROWS(D$76:D129)))) ->  | E129: =IF(ROWS(E$76:E129)>E$75,"",INDEX($A$3:$A$70,SMALL(IF(E$3:E$70="",ROW(E$3:E$70)-ROW(E$3)+1),ROWS(E$76:E129)))) ->  | F129: =IF(ROWS(F$76:F129)>F$75,"",INDEX($A$3:$A$70,SMALL(IF(F$3:F$70="",ROW(F$3:F$70)-ROW(F$3)+1),ROWS(F$76:F129)))) -> Student 61 | G129: =IF(ROWS(G$76:G129)>G$75,"",INDEX($A$3:$A$70,SMALL(IF(G$3:G$70="",ROW(G$3:G$70)-ROW(G$3)+1),ROWS(G$76:G129)))) -> Student 62 | H129: =IF(ROWS(H$76:H129)>H$75,"",INDEX($A$3:$A$70,SMALL(IF(H$3:H$70="",ROW(H$3:H$70)-ROW(H$3)+1),ROWS(H$76:H129)))) -> Student 57 | I129: =IF(ROWS(I$76:I129)>I$75,"",INDEX($A$3:$A$70,SMALL(IF(I$3:I$70="",ROW(I$3:I$70)-ROW(I$3)+1),ROWS(I$76:I129)))) -> Student 54 | J129: =IF(ROWS(J$76:J129)>J$75,"",INDEX($A$3:$A$70,SMALL(IF(J$3:J$70="",ROW(J$3:J$70)-ROW(J$3)+1),ROWS(J$76:J129)))) ->  | K129: =IF(ROWS(K$76:K129)>K$75,"",INDEX($A$3:$A$70,SMALL(IF(K$3:K$70="",ROW(K$3:K$70)-ROW(K$3)+1),ROWS(K$76:K129)))) -> 
A130: ="#"&ROWS(A$76:A130) -> #55 | B130: =IF(ROWS(B$76:B130)>B$75,"",INDEX($A$3:$A$70,SMALL(IF(B$3:B$70="",ROW(B$3:B$70)-ROW(B$3)+1),ROWS(B$76:B130)))) ->  | C130: =IF(ROWS(C$76:C130)>C$75,"",INDEX($A$3:$A$70,SMALL(IF(C$3:C$70="",ROW(C$3:C$70)-ROW(C$3)+1),ROWS(C$76:C130)))) ->  | D130: =IF(ROWS(D$76:D130)>D$75,"",INDEX($A$3:$A$70,SMALL(IF(D$3:D$70="",ROW(D$3:D$70)-ROW(D$3)+1),ROWS(D$76:D130)))) ->  | E130: =IF(ROWS(E$76:E130)>E$75,"",INDEX($A$3:$A$70,SMALL(IF(E$3:E$70="",ROW(E$3:E$70)-ROW(E$3)+1),ROWS(E$76:E130)))) ->  | F130: =IF(ROWS(F$76:F130)>F$75,"",INDEX($A$3:$A$70,SMALL(IF(F$3:F$70="",ROW(F$3:F$70)-ROW(F$3)+1),ROWS(F$76:F130)))) -> Student 62 | G130: =IF(ROWS(G$76:G130)>G$75,"",INDEX($A$3:$A$70,SMALL(IF(G$3:G$70="",ROW(G$3:G$70)-ROW(G$3)+1),ROWS(G$76:G130)))) -> Student 63 | H130: =IF(ROWS(H$76:H130)>H$75,"",INDEX($A$3:$A$70,SMALL(IF(H$3:H$70="",ROW(H$3:H$70)-ROW(H$3)+1),ROWS(H$76:H130)))) -> Student 58 | I130: =IF(ROWS(I$76:I130)>I$75,"",INDEX($A$3:$A$70,SMALL(IF(I$3:I$70="",ROW(I$3:I$70)-ROW(I$3)+1),ROWS(I$76:I130)))) -> Student 55 | J130: =IF(ROWS(J$76:J130)>J$75,"",INDEX($A$3:$A$70,SMALL(IF(J$3:J$70="",ROW(J$3:J$70)-ROW(J$3)+1),ROWS(J$76:J130)))) ->  | K130: =IF(ROWS(K$76:K130)>K$75,"",INDEX($A$3:$A$70,SMALL(IF(K$3:K$70="",ROW(K$3:K$70)-ROW(K$3)+1),ROWS(K$76:K130)))) -> 
A131: ="#"&ROWS(A$76:A131) -> #56 | B131: =IF(ROWS(B$76:B131)>B$75,"",INDEX($A$3:$A$70,SMALL(IF(B$3:B$70="",ROW(B$3:B$70)-ROW(B$3)+1),ROWS(B$76:B131)))) ->  | C131: =IF(ROWS(C$76:C131)>C$75,"",INDEX($A$3:$A$70,SMALL(IF(C$3:C$70="",ROW(C$3:C$70)-ROW(C$3)+1),ROWS(C$76:C131)))) ->  | D131: =IF(ROWS(D$76:D131)>D$75,"",INDEX($A$3:$A$70,SMALL(IF(D$3:D$70="",ROW(D$3:D$70)-ROW(D$3)+1),ROWS(D$76:D131)))) ->  | E131: =IF(ROWS(E$76:E131)>E$75,"",INDEX($A$3:$A$70,SMALL(IF(E$3:E$70="",ROW(E$3:E$70)-ROW(E$3)+1),ROWS(E$76:E131)))) ->  | F131: =IF(ROWS(F$76:F131)>F$75,"",INDEX($A$3:$A$70,SMALL(IF(F$3:F$70="",ROW(F$3:F$70)-ROW(F$3)+1),ROWS(F$76:F131)))) -> Student 64 | G131: =IF(ROWS(G$76:G131)>G$75,"",INDEX($A$3:$A$70,SMALL(IF(G$3:G$70="",ROW(G$3:G$70)-ROW(G$3)+1),ROWS(G$76:G131)))) -> Student 64 | H131: =IF(ROWS(H$76:H131)>H$75,"",INDEX($A$3:$A$70,SMALL(IF(H$3:H$70="",ROW(H$3:H$70)-ROW(H$3)+1),ROWS(H$76:H131)))) -> Student 59 | I131: =IF(ROWS(I$76:I131)>I$75,"",INDEX($A$3:$A$70,SMALL(IF(I$3:I$70="",ROW(I$3:I$70)-ROW(I$3)+1),ROWS(I$76:I131)))) -> Student 56 | J131: =IF(ROWS(J$76:J131)>J$75,"",INDEX($A$3:$A$70,SMALL(IF(J$3:J$70="",ROW(J$3:J$70)-ROW(J$3)+1),ROWS(J$76:J131)))) ->  | K131: =IF(ROWS(K$76:K131)>K$75,"",INDEX($A$3:$A$70,SMALL(IF(K$3:K$70="",ROW(K$3:K$70)-ROW(K$3)+1),ROWS(K$76:K131)))) -> 
A132: ="#"&ROWS(A$76:A132) -> #57 | B132: =IF(ROWS(B$76:B132)>B$75,"",INDEX($A$3:$A$70,SMALL(IF(B$3:B$70="",ROW(B$3:B$70)-ROW(B$3)+1),ROWS(B$76:B132)))) ->  | C132: =IF(ROWS(C$76:C132)>C$75,"",INDEX($A$3:$A$70,SMALL(IF(C$3:C$70="",ROW(C$3:C$70)-ROW(C$3)+1),ROWS(C$76:C132)))) ->  | D132: =IF(ROWS(D$76:D132)>D$75,"",INDEX($A$3:$A$70,SMALL(IF(D$3:D$70="",ROW(D$3:D$70)-ROW(D$3)+1),ROWS(D$76:D132)))) ->  | E132: =IF(ROWS(E$76:E132)>E$75,"",INDEX($A$3:$A$70,SMALL(IF(E$3:E$70="",ROW(E$3:E$70)-ROW(E$3)+1),ROWS(E$76:E132)))) ->  | F132: =IF(ROWS(F$76:F132)>F$75,"",INDEX($A$3:$A$70,SMALL(IF(F$3:F$70="",ROW(F$3:F$70)-ROW(F$3)+1),ROWS(F$76:F132)))) -> Student 65 | G132: =IF(ROWS(G$76:G132)>G$75,"",INDEX($A$3:$A$70,SMALL(IF(G$3:G$70="",ROW(G$3:G$70)-ROW(G$3)+1),ROWS(G$76:G132)))) -> Student 65 | H132: =IF(ROWS(H$76:H132)>H$75,"",INDEX($A$3:$A$70,SMALL(IF(H$3:H$70="",ROW(H$3:H$70)-ROW(H$3)+1),ROWS(H$76:H132)))) -> Student 60 | I132: =IF(ROWS(I$76:I132)>I$75,"",INDEX($A$3:$A$70,SMALL(IF(I$3:I$70="",ROW(I$3:I$70)-ROW(I$3)+1),ROWS(I$76:I132)))) -> Student 57 | J132: =IF(ROWS(J$76:J132)>J$75,"",INDEX($A$3:$A$70,SMALL(IF(J$3:J$70="",ROW(J$3:J$70)-ROW(J$3)+1),ROWS(J$76:J132)))) ->  | K132: =IF(ROWS(K$76:K132)>K$75,"",INDEX($A$3:$A$70,SMALL(IF(K$3:K$70="",ROW(K$3:K$70)-ROW(K$3)+1),ROWS(K$76:K132)))) -> 
A133: ="#"&ROWS(A$76:A133) -> #58 | B133: =IF(ROWS(B$76:B133)>B$75,"",INDEX($A$3:$A$70,SMALL(IF(B$3:B$70="",ROW(B$3:B$70)-ROW(B$3)+1),ROWS(B$76:B133)))) ->  | C133: =IF(ROWS(C$76:C133)>C$75,"",INDEX($A$3:$A$70,SMALL(IF(C$3:C$70="",ROW(C$3:C$70)-ROW(C$3)+1),ROWS(C$76:C133)))) ->  | D133: =IF(ROWS(D$76:D133)>D$75,"",INDEX($A$3:$A$70,SMALL(IF(D$3:D$70="",ROW(D$3:D$70)-ROW(D$3)+1),ROWS(D$76:D133)))) ->  | E133: =IF(ROWS(E$76:E133)>E$75,"",INDEX($A$3:$A$70,SMALL(IF(E$3:E$70="",ROW(E$3:E$70)-ROW(E$3)+1),ROWS(E$76:E133)))) ->  | F133: =IF(ROWS(F$76:F133)>F$75,"",INDEX($A$3:$A$70,SMALL(IF(F$3:F$70="",ROW(F$3:F$70)-ROW(F$3)+1),ROWS(F$76:F133)))) -> Student 66 | G133: =IF(ROWS(G$76:G133)>G$75,"",INDEX($A$3:$A$70,SMALL(IF(G$3:G$70="",ROW(G$3:G$70)-ROW(G$3)+1),ROWS(G$76:G133)))) -> Student 66 | H133: =IF(ROWS(H$76:H133)>H$75,"",INDEX($A$3:$A$70,SMALL(IF(H$3:H$70="",ROW(H$3:H$70)-ROW(H$3)+1),ROWS(H$76:H133)))) -> Student 61 | I133: =IF(ROWS(I$76:I133)>I$75,"",INDEX($A$3:$A$70,SMALL(IF(I$3:I$70="",ROW(I$3:I$70)-ROW(I$3)+1),ROWS(I$76:I133)))) -> Student 58 | J133: =IF(ROWS(J$76:J133)>J$75,"",INDEX($A$3:$A$70,SMALL(IF(J$3:J$70="",ROW(J$3:J$70)-ROW(J$3)+1),ROWS(J$76:J133)))) ->  | K133: =IF(ROWS(K$76:K133)>K$75,"",INDEX($A$3:$A$70,SMALL(IF(K$3:K$70="",ROW(K$3:K$70)-ROW(K$3)+1),ROWS(K$76:K133)))) -> 
A134: ="#"&ROWS(A$76:A134) -> #59 | B134: =IF(ROWS(B$76:B134)>B$75,"",INDEX($A$3:$A$70,SMALL(IF(B$3:B$70="",ROW(B$3:B$70)-ROW(B$3)+1),ROWS(B$76:B134)))) ->  | C134: =IF(ROWS(C$76:C134)>C$75,"",INDEX($A$3:$A$70,SMALL(IF(C$3:C$70="",ROW(C$3:C$70)-ROW(C$3)+1),ROWS(C$76:C134)))) ->  | D134: =IF(ROWS(D$76:D134)>D$75,"",INDEX($A$3:$A$70,SMALL(IF(D$3:D$70="",ROW(D$3:D$70)-ROW(D$3)+1),ROWS(D$76:D134)))) ->  | E134: =IF(ROWS(E$76:E134)>E$75,"",INDEX($A$3:$A$70,SMALL(IF(E$3:E$70="",ROW(E$3:E$70)-ROW(E$3)+1),ROWS(E$76:E134)))) ->  | F134: =IF(ROWS(F$76:F134)>F$75,"",INDEX($A$3:$A$70,SMALL(IF(F$3:F$70="",ROW(F$3:F$70)-ROW(F$3)+1),ROWS(F$76:F134)))) -> Student 68 | G134: =IF(ROWS(G$76:G134)>G$75,"",INDEX($A$3:$A$70,SMALL(IF(G$3:G$70="",ROW(G$3:G$70)-ROW(G$3)+1),ROWS(G$76:G134)))) -> Student 68 | H134: =IF(ROWS(H$76:H134)>H$75,"",INDEX($A$3:$A$70,SMALL(IF(H$3:H$70="",ROW(H$3:H$70)-ROW(H$3)+1),ROWS(H$76:H134)))) -> Student 62 | I134: =IF(ROWS(I$76:I134)>I$75,"",INDEX($A$3:$A$70,SMALL(IF(I$3:I$70="",ROW(I$3:I$70)-ROW(I$3)+1),ROWS(I$76:I134)))) -> Student 59 | J134: =IF(ROWS(J$76:J134)>J$75,"",INDEX($A$3:$A$70,SMALL(IF(J$3:J$70="",ROW(J$3:J$70)-ROW(J$3)+1),ROWS(J$76:J134)))) ->  | K134: =IF(ROWS(K$76:K134)>K$75,"",INDEX($A$3:$A$70,SMALL(IF(K$3:K$70="",ROW(K$3:K$70)-ROW(K$3)+1),ROWS(K$76:K134)))) -> 
A135: ="#"&ROWS(A$76:A135) -> #60 | B135: =IF(ROWS(B$76:B135)>B$75,"",INDEX($A$3:$A$70,SMALL(IF(B$3:B$70="",ROW(B$3:B$70)-ROW(B$3)+1),ROWS(B$76:B135)))) ->  | C135: =IF(ROWS(C$76:C135)>C$75,"",INDEX($A$3:$A$70,SMALL(IF(C$3:C$70="",ROW(C$3:C$70)-ROW(C$3)+1),ROWS(C$76:C135)))) ->  | D135: =IF(ROWS(D$76:D135)>D$75,"",INDEX($A$3:$A$70,SMALL(IF(D$3:D$70="",ROW(D$3:D$70)-ROW(D$3)+1),ROWS(D$76:D135)))) ->  | E135: =IF(ROWS(E$76:E135)>E$75,"",INDEX($A$3:$A$70,SMALL(IF(E$3:E$70="",ROW(E$3:E$70)-ROW(E$3)+1),ROWS(E$76:E135)))) ->  | F135: =IF(ROWS(F$76:F135)>F$75,"",INDEX($A$3:$A$70,SMALL(IF(F$3:F$70="",ROW(F$3:F$70)-ROW(F$3)+1),ROWS(F$76:F135)))) ->  | G135: =IF(ROWS(G$76:G135)>G$75,"",INDEX($A$3:$A$70,SMALL(IF(G$3:G$70="",ROW(G$3:G$70)-ROW(G$3)+1),ROWS(G$76:G135)))) ->  | H135: =IF(ROWS(H$76:H135)>H$75,"",INDEX($A$3:$A$70,SMALL(IF(H$3:H$70="",ROW(H$3:H$70)-ROW(H$3)+1),ROWS(H$76:H135)))) -> Student 63 | I135: =IF(ROWS(I$76:I135)>I$75,"",INDEX($A$3:$A$70,SMALL(IF(I$3:I$70="",ROW(I$3:I$70)-ROW(I$3)+1),ROWS(I$76:I135)))) -> Student 60 | J135: =IF(ROWS(J$76:J135)>J$75,"",INDEX($A$3:$A$70,SMALL(IF(J$3:J$70="",ROW(J$3:J$70)-ROW(J$3)+1),ROWS(J$76:J135)))) ->  | K135: =IF(ROWS(K$76:K135)>K$75,"",INDEX($A$3:$A$70,SMALL(IF(K$3:K$70="",ROW(K$3:K$70)-ROW(K$3)+1),ROWS(K$76:K135)))) -> 
A136: ="#"&ROWS(A$76:A136) -> #61 | B136: =IF(ROWS(B$76:B136)>B$75,"",INDEX($A$3:$A$70,SMALL(IF(B$3:B$70="",ROW(B$3:B$70)-ROW(B$3)+1),ROWS(B$76:B136)))) ->  | C136: =IF(ROWS(C$76:C136)>C$75,"",INDEX($A$3:$A$70,SMALL(IF(C$3:C$70="",ROW(C$3:C$70)-ROW(C$3)+1),ROWS(C$76:C136)))) ->  | D136: =IF(ROWS(D$76:D136)>D$75,"",INDEX($A$3:$A$70,SMALL(IF(D$3:D$70="",ROW(D$3:D$70)-ROW(D$3)+1),ROWS(D$76:D136)))) ->  | E136: =IF(ROWS(E$76:E136)>E$75,"",INDEX($A$3:$A$70,SMALL(IF(E$3:E$70="",ROW(E$3:E$70)-ROW(E$3)+1),ROWS(E$76:E136)))) ->  | F136: =IF(ROWS(F$76:F136)>F$75,"",INDEX($A$3:$A$70,SMALL(IF(F$3:F$70="",ROW(F$3:F$70)-ROW(F$3)+1),ROWS(F$76:F136)))) ->  | G136: =IF(ROWS(G$76:G136)>G$75,"",INDEX($A$3:$A$70,SMALL(IF(G$3:G$70="",ROW(G$3:G$70)-ROW(G$3)+1),ROWS(G$76:G136)))) ->  | H136: =IF(ROWS(H$76:H136)>H$75,"",INDEX($A$3:$A$70,SMALL(IF(H$3:H$70="",ROW(H$3:H$70)-ROW(H$3)+1),ROWS(H$76:H136)))) -> Student 64 | I136: =IF(ROWS(I$76:I136)>I$75,"",INDEX($A$3:$A$70,SMALL(IF(I$3:I$70="",ROW(I$3:I$70)-ROW(I$3)+1),ROWS(I$76:I136)))) -> Student 61 | J136: =IF(ROWS(J$76:J136)>J$75,"",INDEX($A$3:$A$70,SMALL(IF(J$3:J$70="",ROW(J$3:J$70)-ROW(J$3)+1),ROWS(J$76:J136)))) ->  | K136: =IF(ROWS(K$76:K136)>K$75,"",INDEX($A$3:$A$70,SMALL(IF(K$3:K$70="",ROW(K$3:K$70)-ROW(K$3)+1),ROWS(K$76:K136)))) -> 
A137: ="#"&ROWS(A$76:A137) -> #62 | B137: =IF(ROWS(B$76:B137)>B$75,"",INDEX($A$3:$A$70,SMALL(IF(B$3:B$70="",ROW(B$3:B$70)-ROW(B$3)+1),ROWS(B$76:B137)))) ->  | C137: =IF(ROWS(C$76:C137)>C$75,"",INDEX($A$3:$A$70,SMALL(IF(C$3:C$70="",ROW(C$3:C$70)-ROW(C$3)+1),ROWS(C$76:C137)))) ->  | D137: =IF(ROWS(D$76:D137)>D$75,"",INDEX($A$3:$A$70,SMALL(IF(D$3:D$70="",ROW(D$3:D$70)-ROW(D$3)+1),ROWS(D$76:D137)))) ->  | E137: =IF(ROWS(E$76:E137)>E$75,"",INDEX($A$3:$A$70,SMALL(IF(E$3:E$70="",ROW(E$3:E$70)-ROW(E$3)+1),ROWS(E$76:E137)))) ->  | F137: =IF(ROWS(F$76:F137)>F$75,"",INDEX($A$3:$A$70,SMALL(IF(F$3:F$70="",ROW(F$3:F$70)-ROW(F$3)+1),ROWS(F$76:F137)))) ->  | G137: =IF(ROWS(G$76:G137)>G$75,"",INDEX($A$3:$A$70,SMALL(IF(G$3:G$70="",ROW(G$3:G$70)-ROW(G$3)+1),ROWS(G$76:G137)))) ->  | H137: =IF(ROWS(H$76:H137)>H$75,"",INDEX($A$3:$A$70,SMALL(IF(H$3:H$70="",ROW(H$3:H$70)-ROW(H$3)+1),ROWS(H$76:H137)))) -> Student 65 | I137: =IF(ROWS(I$76:I137)>I$75,"",INDEX($A$3:$A$70,SMALL(IF(I$3:I$70="",ROW(I$3:I$70)-ROW(I$3)+1),ROWS(I$76:I137)))) -> Student 62 | J137: =IF(ROWS(J$76:J137)>J$75,"",INDEX($A$3:$A$70,SMALL(IF(J$3:J$70="",ROW(J$3:J$70)-ROW(J$3)+1),ROWS(J$76:J137)))) ->  | K137: =IF(ROWS(K$76:K137)>K$75,"",INDEX($A$3:$A$70,SMALL(IF(K$3:K$70="",ROW(K$3:K$70)-ROW(K$3)+1),ROWS(K$76:K137)))) -> 
A138: ="#"&ROWS(A$76:A138) -> #63 | B138: =IF(ROWS(B$76:B138)>B$75,"",INDEX($A$3:$A$70,SMALL(IF(B$3:B$70="",ROW(B$3:B$70)-ROW(B$3)+1),ROWS(B$76:B138)))) ->  | C138: =IF(ROWS(C$76:C138)>C$75,"",INDEX($A$3:$A$70,SMALL(IF(C$3:C$70="",ROW(C$3:C$70)-ROW(C$3)+1),ROWS(C$76:C138)))) ->  | D138: =IF(ROWS(D$76:D138)>D$75,"",INDEX($A$3:$A$70,SMALL(IF(D$3:D$70="",ROW(D$3:D$70)-ROW(D$3)+1),ROWS(D$76:D138)))) ->  | E138: =IF(ROWS(E$76:E138)>E$75,"",INDEX($A$3:$A$70,SMALL(IF(E$3:E$70="",ROW(E$3:E$70)-ROW(E$3)+1),ROWS(E$76:E138)))) ->  | F138: =IF(ROWS(F$76:F138)>F$75,"",INDEX($A$3:$A$70,SMALL(IF(F$3:F$70="",ROW(F$3:F$70)-ROW(F$3)+1),ROWS(F$76:F138)))) ->  | G138: =IF(ROWS(G$76:G138)>G$75,"",INDEX($A$3:$A$70,SMALL(IF(G$3:G$70="",ROW(G$3:G$70)-ROW(G$3)+1),ROWS(G$76:G138)))) ->  | H138: =IF(ROWS(H$76:H138)>H$75,"",INDEX($A$3:$A$70,SMALL(IF(H$3:H$70="",ROW(H$3:H$70)-ROW(H$3)+1),ROWS(H$76:H138)))) -> Student 66 | I138: =IF(ROWS(I$76:I138)>I$75,"",INDEX($A$3:$A$70,SMALL(IF(I$3:I$70="",ROW(I$3:I$70)-ROW(I$3)+1),ROWS(I$76:I138)))) -> Student 63 | J138: =IF(ROWS(J$76:J138)>J$75,"",INDEX($A$3:$A$70,SMALL(IF(J$3:J$70="",ROW(J$3:J$70)-ROW(J$3)+1),ROWS(J$76:J138)))) ->  | K138: =IF(ROWS(K$76:K138)>K$75,"",INDEX($A$3:$A$70,SMALL(IF(K$3:K$70="",ROW(K$3:K$70)-ROW(K$3)+1),ROWS(K$76:K138)))) -> 
A139: ="#"&ROWS(A$76:A139) -> #64 | B139: =IF(ROWS(B$76:B139)>B$75,"",INDEX($A$3:$A$70,SMALL(IF(B$3:B$70="",ROW(B$3:B$70)-ROW(B$3)+1),ROWS(B$76:B139)))) ->  | C139: =IF(ROWS(C$76:C139)>C$75,"",INDEX($A$3:$A$70,SMALL(IF(C$3:C$70="",ROW(C$3:C$70)-ROW(C$3)+1),ROWS(C$76:C139)))) ->  | D139: =IF(ROWS(D$76:D139)>D$75,"",INDEX($A$3:$A$70,SMALL(IF(D$3:D$70="",ROW(D$3:D$70)-ROW(D$3)+1),ROWS(D$76:D139)))) ->  | E139: =IF(ROWS(E$76:E139)>E$75,"",INDEX($A$3:$A$70,SMALL(IF(E$3:E$70="",ROW(E$3:E$70)-ROW(E$3)+1),ROWS(E$76:E139)))) ->  | F139: =IF(ROWS(F$76:F139)>F$75,"",INDEX($A$3:$A$70,SMALL(IF(F$3:F$70="",ROW(F$3:F$70)-ROW(F$3)+1),ROWS(F$76:F139)))) ->  | G139: =IF(ROWS(G$76:G139)>G$75,"",INDEX($A$3:$A$70,SMALL(IF(G$3:G$70="",ROW(G$3:G$70)-ROW(G$3)+1),ROWS(G$76:G139)))) ->  | H139: =IF(ROWS(H$76:H139)>H$75,"",INDEX($A$3:$A$70,SMALL(IF(H$3:H$70="",ROW(H$3:H$70)-ROW(H$3)+1),ROWS(H$76:H139)))) -> Student 67 | I139: =IF(ROWS(I$76:I139)>I$75,"",INDEX($A$3:$A$70,SMALL(IF(I$3:I$70="",ROW(I$3:I$70)-ROW(I$3)+1),ROWS(I$76:I139)))) -> Student 64 | J139: =IF(ROWS(J$76:J139)>J$75,"",INDEX($A$3:$A$70,SMALL(IF(J$3:J$70="",ROW(J$3:J$70)-ROW(J$3)+1),ROWS(J$76:J139)))) ->  | K139: =IF(ROWS(K$76:K139)>K$75,"",INDEX($A$3:$A$70,SMALL(IF(K$3:K$70="",ROW(K$3:K$70)-ROW(K$3)+1),ROWS(K$76:K139)))) -> 
A140: ="#"&ROWS(A$76:A140) -> #65 | B140: =IF(ROWS(B$76:B140)>B$75,"",INDEX($A$3:$A$70,SMALL(IF(B$3:B$70="",ROW(B$3:B$70)-ROW(B$3)+1),ROWS(B$76:B140)))) ->  | C140: =IF(ROWS(C$76:C140)>C$75,"",INDEX($A$3:$A$70,SMALL(IF(C$3:C$70="",ROW(C$3:C$70)-ROW(C$3)+1),ROWS(C$76:C140)))) ->  | D140: =IF(ROWS(D$76:D140)>D$75,"",INDEX($A$3:$A$70,SMALL(IF(D$3:D$70="",ROW(D$3:D$70)-ROW(D$3)+1),ROWS(D$76:D140)))) ->  | E140: =IF(ROWS(E$76:E140)>E$75,"",INDEX($A$3:$A$70,SMALL(IF(E$3:E$70="",ROW(E$3:E$70)-ROW(E$3)+1),ROWS(E$76:E140)))) ->  | F140: =IF(ROWS(F$76:F140)>F$75,"",INDEX($A$3:$A$70,SMALL(IF(F$3:F$70="",ROW(F$3:F$70)-ROW(F$3)+1),ROWS(F$76:F140)))) ->  | G140: =IF(ROWS(G$76:G140)>G$75,"",INDEX($A$3:$A$70,SMALL(IF(G$3:G$70="",ROW(G$3:G$70)-ROW(G$3)+1),ROWS(G$76:G140)))) ->  | H140: =IF(ROWS(H$76:H140)>H$75,"",INDEX($A$3:$A$70,SMALL(IF(H$3:H$70="",ROW(H$3:H$70)-ROW(H$3)+1),ROWS(H$76:H140)))) -> Student 68 | I140: =IF(ROWS(I$76:I140)>I$75,"",INDEX($A$3:$A$70,SMALL(IF(I$3:I$70="",ROW(I$3:I$70)-ROW(I$3)+1),ROWS(I$76:I140)))) -> Student 65 | J140: =IF(ROWS(J$76:J140)>J$75,"",INDEX($A$3:$A$70,SMALL(IF(J$3:J$70="",ROW(J$3:J$70)-ROW(J$3)+1),ROWS(J$76:J140)))) ->  | K140: =IF(ROWS(K$76:K140)>K$75,"",INDEX($A$3:$A$70,SMALL(IF(K$3:K$70="",ROW(K$3:K$70)-ROW(K$3)+1),ROWS(K$76:K140)))) -> 
A141: ="#"&ROWS(A$76:A141) -> #66 | B141: =IF(ROWS(B$76:B141)>B$75,"",INDEX($A$3:$A$70,SMALL(IF(B$3:B$70="",ROW(B$3:B$70)-ROW(B$3)+1),ROWS(B$76:B141)))) ->  | C141: =IF(ROWS(C$76:C141)>C$75,"",INDEX($A$3:$A$70,SMALL(IF(C$3:C$70="",ROW(C$3:C$70)-ROW(C$3)+1),ROWS(C$76:C141)))) ->  | D141: =IF(ROWS(D$76:D141)>D$75,"",INDEX($A$3:$A$70,SMALL(IF(D$3:D$70="",ROW(D$3:D$70)-ROW(D$3)+1),ROWS(D$76:D141)))) ->  | E141: =IF(ROWS(E$76:E141)>E$75,"",INDEX($A$3:$A$70,SMALL(IF(E$3:E$70="",ROW(E$3:E$70)-ROW(E$3)+1),ROWS(E$76:E141)))) ->  | F141: =IF(ROWS(F$76:F141)>F$75,"",INDEX($A$3:$A$70,SMALL(IF(F$3:F$70="",ROW(F$3:F$70)-ROW(F$3)+1),ROWS(F$76:F141)))) ->  | G141: =IF(ROWS(G$76:G141)>G$75,"",INDEX($A$3:$A$70,SMALL(IF(G$3:G$70="",ROW(G$3:G$70)-ROW(G$3)+1),ROWS(G$76:G141)))) ->  | H141: =IF(ROWS(H$76:H141)>H$75,"",INDEX($A$3:$A$70,SMALL(IF(H$3:H$70="",ROW(H$3:H$70)-ROW(H$3)+1),ROWS(H$76:H141)))) ->  | I141: =IF(ROWS(I$76:I141)>I$75,"",INDEX($A$3:$A$70,SMALL(IF(I$3:I$70="",ROW(I$3:I$70)-ROW(I$3)+1),ROWS(I$76:I141)))) -> Student 66 | J141: =IF(ROWS(J$76:J141)>J$75,"",INDEX($A$3:$A$70,SMALL(IF(J$3:J$70="",ROW(J$3:J$70)-ROW(J$3)+1),ROWS(J$76:J141)))) ->  | K141: =IF(ROWS(K$76:K141)>K$75,"",INDEX($A$3:$A$70,SMALL(IF(K$3:K$70="",ROW(K$3:K$70)-ROW(K$3)+1),ROWS(K$76:K141)))) -> 
A142: ="#"&ROWS(A$76:A142) -> #67 | B142: =IF(ROWS(B$76:B142)>B$75,"",INDEX($A$3:$A$70,SMALL(IF(B$3:B$70="",ROW(B$3:B$70)-ROW(B$3)+1),ROWS(B$76:B142)))) ->  | C142: =IF(ROWS(C$76:C142)>C$75,"",INDEX($A$3:$A$70,SMALL(IF(C$3:C$70="",ROW(C$3:C$70)-ROW(C$3)+1),ROWS(C$76:C142)))) ->  | D142: =IF(ROWS(D$76:D142)>D$75,"",INDEX($A$3:$A$70,SMALL(IF(D$3:D$70="",ROW(D$3:D$70)-ROW(D$3)+1),ROWS(D$76:D142)))) ->  | E142: =IF(ROWS(E$76:E142)>E$75,"",INDEX($A$3:$A$70,SMALL(IF(E$3:E$70="",ROW(E$3:E$70)-ROW(E$3)+1),ROWS(E$76:E142)))) ->  | F142: =IF(ROWS(F$76:F142)>F$75,"",INDEX($A$3:$A$70,SMALL(IF(F$3:F$70="",ROW(F$3:F$70)-ROW(F$3)+1),ROWS(F$76:F142)))) ->  | G142: =IF(ROWS(G$76:G142)>G$75,"",INDEX($A$3:$A$70,SMALL(IF(G$3:G$70="",ROW(G$3:G$70)-ROW(G$3)+1),ROWS(G$76:G142)))) ->  | H142: =IF(ROWS(H$76:H142)>H$75,"",INDEX($A$3:$A$70,SMALL(IF(H$3:H$70="",ROW(H$3:H$70)-ROW(H$3)+1),ROWS(H$76:H142)))) ->  | I142: =IF(ROWS(I$76:I142)>I$75,"",INDEX($A$3:$A$70,SMALL(IF(I$3:I$70="",ROW(I$3:I$70)-ROW(I$3)+1),ROWS(I$76:I142)))) -> Student 67 | J142: =IF(ROWS(J$76:J142)>J$75,"",INDEX($A$3:$A$70,SMALL(IF(J$3:J$70="",ROW(J$3:J$70)-ROW(J$3)+1),ROWS(J$76:J142)))) ->  | K142: =IF(ROWS(K$76:K142)>K$75,"",INDEX($A$3:$A$70,SMALL(IF(K$3:K$70="",ROW(K$3:K$70)-ROW(K$3)+1),ROWS(K$76:K142)))) -> 
A143: ="#"&ROWS(A$76:A143) -> #68 | B143: =IF(ROWS(B$76:B143)>B$75,"",INDEX($A$3:$A$70,SMALL(IF(B$3:B$70="",ROW(B$3:B$70)-ROW(B$3)+1),ROWS(B$76:B143)))) ->  | C143: =IF(ROWS(C$76:C143)>C$75,"",INDEX($A$3:$A$70,SMALL(IF(C$3:C$70="",ROW(C$3:C$70)-ROW(C$3)+1),ROWS(C$76:C143)))) ->  | D143: =IF(ROWS(D$76:D143)>D$75,"",INDEX($A$3:$A$70,SMALL(IF(D$3:D$70="",ROW(D$3:D$70)-ROW(D$3)+1),ROWS(D$76:D143)))) ->  | E143: =IF(ROWS(E$76:E143)>E$75,"",INDEX($A$3:$A$70,SMALL(IF(E$3:E$70="",ROW(E$3:E$70)-ROW(E$3)+1),ROWS(E$76:E143)))) ->  | F143: =IF(ROWS(F$76:F143)>F$75,"",INDEX($A$3:$A$70,SMALL(IF(F$3:F$70="",ROW(F$3:F$70)-ROW(F$3)+1),ROWS(F$76:F143)))) ->  | G143: =IF(ROWS(G$76:G143)>G$75,"",INDEX($A$3:$A$70,SMALL(IF(G$3:G$70="",ROW(G$3:G$70)-ROW(G$3)+1),ROWS(G$76:G143)))) ->  | H143: =IF(ROWS(H$76:H143)>H$75,"",INDEX($A$3:$A$70,SMALL(IF(H$3:H$70="",ROW(H$3:H$70)-ROW(H$3)+1),ROWS(H$76:H143)))) ->  | I143: =IF(ROWS(I$76:I143)>I$75,"",INDEX($A$3:$A$70,SMALL(IF(I$3:I$70="",ROW(I$3:I$70)-ROW(I$3)+1),ROWS(I$76:I143)))) -> Student 68 | J143: =IF(ROWS(J$76:J143)>J$75,"",INDEX($A$3:$A$70,SMALL(IF(J$3:J$70="",ROW(J$3:J$70)-ROW(J$3)+1),ROWS(J$76:J143)))) ->  | K143: =IF(ROWS(K$76:K143)>K$75,"",INDEX($A$3:$A$70,SMALL(IF(K$3:K$70="",ROW(K$3:K$70)-ROW(K$3)+1),ROWS(K$76:K143)))) -> 

Sheet (608)
A1: Period | B1: Per 1 | C1: Per 2 | D1: Per 3 | E1: Per 4 | G1: Goal: List Periods that Students have free
A2: Name/Time | B2: 08:00:00 | C2: 10:00:00 | D2: 12:00:00 | E2: 14:00:00 | H2: # Free Periods | I2: Per? | J2: Per? | K2: Per? | L2: Per?
A3: Sioux | B3: Busn 210 | D3: Busn 210 | G3: =A3 -> Sioux
A4: Sue | C4: Busn 216 | E4: Acc 121 | G4: Sue
A5: Jo | B5: Acc 121 | C5: Busn 216 | D5: Busn 210 | E5: Busn 216 | G5: Jo
A6: Joe | C6: Busn 101 | G6: Joe
A7: Chin | B7: Busn 214 | D7: Acc 121 | G7: Chin
A8: Loung | C8: Busn 101 | D8: Busn 216 | E8: Acc 121 | G8: Loung
A10: Goal: List Students With Free Periods
B11: Per 1 | C11: Per 2 | D11: Per 3 | E11: Per 4 | H11: To Enter Array Formula use: Ctrl = Shift + Enter
B12: =B2 -> 08:00:00 | C12: =C2 -> 10:00:00 | D12: =D2 -> 12:00:00 | E12: =E2 -> 14:00:00 | H12: For more about array formulas see:
A13: # Free Periods | H13: Excel Magic Trick 358: Part 1: Return Multiple Items From One
A14: =ROWS(A$14:A14) -> 1 | H14: Excel Magic Trick 359: Part 2: Return Multiple Items From One
A15: =ROWS(A$14:A15) -> 2 | H15: Excel Magic Trick 360: Part 3: Return Multiple Items From One
A16: =ROWS(A$14:A16) -> 3 | H16: Excel Magic Trick 478: Reverse Two Way Lookup For Date and Time Column and Row Headers
A17: =ROWS(A$14:A17) -> 4 | H17: Excel Magic Trick 479: Reverse Two Way Lookup - Robust Formula for Duplicate Situations
A18: =ROWS(A$14:A18) -> 5 | H18: Playlist of how to do array formulas:
A19: =ROWS(A$14:A19) -> 6 | H19: Excel Array Formulas Beg - Advanced

Sheet (608an)
A1: Period | B1: Per 1 | C1: Per 2 | D1: Per 3 | E1: Per 4 | G1: Goal: List Periods that Students have free
A2: Name/Time | B2: 08:00:00 | C2: 10:00:00 | D2: 12:00:00 | E2: 14:00:00 | H2: # Free Periods | I2: Per? | J2: Per? | K2: Per? | L2: Per?
A3: Sioux | B3: Busn 210 | D3: Busn 210 | G3: =A3 -> Sioux | H3: =COUNTIF(B3:E3,"") -> 2 | I3: =IF(COLUMNS($I3:I3)>$H3,"",INDEX($B$1:$E$1&"-"&TEXT($B$2:$E$2,"h:mm AM/PM"),SMALL(IF($B3:$E3="",COLUMN($B3:$E3)-COLUMN($B3)+1),COLUMNS($I3:I3)))) -> Per 2-10:00 AM | J3: =IF(COLUMNS($I3:J3)>$H3,"",INDEX($B$1:$E$1&"-"&TEXT($B$2:$E$2,"h:mm AM/PM"),SMALL(IF($B3:$E3="",COLUMN($B3:$E3)-COLUMN($B3)+1),COLUMNS($I3:J3)))) -> Per 4-2:00 PM | K3: =IF(COLUMNS($I3:K3)>$H3,"",INDEX($B$1:$E$1&"-"&TEXT($B$2:$E$2,"h:mm AM/PM"),SMALL(IF($B3:$E3="",COLUMN($B3:$E3)-COLUMN($B3)+1),COLUMNS($I3:K3)))) ->  | L3: =IF(COLUMNS($I3:L3)>$H3,"",INDEX($B$1:$E$1&"-"&TEXT($B$2:$E$2,"h:mm AM/PM"),SMALL(IF($B3:$E3="",COLUMN($B3:$E3)-COLUMN($B3)+1),COLUMNS($I3:L3)))) -> 
A4: Sue | C4: Busn 216 | E4: Acc 121 | G4: Sue | H4: =COUNTIF(B4:E4,"") -> 2 | I4: =IF(COLUMNS($I4:I4)>$H4,"",INDEX($B$1:$E$1&"-"&TEXT($B$2:$E$2,"h:mm AM/PM"),SMALL(IF($B4:$E4="",COLUMN($B4:$E4)-COLUMN($B4)+1),COLUMNS($I4:I4)))) -> Per 1-8:00 AM | J4: =IF(COLUMNS($I4:J4)>$H4,"",INDEX($B$1:$E$1&"-"&TEXT($B$2:$E$2,"h:mm AM/PM"),SMALL(IF($B4:$E4="",COLUMN($B4:$E4)-COLUMN($B4)+1),COLUMNS($I4:J4)))) -> Per 3-12:00 PM | K4: =IF(COLUMNS($I4:K4)>$H4,"",INDEX($B$1:$E$1&"-"&TEXT($B$2:$E$2,"h:mm AM/PM"),SMALL(IF($B4:$E4="",COLUMN($B4:$E4)-COLUMN($B4)+1),COLUMNS($I4:K4)))) ->  | L4: =IF(COLUMNS($I4:L4)>$H4,"",INDEX($B$1:$E$1&"-"&TEXT($B$2:$E$2,"h:mm AM/PM"),SMALL(IF($B4:$E4="",COLUMN($B4:$E4)-COLUMN($B4)+1),COLUMNS($I4:L4)))) -> 
A5: Jo | C5: Busn 216 | D5: Busn 210 | E5: Busn 216 | G5: Jo | H5: 1 | I5: =IF(COLUMNS($I5:I5)>$H5,"",INDEX($B$1:$E$1&"-"&TEXT($B$2:$E$2,"h:mm AM/PM"),SMALL(IF($B5:$E5="",COLUMN($B5:$E5)-COLUMN($B5)+1),COLUMNS($I5:I5)))) -> Per 1-8:00 AM | J5: =IF(COLUMNS($I5:J5)>$H5,"",INDEX($B$1:$E$1&"-"&TEXT($B$2:$E$2,"h:mm AM/PM"),SMALL(IF($B5:$E5="",COLUMN($B5:$E5)-COLUMN($B5)+1),COLUMNS($I5:J5)))) ->  | K5: =IF(COLUMNS($I5:K5)>$H5,"",INDEX($B$1:$E$1&"-"&TEXT($B$2:$E$2,"h:mm AM/PM"),SMALL(IF($B5:$E5="",COLUMN($B5:$E5)-COLUMN($B5)+1),COLUMNS($I5:K5)))) ->  | L5: =IF(COLUMNS($I5:L5)>$H5,"",INDEX($B$1:$E$1&"-"&TEXT($B$2:$E$2,"h:mm AM/PM"),SMALL(IF($B5:$E5="",COLUMN($B5:$E5)-COLUMN($B5)+1),COLUMNS($I5:L5)))) -> 
A6: Joe | C6: Busn 101 | G6: Joe | H6: 3 | I6: =IF(COLUMNS($I6:I6)>$H6,"",INDEX($B$1:$E$1&"-"&TEXT($B$2:$E$2,"h:mm AM/PM"),SMALL(IF($B6:$E6="",COLUMN($B6:$E6)-COLUMN($B6)+1),COLUMNS($I6:I6)))) -> Per 1-8:00 AM | J6: =IF(COLUMNS($I6:J6)>$H6,"",INDEX($B$1:$E$1&"-"&TEXT($B$2:$E$2,"h:mm AM/PM"),SMALL(IF($B6:$E6="",COLUMN($B6:$E6)-COLUMN($B6)+1),COLUMNS($I6:J6)))) -> Per 3-12:00 PM | K6: =IF(COLUMNS($I6:K6)>$H6,"",INDEX($B$1:$E$1&"-"&TEXT($B$2:$E$2,"h:mm AM/PM"),SMALL(IF($B6:$E6="",COLUMN($B6:$E6)-COLUMN($B6)+1),COLUMNS($I6:K6)))) -> Per 4-2:00 PM | L6: =IF(COLUMNS($I6:L6)>$H6,"",INDEX($B$1:$E$1&"-"&TEXT($B$2:$E$2,"h:mm AM/PM"),SMALL(IF($B6:$E6="",COLUMN($B6:$E6)-COLUMN($B6)+1),COLUMNS($I6:L6)))) -> 
A7: Chin | B7: Busn 214 | D7: Acc 121 | E7: Busn 216 | G7: Chin | H7: 1 | I7: =IF(COLUMNS($I7:I7)>$H7,"",INDEX($B$1:$E$1&"-"&TEXT($B$2:$E$2,"h:mm AM/PM"),SMALL(IF($B7:$E7="",COLUMN($B7:$E7)-COLUMN($B7)+1),COLUMNS($I7:I7)))) -> Per 2-10:00 AM | J7: =IF(COLUMNS($I7:J7)>$H7,"",INDEX($B$1:$E$1&"-"&TEXT($B$2:$E$2,"h:mm AM/PM"),SMALL(IF($B7:$E7="",COLUMN($B7:$E7)-COLUMN($B7)+1),COLUMNS($I7:J7)))) ->  | K7: =IF(COLUMNS($I7:K7)>$H7,"",INDEX($B$1:$E$1&"-"&TEXT($B$2:$E$2,"h:mm AM/PM"),SMALL(IF($B7:$E7="",COLUMN($B7:$E7)-COLUMN($B7)+1),COLUMNS($I7:K7)))) ->  | L7: =IF(COLUMNS($I7:L7)>$H7,"",INDEX($B$1:$E$1&"-"&TEXT($B$2:$E$2,"h:mm AM/PM"),SMALL(IF($B7:$E7="",COLUMN($B7:$E7)-COLUMN($B7)+1),COLUMNS($I7:L7)))) -> 
A8: Loung | B8: Busn 214 | C8: Busn 101 | D8: Busn 216 | E8: Acc 121 | G8: Loung | H8: 0 | I8: =IF(COLUMNS($I8:I8)>$H8,"",INDEX($B$1:$E$1&"-"&TEXT($B$2:$E$2,"h:mm AM/PM"),SMALL(IF($B8:$E8="",COLUMN($B8:$E8)-COLUMN($B8)+1),COLUMNS($I8:I8)))) ->  | J8: =IF(COLUMNS($I8:J8)>$H8,"",INDEX($B$1:$E$1&"-"&TEXT($B$2:$E$2,"h:mm AM/PM"),SMALL(IF($B8:$E8="",COLUMN($B8:$E8)-COLUMN($B8)+1),COLUMNS($I8:J8)))) ->  | K8: =IF(COLUMNS($I8:K8)>$H8,"",INDEX($B$1:$E$1&"-"&TEXT($B$2:$E$2,"h:mm AM/PM"),SMALL(IF($B8:$E8="",COLUMN($B8:$E8)-COLUMN($B8)+1),COLUMNS($I8:K8)))) ->  | L8: =IF(COLUMNS($I8:L8)>$H8,"",INDEX($B$1:$E$1&"-"&TEXT($B$2:$E$2,"h:mm AM/PM"),SMALL(IF($B8:$E8="",COLUMN($B8:$E8)-COLUMN($B8)+1),COLUMNS($I8:L8)))) -> 
A10: Goal: List Students With Free Periods
B11: Per 1 | C11: Per 2 | D11: Per 3 | E11: Per 4 | H11: To Enter Array Formula use: Ctrl = Shift + Enter
B12: =B2 -> 08:00:00 | C12: =C2 -> 10:00:00 | D12: =D2 -> 12:00:00 | E12: =E2 -> 14:00:00 | H12: For more about array formulas see:
A13: # Free Periods | B13: =COUNTIF(B3:B8,"") -> 3 | C13: 2 | D13: 2 | E13: 2 | H13: Excel Magic Trick 358: Part 1: Return Multiple Items From One
A14: =ROWS(A$14:A14) -> 1 | B14: =IF(ROWS(B$14:B14)>B$13,"",INDEX($A$3:$A$8,SMALL(IF(B$3:B$8="",ROW(B$3:B$8)-ROW(B$3)+1),ROWS(B$14:B14)))) -> Sue | C14: =IF(ROWS(C$14:C14)>C$13,"",INDEX($A$3:$A$8,SMALL(IF(C$3:C$8="",ROW(C$3:C$8)-ROW(C$3)+1),ROWS(C$14:C14)))) -> Sioux | D14: =IF(ROWS(D$14:D14)>D$13,"",INDEX($A$3:$A$8,SMALL(IF(D$3:D$8="",ROW(D$3:D$8)-ROW(D$3)+1),ROWS(D$14:D14)))) -> Sue | E14: =IF(ROWS(E$14:E14)>E$13,"",INDEX($A$3:$A$8,SMALL(IF(E$3:E$8="",ROW(E$3:E$8)-ROW(E$3)+1),ROWS(E$14:E14)))) -> Sioux | H14: Excel Magic Trick 359: Part 2: Return Multiple Items From One
A15: =ROWS(A$14:A15) -> 2 | B15: =IF(ROWS(B$14:B15)>B$13,"",INDEX($A$3:$A$8,SMALL(IF(B$3:B$8="",ROW(B$3:B$8)-ROW(B$3)+1),ROWS(B$14:B15)))) -> Jo | C15: =IF(ROWS(C$14:C15)>C$13,"",INDEX($A$3:$A$8,SMALL(IF(C$3:C$8="",ROW(C$3:C$8)-ROW(C$3)+1),ROWS(C$14:C15)))) -> Chin | D15: =IF(ROWS(D$14:D15)>D$13,"",INDEX($A$3:$A$8,SMALL(IF(D$3:D$8="",ROW(D$3:D$8)-ROW(D$3)+1),ROWS(D$14:D15)))) -> Joe | E15: =IF(ROWS(E$14:E15)>E$13,"",INDEX($A$3:$A$8,SMALL(IF(E$3:E$8="",ROW(E$3:E$8)-ROW(E$3)+1),ROWS(E$14:E15)))) -> Joe | H15: Excel Magic Trick 360: Part 3: Return Multiple Items From One
A16: =ROWS(A$14:A16) -> 3 | B16: =IF(ROWS(B$14:B16)>B$13,"",INDEX($A$3:$A$8,SMALL(IF(B$3:B$8="",ROW(B$3:B$8)-ROW(B$3)+1),ROWS(B$14:B16)))) -> Joe | C16: =IF(ROWS(C$14:C16)>C$13,"",INDEX($A$3:$A$8,SMALL(IF(C$3:C$8="",ROW(C$3:C$8)-ROW(C$3)+1),ROWS(C$14:C16)))) ->  | D16: =IF(ROWS(D$14:D16)>D$13,"",INDEX($A$3:$A$8,SMALL(IF(D$3:D$8="",ROW(D$3:D$8)-ROW(D$3)+1),ROWS(D$14:D16)))) ->  | E16: =IF(ROWS(E$14:E16)>E$13,"",INDEX($A$3:$A$8,SMALL(IF(E$3:E$8="",ROW(E$3:E$8)-ROW(E$3)+1),ROWS(E$14:E16)))) ->  | H16: Excel Magic Trick 478: Reverse Two Way Lookup For Date and Time Column and Row Headers
A17: =ROWS(A$14:A17) -> 4 | B17: =IF(ROWS(B$14:B17)>B$13,"",INDEX($A$3:$A$8,SMALL(IF(B$3:B$8="",ROW(B$3:B$8)-ROW(B$3)+1),ROWS(B$14:B17)))) ->  | C17: =IF(ROWS(C$14:C17)>C$13,"",INDEX($A$3:$A$8,SMALL(IF(C$3:C$8="",ROW(C$3:C$8)-ROW(C$3)+1),ROWS(C$14:C17)))) ->  | D17: =IF(ROWS(D$14:D17)>D$13,"",INDEX($A$3:$A$8,SMALL(IF(D$3:D$8="",ROW(D$3:D$8)-ROW(D$3)+1),ROWS(D$14:D17)))) ->  | E17: =IF(ROWS(E$14:E17)>E$13,"",INDEX($A$3:$A$8,SMALL(IF(E$3:E$8="",ROW(E$3:E$8)-ROW(E$3)+1),ROWS(E$14:E17)))) ->  | H17: Excel Magic Trick 479: Reverse Two Way Lookup - Robust Formula for Duplicate Situations
A18: =ROWS(A$14:A18) -> 5 | B18: =IF(ROWS(B$14:B18)>B$13,"",INDEX($A$3:$A$8,SMALL(IF(B$3:B$8="",ROW(B$3:B$8)-ROW(B$3)+1),ROWS(B$14:B18)))) ->  | C18: =IF(ROWS(C$14:C18)>C$13,"",INDEX($A$3:$A$8,SMALL(IF(C$3:C$8="",ROW(C$3:C$8)-ROW(C$3)+1),ROWS(C$14:C18)))) ->  | D18: =IF(ROWS(D$14:D18)>D$13,"",INDEX($A$3:$A$8,SMALL(IF(D$3:D$8="",ROW(D$3:D$8)-ROW(D$3)+1),ROWS(D$14:D18)))) ->  | E18: =IF(ROWS(E$14:E18)>E$13,"",INDEX($A$3:$A$8,SMALL(IF(E$3:E$8="",ROW(E$3:E$8)-ROW(E$3)+1),ROWS(E$14:E18)))) ->  | H18: Playlist of how to do array formulas:
A19: =ROWS(A$14:A19) -> 6 | B19: =IF(ROWS(B$14:B19)>B$13,"",INDEX($A$3:$A$8,SMALL(IF(B$3:B$8="",ROW(B$3:B$8)-ROW(B$3)+1),ROWS(B$14:B19)))) ->  | C19: =IF(ROWS(C$14:C19)>C$13,"",INDEX($A$3:$A$8,SMALL(IF(C$3:C$8="",ROW(C$3:C$8)-ROW(C$3)+1),ROWS(C$14:C19)))) ->  | D19: =IF(ROWS(D$14:D19)>D$13,"",INDEX($A$3:$A$8,SMALL(IF(D$3:D$8="",ROW(D$3:D$8)-ROW(D$3)+1),ROWS(D$14:D19)))) ->  | E19: =IF(ROWS(E$14:E19)>E$13,"",INDEX($A$3:$A$8,SMALL(IF(E$3:E$8="",ROW(E$3:E$8)-ROW(E$3)+1),ROWS(E$14:E19)))) ->  | H19: Excel Array Formulas Beg - Advanced

Sheet (609)
A1: Period | B1: Per 1 | C1: Per 2 | D1: Per 3 | E1: Per 4 | G1: Goal: List Periods that Students have free
A2: Name/Time | B2: 08:00:00 | C2: 10:00:00 | D2: 12:00:00 | E2: 14:00:00 | H2: # Free Periods | I2: Per? | J2: Per? | K2: Per? | L2: Per?
A3: Sioux | B3: Busn 210 | D3: Busn 210 | G3: =A3 -> Sioux
A4: Sue | C4: Busn 216 | E4: Acc 121 | G4: Sue
A5: Jo | B5: Acc 121 | D5: Busn 210 | E5: Busn 216 | G5: Jo
A6: Joe | B6: Busn 214 | C6: Busn 101 | G6: Joe
A7: Chin | B7: Busn 214 | D7: Acc 121 | G7: Chin
A8: Loung | C8: Busn 101 | D8: Busn 216 | E8: Acc 121 | G8: Loung
A10: Goal: List Students With Free Periods
B11: Per 1 | C11: Per 2 | D11: Per 3 | E11: Per 4 | H11: To Enter Array Formula use: Ctrl = Shift + Enter
B12: =B2 -> 08:00:00 | C12: =C2 -> 10:00:00 | D12: =D2 -> 12:00:00 | E12: =E2 -> 14:00:00 | H12: For more about array formulas see:
A13: # Free Periods | B13: =COUNTIF(B3:B8,"") -> 2 | C13: 3 | D13: 2 | E13: 3 | H13: Excel Magic Trick 358: Part 1: Return Multiple Items From One
A14: =ROWS(A$14:A14) -> 1 | B14: =IF(ROWS(B$14:B14)>B$13,"",INDEX($A$3:$A$8,SMALL(IF(B$3:B$8="",ROW(B$3:B$8)-ROW(B$3)+1),ROWS(B$14:B14)))) -> Sue | C14: =IF(ROWS(C$14:C14)>C$13,"",INDEX($A$3:$A$8,SMALL(IF(C$3:C$8="",ROW(C$3:C$8)-ROW(C$3)+1),ROWS(C$14:C14)))) -> Sioux | D14: =IF(ROWS(D$14:D14)>D$13,"",INDEX($A$3:$A$8,SMALL(IF(D$3:D$8="",ROW(D$3:D$8)-ROW(D$3)+1),ROWS(D$14:D14)))) -> Sue | E14: =IF(ROWS(E$14:E14)>E$13,"",INDEX($A$3:$A$8,SMALL(IF(E$3:E$8="",ROW(E$3:E$8)-ROW(E$3)+1),ROWS(E$14:E14)))) -> Sioux | H14: Excel Magic Trick 359: Part 2: Return Multiple Items From One
A15: =ROWS(A$14:A15) -> 2 | B15: =IF(ROWS(B$14:B15)>B$13,"",INDEX($A$3:$A$8,SMALL(IF(B$3:B$8="",ROW(B$3:B$8)-ROW(B$3)+1),ROWS(B$14:B15)))) -> Loung | C15: =IF(ROWS(C$14:C15)>C$13,"",INDEX($A$3:$A$8,SMALL(IF(C$3:C$8="",ROW(C$3:C$8)-ROW(C$3)+1),ROWS(C$14:C15)))) -> Jo | D15: =IF(ROWS(D$14:D15)>D$13,"",INDEX($A$3:$A$8,SMALL(IF(D$3:D$8="",ROW(D$3:D$8)-ROW(D$3)+1),ROWS(D$14:D15)))) -> Joe | E15: =IF(ROWS(E$14:E15)>E$13,"",INDEX($A$3:$A$8,SMALL(IF(E$3:E$8="",ROW(E$3:E$8)-ROW(E$3)+1),ROWS(E$14:E15)))) -> Joe | H15: Excel Magic Trick 360: Part 3: Return Multiple Items From One
A16: =ROWS(A$14:A16) -> 3 | B16: =IF(ROWS(B$14:B16)>B$13,"",INDEX($A$3:$A$8,SMALL(IF(B$3:B$8="",ROW(B$3:B$8)-ROW(B$3)+1),ROWS(B$14:B16)))) ->  | C16: =IF(ROWS(C$14:C16)>C$13,"",INDEX($A$3:$A$8,SMALL(IF(C$3:C$8="",ROW(C$3:C$8)-ROW(C$3)+1),ROWS(C$14:C16)))) -> Chin | D16: =IF(ROWS(D$14:D16)>D$13,"",INDEX($A$3:$A$8,SMALL(IF(D$3:D$8="",ROW(D$3:D$8)-ROW(D$3)+1),ROWS(D$14:D16)))) ->  | E16: =IF(ROWS(E$14:E16)>E$13,"",INDEX($A$3:$A$8,SMALL(IF(E$3:E$8="",ROW(E$3:E$8)-ROW(E$3)+1),ROWS(E$14:E16)))) -> Chin | H16: Excel Magic Trick 478: Reverse Two Way Lookup For Date and Time Column and Row Headers
A17: =ROWS(A$14:A17) -> 4 | B17: =IF(ROWS(B$14:B17)>B$13,"",INDEX($A$3:$A$8,SMALL(IF(B$3:B$8="",ROW(B$3:B$8)-ROW(B$3)+1),ROWS(B$14:B17)))) ->  | C17: =IF(ROWS(C$14:C17)>C$13,"",INDEX($A$3:$A$8,SMALL(IF(C$3:C$8="",ROW(C$3:C$8)-ROW(C$3)+1),ROWS(C$14:C17)))) ->  | D17: =IF(ROWS(D$14:D17)>D$13,"",INDEX($A$3:$A$8,SMALL(IF(D$3:D$8="",ROW(D$3:D$8)-ROW(D$3)+1),ROWS(D$14:D17)))) ->  | E17: =IF(ROWS(E$14:E17)>E$13,"",INDEX($A$3:$A$8,SMALL(IF(E$3:E$8="",ROW(E$3:E$8)-ROW(E$3)+1),ROWS(E$14:E17)))) ->  | H17: Excel Magic Trick 479: Reverse Two Way Lookup - Robust Formula for Duplicate Situations
A18: =ROWS(A$14:A18) -> 5 | B18: =IF(ROWS(B$14:B18)>B$13,"",INDEX($A$3:$A$8,SMALL(IF(B$3:B$8="",ROW(B$3:B$8)-ROW(B$3)+1),ROWS(B$14:B18)))) ->  | C18: =IF(ROWS(C$14:C18)>C$13,"",INDEX($A$3:$A$8,SMALL(IF(C$3:C$8="",ROW(C$3:C$8)-ROW(C$3)+1),ROWS(C$14:C18)))) ->  | D18: =IF(ROWS(D$14:D18)>D$13,"",INDEX($A$3:$A$8,SMALL(IF(D$3:D$8="",ROW(D$3:D$8)-ROW(D$3)+1),ROWS(D$14:D18)))) ->  | E18: =IF(ROWS(E$14:E18)>E$13,"",INDEX($A$3:$A$8,SMALL(IF(E$3:E$8="",ROW(E$3:E$8)-ROW(E$3)+1),ROWS(E$14:E18)))) ->  | H18: Playlist of how to do array formulas:
A19: =ROWS(A$14:A19) -> 6 | B19: =IF(ROWS(B$14:B19)>B$13,"",INDEX($A$3:$A$8,SMALL(IF(B$3:B$8="",ROW(B$3:B$8)-ROW(B$3)+1),ROWS(B$14:B19)))) ->  | C19: =IF(ROWS(C$14:C19)>C$13,"",INDEX($A$3:$A$8,SMALL(IF(C$3:C$8="",ROW(C$3:C$8)-ROW(C$3)+1),ROWS(C$14:C19)))) ->  | D19: =IF(ROWS(D$14:D19)>D$13,"",INDEX($A$3:$A$8,SMALL(IF(D$3:D$8="",ROW(D$3:D$8)-ROW(D$3)+1),ROWS(D$14:D19)))) ->  | E19: =IF(ROWS(E$14:E19)>E$13,"",INDEX($A$3:$A$8,SMALL(IF(E$3:E$8="",ROW(E$3:E$8)-ROW(E$3)+1),ROWS(E$14:E19)))) ->  | H19: Excel Array Formulas Beg - Advanced

Sheet (609an)
A1: Period | B1: Per 1 | C1: Per 2 | D1: Per 3 | E1: Per 4 | G1: Goal: List Periods that Students have free
A2: Name/Time | B2: 08:00:00 | C2: 10:00:00 | D2: 12:00:00 | E2: 14:00:00 | H2: # Free Periods | I2: Per? | J2: Per? | K2: Per? | L2: Per?
A3: Sioux | B3: Busn 210 | D3: Busn 210 | G3: =A3 -> Sioux | H3: =COUNTIF(B3:E3,"") -> 2 | I3: =IF(COLUMNS($I3:I3)>$H3,"",INDEX($B$1:$E$1&"-"&TEXT($B$2:$E$2,"h:mm AM/PM"),SMALL(IF($B3:$E3="",COLUMN($B3:$E3)-COLUMN($B3)+1),COLUMNS($I3:I3)))) -> Per 2-10:00 AM | J3: =IF(COLUMNS($I3:J3)>$H3,"",INDEX($B$1:$E$1&"-"&TEXT($B$2:$E$2,"h:mm AM/PM"),SMALL(IF($B3:$E3="",COLUMN($B3:$E3)-COLUMN($B3)+1),COLUMNS($I3:J3)))) -> Per 4-2:00 PM | K3: =IF(COLUMNS($I3:K3)>$H3,"",INDEX($B$1:$E$1&"-"&TEXT($B$2:$E$2,"h:mm AM/PM"),SMALL(IF($B3:$E3="",COLUMN($B3:$E3)-COLUMN($B3)+1),COLUMNS($I3:K3)))) ->  | L3: =IF(COLUMNS($I3:L3)>$H3,"",INDEX($B$1:$E$1&"-"&TEXT($B$2:$E$2,"h:mm AM/PM"),SMALL(IF($B3:$E3="",COLUMN($B3:$E3)-COLUMN($B3)+1),COLUMNS($I3:L3)))) -> 
A4: Sue | C4: Busn 216 | E4: Acc 121 | G4: Sue | H4: =COUNTIF(B4:E4,"") -> 2 | I4: =IF(COLUMNS($I4:I4)>$H4,"",INDEX($B$1:$E$1&"-"&TEXT($B$2:$E$2,"h:mm AM/PM"),SMALL(IF($B4:$E4="",COLUMN($B4:$E4)-COLUMN($B4)+1),COLUMNS($I4:I4)))) -> Per 1-8:00 AM | J4: =IF(COLUMNS($I4:J4)>$H4,"",INDEX($B$1:$E$1&"-"&TEXT($B$2:$E$2,"h:mm AM/PM"),SMALL(IF($B4:$E4="",COLUMN($B4:$E4)-COLUMN($B4)+1),COLUMNS($I4:J4)))) -> Per 3-12:00 PM | K4: =IF(COLUMNS($I4:K4)>$H4,"",INDEX($B$1:$E$1&"-"&TEXT($B$2:$E$2,"h:mm AM/PM"),SMALL(IF($B4:$E4="",COLUMN($B4:$E4)-COLUMN($B4)+1),COLUMNS($I4:K4)))) ->  | L4: =IF(COLUMNS($I4:L4)>$H4,"",INDEX($B$1:$E$1&"-"&TEXT($B$2:$E$2,"h:mm AM/PM"),SMALL(IF($B4:$E4="",COLUMN($B4:$E4)-COLUMN($B4)+1),COLUMNS($I4:L4)))) -> 
A5: Jo | B5: Acc 121 | D5: Busn 210 | E5: Busn 216 | G5: Jo | H5: 1 | I5: =IF(COLUMNS($I5:I5)>$H5,"",INDEX($B$1:$E$1&"-"&TEXT($B$2:$E$2,"h:mm AM/PM"),SMALL(IF($B5:$E5="",COLUMN($B5:$E5)-COLUMN($B5)+1),COLUMNS($I5:I5)))) -> Per 2-10:00 AM | J5: =IF(COLUMNS($I5:J5)>$H5,"",INDEX($B$1:$E$1&"-"&TEXT($B$2:$E$2,"h:mm AM/PM"),SMALL(IF($B5:$E5="",COLUMN($B5:$E5)-COLUMN($B5)+1),COLUMNS($I5:J5)))) ->  | K5: =IF(COLUMNS($I5:K5)>$H5,"",INDEX($B$1:$E$1&"-"&TEXT($B$2:$E$2,"h:mm AM/PM"),SMALL(IF($B5:$E5="",COLUMN($B5:$E5)-COLUMN($B5)+1),COLUMNS($I5:K5)))) ->  | L5: =IF(COLUMNS($I5:L5)>$H5,"",INDEX($B$1:$E$1&"-"&TEXT($B$2:$E$2,"h:mm AM/PM"),SMALL(IF($B5:$E5="",COLUMN($B5:$E5)-COLUMN($B5)+1),COLUMNS($I5:L5)))) -> 
A6: Joe | B6: Busn 214 | C6: Busn 101 | G6: Joe | H6: 2 | I6: =IF(COLUMNS($I6:I6)>$H6,"",INDEX($B$1:$E$1&"-"&TEXT($B$2:$E$2,"h:mm AM/PM"),SMALL(IF($B6:$E6="",COLUMN($B6:$E6)-COLUMN($B6)+1),COLUMNS($I6:I6)))) -> Per 3-12:00 PM | J6: =IF(COLUMNS($I6:J6)>$H6,"",INDEX($B$1:$E$1&"-"&TEXT($B$2:$E$2,"h:mm AM/PM"),SMALL(IF($B6:$E6="",COLUMN($B6:$E6)-COLUMN($B6)+1),COLUMNS($I6:J6)))) -> Per 4-2:00 PM | K6: =IF(COLUMNS($I6:K6)>$H6,"",INDEX($B$1:$E$1&"-"&TEXT($B$2:$E$2,"h:mm AM/PM"),SMALL(IF($B6:$E6="",COLUMN($B6:$E6)-COLUMN($B6)+1),COLUMNS($I6:K6)))) ->  | L6: =IF(COLUMNS($I6:L6)>$H6,"",INDEX($B$1:$E$1&"-"&TEXT($B$2:$E$2,"h:mm AM/PM"),SMALL(IF($B6:$E6="",COLUMN($B6:$E6)-COLUMN($B6)+1),COLUMNS($I6:L6)))) -> 
A7: Chin | B7: Busn 214 | D7: Acc 121 | G7: Chin | H7: 2 | I7: =IF(COLUMNS($I7:I7)>$H7,"",INDEX($B$1:$E$1&"-"&TEXT($B$2:$E$2,"h:mm AM/PM"),SMALL(IF($B7:$E7="",COLUMN($B7:$E7)-COLUMN($B7)+1),COLUMNS($I7:I7)))) -> Per 2-10:00 AM | J7: =IF(COLUMNS($I7:J7)>$H7,"",INDEX($B$1:$E$1&"-"&TEXT($B$2:$E$2,"h:mm AM/PM"),SMALL(IF($B7:$E7="",COLUMN($B7:$E7)-COLUMN($B7)+1),COLUMNS($I7:J7)))) -> Per 4-2:00 PM | K7: =IF(COLUMNS($I7:K7)>$H7,"",INDEX($B$1:$E$1&"-"&TEXT($B$2:$E$2,"h:mm AM/PM"),SMALL(IF($B7:$E7="",COLUMN($B7:$E7)-COLUMN($B7)+1),COLUMNS($I7:K7)))) ->  | L7: =IF(COLUMNS($I7:L7)>$H7,"",INDEX($B$1:$E$1&"-"&TEXT($B$2:$E$2,"h:mm AM/PM"),SMALL(IF($B7:$E7="",COLUMN($B7:$E7)-COLUMN($B7)+1),COLUMNS($I7:L7)))) -> 
A8: Loung | C8: Busn 101 | D8: Busn 216 | E8: Acc 121 | G8: Loung | H8: 1 | I8: =IF(COLUMNS($I8:I8)>$H8,"",INDEX($B$1:$E$1&"-"&TEXT($B$2:$E$2,"h:mm AM/PM"),SMALL(IF($B8:$E8="",COLUMN($B8:$E8)-COLUMN($B8)+1),COLUMNS($I8:I8)))) -> Per 1-8:00 AM | J8: =IF(COLUMNS($I8:J8)>$H8,"",INDEX($B$1:$E$1&"-"&TEXT($B$2:$E$2,"h:mm AM/PM"),SMALL(IF($B8:$E8="",COLUMN($B8:$E8)-COLUMN($B8)+1),COLUMNS($I8:J8)))) ->  | K8: =IF(COLUMNS($I8:K8)>$H8,"",INDEX($B$1:$E$1&"-"&TEXT($B$2:$E$2,"h:mm AM/PM"),SMALL(IF($B8:$E8="",COLUMN($B8:$E8)-COLUMN($B8)+1),COLUMNS($I8:K8)))) ->  | L8: =IF(COLUMNS($I8:L8)>$H8,"",INDEX($B$1:$E$1&"-"&TEXT($B$2:$E$2,"h:mm AM/PM"),SMALL(IF($B8:$E8="",COLUMN($B8:$E8)-COLUMN($B8)+1),COLUMNS($I8:L8)))) -> 
A10: Goal: List Students With Free Periods
B11: Per 1 | C11: Per 2 | D11: Per 3 | E11: Per 4 | H11: To Enter Array Formula use: Ctrl = Shift + Enter
B12: =B2 -> 08:00:00 | C12: =C2 -> 10:00:00 | D12: =D2 -> 12:00:00 | E12: =E2 -> 14:00:00 | H12: For more about array formulas see:
A13: # Free Periods | B13: =COUNTIF(B3:B8,"") -> 2 | C13: 3 | D13: 2 | E13: 3 | H13: Excel Magic Trick 358: Part 1: Return Multiple Items From One
A14: =ROWS(A$14:A14) -> 1 | B14: =IF(ROWS(B$14:B14)>B$13,"",INDEX($A$3:$A$8,SMALL(IF(B$3:B$8="",ROW(B$3:B$8)-ROW(B$3)+1),ROWS(B$14:B14)))) -> Sue | C14: =IF(ROWS(C$14:C14)>C$13,"",INDEX($A$3:$A$8,SMALL(IF(C$3:C$8="",ROW(C$3:C$8)-ROW(C$3)+1),ROWS(C$14:C14)))) -> Sioux | D14: =IF(ROWS(D$14:D14)>D$13,"",INDEX($A$3:$A$8,SMALL(IF(D$3:D$8="",ROW(D$3:D$8)-ROW(D$3)+1),ROWS(D$14:D14)))) -> Sue | E14: =IF(ROWS(E$14:E14)>E$13,"",INDEX($A$3:$A$8,SMALL(IF(E$3:E$8="",ROW(E$3:E$8)-ROW(E$3)+1),ROWS(E$14:E14)))) -> Sioux | H14: Excel Magic Trick 359: Part 2: Return Multiple Items From One
A15: =ROWS(A$14:A15) -> 2 | B15: =IF(ROWS(B$14:B15)>B$13,"",INDEX($A$3:$A$8,SMALL(IF(B$3:B$8="",ROW(B$3:B$8)-ROW(B$3)+1),ROWS(B$14:B15)))) -> Loung | C15: =IF(ROWS(C$14:C15)>C$13,"",INDEX($A$3:$A$8,SMALL(IF(C$3:C$8="",ROW(C$3:C$8)-ROW(C$3)+1),ROWS(C$14:C15)))) -> Jo | D15: =IF(ROWS(D$14:D15)>D$13,"",INDEX($A$3:$A$8,SMALL(IF(D$3:D$8="",ROW(D$3:D$8)-ROW(D$3)+1),ROWS(D$14:D15)))) -> Joe | E15: =IF(ROWS(E$14:E15)>E$13,"",INDEX($A$3:$A$8,SMALL(IF(E$3:E$8="",ROW(E$3:E$8)-ROW(E$3)+1),ROWS(E$14:E15)))) -> Joe | H15: Excel Magic Trick 360: Part 3: Return Multiple Items From One
A16: =ROWS(A$14:A16) -> 3 | B16: =IF(ROWS(B$14:B16)>B$13,"",INDEX($A$3:$A$8,SMALL(IF(B$3:B$8="",ROW(B$3:B$8)-ROW(B$3)+1),ROWS(B$14:B16)))) ->  | C16: =IF(ROWS(C$14:C16)>C$13,"",INDEX($A$3:$A$8,SMALL(IF(C$3:C$8="",ROW(C$3:C$8)-ROW(C$3)+1),ROWS(C$14:C16)))) -> Chin | D16: =IF(ROWS(D$14:D16)>D$13,"",INDEX($A$3:$A$8,SMALL(IF(D$3:D$8="",ROW(D$3:D$8)-ROW(D$3)+1),ROWS(D$14:D16)))) ->  | E16: =IF(ROWS(E$14:E16)>E$13,"",INDEX($A$3:$A$8,SMALL(IF(E$3:E$8="",ROW(E$3:E$8)-ROW(E$3)+1),ROWS(E$14:E16)))) -> Chin | H16: Excel Magic Trick 478: Reverse Two Way Lookup For Date and Time Column and Row Headers
A17: =ROWS(A$14:A17) -> 4 | B17: =IF(ROWS(B$14:B17)>B$13,"",INDEX($A$3:$A$8,SMALL(IF(B$3:B$8="",ROW(B$3:B$8)-ROW(B$3)+1),ROWS(B$14:B17)))) ->  | C17: =IF(ROWS(C$14:C17)>C$13,"",INDEX($A$3:$A$8,SMALL(IF(C$3:C$8="",ROW(C$3:C$8)-ROW(C$3)+1),ROWS(C$14:C17)))) ->  | D17: =IF(ROWS(D$14:D17)>D$13,"",INDEX($A$3:$A$8,SMALL(IF(D$3:D$8="",ROW(D$3:D$8)-ROW(D$3)+1),ROWS(D$14:D17)))) ->  | E17: =IF(ROWS(E$14:E17)>E$13,"",INDEX($A$3:$A$8,SMALL(IF(E$3:E$8="",ROW(E$3:E$8)-ROW(E$3)+1),ROWS(E$14:E17)))) ->  | H17: Excel Magic Trick 479: Reverse Two Way Lookup - Robust Formula for Duplicate Situations
A18: =ROWS(A$14:A18) -> 5 | B18: =IF(ROWS(B$14:B18)>B$13,"",INDEX($A$3:$A$8,SMALL(IF(B$3:B$8="",ROW(B$3:B$8)-ROW(B$3)+1),ROWS(B$14:B18)))) ->  | C18: =IF(ROWS(C$14:C18)>C$13,"",INDEX($A$3:$A$8,SMALL(IF(C$3:C$8="",ROW(C$3:C$8)-ROW(C$3)+1),ROWS(C$14:C18)))) ->  | D18: =IF(ROWS(D$14:D18)>D$13,"",INDEX($A$3:$A$8,SMALL(IF(D$3:D$8="",ROW(D$3:D$8)-ROW(D$3)+1),ROWS(D$14:D18)))) ->  | E18: =IF(ROWS(E$14:E18)>E$13,"",INDEX($A$3:$A$8,SMALL(IF(E$3:E$8="",ROW(E$3:E$8)-ROW(E$3)+1),ROWS(E$14:E18)))) ->  | H18: Playlist of how to do array formulas:
A19: =ROWS(A$14:A19) -> 6 | B19: =IF(ROWS(B$14:B19)>B$13,"",INDEX($A$3:$A$8,SMALL(IF(B$3:B$8="",ROW(B$3:B$8)-ROW(B$3)+1),ROWS(B$14:B19)))) ->  | C19: =IF(ROWS(C$14:C19)>C$13,"",INDEX($A$3:$A$8,SMALL(IF(C$3:C$8="",ROW(C$3:C$8)-ROW(C$3)+1),ROWS(C$14:C19)))) ->  | D19: =IF(ROWS(D$14:D19)>D$13,"",INDEX($A$3:$A$8,SMALL(IF(D$3:D$8="",ROW(D$3:D$8)-ROW(D$3)+1),ROWS(D$14:D19)))) ->  | E19: =IF(ROWS(E$14:E19)>E$13,"",INDEX($A$3:$A$8,SMALL(IF(E$3:E$8="",ROW(E$3:E$8)-ROW(E$3)+1),ROWS(E$14:E19)))) ->  | H19: Excel Array Formulas Beg - Advanced

Sheet (610)
A1: Date | B1: Sales
A2: 2009-09-25 | B2: 1484.11
A3: 2009-04-18 | B3: 1029.21
A4: 2010-06-03 | B4: 1077.93
A5: 2010-01-04 | B5: 1344.06
A6: 2009-02-27 | B6: 1343.07
A7: 2009-11-23 | B7: 1328.64
A8: 2009-12-12 | B8: 1256.84
A9: 2009-10-18 | B9: 1468.17
A10: 2009-04-06 | B10: 1018.08
A11: 2010-10-26 | B11: 1404.33
A12: 2010-07-03 | B12: 1176.8
A13: 2010-01-21 | B13: 1403.06
A14: 2010-12-02 | B14: 1144.64
A15: 2010-10-25 | B15: 1434.94
A16: 2009-01-11 | B16: 1149.21
A17: 2010-10-30 | B17: 1135.27
A18: 2010-06-15 | B18: 1430.07
A19: 2009-05-31 | B19: 1421.83
A20: 2010-07-10 | B20: 1114.36
A21: 2010-08-31 | B21: 1345.83
A22: 2009-07-31 | B22: 1426.25
A23: 2010-11-17 | B23: 1076.94
A24: 2009-01-06 | B24: 1225.38
A25: 2009-02-16 | B25: 1150.2
A26: 2009-03-04 | B26: 1309.98
A27: 2010-09-12 | B27: 1092.9
A28: 2010-11-12 | B28: 1315.41
A29: 2010-09-15 | B29: 1162.97
A30: 2009-04-01 | B30: 1188.03
A31: 2010-12-15 | B31: 1093.42
A32: 2009-07-23 | B32: 1008.96
A33: 2009-10-16 | B33: 1201.13
A34: 2010-09-23 | B34: 1285.74
A35: 2009-04-22 | B35: 1182.73
A36: 2010-07-31 | B36: 1449.03
A37: 2010-05-05 | B37: 1065.29
A38: 2010-01-21 | B38: 1253.43
A39: 2010-04-29 | B39: 1458.87
A40: 2009-07-27 | B40: 1115.8
A41: 2009-11-22 | B41: 1363.07
A42: 2010-01-10 | B42: 1373.69
A43: 2009-10-11 | B43: 1030.53
A44: 2010-10-22 | B44: 1035.01
A45: 2009-07-16 | B45: 1113.08
A46: 2010-12-07 | B46: 1410.74
A47: 2009-01-26 | B47: 1353.8
A48: 2010-04-25 | B48: 1187.88
A49: 2010-10-07 | B49: 1497.58
A50: 2010-11-18 | B50: 1285.66
A51: 2009-12-14 | B51: 1476.17
A52: 2010-09-23 | B52: 1034.65
A53: 2009-08-12 | B53: 1200
A54: 2010-08-25 | B54: 1202.88
A55: 2009-05-14 | B55: 1205.79
A56: 2010-09-03 | B56: 1307.16
A57: 2010-01-14 | B57: 1286.47
A58: 2010-04-14 | B58: 1406.21
A59: 2010-03-09 | B59: 1498.53
A60: 2010-07-05 | B60: 1266.43
A61: 2010-07-08 | B61: 1438.71
A62: 2010-09-12 | B62: 1394.95
A63: 2010-08-14 | B63: 1459.57
A64: 2009-04-05 | B64: 1309.81
A65: 2010-02-19 | B65: 1045.4
A66: 2009-01-06 | B66: 1169.56
A67: 2010-11-22 | B67: 1113.71
A68: 2010-05-15 | B68: 1417.28
A69: 2009-06-17 | B69: 1307.76
A70: 2010-03-09 | B70: 1421.27
A71: 2009-07-31 | B71: 1478.13
A72: 2010-07-12 | B72: 1393.58
A73: 2010-12-30 | B73: 1241.58
A74: 2009-03-01 | B74: 1251.75
A75: 2010-11-11 | B75: 1133.89
A76: 2010-09-05 | B76: 1235.19
A77: 2009-05-02 | B77: 1218.63
A78: 2010-12-28 | B78: 1195.48
A79: 2010-06-23 | B79: 1016.89
A80: 2009-06-14 | B80: 1173.16
A81: 2010-02-22 | B81: 1313.73
A82: 2009-04-04 | B82: 1210.89
A83: 2009-12-20 | B83: 1357.3
A84: 2009-07-17 | B84: 1483.01
A85: 2009-04-20 | B85: 1495.33
A86: 2009-11-22 | B86: 1494.23
A87: 2010-10-09 | B87: 1219.24
A88: 2010-10-09 | B88: 1311.87
A89: 2010-05-10 | B89: 1004.04
A90: 2009-08-31 | B90: 1088.21
A91: 2010-11-26 | B91: 1111.05
A92: 2009-10-04 | B92: 1465.81
A93: 2010-03-09 | B93: 1297.39
A94: 2010-01-11 | B94: 1477.75
A95: 2009-06-25 | B95: 1011.21
A96: 2010-09-04 | B96: 1355.51
A97: 2009-02-25 | B97: 1364.28
A98: 2010-12-26 | B98: 1375.5
A99: 2010-06-10 | B99: 1340.52
A100: 2009-04-07 | B100: 1439.88
A101: 2009-05-18 | B101: 1179.43
A102: 2009-08-21 | B102: 1342.56
A103: 2010-08-05 | B103: 1410.8
A104: 2010-04-12 | B104: 1002.77
A105: 2009-05-15 | B105: 1409.3
A106: 2009-11-15 | B106: 1281.8
A107: 2009-12-13 | B107: 1463.15
A108: 2010-09-25 | B108: 1094.71
A109: 2009-08-11 | B109: 1489.43
A110: 2009-05-07 | B110: 1105.5
A111: 2010-07-24 | B111: 1127.67
A112: 2009-07-03 | B112: 1231.5
A113: 2009-02-12 | B113: 1201.75
A114: 2010-12-12 | B114: 1246.26
A115: 2010-09-19 | B115: 1272.81
A116: 2010-06-11 | B116: 1439.15
A117: 2009-12-21 | B117: 1231.19
A118: 2009-06-04 | B118: 1083.08
A119: 2010-02-24 | B119: 1096.14
A120: 2010-09-09 | B120: 1054.57
A121: 2009-05-25 | B121: 1432.55
A122: 2009-04-24 | B122: 1354.99
A123: 2010-08-28 | B123: 1091.12
A124: 2010-11-22 | B124: 1467.02
A125: 2010-05-09 | B125: 1416.75
A126: 2009-01-30 | B126: 1102.37
A127: 2009-12-19 | B127: 1298.21
A128: 2009-06-30 | B128: 1057.41
A129: 2010-05-19 | B129: 1016.07
A130: 2010-03-14 | B130: 1259.42
A131: 2009-03-27 | B131: 1382.05
A132: 2009-05-11 | B132: 1184.88
A133: 2010-11-03 | B133: 1235.97
A134: 2009-02-15 | B134: 1107.54
A135: 2009-12-07 | B135: 1383.51
A136: 2009-09-02 | B136: 1198.48
A137: 2009-05-22 | B137: 1358.78
A138: 2009-10-28 | B138: 1449.49
A139: 2010-07-13 | B139: 1185.45
A140: 2010-11-15 | B140: 1149.42
A141: 2009-07-09 | B141: 1142.59
A142: 2010-02-24 | B142: 1380.14
A143: 2010-08-18 | B143: 1139.97
A144: 2010-08-19 | B144: 1270.12
A145: 2010-04-03 | B145: 1074.7
A146: 2009-08-06 | B146: 1277.75
A147: 2009-05-13 | B147: 1366.77
A148: 2009-03-03 | B148: 1437.63
A149: 2009-12-08 | B149: 1303.64
A150: 2010-11-03 | B150: 1351.39
A151: 2009-08-17 | B151: 1455.57
A152: 2009-10-25 | B152: 1437.11
A153: 2009-09-28 | B153: 1210.42
A154: 2009-04-21 | B154: 1129.93
A155: 2009-11-29 | B155: 1386.26
A156: 2009-04-07 | B156: 1150.83
A157: 2010-12-15 | B157: 1357.2
A158: 2009-11-16 | B158: 1011.41
A159: 2009-10-14 | B159: 1347.52
A160: 2010-01-14 | B160: 1086.33
A161: 2009-07-03 | B161: 1179.13
A162: 2009-06-22 | B162: 1355.71
A163: 2009-02-01 | B163: 1062.44
A164: 2009-07-13 | B164: 1115.48
A165: 2009-12-30 | B165: 1051
A166: 2010-01-07 | B166: 1411.12
A167: 2009-05-08 | B167: 1178.6
A168: 2009-11-01 | B168: 1179.7
A169: 2010-02-25 | B169: 1323.42
A170: 2010-05-31 | B170: 1283.07
A171: 2009-07-29 | B171: 1008.35
A172: 2010-06-05 | B172: 1444.06
A173: 2010-03-11 | B173: 1127.72
A174: 2010-05-18 | B174: 1114.55
A175: 2010-05-14 | B175: 1349.46
A176: 2009-09-05 | B176: 1432.41
A177: 2010-04-26 | B177: 1276.09
A178: 2010-12-25 | B178: 1021.29
A179: 2010-02-11 | B179: 1313.14
A180: 2010-01-07 | B180: 1281.34
A181: 2009-07-13 | B181: 1120.6
A182: 2009-06-07 | B182: 1398.44
A183: 2009-04-14 | B183: 1212.55
A184: 2010-10-24 | B184: 1291.31
A185: 2009-03-26 | B185: 1151.87
A186: 2009-01-26 | B186: 1207.34
A187: 2009-10-06 | B187: 1288.61
A188: 2010-05-30 | B188: 1127.49
A189: 2010-11-26 | B189: 1499.86
A190: 2009-07-20 | B190: 1090.87
A191: 2009-02-22 | B191: 1006.72
A192: 2010-04-17 | B192: 1422
A193: 2010-07-13 | B193: 1121.86
A194: 2009-09-29 | B194: 1465.98
A195: 2010-08-13 | B195: 1190.3
A196: 2010-01-06 | B196: 1044.94
A197: 2010-11-27 | B197: 1030.47
A198: 2010-02-20 | B198: 1118.81
A199: 2009-10-06 | B199: 1232.23
A200: 2010-06-01 | B200: 1412.09
... 566 more rows

Sheet PT(Y o Y)an
A3: Years | B3: Values
A4: 2009 | C4: 2010
A5: Sales | B5: % Change | C5: Sales | D5: % Change
A6: 441303.34 | B6: 1 | C6: 517402.19 | D6: 1.172441138

Sheet (611)
A1: Date | B1: Sales | D1: 2009 | E1: % Change | F1: 2010 | G1: % Change
A2: 2009-09-25 | B2: 1484.11
A3: 2009-04-18 | B3: 1029.21
A4: 2010-06-03 | B4: 1077.93
A5: 2010-01-04 | B5: 1344.06
A6: 2009-02-27 | B6: 1343.07
A7: 2009-11-23 | B7: 1328.64
A8: 2009-12-12 | B8: 1256.84
A9: 2009-10-18 | B9: 1468.17
A10: 2009-04-06 | B10: 1018.08
A11: 2010-10-26 | B11: 1404.33
A12: 2010-07-03 | B12: 1176.8
A13: 2010-01-21 | B13: 1403.06
A14: 2010-12-02 | B14: 1144.64
A15: 2010-10-25 | B15: 1434.94
A16: 2009-01-11 | B16: 1149.21
A17: 2010-10-30 | B17: 1135.27
A18: 2010-06-15 | B18: 1430.07
A19: 2009-05-31 | B19: 1421.83
A20: 2010-07-10 | B20: 1114.36
A21: 2010-08-31 | B21: 1345.83
A22: 2009-07-31 | B22: 1426.25
A23: 2010-11-17 | B23: 1076.94
A24: 2009-01-06 | B24: 1225.38
A25: 2009-02-16 | B25: 1150.2
A26: 2009-03-04 | B26: 1309.98
A27: 2010-09-12 | B27: 1092.9
A28: 2010-11-12 | B28: 1315.41
A29: 2010-09-15 | B29: 1162.97
A30: 2009-04-01 | B30: 1188.03
A31: 2010-12-15 | B31: 1093.42
A32: 2009-07-23 | B32: 1008.96
A33: 2009-10-16 | B33: 1201.13
A34: 2010-09-23 | B34: 1285.74
A35: 2009-04-22 | B35: 1182.73
A36: 2010-07-31 | B36: 1449.03
A37: 2010-05-05 | B37: 1065.29
A38: 2010-01-21 | B38: 1253.43
A39: 2010-04-29 | B39: 1458.87
A40: 2009-07-27 | B40: 1115.8
A41: 2009-11-22 | B41: 1363.07
A42: 2010-01-10 | B42: 1373.69
A43: 2009-10-11 | B43: 1030.53
A44: 2010-10-22 | B44: 1035.01
A45: 2009-07-16 | B45: 1113.08
A46: 2010-12-07 | B46: 1410.74
A47: 2009-01-26 | B47: 1353.8
A48: 2010-04-25 | B48: 1187.88
A49: 2010-10-07 | B49: 1497.58
A50: 2010-11-18 | B50: 1285.66
A51: 2009-12-14 | B51: 1476.17
A52: 2010-09-23 | B52: 1034.65
A53: 2009-08-12 | B53: 1200
A54: 2010-08-25 | B54: 1202.88
A55: 2009-05-14 | B55: 1205.79
A56: 2010-09-03 | B56: 1307.16
A57: 2010-01-14 | B57: 1286.47
A58: 2010-04-14 | B58: 1406.21
A59: 2010-03-09 | B59: 1498.53
A60: 2010-07-05 | B60: 1266.43
A61: 2010-07-08 | B61: 1438.71
A62: 2010-09-12 | B62: 1394.95
A63: 2010-08-14 | B63: 1459.57
A64: 2009-04-05 | B64: 1309.81
A65: 2010-02-19 | B65: 1045.4
A66: 2009-01-06 | B66: 1169.56
A67: 2010-11-22 | B67: 1113.71
A68: 2010-05-15 | B68: 1417.28
A69: 2009-06-17 | B69: 1307.76
A70: 2010-03-09 | B70: 1421.27
A71: 2009-07-31 | B71: 1478.13
A72: 2010-07-12 | B72: 1393.58
A73: 2010-12-30 | B73: 1241.58
A74: 2009-03-01 | B74: 1251.75
A75: 2010-11-11 | B75: 1133.89
A76: 2010-09-05 | B76: 1235.19
A77: 2009-05-02 | B77: 1218.63
A78: 2010-12-28 | B78: 1195.48
A79: 2010-06-23 | B79: 1016.89
A80: 2009-06-14 | B80: 1173.16
A81: 2010-02-22 | B81: 1313.73
A82: 2009-04-04 | B82: 1210.89
A83: 2009-12-20 | B83: 1357.3
A84: 2009-07-17 | B84: 1483.01
A85: 2009-04-20 | B85: 1495.33
A86: 2009-11-22 | B86: 1494.23
A87: 2010-10-09 | B87: 1219.24
A88: 2010-10-09 | B88: 1311.87
A89: 2010-05-10 | B89: 1004.04
A90: 2009-08-31 | B90: 1088.21
A91: 2010-11-26 | B91: 1111.05
A92: 2009-10-04 | B92: 1465.81
A93: 2010-03-09 | B93: 1297.39
A94: 2010-01-11 | B94: 1477.75
A95: 2009-06-25 | B95: 1011.21
A96: 2010-09-04 | B96: 1355.51
A97: 2009-02-25 | B97: 1364.28
A98: 2010-12-26 | B98: 1375.5
A99: 2010-06-10 | B99: 1340.52
A100: 2009-04-07 | B100: 1439.88
A101: 2009-05-18 | B101: 1179.43
A102: 2009-08-21 | B102: 1342.56
A103: 2010-08-05 | B103: 1410.8
A104: 2010-04-12 | B104: 1002.77
A105: 2009-05-15 | B105: 1409.3
A106: 2009-11-15 | B106: 1281.8
A107: 2009-12-13 | B107: 1463.15
A108: 2010-09-25 | B108: 1094.71
A109: 2009-08-11 | B109: 1489.43
A110: 2009-05-07 | B110: 1105.5
A111: 2010-07-24 | B111: 1127.67
A112: 2009-07-03 | B112: 1231.5
A113: 2009-02-12 | B113: 1201.75
A114: 2010-12-12 | B114: 1246.26
A115: 2010-09-19 | B115: 1272.81
A116: 2010-06-11 | B116: 1439.15
A117: 2009-12-21 | B117: 1231.19
A118: 2009-06-04 | B118: 1083.08
A119: 2010-02-24 | B119: 1096.14
A120: 2010-09-09 | B120: 1054.57
A121: 2009-05-25 | B121: 1432.55
A122: 2009-04-24 | B122: 1354.99
A123: 2010-08-28 | B123: 1091.12
A124: 2010-11-22 | B124: 1467.02
A125: 2010-05-09 | B125: 1416.75
A126: 2009-01-30 | B126: 1102.37
A127: 2009-12-19 | B127: 1298.21
A128: 2009-06-30 | B128: 1057.41
A129: 2010-05-19 | B129: 1016.07
A130: 2010-03-14 | B130: 1259.42
A131: 2009-03-27 | B131: 1382.05
A132: 2009-05-11 | B132: 1184.88
A133: 2010-11-03 | B133: 1235.97
A134: 2009-02-15 | B134: 1107.54
A135: 2009-12-07 | B135: 1383.51
A136: 2009-09-02 | B136: 1198.48
A137: 2009-05-22 | B137: 1358.78
A138: 2009-10-28 | B138: 1449.49
A139: 2010-07-13 | B139: 1185.45
A140: 2010-11-15 | B140: 1149.42
A141: 2009-07-09 | B141: 1142.59
A142: 2010-02-24 | B142: 1380.14
A143: 2010-08-18 | B143: 1139.97
A144: 2010-08-19 | B144: 1270.12
A145: 2010-04-03 | B145: 1074.7
A146: 2009-08-06 | B146: 1277.75
A147: 2009-05-13 | B147: 1366.77
A148: 2009-03-03 | B148: 1437.63
A149: 2009-12-08 | B149: 1303.64
A150: 2010-11-03 | B150: 1351.39
A151: 2009-08-17 | B151: 1455.57
A152: 2009-10-25 | B152: 1437.11
A153: 2009-09-28 | B153: 1210.42
A154: 2009-04-21 | B154: 1129.93
A155: 2009-11-29 | B155: 1386.26
A156: 2009-04-07 | B156: 1150.83
A157: 2010-12-15 | B157: 1357.2
A158: 2009-11-16 | B158: 1011.41
A159: 2009-10-14 | B159: 1347.52
A160: 2010-01-14 | B160: 1086.33
A161: 2009-07-03 | B161: 1179.13
A162: 2009-06-22 | B162: 1355.71
A163: 2009-02-01 | B163: 1062.44
A164: 2009-07-13 | B164: 1115.48
A165: 2009-12-30 | B165: 1051
A166: 2010-01-07 | B166: 1411.12
A167: 2009-05-08 | B167: 1178.6
A168: 2009-11-01 | B168: 1179.7
A169: 2010-02-25 | B169: 1323.42
A170: 2010-05-31 | B170: 1283.07
A171: 2009-07-29 | B171: 1008.35
A172: 2010-06-05 | B172: 1444.06
A173: 2010-03-11 | B173: 1127.72
A174: 2010-05-18 | B174: 1114.55
A175: 2010-05-14 | B175: 1349.46
A176: 2009-09-05 | B176: 1432.41
A177: 2010-04-26 | B177: 1276.09
A178: 2010-12-25 | B178: 1021.29
A179: 2010-02-11 | B179: 1313.14
A180: 2010-01-07 | B180: 1281.34
A181: 2009-07-13 | B181: 1120.6
A182: 2009-06-07 | B182: 1398.44
A183: 2009-04-14 | B183: 1212.55
A184: 2010-10-24 | B184: 1291.31
A185: 2009-03-26 | B185: 1151.87
A186: 2009-01-26 | B186: 1207.34
A187: 2009-10-06 | B187: 1288.61
A188: 2010-05-30 | B188: 1127.49
A189: 2010-11-26 | B189: 1499.86
A190: 2009-07-20 | B190: 1090.87
A191: 2009-02-22 | B191: 1006.72
A192: 2010-04-17 | B192: 1422
A193: 2010-07-13 | B193: 1121.86
A194: 2009-09-29 | B194: 1465.98
A195: 2010-08-13 | B195: 1190.3
A196: 2010-01-06 | B196: 1044.94
A197: 2010-11-27 | B197: 1030.47
A198: 2010-02-20 | B198: 1118.81
A199: 2009-10-06 | B199: 1232.23
A200: 2010-06-01 | B200: 1412.09
... 566 more rows

Sheet (611an)
A1: Date | B1: Sales | D1: 2009 | E1: % Change | F1: 2010 | G1: % Change
A2: 2009-09-25 | B2: 1484.11 | D2: =SUMPRODUCT(--(YEAR($A$2:$A$766)=D1),$B$2:$B$766) -> 441303.34 | E2: =D2/$D$2-1 -> 0 | F2: =SUMPRODUCT(--(YEAR($A$2:$A$766)=F1),$B$2:$B$766) -> 517402.19 | G2: =F2/$D$2-1 -> 0.1724411377
A3: 2009-04-18 | B3: 1029.21 | E3: =C2/$D$2 -> 0 | G3: =F2/$D$2 -> 1.172441138
A4: 2010-06-03 | B4: 1077.93
A5: 2010-01-04 | B5: 1344.06
A6: 2009-02-27 | B6: 1343.07
A7: 2009-11-23 | B7: 1328.64
A8: 2009-12-12 | B8: 1256.84
A9: 2009-10-18 | B9: 1468.17
A10: 2009-04-06 | B10: 1018.08
A11: 2010-10-26 | B11: 1404.33
A12: 2010-07-03 | B12: 1176.8
A13: 2010-01-21 | B13: 1403.06
A14: 2010-12-02 | B14: 1144.64
A15: 2010-10-25 | B15: 1434.94
A16: 2009-01-11 | B16: 1149.21
A17: 2010-10-30 | B17: 1135.27
A18: 2010-06-15 | B18: 1430.07
A19: 2009-05-31 | B19: 1421.83
A20: 2010-07-10 | B20: 1114.36
A21: 2010-08-31 | B21: 1345.83
A22: 2009-07-31 | B22: 1426.25
A23: 2010-11-17 | B23: 1076.94
A24: 2009-01-06 | B24: 1225.38
A25: 2009-02-16 | B25: 1150.2
A26: 2009-03-04 | B26: 1309.98
A27: 2010-09-12 | B27: 1092.9
A28: 2010-11-12 | B28: 1315.41
A29: 2010-09-15 | B29: 1162.97
A30: 2009-04-01 | B30: 1188.03
A31: 2010-12-15 | B31: 1093.42
A32: 2009-07-23 | B32: 1008.96
A33: 2009-10-16 | B33: 1201.13
A34: 2010-09-23 | B34: 1285.74
A35: 2009-04-22 | B35: 1182.73
A36: 2010-07-31 | B36: 1449.03
A37: 2010-05-05 | B37: 1065.29
A38: 2010-01-21 | B38: 1253.43
A39: 2010-04-29 | B39: 1458.87
A40: 2009-07-27 | B40: 1115.8
A41: 2009-11-22 | B41: 1363.07
A42: 2010-01-10 | B42: 1373.69
A43: 2009-10-11 | B43: 1030.53
A44: 2010-10-22 | B44: 1035.01
A45: 2009-07-16 | B45: 1113.08
A46: 2010-12-07 | B46: 1410.74
A47: 2009-01-26 | B47: 1353.8
A48: 2010-04-25 | B48: 1187.88
A49: 2010-10-07 | B49: 1497.58
A50: 2010-11-18 | B50: 1285.66
A51: 2009-12-14 | B51: 1476.17
A52: 2010-09-23 | B52: 1034.65
A53: 2009-08-12 | B53: 1200
A54: 2010-08-25 | B54: 1202.88
A55: 2009-05-14 | B55: 1205.79
A56: 2010-09-03 | B56: 1307.16
A57: 2010-01-14 | B57: 1286.47
A58: 2010-04-14 | B58: 1406.21
A59: 2010-03-09 | B59: 1498.53
A60: 2010-07-05 | B60: 1266.43
A61: 2010-07-08 | B61: 1438.71
A62: 2010-09-12 | B62: 1394.95
A63: 2010-08-14 | B63: 1459.57
A64: 2009-04-05 | B64: 1309.81
A65: 2010-02-19 | B65: 1045.4
A66: 2009-01-06 | B66: 1169.56
A67: 2010-11-22 | B67: 1113.71
A68: 2010-05-15 | B68: 1417.28
A69: 2009-06-17 | B69: 1307.76
A70: 2010-03-09 | B70: 1421.27
A71: 2009-07-31 | B71: 1478.13
A72: 2010-07-12 | B72: 1393.58
A73: 2010-12-30 | B73: 1241.58
A74: 2009-03-01 | B74: 1251.75
A75: 2010-11-11 | B75: 1133.89
A76: 2010-09-05 | B76: 1235.19
A77: 2009-05-02 | B77: 1218.63
A78: 2010-12-28 | B78: 1195.48
A79: 2010-06-23 | B79: 1016.89
A80: 2009-06-14 | B80: 1173.16
A81: 2010-02-22 | B81: 1313.73
A82: 2009-04-04 | B82: 1210.89
A83: 2009-12-20 | B83: 1357.3
A84: 2009-07-17 | B84: 1483.01
A85: 2009-04-20 | B85: 1495.33
A86: 2009-11-22 | B86: 1494.23
A87: 2010-10-09 | B87: 1219.24
A88: 2010-10-09 | B88: 1311.87
A89: 2010-05-10 | B89: 1004.04
A90: 2009-08-31 | B90: 1088.21
A91: 2010-11-26 | B91: 1111.05
A92: 2009-10-04 | B92: 1465.81
A93: 2010-03-09 | B93: 1297.39
A94: 2010-01-11 | B94: 1477.75
A95: 2009-06-25 | B95: 1011.21
A96: 2010-09-04 | B96: 1355.51
A97: 2009-02-25 | B97: 1364.28
A98: 2010-12-26 | B98: 1375.5
A99: 2010-06-10 | B99: 1340.52
A100: 2009-04-07 | B100: 1439.88
A101: 2009-05-18 | B101: 1179.43
A102: 2009-08-21 | B102: 1342.56
A103: 2010-08-05 | B103: 1410.8
A104: 2010-04-12 | B104: 1002.77
A105: 2009-05-15 | B105: 1409.3
A106: 2009-11-15 | B106: 1281.8
A107: 2009-12-13 | B107: 1463.15
A108: 2010-09-25 | B108: 1094.71
A109: 2009-08-11 | B109: 1489.43
A110: 2009-05-07 | B110: 1105.5
A111: 2010-07-24 | B111: 1127.67
A112: 2009-07-03 | B112: 1231.5
A113: 2009-02-12 | B113: 1201.75
A114: 2010-12-12 | B114: 1246.26
A115: 2010-09-19 | B115: 1272.81
A116: 2010-06-11 | B116: 1439.15
A117: 2009-12-21 | B117: 1231.19
A118: 2009-06-04 | B118: 1083.08
A119: 2010-02-24 | B119: 1096.14
A120: 2010-09-09 | B120: 1054.57
A121: 2009-05-25 | B121: 1432.55
A122: 2009-04-24 | B122: 1354.99
A123: 2010-08-28 | B123: 1091.12
A124: 2010-11-22 | B124: 1467.02
A125: 2010-05-09 | B125: 1416.75
A126: 2009-01-30 | B126: 1102.37
A127: 2009-12-19 | B127: 1298.21
A128: 2009-06-30 | B128: 1057.41
A129: 2010-05-19 | B129: 1016.07
A130: 2010-03-14 | B130: 1259.42
A131: 2009-03-27 | B131: 1382.05
A132: 2009-05-11 | B132: 1184.88
A133: 2010-11-03 | B133: 1235.97
A134: 2009-02-15 | B134: 1107.54
A135: 2009-12-07 | B135: 1383.51
A136: 2009-09-02 | B136: 1198.48
A137: 2009-05-22 | B137: 1358.78
A138: 2009-10-28 | B138: 1449.49
A139: 2010-07-13 | B139: 1185.45
A140: 2010-11-15 | B140: 1149.42
A141: 2009-07-09 | B141: 1142.59
A142: 2010-02-24 | B142: 1380.14
A143: 2010-08-18 | B143: 1139.97
A144: 2010-08-19 | B144: 1270.12
A145: 2010-04-03 | B145: 1074.7
A146: 2009-08-06 | B146: 1277.75
A147: 2009-05-13 | B147: 1366.77
A148: 2009-03-03 | B148: 1437.63
A149: 2009-12-08 | B149: 1303.64
A150: 2010-11-03 | B150: 1351.39
A151: 2009-08-17 | B151: 1455.57
A152: 2009-10-25 | B152: 1437.11
A153: 2009-09-28 | B153: 1210.42
A154: 2009-04-21 | B154: 1129.93
A155: 2009-11-29 | B155: 1386.26
A156: 2009-04-07 | B156: 1150.83
A157: 2010-12-15 | B157: 1357.2
A158: 2009-11-16 | B158: 1011.41
A159: 2009-10-14 | B159: 1347.52
A160: 2010-01-14 | B160: 1086.33
A161: 2009-07-03 | B161: 1179.13
A162: 2009-06-22 | B162: 1355.71
A163: 2009-02-01 | B163: 1062.44
A164: 2009-07-13 | B164: 1115.48
A165: 2009-12-30 | B165: 1051
A166: 2010-01-07 | B166: 1411.12
A167: 2009-05-08 | B167: 1178.6
A168: 2009-11-01 | B168: 1179.7
A169: 2010-02-25 | B169: 1323.42
A170: 2010-05-31 | B170: 1283.07
A171: 2009-07-29 | B171: 1008.35
A172: 2010-06-05 | B172: 1444.06
A173: 2010-03-11 | B173: 1127.72
A174: 2010-05-18 | B174: 1114.55
A175: 2010-05-14 | B175: 1349.46
A176: 2009-09-05 | B176: 1432.41
A177: 2010-04-26 | B177: 1276.09
A178: 2010-12-25 | B178: 1021.29
A179: 2010-02-11 | B179: 1313.14
A180: 2010-01-07 | B180: 1281.34
A181: 2009-07-13 | B181: 1120.6
A182: 2009-06-07 | B182: 1398.44
A183: 2009-04-14 | B183: 1212.55
A184: 2010-10-24 | B184: 1291.31
A185: 2009-03-26 | B185: 1151.87
A186: 2009-01-26 | B186: 1207.34
A187: 2009-10-06 | B187: 1288.61
A188: 2010-05-30 | B188: 1127.49
A189: 2010-11-26 | B189: 1499.86
A190: 2009-07-20 | B190: 1090.87
A191: 2009-02-22 | B191: 1006.72
A192: 2010-04-17 | B192: 1422
A193: 2010-07-13 | B193: 1121.86
A194: 2009-09-29 | B194: 1465.98
A195: 2010-08-13 | B195: 1190.3
A196: 2010-01-06 | B196: 1044.94
A197: 2010-11-27 | B197: 1030.47
A198: 2010-02-20 | B198: 1118.81
A199: 2009-10-06 | B199: 1232.23
A200: 2010-06-01 | B200: 1412.09
... 566 more rows

Sheet (612)
A1: Year Over Year Sales
A2: Dates are Text
A3: 1) Pivot Table with new column
A5: Month | B5: Sales
A6: Jan, 09 | B6: 36056.1
A7: Feb, 09 | B7: 33746.28
A8: Mar, 09 | B8: 31865.61
A9: Apr, 09 | B9: 42565.47
A10: May, 09 | B10: 46697.87
A11: Jun, 09 | B11: 36927.09
A12: Jul, 09 | B12: 50825.91
A13: Aug, 09 | B13: 30649.61
A14: Sep, 09 | B14: 30915.84
A15: Oct, 09 | B15: 34735.37
A16: Nov, 09 | B16: 29929.95
A17: Dec, 09 | B17: 36388.24
A18: Jan, 10 | B18: 40594.78
A19: Feb, 10 | B19: 48670.69
A20: Mar, 10 | B20: 34870.95
A21: Apr, 10 | B21: 33386.16
A22: May, 10 | B22: 44013.4
A23: Jun, 10 | B23: 41718.81
A24: Jul, 10 | B24: 37272.13
A25: Aug, 10 | B25: 46581.55
A26: Sep, 10 | B26: 41547.16
A27: Oct, 10 | B27: 47277.78
A28: Nov, 10 | B28: 52107.55
A29: Dec, 10 | B29: 49361.23

Sheet (612an)
A1: Year Over Year Sales
A2: Dates are Text
A3: 1) Pivot Table with new column
A5: Month | B5: Sales | C5: Year
A6: Jan, 09 | B6: 36056.1 | C6: =20&RIGHT(A6,2) -> 2009 | E6: Year | F6: Values
A7: Feb, 09 | B7: 33746.28 | C7: 2009 | E7: 2009 | G7: 2010
A8: Mar, 09 | B8: 31865.61 | C8: 2009 | E8: Sales | F8: % Change | G8: Sales | H8: % Change
A9: Apr, 09 | B9: 42565.47 | C9: 2009 | E9: 441303.34 | F9: 1 | G9: 517402.19 | H9: 1.172441138
A10: May, 09 | B10: 46697.87 | C10: 2009
A11: Jun, 09 | B11: 36927.09 | C11: 2009
A12: Jul, 09 | B12: 50825.91 | C12: 2009
A13: Aug, 09 | B13: 30649.61 | C13: 2009
A14: Sep, 09 | B14: 30915.84 | C14: 2009
A15: Oct, 09 | B15: 34735.37 | C15: 2009
A16: Nov, 09 | B16: 29929.95 | C16: 2009
A17: Dec, 09 | B17: 36388.24 | C17: 2009
A18: Jan, 10 | B18: 40594.78 | C18: 2010
A19: Feb, 10 | B19: 48670.69 | C19: 2010
A20: Mar, 10 | B20: 34870.95 | C20: 2010
A21: Apr, 10 | B21: 33386.16 | C21: 2010
A22: May, 10 | B22: 44013.4 | C22: 2010
A23: Jun, 10 | B23: 41718.81 | C23: 2010
A24: Jul, 10 | B24: 37272.13 | C24: 2010
A25: Aug, 10 | B25: 46581.55 | C25: 2010
A26: Sep, 10 | B26: 41547.16 | C26: 2010
A27: Oct, 10 | B27: 47277.78 | C27: 2010
A28: Nov, 10 | B28: 52107.55 | C28: 2010
A29: Dec, 10 | B29: 49361.23 | C29: 2010

Sheet (613)
A1: Year Over Year Sales
A2: Dates are Text
A3: 2) Array Formula
A5: Month | B5: Sales | D5: 2009 | E5: % Change | F5: 2010 | G5: % Change
A6: Jan, 09 | B6: 36056.1
A7: Feb, 09 | B7: 33746.28
A8: Mar, 09 | B8: 31865.61
A9: Apr, 09 | B9: 42565.47
A10: May, 09 | B10: 46697.87
A11: Jun, 09 | B11: 36927.09
A12: Jul, 09 | B12: 50825.91
A13: Aug, 09 | B13: 30649.61
A14: Sep, 09 | B14: 30915.84
A15: Oct, 09 | B15: 34735.37
A16: Nov, 09 | B16: 29929.95
A17: Dec, 09 | B17: 36388.24
A18: Jan, 10 | B18: 40594.78
A19: Feb, 10 | B19: 48670.69
A20: Mar, 10 | B20: 34870.95
A21: Apr, 10 | B21: 33386.16
A22: May, 10 | B22: 44013.4
A23: Jun, 10 | B23: 41718.81
A24: Jul, 10 | B24: 37272.13
A25: Aug, 10 | B25: 46581.55
A26: Sep, 10 | B26: 41547.16
A27: Oct, 10 | B27: 47277.78
A28: Nov, 10 | B28: 52107.55
A29: Dec, 10 | B29: 49361.23

Sheet (613an)
A1: Year Over Year Sales
A2: Dates are Text
A3: 2) Array Formula
A5: Month | B5: Sales | D5: 2009 | E5: % Change | F5: 2010 | G5: % Change
A6: Jan, 09 | B6: 36056.1 | D6: =SUMPRODUCT(--(20&RIGHT($A$6:$A$29,2)=D5&""),$B$6:$B$29) -> 441303.34 | E6: =D6/$D$6 -> 1 | F6: =SUMPRODUCT(--(20&RIGHT($A$6:$A$29,2)=F5),$B$6:$B$29) -> 517402.19 | G6: =F6/$D$6 -> 1.172441138
A7: Feb, 09 | B7: 33746.28
A8: Mar, 09 | B8: 31865.61
A9: Apr, 09 | B9: 42565.47
A10: May, 09 | B10: 46697.87
A11: Jun, 09 | B11: 36927.09
A12: Jul, 09 | B12: 50825.91
A13: Aug, 09 | B13: 30649.61
A14: Sep, 09 | B14: 30915.84
A15: Oct, 09 | B15: 34735.37
A16: Nov, 09 | B16: 29929.95
A17: Dec, 09 | B17: 36388.24
A18: Jan, 10 | B18: 40594.78
A19: Feb, 10 | B19: 48670.69
A20: Mar, 10 | B20: 34870.95
A21: Apr, 10 | B21: 33386.16
A22: May, 10 | B22: 44013.4
A23: Jun, 10 | B23: 41718.81
A24: Jul, 10 | B24: 37272.13
A25: Aug, 10 | B25: 46581.55
A26: Sep, 10 | B26: 41547.16
A27: Oct, 10 | B27: 47277.78
A28: Nov, 10 | B28: 52107.55
A29: Dec, 10 | B29: 49361.23

Sheet (614)
A1: Year Over Year Sales
A2: Dates are Text
A3: 3) REPLACE function to get full date
A5: Month | B5: Sales | C5: Full Date
A6: Jan, 09 | B6: 36056.1
A7: Feb, 09 | B7: 33746.28
A8: Mar, 09 | B8: 31865.61
A9: Apr, 09 | B9: 42565.47
A10: May, 09 | B10: 46697.87
A11: Jun, 09 | B11: 36927.09
A12: Jul, 09 | B12: 50825.91
A13: Aug, 09 | B13: 30649.61
A14: Sep, 09 | B14: 30915.84
A15: Oct, 09 | B15: 34735.37
A16: Nov, 09 | B16: 29929.95
A17: Dec, 09 | B17: 36388.24
A18: Jan, 10 | B18: 40594.78
A19: Feb, 10 | B19: 48670.69
A20: Mar, 10 | B20: 34870.95
A21: Apr, 10 | B21: 33386.16
A22: May, 10 | B22: 44013.4
A23: Jun, 10 | B23: 41718.81
A24: Jul, 10 | B24: 37272.13
A25: Aug, 10 | B25: 46581.55
A26: Sep, 10 | B26: 41547.16
A27: Oct, 10 | B27: 47277.78
A28: Nov, 10 | B28: 52107.55
A29: Dec, 10 | B29: 49361.23

Sheet (614an)
A1: Year Over Year Sales
A2: Dates are Text
A3: 3) REPLACE function to get full date
A5: Month | B5: Sales | C5: Full Date
A6: Jan, 09 | B6: 36056.1 | C6: =--REPLACE(A6,6,0,"1, 20") -> 2009-01-01
A7: Feb, 09 | B7: 33746.28 | C7: 2009-02-01
A8: Mar, 09 | B8: 31865.61 | C8: 2009-03-01
A9: Apr, 09 | B9: 42565.47 | C9: 2009-04-01
A10: May, 09 | B10: 46697.87 | C10: 2009-05-01
A11: Jun, 09 | B11: 36927.09 | C11: 2009-06-01
A12: Jul, 09 | B12: 50825.91 | C12: 2009-07-01
A13: Aug, 09 | B13: 30649.61 | C13: 2009-08-01
A14: Sep, 09 | B14: 30915.84 | C14: 2009-09-01
A15: Oct, 09 | B15: 34735.37 | C15: 2009-10-01
A16: Nov, 09 | B16: 29929.95 | C16: 2009-11-01
A17: Dec, 09 | B17: 36388.24 | C17: 2009-12-01
A18: Jan, 10 | B18: 40594.78 | C18: 2010-01-01
A19: Feb, 10 | B19: 48670.69 | C19: 2010-02-01
A20: Mar, 10 | B20: 34870.95 | C20: 2010-03-01
A21: Apr, 10 | B21: 33386.16 | C21: 2010-04-01
A22: May, 10 | B22: 44013.4 | C22: 2010-05-01
A23: Jun, 10 | B23: 41718.81 | C23: 2010-06-01
A24: Jul, 10 | B24: 37272.13 | C24: 2010-07-01
A25: Aug, 10 | B25: 46581.55 | C25: 2010-08-01
A26: Sep, 10 | B26: 41547.16 | C26: 2010-09-01
A27: Oct, 10 | B27: 47277.78 | C27: 2010-10-01
A28: Nov, 10 | B28: 52107.55 | C28: 2010-11-01
A29: Dec, 10 | B29: 49361.23 | C29: 2010-12-01

Sheet PT(% Change Month)
B3: Years | C3: Values | H3: Check:
B4: 2009 | D4: 2010
A5: Full Date | B5: Sales | C5: % Change | D5: Sales | E5: % Change | I5: 2009 | J5: % Change | K5: 2010 | L5: % Change
A6: Jan | B6: 36056.1 | D6: 40594.78 | E6: 0.1258782841 | H6: =MONTH('(614an)'!C6) -> 1 | I6: =SUMPRODUCT(--(MONTH('(614an)'!$C$6:$C$29)=$H6),--(YEAR('(614an)'!$C$6:$C$29)=I$5),'(614an)'!$B$6:$B$29) -> 36056.1 | J6: =I6/$I6-1 -> 0 | K6: =SUMPRODUCT(--(MONTH('(614an)'!$C$6:$C$29)=$H6),--(YEAR('(614an)'!$C$6:$C$29)=K$5),'(614an)'!$B$6:$B$29) -> 40594.78 | L6: =K6/$I6-1 -> 0.1258782841 | N6: =I6=B6 -> TRUE | O6: =J6=C6 -> TRUE | P6: =K6=D6 -> TRUE | Q6: =L6=E6 -> TRUE
A7: Feb | B7: 33746.28 | D7: 48670.69 | E7: 0.4422534869 | H7: =MONTH('(614an)'!C7) -> 2 | I7: =SUMPRODUCT(--(MONTH('(614an)'!$C$6:$C$29)=$H7),--(YEAR('(614an)'!$C$6:$C$29)=I$5),'(614an)'!$B$6:$B$29) -> 33746.28 | J7: =I7/$I7-1 -> 0 | K7: =SUMPRODUCT(--(MONTH('(614an)'!$C$6:$C$29)=$H7),--(YEAR('(614an)'!$C$6:$C$29)=K$5),'(614an)'!$B$6:$B$29) -> 48670.69 | L7: =K7/$I7-1 -> 0.4422534869 | N7: TRUE | O7: TRUE | P7: TRUE | Q7: TRUE
A8: Mar | B8: 31865.61 | D8: 34870.95 | E8: 0.09431295996 | H8: =MONTH('(614an)'!C8) -> 3 | I8: =SUMPRODUCT(--(MONTH('(614an)'!$C$6:$C$29)=$H8),--(YEAR('(614an)'!$C$6:$C$29)=I$5),'(614an)'!$B$6:$B$29) -> 31865.61 | J8: =I8/$I8-1 -> 0 | K8: =SUMPRODUCT(--(MONTH('(614an)'!$C$6:$C$29)=$H8),--(YEAR('(614an)'!$C$6:$C$29)=K$5),'(614an)'!$B$6:$B$29) -> 34870.95 | L8: =K8/$I8-1 -> 0.09431295996 | N8: TRUE | O8: TRUE | P8: TRUE | Q8: FALSE
A9: Apr | B9: 42565.47 | D9: 33386.16 | E9: -0.2156515598 | H9: =MONTH('(614an)'!C9) -> 4 | I9: =SUMPRODUCT(--(MONTH('(614an)'!$C$6:$C$29)=$H9),--(YEAR('(614an)'!$C$6:$C$29)=I$5),'(614an)'!$B$6:$B$29) -> 42565.47 | J9: =I9/$I9-1 -> 0 | K9: =SUMPRODUCT(--(MONTH('(614an)'!$C$6:$C$29)=$H9),--(YEAR('(614an)'!$C$6:$C$29)=K$5),'(614an)'!$B$6:$B$29) -> 33386.16 | L9: =K9/$I9-1 -> -0.2156515598 | N9: TRUE | O9: TRUE | P9: TRUE | Q9: TRUE
A10: May | B10: 46697.87 | D10: 44013.4 | E10: -0.05748591959 | H10: =MONTH('(614an)'!C10) -> 5 | I10: =SUMPRODUCT(--(MONTH('(614an)'!$C$6:$C$29)=$H10),--(YEAR('(614an)'!$C$6:$C$29)=I$5),'(614an)'!$B$6:$B$29) -> 46697.87 | J10: =I10/$I10-1 -> 0 | K10: =SUMPRODUCT(--(MONTH('(614an)'!$C$6:$C$29)=$H10),--(YEAR('(614an)'!$C$6:$C$29)=K$5),'(614an)'!$B$6:$B$29) -> 44013.4 | L10: =K10/$I10-1 -> -0.05748591959 | N10: TRUE | O10: TRUE | P10: TRUE | Q10: TRUE
A11: Jun | B11: 36927.09 | D11: 41718.81 | E11: 0.1297616465 | H11: =MONTH('(614an)'!C11) -> 6 | I11: =SUMPRODUCT(--(MONTH('(614an)'!$C$6:$C$29)=$H11),--(YEAR('(614an)'!$C$6:$C$29)=I$5),'(614an)'!$B$6:$B$29) -> 36927.09 | J11: =I11/$I11-1 -> 0 | K11: =SUMPRODUCT(--(MONTH('(614an)'!$C$6:$C$29)=$H11),--(YEAR('(614an)'!$C$6:$C$29)=K$5),'(614an)'!$B$6:$B$29) -> 41718.81 | L11: =K11/$I11-1 -> 0.1297616465 | N11: TRUE | O11: TRUE | P11: TRUE | Q11: TRUE
A12: Jul | B12: 50825.91 | D12: 37272.13 | E12: -0.2666706804 | H12: =MONTH('(614an)'!C12) -> 7 | I12: =SUMPRODUCT(--(MONTH('(614an)'!$C$6:$C$29)=$H12),--(YEAR('(614an)'!$C$6:$C$29)=I$5),'(614an)'!$B$6:$B$29) -> 50825.91 | J12: =I12/$I12-1 -> 0 | K12: =SUMPRODUCT(--(MONTH('(614an)'!$C$6:$C$29)=$H12),--(YEAR('(614an)'!$C$6:$C$29)=K$5),'(614an)'!$B$6:$B$29) -> 37272.13 | L12: =K12/$I12-1 -> -0.2666706804 | N12: TRUE | O12: TRUE | P12: TRUE | Q12: TRUE
A13: Aug | B13: 30649.61 | D13: 46581.55 | E13: 0.5198088981 | H13: =MONTH('(614an)'!C13) -> 8 | I13: =SUMPRODUCT(--(MONTH('(614an)'!$C$6:$C$29)=$H13),--(YEAR('(614an)'!$C$6:$C$29)=I$5),'(614an)'!$B$6:$B$29) -> 30649.61 | J13: =I13/$I13-1 -> 0 | K13: =SUMPRODUCT(--(MONTH('(614an)'!$C$6:$C$29)=$H13),--(YEAR('(614an)'!$C$6:$C$29)=K$5),'(614an)'!$B$6:$B$29) -> 46581.55 | L13: =K13/$I13-1 -> 0.5198088981 | N13: TRUE | O13: TRUE | P13: TRUE | Q13: TRUE
A14: Sep | B14: 30915.84 | D14: 41547.16 | E14: 0.3438793835 | H14: =MONTH('(614an)'!C14) -> 9 | I14: =SUMPRODUCT(--(MONTH('(614an)'!$C$6:$C$29)=$H14),--(YEAR('(614an)'!$C$6:$C$29)=I$5),'(614an)'!$B$6:$B$29) -> 30915.84 | J14: =I14/$I14-1 -> 0 | K14: =SUMPRODUCT(--(MONTH('(614an)'!$C$6:$C$29)=$H14),--(YEAR('(614an)'!$C$6:$C$29)=K$5),'(614an)'!$B$6:$B$29) -> 41547.16 | L14: =K14/$I14-1 -> 0.3438793835 | N14: TRUE | O14: TRUE | P14: TRUE | Q14: TRUE
A15: Oct | B15: 34735.37 | D15: 47277.78 | E15: 0.3610846811 | H15: =MONTH('(614an)'!C15) -> 10 | I15: =SUMPRODUCT(--(MONTH('(614an)'!$C$6:$C$29)=$H15),--(YEAR('(614an)'!$C$6:$C$29)=I$5),'(614an)'!$B$6:$B$29) -> 34735.37 | J15: =I15/$I15-1 -> 0 | K15: =SUMPRODUCT(--(MONTH('(614an)'!$C$6:$C$29)=$H15),--(YEAR('(614an)'!$C$6:$C$29)=K$5),'(614an)'!$B$6:$B$29) -> 47277.78 | L15: =K15/$I15-1 -> 0.3610846811 | N15: TRUE | O15: TRUE | P15: TRUE | Q15: TRUE
A16: Nov | B16: 29929.95 | D16: 52107.55 | E16: 0.7409835299 | H16: =MONTH('(614an)'!C16) -> 11 | I16: =SUMPRODUCT(--(MONTH('(614an)'!$C$6:$C$29)=$H16),--(YEAR('(614an)'!$C$6:$C$29)=I$5),'(614an)'!$B$6:$B$29) -> 29929.95 | J16: =I16/$I16-1 -> 0 | K16: =SUMPRODUCT(--(MONTH('(614an)'!$C$6:$C$29)=$H16),--(YEAR('(614an)'!$C$6:$C$29)=K$5),'(614an)'!$B$6:$B$29) -> 52107.55 | L16: =K16/$I16-1 -> 0.7409835299 | N16: TRUE | O16: TRUE | P16: TRUE | Q16: TRUE
A17: Dec | B17: 36388.24 | D17: 49361.23 | E17: 0.3565160063 | H17: =MONTH('(614an)'!C17) -> 12 | I17: =SUMPRODUCT(--(MONTH('(614an)'!$C$6:$C$29)=$H17),--(YEAR('(614an)'!$C$6:$C$29)=I$5),'(614an)'!$B$6:$B$29) -> 36388.24 | J17: =I17/$I17-1 -> 0 | K17: =SUMPRODUCT(--(MONTH('(614an)'!$C$6:$C$29)=$H17),--(YEAR('(614an)'!$C$6:$C$29)=K$5),'(614an)'!$B$6:$B$29) -> 49361.23 | L17: =K17/$I17-1 -> 0.3565160063 | N17: TRUE | O17: TRUE | P17: TRUE | Q17: TRUE
